Workbook

Sheet Legend
B1: METRIC | C1: DEFINITION | D1: Line | E1: COMMENT
B2: 010 Series | C2: Initial entitlement for service-connected disability (=>8 issues) | D2: Comp | E2: Rating Bundle: Claims for disability compensation, dependency and indemnity compensation, and Veterans’ pension benefits, including both original and supplemental claims. Rating Bundle claims normally require a rating decision during processing. The Rating Bundle Group is made up of 7 series and 1 group of End Products, plus 4 Agent Orange End Products, which are used to define VA Priority goals for Accuracy and reduction of claims over 125 days old
B3: 110 Series | C3: Initial entitlement for service-connected disability (<=7 issues) | D3: Comp
B4: 020 Series | C4: Increased evaluation and/or additional claimed conditions | D4: Comp
B5: 140 Series | C5: Initial claims from surviving spouses, children or parents | D5: Comp
B6: 180 Series | C6: Initial entitlement for Pension - Veteran | D6: Pension
B7: 120 Series | C7: Increased entitlement and/or reconsideration for Pension | D7: Pension
B8: 310 Group | C8: Future examination for disabilities (excludes EP 314) | D8: Comp
B9: 320 Series | C9: Increased entitlement due to hospitalization or surgery | D9: Comp
B10: EP 405 | C10: Reopened or new Agent Orange claims between 9/01/10 and 10/24/2011 | D10: Comp
B11: EP 409 | C11: Agent Orange claims where an interim decision was provided; No longer used as of 10/24/2011 | D11: Comp
B12: EP 681 | C12: Used to control claims under the Nehmer Agent Orange stipulation | D12: Comp
B13: EP 687 | C13: Previously used for Nehmer Agent Orange presumptive issues | D13: Comp
B14: EP 040 | C14: Decision Review Request - AMA Supplemental Claims | D14: Comp
B15: EP 335 | C15: Blue Water Navy Agent Orange (effective 1/1/2010) | D15: Comp | E15: Not-Rating: Claims for disability compensation, dependency and indemnity compensation, and Veterans’ pension benefits, which can but normally do not require a rating decision (i.e. claim to add dependent to award).
B18: ADP | C18: Average Days Pending, or total number of days pending divided by total number of claims pending
B19: ADC | C19: Average Days to Complete or total number of days to complete divided by total number of claims completed
B21: MTD | C21: Month to Date. Captures claim activity from the first day of the reporting month through the report date
B22: FYTD | C22: Fiscal Year to Date. Captures claim activity from the first day of the current fiscal year through the report date
B24: SOJ | C24: Station of Jurisdiction, or the Regional Office assigned to work the claim
B25: SOO | C25: Station of Origin, or the Regional Office with geographic oversight of the claim
B27: Pending Development | C27: Claims that are awaiting development initiation, which may involve gathering supporting evidence, medical exams, and military documentation.
B29: Pending Evidence | C29: Claims that are in the process of gathering supporting evidence and possibly medical exams.
B31: Pending Decision | C31: Claims that are awaiting an evidence review and decision by a rating specialist
B33: Pending Award | C33: Claims that are awaiting a first-level review of the evidence gathered and the decision.
B35: Pending Authorization | C35: Claims that are awaiting a final review of all aspects of the claim, which results in a notification to the claimant on the outcome of their claim.

Sheet Transformation
B2: Compensation and Pension Rating Bundle Metrics
B3: National View | H3: # Pending | I3: # Pending > 125 | J3: % Pending > 125 days
B4: ="Reporting through "&TEXT(D_DT[],"MMMM DD, YYYY") -> Reporting through June 26, 2021
B5: Compensation and Pension Rating Bundle | G5: Total | H5: =SUM(H6,H11,H22) -> 581396 | I5: =SUM(I6,I11,I22) -> 187912 | J5: =IF(H5=0, 0,I5/H5) -> 0.323208278
B6: Original Entitlement | G6: Total | H6: =SUM(H7:H10) -> 151070 | I6: =SUM(I7:I10) -> 72664 | J6: =IF(H6=0, 0,I6/H6) -> 0.480995565
A7: 010 | B7: Initial entitlement for service-connected disability (>=8 issues) | G7: EP 010 | H7: =IFERROR(SUMIFS(D_D[INV],D_D[MT],3,D_D[EP],$A7),0) -> 49284 | I7: =IFERROR(SUMIFS(D_D[BL],D_D[MT],3,D_D[EP],$A7),0) -> 25579 | J7: 0.5190122555
A8: 110 | B8: Initial entitlement for service-connected disability (<=7 issues) | G8: EP 110 | H8: =IFERROR(SUMIFS(D_D[INV],D_D[MT],3,D_D[EP],$A8),0) -> 91212 | I8: =IFERROR(SUMIFS(D_D[BL],D_D[MT],3,D_D[EP],$A8),0) -> 43892 | J8: 0.4812086129
A9: 180 | B9: Initial entitlement - Veteran's Pension | G9: EP 180 | H9: =IFERROR(SUMIFS(D_D[INV],D_D[MT],3,D_D[EP],$A9),0) -> 2307 | I9: =IFERROR(SUMIFS(D_D[BL],D_D[MT],3,D_D[EP],$A9),0) -> 283 | J9: 0.1226701344
A10: 140 | B10: Initial claims from surviving spouses, children or parents | G10: EP 140 | H10: =IFERROR(SUMIFS(D_D[INV],D_D[MT],3,D_D[EP],$A10),0) -> 8267 | I10: =IFERROR(SUMIFS(D_D[BL],D_D[MT],3,D_D[EP],$A10),0) -> 2910 | J10: 0.3520019354
B11: Supplemental Entitlement | G11: Total | H11: =SUM(H12:H21) -> 413065 | I11: =SUM(I12:I21) -> 99394 | J11: 0.2406255674
A12: 120 | B12: Increased entitlement and/or reconsideration for Pension | G12: EP 120 | H12: =IFERROR(SUMIFS(D_D[INV],D_D[MT],3,D_D[EP],$A12),0) -> 1035 | I12: =IFERROR(SUMIFS(D_D[BL],D_D[MT],3,D_D[EP],$A12),0) -> 88 | J12: 0.08502415459
A13: 020 | B13: Increased evaluation and/or additional claimed conditions | G13: EP 020 | H13: =IFERROR(SUMIFS(D_D[INV],D_D[MT],3,D_D[EP],$A13),0) -> 200751 | I13: =IFERROR(SUMIFS(D_D[BL],D_D[MT],3,D_D[EP],$A13),0) -> 69830 | J13: 0.3478438464
A14: 310G | B14: Future examination for disabilities | G14: EP 310 | H14: =IFERROR(SUMIFS(D_D[INV],D_D[MT],3,D_D[EP],$A14),0) -> 15175 | I14: =IFERROR(SUMIFS(D_D[BL],D_D[MT],3,D_D[EP],$A14),0) -> 5465 | J14: 0.3601317957
A15: 320 | B15: Increased entitlement due to hospitalization or surgery | G15: EP 320 | H15: =IFERROR(SUMIFS(D_D[INV],D_D[MT],3,D_D[EP],$A15),0) -> 285 | I15: =IFERROR(SUMIFS(D_D[BL],D_D[MT],3,D_D[EP],$A15),0) -> 27 | J15: 0.09473684211
A16: 681 | B16: Used to control claims under the Nehmer Agent Orange stipulation | G16: EP 681 | H16: =IFERROR(SUMIFS(D_D[INV],D_D[MT],3,D_D[EP],$A16),0) -> 111 | I16: =IFERROR(SUMIFS(D_D[BL],D_D[MT],3,D_D[EP],$A16),0) -> 67 | J16: 0.6036036036
A17: 687 | B17: Nehmer Agent Orange Presumptive | G17: EP 687 | H17: =IFERROR(SUMIFS(D_D[INV],D_D[MT],3,D_D[EP],$A17),0) -> 54765 | I17: =IFERROR(SUMIFS(D_D[BL],D_D[MT],3,D_D[EP],$A17),0) -> 18 | J17: =IF(H17=0, 0,I17/H17) -> 0.0003286770748
A18: 688 | B18: NDAA Nehmer Agent Orange Reviews | G18: EP 688 | H18: =IFERROR(SUMIFS(D_D[INV],D_D[MT],3,D_D[EP],$A18),0) -> 69323 | I18: =IFERROR(SUMIFS(D_D[BL],D_D[MT],3,D_D[EP],$A18),0) -> 323 | J18: =IF(H18=0, 0,I18/H18) -> 0.004659348268
A19: 405 | B19: Reopened or new Agent Orange claims between 9/01/10 and 10/24/2011 | G19: EP 405 | H19: =IFERROR(SUMIFS(D_D[INV],D_D[MT],3,D_D[EP],$A19),0) -> 0 | I19: =IFERROR(SUMIFS(D_D[BL],D_D[MT],3,D_D[EP],$A19),0) -> 0 | J19: =IF(H19=0, 0,I19/H19) -> 0
A20: 040 | B20: Decision Review Request - AMA Supplemental Claims | G20: EP 040 | H20: =IFERROR(SUMIFS(D_D[INV],D_D[MT],3.1,D_D[EP],$A20),0) -> 71610 | I20: =IFERROR(SUMIFS(D_D[BL],D_D[MT],3.1,D_D[EP],$A20),0) -> 23569 | J20: =IF(H20=0, 0,I20/H20) -> 0.3291300098
A21: 409 | B21: Agent Orange claims where an interim decision was provided; No longer used as of 10/24/2011 | G21: EP 409 | H21: =IFERROR(SUMIFS(D_D[INV],D_D[MT],3,D_D[EP],$A21),0) -> 10 | I21: =IFERROR(SUMIFS(D_D[BL],D_D[MT],3,D_D[EP],$A21),0) -> 7 | J21: =IF(H21=0, 0,I21/H21) -> 0.7
B22: Compensation Other – Diary – Becomes Part of Rating Bundle on 1/1/2020 | G22: Total | H22: =SUM(H23) -> 17261 | I22: =SUM(I23) -> 15854 | J22: =IF(H22=0, 0,I22/H22) -> 0.9184867621
A23: 335 | B23: Blue Water Navy - Agent Orange | G23: EP 335 | H23: =IFERROR(SUMIFS(D_D[INV],D_D[MT],3,D_D[EP],$A23),0) -> 17261 | I23: =IFERROR(SUMIFS(D_D[BL],D_D[MT],3,D_D[EP],$A23),0) -> 15854 | J23: 0.9184867621
B25: Education Metrics | G25: ="Pending on " &TEXT(D_DT[]-1,"MM/DD/YY") -> Pending on 06/25/21 | H25: ="Pending on " &TEXT(D_DT[]-9,"MM/DD/YY") -> Pending on 06/17/21 | I25: # Change | J25: % Change
A26: 1 | B26: Total Chapter 33 Original Claims * | G26: =IFERROR(SUMIFS(D_D[INV],D_D[MT],9,D_D[CAT],1,D_D[LOC],$A26),0) -> 7006 | H26: =IFERROR(SUMIFS(D_D[BL],D_D[MT],9,D_D[CAT],1,D_D[LOC],$A26),0) -> 5929 | I26: =IFERROR(SUMIFS(D_D[ADP],D_D[MT],9,D_D[CAT],1,D_D[LOC],$A26),0) -> 1077 | J26: =IFERROR(I26/H26,0) -> 0.1816495193
A27: 307 | B27: Buffalo | G27: =IFERROR(SUMIFS(D_D[INV],D_D[MT],9,D_D[CAT],1,D_D[LOC],$A27),0) -> 4806 | H27: =IFERROR(SUMIFS(D_D[BL],D_D[MT],9,D_D[CAT],1,D_D[LOC],$A27),0) -> 3906 | I27: =IFERROR(SUMIFS(D_D[ADP],D_D[MT],9,D_D[CAT],1,D_D[LOC],$A27),0) -> 900 | J27: =IFERROR(I27/H27,0) -> 0.2304147465
A28: 316 | B28: Atlanta | G28: =IFERROR(SUMIFS(D_D[INV],D_D[MT],9,D_D[CAT],1,D_D[LOC],$A28),0) -> 0 | H28: =IFERROR(SUMIFS(D_D[BL],D_D[MT],9,D_D[CAT],1,D_D[LOC],$A28),0) -> 0 | I28: =IFERROR(SUMIFS(D_D[ADP],D_D[MT],9,D_D[CAT],1,D_D[LOC],$A28),0) -> 0 | J28: =IF(H28=0, 0,I28/H28) -> 0
A29: 331 | B29: St Louis | G29: =IFERROR(SUMIFS(D_D[INV],D_D[MT],9,D_D[CAT],1,D_D[LOC],$A29),0) -> 0 | H29: =IFERROR(SUMIFS(D_D[BL],D_D[MT],9,D_D[CAT],1,D_D[LOC],$A29),0) -> 0 | I29: =IFERROR(SUMIFS(D_D[ADP],D_D[MT],9,D_D[CAT],1,D_D[LOC],$A29),0) -> 0 | J29: =IFERROR(I29/H29,0) -> 0
A30: 351 | B30: Muskogee | G30: =IFERROR(SUMIFS(D_D[INV],D_D[MT],9,D_D[CAT],1,D_D[LOC],$A30),0) -> 2200 | H30: =IFERROR(SUMIFS(D_D[BL],D_D[MT],9,D_D[CAT],1,D_D[LOC],$A30),0) -> 2023 | I30: =IFERROR(SUMIFS(D_D[ADP],D_D[MT],9,D_D[CAT],1,D_D[LOC],$A30),0) -> 177 | J30: =IFERROR(I30/H30,0) -> 0.08749382106
A31: 1 | B31: Total Education Claims - All Education Programs ** | G31: =IFERROR(SUMIFS(D_D[INV],D_D[MT],9,D_D[CAT],2,D_D[LOC],$A31),0) -> 29312 | H31: =IFERROR(SUMIFS(D_D[BL],D_D[MT],9,D_D[CAT],2,D_D[LOC],$A31),0) -> 56279 | I31: =IFERROR(SUMIFS(D_D[ADP],D_D[MT],9,D_D[CAT],2,D_D[LOC],$A31),0) -> -26967 | J31: =I31/H31 -> -0.4791662965
A32: 307 | B32: Buffalo | G32: =IFERROR(SUMIFS(D_D[INV],D_D[MT],9,D_D[CAT],2,D_D[LOC],$A32),0) -> 0 | H32: =IFERROR(SUMIFS(D_D[BL],D_D[MT],9,D_D[CAT],2,D_D[LOC],$A32),0) -> 0 | I32: =IFERROR(SUMIFS(D_D[ADP],D_D[MT],9,D_D[CAT],2,D_D[LOC],$A32),0) -> 0 | J32: =I32/H32 -> 
A33: 316 | B33: Atlanta | G33: =IFERROR(SUMIFS(D_D[INV],D_D[MT],9,D_D[CAT],2,D_D[LOC],$A33),0) -> 0 | H33: =IFERROR(SUMIFS(D_D[BL],D_D[MT],9,D_D[CAT],2,D_D[LOC],$A33),0) -> 0 | I33: =IFERROR(SUMIFS(D_D[ADP],D_D[MT],9,D_D[CAT],2,D_D[LOC],$A33),0) -> 0 | J33: =IF(H33=0, 0,I33/H33) -> 0
A34: 331 | B34: St Louis | G34: =IFERROR(SUMIFS(D_D[INV],D_D[MT],9,D_D[CAT],2,D_D[LOC],$A34),0) -> 0 | H34: =IFERROR(SUMIFS(D_D[BL],D_D[MT],9,D_D[CAT],2,D_D[LOC],$A34),0) -> 0 | I34: =IFERROR(SUMIFS(D_D[ADP],D_D[MT],9,D_D[CAT],2,D_D[LOC],$A34),0) -> 0 | J34: =IFERROR(I34/H34,0) -> 0
A35: 351 | B35: Muskogee | G35: =IFERROR(SUMIFS(D_D[INV],D_D[MT],9,D_D[CAT],2,D_D[LOC],$A35),0) -> 29312 | H35: =IFERROR(SUMIFS(D_D[BL],D_D[MT],9,D_D[CAT],2,D_D[LOC],$A35),0) -> 30322 | I35: =IFERROR(SUMIFS(D_D[ADP],D_D[MT],9,D_D[CAT],2,D_D[LOC],$A35),0) -> -1010 | J35: -0.03330914847
B37: *Chapter 33 is the Post-9/11GI Bill.
B38: **Represents all Education Benefit Programs, including Chapter 33 claims.

Sheet Rating Bundle - SOJ
C2: DISTRICT SELECTOR | D2: Compensation and Pension Rating Bundle Metrics | L2: Report through
D3: Station of Jurisdiction View | L3: =D_DT[] -> 2021-06-26
D4: The Station of Jurisdiction (SOJ) is the regional office assigned to work the claim | L4: ADP = Average Days Pending | O4: MTD = Month to Date
D5: Each Special Mission has distinct claim counts | L5: ADC = Average Days to Complete | O5: FYTD = Fiscal Year to Date
D6: When Special Mission is set to Pension, BDD, or Quickstart, the District Selector has no impact
L7: Accuracy is available in Compensation and Pension Special Missions
D8: CLAIM METRICS | L8: ACCURACY METRICS
C9: SPECIAL MISSION SELECTOR | D9: # Pending | E9: # Pending > 125 Days | F9: % Pending > 125 Days | G9: ADP | H9: # Completed MTD | I9: ADC MTD | J9: # Completed FYTD | K9: ADC FYTD | L9: Rating 3 Month Issue | M9: Rating 3 Month Claim | N9: Rating 12 Month | P9: Authorization 12 Month
N10: % | O10: Margin of Error +/- | P10: % | Q10: Margin of Error +/-
N11: Correct | P11: Correct
A12: 100 | C12: =Driver!$C$20& " Total" -> USA - All Missions Total | D12: =IF(ISNA($A12),"",IFERROR(SUMIFS(D_D[INV],D_D[MT],5,D_D[CAT],SMS, D_D[EP],-1,D_D[LOC],$A12),0)) -> 581396 | E12: =IF(ISNA($A12),"",IFERROR(SUMIFS(D_D[BL],D_D[MT],5,D_D[CAT],SMS, D_D[EP],-1,D_D[LOC],$A12),0)) -> 187912 | F12: =IF(ISNA($A12),"",IFERROR(E12/D12,0)) -> 0.323208278 | G12: =IF(ISNA($A12),"",IFERROR(SUMIFS(D_D[ADP],D_D[MT],5,D_D[CAT],SMS, D_D[EP],-1,D_D[LOC],$A12),0)) -> 133.29 | H12: =IF(ISNA($A12),"",IFERROR(SUMIFS(D_D[PROD_MTD],D_D[MT],5,D_D[CAT],SMS, D_D[EP],-1,D_D[LOC],$A12),0)) -> 115418 | I12: =IF(ISNA($A12),"",IFERROR(SUMIFS(D_D[ADCM],D_D[MT],5,D_D[CAT],SMS, D_D[EP],-1,D_D[LOC],$A12),0)) -> 108 | J12: =IF(ISNA($A12),"",IFERROR(SUMIFS(D_D[PROD_FYTD],D_D[MT],5,D_D[CAT],SMS, D_D[EP],-1,D_D[LOC],$A12),0)) -> 1086560 | K12: =IF(ISNA($A12),"",IFERROR(SUMIFS(D_D[ADCF],D_D[MT],5,D_D[CAT],SMS, D_D[EP],-1,D_D[LOC],$A12),0)) -> 111.62 | L12: =IF(ISNA($A12-99),"",IFERROR(SUMIFS(D_D[INV],D_D[MT],8,D_D[CAT],SMS,D_D[LOC],$A12-99),0)) -> 0 | M12: =IF(ISNA($A12-99),"",IFERROR(SUMIFS(D_D[BL],D_D[MT],8,D_D[CAT],SMS,D_D[LOC],$A12-99),0)) -> 0 | N12: =IF(ISNA($A12-99),"",IFERROR(SUMIFS(D_D[ADP],D_D[MT],8,D_D[CAT],SMS,D_D[LOC],$A12-99),0)) -> 0 | O12: =IF(ISNA($A12-99),"",IFERROR(SUMIFS(D_D[PROD_MTD],D_D[MT],8,D_D[CAT],SMS,D_D[LOC],$A12-99),0)) -> 0 | P12: =IF(ISNA($A12-99),"",IFERROR(SUMIFS(D_D[PROD_FYTD],D_D[MT],8,D_D[CAT],SMS,D_D[LOC],$A12-99),0)) -> 0 | Q12: =IF(ISNA($A12-99),"",IFERROR(SUMIFS(D_D[ADCM],D_D[MT],8,D_D[CAT],SMS,D_D[LOC],$A12-99),0)) -> 0
A13: =INDEX(RO,(MATCH($C13,RO_D,0))) -> 394 | B13: 1 | C13: =IFERROR(INDEX(INDIRECT(DS_RO_N),B13),"") -> Northeast District | D13: =IF(ISNA($A13),"",IFERROR(SUMIFS(D_D[INV],D_D[MT],5,D_D[CAT],SMS, D_D[EP],-1,D_D[LOC],$A13),0)) -> 14928 | E13: =IF(ISNA($A13),"",IFERROR(SUMIFS(D_D[BL],D_D[MT],5,D_D[CAT],SMS, D_D[EP],-1,D_D[LOC],$A13),0)) -> 4140 | F13: =IF(ISNA($A13),"",IFERROR(E13/D13,0)) -> 0.2773311897 | G13: =IF(ISNA($A13),"",IFERROR(SUMIFS(D_D[ADP],D_D[MT],5,D_D[CAT],SMS, D_D[EP],-1,D_D[LOC],$A13),0)) -> 114.71 | H13: =IF(ISNA($A13),"",IFERROR(SUMIFS(D_D[PROD_MTD],D_D[MT],5,D_D[CAT],SMS, D_D[EP],-1,D_D[LOC],$A13),0)) -> 27557 | I13: =IF(ISNA($A13),"",IFERROR(SUMIFS(D_D[ADCM],D_D[MT],5,D_D[CAT],SMS, D_D[EP],-1,D_D[LOC],$A13),0)) -> 105.28 | J13: =IF(ISNA($A13),"",IFERROR(SUMIFS(D_D[PROD_FYTD],D_D[MT],5,D_D[CAT],SMS, D_D[EP],-1,D_D[LOC],$A13),0)) -> 259374 | K13: =IF(ISNA($A13),"",IFERROR(SUMIFS(D_D[ADCF],D_D[MT],5,D_D[CAT],SMS, D_D[EP],-1,D_D[LOC],$A13),0)) -> 105.59 | L13: =IF(ISNA($A13),"",IFERROR(SUMIFS(D_D[INV],D_D[MT],8,D_D[CAT],SMS,D_D[LOC],$A13),0)) -> 0 | M13: =IF(ISNA($A13),"",IFERROR(SUMIFS(D_D[BL],D_D[MT],8,D_D[CAT],SMS,D_D[LOC],$A13),0)) -> 0 | N13: =IF(ISNA($A13),"",IFERROR(SUMIFS(D_D[ADP],D_D[MT],8,D_D[CAT],SMS,D_D[LOC],$A13),0)) -> 0 | O13: =IF(ISNA($A13),"",IFERROR(SUMIFS(D_D[PROD_MTD],D_D[MT],8,D_D[CAT],SMS,D_D[LOC],$A13),0)) -> 0 | P13: =IF(ISNA($A13),"",IFERROR(SUMIFS(D_D[PROD_FYTD],D_D[MT],8,D_D[CAT],SMS,D_D[LOC],$A13),0)) -> 0 | Q13: =IF(ISNA($A13),"",IFERROR(SUMIFS(D_D[ADCM],D_D[MT],8,D_D[CAT],SMS,D_D[LOC],$A13),0)) -> 0
A14: 313 | B14: 2 | C14: =IFERROR(INDEX(INDIRECT(DS_RO_N),B14),"") -> Baltimore | D14: =IF(ISNA($A14),"",IFERROR(SUMIFS(D_D[INV],D_D[MT],5,D_D[CAT],SMS, D_D[EP],-1,D_D[LOC],$A14),0)) -> 332 | E14: =IF(ISNA($A14),"",IFERROR(SUMIFS(D_D[BL],D_D[MT],5,D_D[CAT],SMS, D_D[EP],-1,D_D[LOC],$A14),0)) -> 87 | F14: =IF(ISNA($A14),"",IFERROR(E14/D14,0)) -> 0.2620481928 | G14: =IF(ISNA($A14),"",IFERROR(SUMIFS(D_D[ADP],D_D[MT],5,D_D[CAT],SMS, D_D[EP],-1,D_D[LOC],$A14),0)) -> 107.26 | H14: =IF(ISNA($A14),"",IFERROR(SUMIFS(D_D[PROD_MTD],D_D[MT],5,D_D[CAT],SMS, D_D[EP],-1,D_D[LOC],$A14),0)) -> 667 | I14: =IF(ISNA($A14),"",IFERROR(SUMIFS(D_D[ADCM],D_D[MT],5,D_D[CAT],SMS, D_D[EP],-1,D_D[LOC],$A14),0)) -> 118.35 | J14: =IF(ISNA($A14),"",IFERROR(SUMIFS(D_D[PROD_FYTD],D_D[MT],5,D_D[CAT],SMS, D_D[EP],-1,D_D[LOC],$A14),0)) -> 5220 | K14: =IF(ISNA($A14),"",IFERROR(SUMIFS(D_D[ADCF],D_D[MT],5,D_D[CAT],SMS, D_D[EP],-1,D_D[LOC],$A14),0)) -> 97.48 | L14: =IF(ISNA($A14),"",IFERROR(SUMIFS(D_D[INV],D_D[MT],8,D_D[CAT],SMS,D_D[LOC],$A14),0)) -> 0 | M14: =IF(ISNA($A14),"",IFERROR(SUMIFS(D_D[BL],D_D[MT],8,D_D[CAT],SMS,D_D[LOC],$A14),0)) -> 0 | N14: =IF(ISNA($A14),"",IFERROR(SUMIFS(D_D[ADP],D_D[MT],8,D_D[CAT],SMS,D_D[LOC],$A14),0)) -> 0 | O14: =IF(ISNA($A14),"",IFERROR(SUMIFS(D_D[PROD_MTD],D_D[MT],8,D_D[CAT],SMS,D_D[LOC],$A14),0)) -> 0 | P14: =IF(ISNA($A14),"",IFERROR(SUMIFS(D_D[PROD_FYTD],D_D[MT],8,D_D[CAT],SMS,D_D[LOC],$A14),0)) -> 0 | Q14: =IF(ISNA($A14),"",IFERROR(SUMIFS(D_D[ADCM],D_D[MT],8,D_D[CAT],SMS,D_D[LOC],$A14),0)) -> 0
A15: 301 | B15: 3 | C15: Boston | D15: =IF(ISNA($A15),"",IFERROR(SUMIFS(D_D[INV],D_D[MT],5,D_D[CAT],SMS, D_D[EP],-1,D_D[LOC],$A15),0)) -> 336 | E15: =IF(ISNA($A15),"",IFERROR(SUMIFS(D_D[BL],D_D[MT],5,D_D[CAT],SMS, D_D[EP],-1,D_D[LOC],$A15),0)) -> 88 | F15: 0.2619047619 | G15: =IF(ISNA($A15),"",IFERROR(SUMIFS(D_D[ADP],D_D[MT],5,D_D[CAT],SMS, D_D[EP],-1,D_D[LOC],$A15),0)) -> 98.9 | H15: =IF(ISNA($A15),"",IFERROR(SUMIFS(D_D[PROD_MTD],D_D[MT],5,D_D[CAT],SMS, D_D[EP],-1,D_D[LOC],$A15),0)) -> 1121 | I15: =IF(ISNA($A15),"",IFERROR(SUMIFS(D_D[ADCM],D_D[MT],5,D_D[CAT],SMS, D_D[EP],-1,D_D[LOC],$A15),0)) -> 113.8 | J15: =IF(ISNA($A15),"",IFERROR(SUMIFS(D_D[PROD_FYTD],D_D[MT],5,D_D[CAT],SMS, D_D[EP],-1,D_D[LOC],$A15),0)) -> 9106 | K15: =IF(ISNA($A15),"",IFERROR(SUMIFS(D_D[ADCF],D_D[MT],5,D_D[CAT],SMS, D_D[EP],-1,D_D[LOC],$A15),0)) -> 104.28 | L15: =IF(ISNA($A15),"",IFERROR(SUMIFS(D_D[INV],D_D[MT],8,D_D[CAT],SMS,D_D[LOC],$A15),0)) -> 0 | M15: =IF(ISNA($A15),"",IFERROR(SUMIFS(D_D[BL],D_D[MT],8,D_D[CAT],SMS,D_D[LOC],$A15),0)) -> 0 | N15: =IF(ISNA($A15),"",IFERROR(SUMIFS(D_D[ADP],D_D[MT],8,D_D[CAT],SMS,D_D[LOC],$A15),0)) -> 0 | O15: =IF(ISNA($A15),"",IFERROR(SUMIFS(D_D[PROD_MTD],D_D[MT],8,D_D[CAT],SMS,D_D[LOC],$A15),0)) -> 0 | P15: =IF(ISNA($A15),"",IFERROR(SUMIFS(D_D[PROD_FYTD],D_D[MT],8,D_D[CAT],SMS,D_D[LOC],$A15),0)) -> 0 | Q15: =IF(ISNA($A15),"",IFERROR(SUMIFS(D_D[ADCM],D_D[MT],8,D_D[CAT],SMS,D_D[LOC],$A15),0)) -> 0
A16: 307 | B16: 4 | C16: Buffalo | D16: =IF(ISNA($A16),"",IFERROR(SUMIFS(D_D[INV],D_D[MT],5,D_D[CAT],SMS, D_D[EP],-1,D_D[LOC],$A16),0)) -> 492 | E16: =IF(ISNA($A16),"",IFERROR(SUMIFS(D_D[BL],D_D[MT],5,D_D[CAT],SMS, D_D[EP],-1,D_D[LOC],$A16),0)) -> 170 | F16: 0.3455284553 | G16: =IF(ISNA($A16),"",IFERROR(SUMIFS(D_D[ADP],D_D[MT],5,D_D[CAT],SMS, D_D[EP],-1,D_D[LOC],$A16),0)) -> 126.6 | H16: =IF(ISNA($A16),"",IFERROR(SUMIFS(D_D[PROD_MTD],D_D[MT],5,D_D[CAT],SMS, D_D[EP],-1,D_D[LOC],$A16),0)) -> 798 | I16: =IF(ISNA($A16),"",IFERROR(SUMIFS(D_D[ADCM],D_D[MT],5,D_D[CAT],SMS, D_D[EP],-1,D_D[LOC],$A16),0)) -> 150.54 | J16: =IF(ISNA($A16),"",IFERROR(SUMIFS(D_D[PROD_FYTD],D_D[MT],5,D_D[CAT],SMS, D_D[EP],-1,D_D[LOC],$A16),0)) -> 6226 | K16: =IF(ISNA($A16),"",IFERROR(SUMIFS(D_D[ADCF],D_D[MT],5,D_D[CAT],SMS, D_D[EP],-1,D_D[LOC],$A16),0)) -> 124.92 | L16: =IF(ISNA($A16),"",IFERROR(SUMIFS(D_D[INV],D_D[MT],8,D_D[CAT],SMS,D_D[LOC],$A16),0)) -> 0 | M16: =IF(ISNA($A16),"",IFERROR(SUMIFS(D_D[BL],D_D[MT],8,D_D[CAT],SMS,D_D[LOC],$A16),0)) -> 0 | N16: =IF(ISNA($A16),"",IFERROR(SUMIFS(D_D[ADP],D_D[MT],8,D_D[CAT],SMS,D_D[LOC],$A16),0)) -> 0 | O16: =IF(ISNA($A16),"",IFERROR(SUMIFS(D_D[PROD_MTD],D_D[MT],8,D_D[CAT],SMS,D_D[LOC],$A16),0)) -> 0 | P16: =IF(ISNA($A16),"",IFERROR(SUMIFS(D_D[PROD_FYTD],D_D[MT],8,D_D[CAT],SMS,D_D[LOC],$A16),0)) -> 0 | Q16: =IF(ISNA($A16),"",IFERROR(SUMIFS(D_D[ADCM],D_D[MT],8,D_D[CAT],SMS,D_D[LOC],$A16),0)) -> 0
A17: 328 | B17: 5 | C17: Chicago | D17: =IF(ISNA($A17),"",IFERROR(SUMIFS(D_D[INV],D_D[MT],5,D_D[CAT],SMS, D_D[EP],-1,D_D[LOC],$A17),0)) -> 535 | E17: =IF(ISNA($A17),"",IFERROR(SUMIFS(D_D[BL],D_D[MT],5,D_D[CAT],SMS, D_D[EP],-1,D_D[LOC],$A17),0)) -> 137 | F17: 0.2560747664 | G17: =IF(ISNA($A17),"",IFERROR(SUMIFS(D_D[ADP],D_D[MT],5,D_D[CAT],SMS, D_D[EP],-1,D_D[LOC],$A17),0)) -> 87.92 | H17: =IF(ISNA($A17),"",IFERROR(SUMIFS(D_D[PROD_MTD],D_D[MT],5,D_D[CAT],SMS, D_D[EP],-1,D_D[LOC],$A17),0)) -> 876 | I17: =IF(ISNA($A17),"",IFERROR(SUMIFS(D_D[ADCM],D_D[MT],5,D_D[CAT],SMS, D_D[EP],-1,D_D[LOC],$A17),0)) -> 100.74 | J17: =IF(ISNA($A17),"",IFERROR(SUMIFS(D_D[PROD_FYTD],D_D[MT],5,D_D[CAT],SMS, D_D[EP],-1,D_D[LOC],$A17),0)) -> 8200 | K17: =IF(ISNA($A17),"",IFERROR(SUMIFS(D_D[ADCF],D_D[MT],5,D_D[CAT],SMS, D_D[EP],-1,D_D[LOC],$A17),0)) -> 80.24 | L17: =IF(ISNA($A17),"",IFERROR(SUMIFS(D_D[INV],D_D[MT],8,D_D[CAT],SMS,D_D[LOC],$A17),0)) -> 0 | M17: =IF(ISNA($A17),"",IFERROR(SUMIFS(D_D[BL],D_D[MT],8,D_D[CAT],SMS,D_D[LOC],$A17),0)) -> 0 | N17: =IF(ISNA($A17),"",IFERROR(SUMIFS(D_D[ADP],D_D[MT],8,D_D[CAT],SMS,D_D[LOC],$A17),0)) -> 0 | O17: =IF(ISNA($A17),"",IFERROR(SUMIFS(D_D[PROD_MTD],D_D[MT],8,D_D[CAT],SMS,D_D[LOC],$A17),0)) -> 0 | P17: =IF(ISNA($A17),"",IFERROR(SUMIFS(D_D[PROD_FYTD],D_D[MT],8,D_D[CAT],SMS,D_D[LOC],$A17),0)) -> 0 | Q17: =IF(ISNA($A17),"",IFERROR(SUMIFS(D_D[ADCM],D_D[MT],8,D_D[CAT],SMS,D_D[LOC],$A17),0)) -> 0
A18: 325 | B18: 6 | C18: Cleveland | D18: =IF(ISNA($A18),"",IFERROR(SUMIFS(D_D[INV],D_D[MT],5,D_D[CAT],SMS, D_D[EP],-1,D_D[LOC],$A18),0)) -> 1511 | E18: =IF(ISNA($A18),"",IFERROR(SUMIFS(D_D[BL],D_D[MT],5,D_D[CAT],SMS, D_D[EP],-1,D_D[LOC],$A18),0)) -> 431 | F18: 0.2852415619 | G18: =IF(ISNA($A18),"",IFERROR(SUMIFS(D_D[ADP],D_D[MT],5,D_D[CAT],SMS, D_D[EP],-1,D_D[LOC],$A18),0)) -> 118.06 | H18: =IF(ISNA($A18),"",IFERROR(SUMIFS(D_D[PROD_MTD],D_D[MT],5,D_D[CAT],SMS, D_D[EP],-1,D_D[LOC],$A18),0)) -> 1434 | I18: =IF(ISNA($A18),"",IFERROR(SUMIFS(D_D[ADCM],D_D[MT],5,D_D[CAT],SMS, D_D[EP],-1,D_D[LOC],$A18),0)) -> 129.44 | J18: =IF(ISNA($A18),"",IFERROR(SUMIFS(D_D[PROD_FYTD],D_D[MT],5,D_D[CAT],SMS, D_D[EP],-1,D_D[LOC],$A18),0)) -> 14905 | K18: =IF(ISNA($A18),"",IFERROR(SUMIFS(D_D[ADCF],D_D[MT],5,D_D[CAT],SMS, D_D[EP],-1,D_D[LOC],$A18),0)) -> 170.28 | L18: =IF(ISNA($A18),"",IFERROR(SUMIFS(D_D[INV],D_D[MT],8,D_D[CAT],SMS,D_D[LOC],$A18),0)) -> 0 | M18: =IF(ISNA($A18),"",IFERROR(SUMIFS(D_D[BL],D_D[MT],8,D_D[CAT],SMS,D_D[LOC],$A18),0)) -> 0 | N18: =IF(ISNA($A18),"",IFERROR(SUMIFS(D_D[ADP],D_D[MT],8,D_D[CAT],SMS,D_D[LOC],$A18),0)) -> 0 | O18: =IF(ISNA($A18),"",IFERROR(SUMIFS(D_D[PROD_MTD],D_D[MT],8,D_D[CAT],SMS,D_D[LOC],$A18),0)) -> 0 | P18: =IF(ISNA($A18),"",IFERROR(SUMIFS(D_D[PROD_FYTD],D_D[MT],8,D_D[CAT],SMS,D_D[LOC],$A18),0)) -> 0 | Q18: =IF(ISNA($A18),"",IFERROR(SUMIFS(D_D[ADCM],D_D[MT],8,D_D[CAT],SMS,D_D[LOC],$A18),0)) -> 0
A19: 329 | B19: 7 | C19: Detroit | D19: =IF(ISNA($A19),"",IFERROR(SUMIFS(D_D[INV],D_D[MT],5,D_D[CAT],SMS, D_D[EP],-1,D_D[LOC],$A19),0)) -> 679 | E19: =IF(ISNA($A19),"",IFERROR(SUMIFS(D_D[BL],D_D[MT],5,D_D[CAT],SMS, D_D[EP],-1,D_D[LOC],$A19),0)) -> 133 | F19: 0.1958762887 | G19: =IF(ISNA($A19),"",IFERROR(SUMIFS(D_D[ADP],D_D[MT],5,D_D[CAT],SMS, D_D[EP],-1,D_D[LOC],$A19),0)) -> 91.34 | H19: =IF(ISNA($A19),"",IFERROR(SUMIFS(D_D[PROD_MTD],D_D[MT],5,D_D[CAT],SMS, D_D[EP],-1,D_D[LOC],$A19),0)) -> 2195 | I19: =IF(ISNA($A19),"",IFERROR(SUMIFS(D_D[ADCM],D_D[MT],5,D_D[CAT],SMS, D_D[EP],-1,D_D[LOC],$A19),0)) -> 91.25 | J19: =IF(ISNA($A19),"",IFERROR(SUMIFS(D_D[PROD_FYTD],D_D[MT],5,D_D[CAT],SMS, D_D[EP],-1,D_D[LOC],$A19),0)) -> 18141 | K19: =IF(ISNA($A19),"",IFERROR(SUMIFS(D_D[ADCF],D_D[MT],5,D_D[CAT],SMS, D_D[EP],-1,D_D[LOC],$A19),0)) -> 101.37 | L19: =IF(ISNA($A19),"",IFERROR(SUMIFS(D_D[INV],D_D[MT],8,D_D[CAT],SMS,D_D[LOC],$A19),0)) -> 0 | M19: =IF(ISNA($A19),"",IFERROR(SUMIFS(D_D[BL],D_D[MT],8,D_D[CAT],SMS,D_D[LOC],$A19),0)) -> 0 | N19: =IF(ISNA($A19),"",IFERROR(SUMIFS(D_D[ADP],D_D[MT],8,D_D[CAT],SMS,D_D[LOC],$A19),0)) -> 0 | O19: =IF(ISNA($A19),"",IFERROR(SUMIFS(D_D[PROD_MTD],D_D[MT],8,D_D[CAT],SMS,D_D[LOC],$A19),0)) -> 0 | P19: =IF(ISNA($A19),"",IFERROR(SUMIFS(D_D[PROD_FYTD],D_D[MT],8,D_D[CAT],SMS,D_D[LOC],$A19),0)) -> 0 | Q19: =IF(ISNA($A19),"",IFERROR(SUMIFS(D_D[ADCM],D_D[MT],8,D_D[CAT],SMS,D_D[LOC],$A19),0)) -> 0
A20: 308 | B20: 8 | C20: Hartford | D20: =IF(ISNA($A20),"",IFERROR(SUMIFS(D_D[INV],D_D[MT],5,D_D[CAT],SMS, D_D[EP],-1,D_D[LOC],$A20),0)) -> 509 | E20: =IF(ISNA($A20),"",IFERROR(SUMIFS(D_D[BL],D_D[MT],5,D_D[CAT],SMS, D_D[EP],-1,D_D[LOC],$A20),0)) -> 270 | F20: 0.5304518664 | G20: =IF(ISNA($A20),"",IFERROR(SUMIFS(D_D[ADP],D_D[MT],5,D_D[CAT],SMS, D_D[EP],-1,D_D[LOC],$A20),0)) -> 183.7 | H20: =IF(ISNA($A20),"",IFERROR(SUMIFS(D_D[PROD_MTD],D_D[MT],5,D_D[CAT],SMS, D_D[EP],-1,D_D[LOC],$A20),0)) -> 952 | I20: =IF(ISNA($A20),"",IFERROR(SUMIFS(D_D[ADCM],D_D[MT],5,D_D[CAT],SMS, D_D[EP],-1,D_D[LOC],$A20),0)) -> 146.93 | J20: =IF(ISNA($A20),"",IFERROR(SUMIFS(D_D[PROD_FYTD],D_D[MT],5,D_D[CAT],SMS, D_D[EP],-1,D_D[LOC],$A20),0)) -> 7670 | K20: =IF(ISNA($A20),"",IFERROR(SUMIFS(D_D[ADCF],D_D[MT],5,D_D[CAT],SMS, D_D[EP],-1,D_D[LOC],$A20),0)) -> 96.02 | L20: =IF(ISNA($A20),"",IFERROR(SUMIFS(D_D[INV],D_D[MT],8,D_D[CAT],SMS,D_D[LOC],$A20),0)) -> 0 | M20: =IF(ISNA($A20),"",IFERROR(SUMIFS(D_D[BL],D_D[MT],8,D_D[CAT],SMS,D_D[LOC],$A20),0)) -> 0 | N20: =IF(ISNA($A20),"",IFERROR(SUMIFS(D_D[ADP],D_D[MT],8,D_D[CAT],SMS,D_D[LOC],$A20),0)) -> 0 | O20: =IF(ISNA($A20),"",IFERROR(SUMIFS(D_D[PROD_MTD],D_D[MT],8,D_D[CAT],SMS,D_D[LOC],$A20),0)) -> 0 | P20: =IF(ISNA($A20),"",IFERROR(SUMIFS(D_D[PROD_FYTD],D_D[MT],8,D_D[CAT],SMS,D_D[LOC],$A20),0)) -> 0 | Q20: =IF(ISNA($A20),"",IFERROR(SUMIFS(D_D[ADCM],D_D[MT],8,D_D[CAT],SMS,D_D[LOC],$A20),0)) -> 0
A21: 326 | B21: 9 | C21: Indianapolis | D21: =IF(ISNA($A21),"",IFERROR(SUMIFS(D_D[INV],D_D[MT],5,D_D[CAT],SMS, D_D[EP],-1,D_D[LOC],$A21),0)) -> 561 | E21: =IF(ISNA($A21),"",IFERROR(SUMIFS(D_D[BL],D_D[MT],5,D_D[CAT],SMS, D_D[EP],-1,D_D[LOC],$A21),0)) -> 142 | F21: 0.2531194296 | G21: =IF(ISNA($A21),"",IFERROR(SUMIFS(D_D[ADP],D_D[MT],5,D_D[CAT],SMS, D_D[EP],-1,D_D[LOC],$A21),0)) -> 105.08 | H21: =IF(ISNA($A21),"",IFERROR(SUMIFS(D_D[PROD_MTD],D_D[MT],5,D_D[CAT],SMS, D_D[EP],-1,D_D[LOC],$A21),0)) -> 1820 | I21: =IF(ISNA($A21),"",IFERROR(SUMIFS(D_D[ADCM],D_D[MT],5,D_D[CAT],SMS, D_D[EP],-1,D_D[LOC],$A21),0)) -> 114.47 | J21: =IF(ISNA($A21),"",IFERROR(SUMIFS(D_D[PROD_FYTD],D_D[MT],5,D_D[CAT],SMS, D_D[EP],-1,D_D[LOC],$A21),0)) -> 14042 | K21: =IF(ISNA($A21),"",IFERROR(SUMIFS(D_D[ADCF],D_D[MT],5,D_D[CAT],SMS, D_D[EP],-1,D_D[LOC],$A21),0)) -> 127.86 | L21: =IF(ISNA($A21),"",IFERROR(SUMIFS(D_D[INV],D_D[MT],8,D_D[CAT],SMS,D_D[LOC],$A21),0)) -> 0 | M21: =IF(ISNA($A21),"",IFERROR(SUMIFS(D_D[BL],D_D[MT],8,D_D[CAT],SMS,D_D[LOC],$A21),0)) -> 0 | N21: =IF(ISNA($A21),"",IFERROR(SUMIFS(D_D[ADP],D_D[MT],8,D_D[CAT],SMS,D_D[LOC],$A21),0)) -> 0 | O21: =IF(ISNA($A21),"",IFERROR(SUMIFS(D_D[PROD_MTD],D_D[MT],8,D_D[CAT],SMS,D_D[LOC],$A21),0)) -> 0 | P21: =IF(ISNA($A21),"",IFERROR(SUMIFS(D_D[PROD_FYTD],D_D[MT],8,D_D[CAT],SMS,D_D[LOC],$A21),0)) -> 0 | Q21: =IF(ISNA($A21),"",IFERROR(SUMIFS(D_D[ADCM],D_D[MT],8,D_D[CAT],SMS,D_D[LOC],$A21),0)) -> 0
A22: 373 | B22: 10 | C22: Manchester | D22: =IF(ISNA($A22),"",IFERROR(SUMIFS(D_D[INV],D_D[MT],5,D_D[CAT],SMS, D_D[EP],-1,D_D[LOC],$A22),0)) -> 191 | E22: =IF(ISNA($A22),"",IFERROR(SUMIFS(D_D[BL],D_D[MT],5,D_D[CAT],SMS, D_D[EP],-1,D_D[LOC],$A22),0)) -> 78 | F22: 0.4083769634 | G22: =IF(ISNA($A22),"",IFERROR(SUMIFS(D_D[ADP],D_D[MT],5,D_D[CAT],SMS, D_D[EP],-1,D_D[LOC],$A22),0)) -> 155.97 | H22: =IF(ISNA($A22),"",IFERROR(SUMIFS(D_D[PROD_MTD],D_D[MT],5,D_D[CAT],SMS, D_D[EP],-1,D_D[LOC],$A22),0)) -> 374 | I22: =IF(ISNA($A22),"",IFERROR(SUMIFS(D_D[ADCM],D_D[MT],5,D_D[CAT],SMS, D_D[EP],-1,D_D[LOC],$A22),0)) -> 154.73 | J22: =IF(ISNA($A22),"",IFERROR(SUMIFS(D_D[PROD_FYTD],D_D[MT],5,D_D[CAT],SMS, D_D[EP],-1,D_D[LOC],$A22),0)) -> 2862 | K22: =IF(ISNA($A22),"",IFERROR(SUMIFS(D_D[ADCF],D_D[MT],5,D_D[CAT],SMS, D_D[EP],-1,D_D[LOC],$A22),0)) -> 107.6 | L22: =IF(ISNA($A22),"",IFERROR(SUMIFS(D_D[INV],D_D[MT],8,D_D[CAT],SMS,D_D[LOC],$A22),0)) -> 0 | M22: =IF(ISNA($A22),"",IFERROR(SUMIFS(D_D[BL],D_D[MT],8,D_D[CAT],SMS,D_D[LOC],$A22),0)) -> 0 | N22: =IF(ISNA($A22),"",IFERROR(SUMIFS(D_D[ADP],D_D[MT],8,D_D[CAT],SMS,D_D[LOC],$A22),0)) -> 0 | O22: =IF(ISNA($A22),"",IFERROR(SUMIFS(D_D[PROD_MTD],D_D[MT],8,D_D[CAT],SMS,D_D[LOC],$A22),0)) -> 0 | P22: =IF(ISNA($A22),"",IFERROR(SUMIFS(D_D[PROD_FYTD],D_D[MT],8,D_D[CAT],SMS,D_D[LOC],$A22),0)) -> 0 | Q22: =IF(ISNA($A22),"",IFERROR(SUMIFS(D_D[ADCM],D_D[MT],8,D_D[CAT],SMS,D_D[LOC],$A22),0)) -> 0
A23: 330 | B23: 11 | C23: Milwaukee | D23: =IF(ISNA($A23),"",IFERROR(SUMIFS(D_D[INV],D_D[MT],5,D_D[CAT],SMS, D_D[EP],-1,D_D[LOC],$A23),0)) -> 1755 | E23: =IF(ISNA($A23),"",IFERROR(SUMIFS(D_D[BL],D_D[MT],5,D_D[CAT],SMS, D_D[EP],-1,D_D[LOC],$A23),0)) -> 314 | F23: 0.1789173789 | G23: =IF(ISNA($A23),"",IFERROR(SUMIFS(D_D[ADP],D_D[MT],5,D_D[CAT],SMS, D_D[EP],-1,D_D[LOC],$A23),0)) -> 90.49 | H23: =IF(ISNA($A23),"",IFERROR(SUMIFS(D_D[PROD_MTD],D_D[MT],5,D_D[CAT],SMS, D_D[EP],-1,D_D[LOC],$A23),0)) -> 3648 | I23: =IF(ISNA($A23),"",IFERROR(SUMIFS(D_D[ADCM],D_D[MT],5,D_D[CAT],SMS, D_D[EP],-1,D_D[LOC],$A23),0)) -> 71.14 | J23: =IF(ISNA($A23),"",IFERROR(SUMIFS(D_D[PROD_FYTD],D_D[MT],5,D_D[CAT],SMS, D_D[EP],-1,D_D[LOC],$A23),0)) -> 37535 | K23: =IF(ISNA($A23),"",IFERROR(SUMIFS(D_D[ADCF],D_D[MT],5,D_D[CAT],SMS, D_D[EP],-1,D_D[LOC],$A23),0)) -> 76.12 | L23: =IF(ISNA($A23),"",IFERROR(SUMIFS(D_D[INV],D_D[MT],8,D_D[CAT],SMS,D_D[LOC],$A23),0)) -> 0 | M23: =IF(ISNA($A23),"",IFERROR(SUMIFS(D_D[BL],D_D[MT],8,D_D[CAT],SMS,D_D[LOC],$A23),0)) -> 0 | N23: =IF(ISNA($A23),"",IFERROR(SUMIFS(D_D[ADP],D_D[MT],8,D_D[CAT],SMS,D_D[LOC],$A23),0)) -> 0 | O23: =IF(ISNA($A23),"",IFERROR(SUMIFS(D_D[PROD_MTD],D_D[MT],8,D_D[CAT],SMS,D_D[LOC],$A23),0)) -> 0 | P23: =IF(ISNA($A23),"",IFERROR(SUMIFS(D_D[PROD_FYTD],D_D[MT],8,D_D[CAT],SMS,D_D[LOC],$A23),0)) -> 0 | Q23: =IF(ISNA($A23),"",IFERROR(SUMIFS(D_D[ADCM],D_D[MT],8,D_D[CAT],SMS,D_D[LOC],$A23),0)) -> 0
A24: 306 | B24: 12 | C24: New York | D24: =IF(ISNA($A24),"",IFERROR(SUMIFS(D_D[INV],D_D[MT],5,D_D[CAT],SMS, D_D[EP],-1,D_D[LOC],$A24),0)) -> 698 | E24: =IF(ISNA($A24),"",IFERROR(SUMIFS(D_D[BL],D_D[MT],5,D_D[CAT],SMS, D_D[EP],-1,D_D[LOC],$A24),0)) -> 293 | F24: 0.4197707736 | G24: =IF(ISNA($A24),"",IFERROR(SUMIFS(D_D[ADP],D_D[MT],5,D_D[CAT],SMS, D_D[EP],-1,D_D[LOC],$A24),0)) -> 148.56 | H24: =IF(ISNA($A24),"",IFERROR(SUMIFS(D_D[PROD_MTD],D_D[MT],5,D_D[CAT],SMS, D_D[EP],-1,D_D[LOC],$A24),0)) -> 1404 | I24: =IF(ISNA($A24),"",IFERROR(SUMIFS(D_D[ADCM],D_D[MT],5,D_D[CAT],SMS, D_D[EP],-1,D_D[LOC],$A24),0)) -> 110.89 | J24: =IF(ISNA($A24),"",IFERROR(SUMIFS(D_D[PROD_FYTD],D_D[MT],5,D_D[CAT],SMS, D_D[EP],-1,D_D[LOC],$A24),0)) -> 13061 | K24: =IF(ISNA($A24),"",IFERROR(SUMIFS(D_D[ADCF],D_D[MT],5,D_D[CAT],SMS, D_D[EP],-1,D_D[LOC],$A24),0)) -> 96.99 | L24: =IF(ISNA($A24),"",IFERROR(SUMIFS(D_D[INV],D_D[MT],8,D_D[CAT],SMS,D_D[LOC],$A24),0)) -> 0 | M24: =IF(ISNA($A24),"",IFERROR(SUMIFS(D_D[BL],D_D[MT],8,D_D[CAT],SMS,D_D[LOC],$A24),0)) -> 0 | N24: =IF(ISNA($A24),"",IFERROR(SUMIFS(D_D[ADP],D_D[MT],8,D_D[CAT],SMS,D_D[LOC],$A24),0)) -> 0 | O24: =IF(ISNA($A24),"",IFERROR(SUMIFS(D_D[PROD_MTD],D_D[MT],8,D_D[CAT],SMS,D_D[LOC],$A24),0)) -> 0 | P24: =IF(ISNA($A24),"",IFERROR(SUMIFS(D_D[PROD_FYTD],D_D[MT],8,D_D[CAT],SMS,D_D[LOC],$A24),0)) -> 0 | Q24: =IF(ISNA($A24),"",IFERROR(SUMIFS(D_D[ADCM],D_D[MT],8,D_D[CAT],SMS,D_D[LOC],$A24),0)) -> 0
A25: 309 | B25: 13 | C25: Newark | D25: =IF(ISNA($A25),"",IFERROR(SUMIFS(D_D[INV],D_D[MT],5,D_D[CAT],SMS, D_D[EP],-1,D_D[LOC],$A25),0)) -> 311 | E25: =IF(ISNA($A25),"",IFERROR(SUMIFS(D_D[BL],D_D[MT],5,D_D[CAT],SMS, D_D[EP],-1,D_D[LOC],$A25),0)) -> 93 | F25: 0.2990353698 | G25: =IF(ISNA($A25),"",IFERROR(SUMIFS(D_D[ADP],D_D[MT],5,D_D[CAT],SMS, D_D[EP],-1,D_D[LOC],$A25),0)) -> 112.72 | H25: =IF(ISNA($A25),"",IFERROR(SUMIFS(D_D[PROD_MTD],D_D[MT],5,D_D[CAT],SMS, D_D[EP],-1,D_D[LOC],$A25),0)) -> 773 | I25: =IF(ISNA($A25),"",IFERROR(SUMIFS(D_D[ADCM],D_D[MT],5,D_D[CAT],SMS, D_D[EP],-1,D_D[LOC],$A25),0)) -> 118.67 | J25: =IF(ISNA($A25),"",IFERROR(SUMIFS(D_D[PROD_FYTD],D_D[MT],5,D_D[CAT],SMS, D_D[EP],-1,D_D[LOC],$A25),0)) -> 6309 | K25: =IF(ISNA($A25),"",IFERROR(SUMIFS(D_D[ADCF],D_D[MT],5,D_D[CAT],SMS, D_D[EP],-1,D_D[LOC],$A25),0)) -> 96.77 | L25: =IF(ISNA($A25),"",IFERROR(SUMIFS(D_D[INV],D_D[MT],8,D_D[CAT],SMS,D_D[LOC],$A25),0)) -> 0 | M25: =IF(ISNA($A25),"",IFERROR(SUMIFS(D_D[BL],D_D[MT],8,D_D[CAT],SMS,D_D[LOC],$A25),0)) -> 0 | N25: =IF(ISNA($A25),"",IFERROR(SUMIFS(D_D[ADP],D_D[MT],8,D_D[CAT],SMS,D_D[LOC],$A25),0)) -> 0 | O25: =IF(ISNA($A25),"",IFERROR(SUMIFS(D_D[PROD_MTD],D_D[MT],8,D_D[CAT],SMS,D_D[LOC],$A25),0)) -> 0 | P25: =IF(ISNA($A25),"",IFERROR(SUMIFS(D_D[PROD_FYTD],D_D[MT],8,D_D[CAT],SMS,D_D[LOC],$A25),0)) -> 0 | Q25: =IF(ISNA($A25),"",IFERROR(SUMIFS(D_D[ADCM],D_D[MT],8,D_D[CAT],SMS,D_D[LOC],$A25),0)) -> 0
A26: 310 | B26: 14 | C26: Philadelphia | D26: =IF(ISNA($A26),"",IFERROR(SUMIFS(D_D[INV],D_D[MT],5,D_D[CAT],SMS, D_D[EP],-1,D_D[LOC],$A26),0)) -> 2280 | E26: =IF(ISNA($A26),"",IFERROR(SUMIFS(D_D[BL],D_D[MT],5,D_D[CAT],SMS, D_D[EP],-1,D_D[LOC],$A26),0)) -> 523 | F26: 0.2293859649 | G26: =IF(ISNA($A26),"",IFERROR(SUMIFS(D_D[ADP],D_D[MT],5,D_D[CAT],SMS, D_D[EP],-1,D_D[LOC],$A26),0)) -> 107.07 | H26: =IF(ISNA($A26),"",IFERROR(SUMIFS(D_D[PROD_MTD],D_D[MT],5,D_D[CAT],SMS, D_D[EP],-1,D_D[LOC],$A26),0)) -> 4743 | I26: =IF(ISNA($A26),"",IFERROR(SUMIFS(D_D[ADCM],D_D[MT],5,D_D[CAT],SMS, D_D[EP],-1,D_D[LOC],$A26),0)) -> 80.98 | J26: =IF(ISNA($A26),"",IFERROR(SUMIFS(D_D[PROD_FYTD],D_D[MT],5,D_D[CAT],SMS, D_D[EP],-1,D_D[LOC],$A26),0)) -> 48098 | K26: =IF(ISNA($A26),"",IFERROR(SUMIFS(D_D[ADCF],D_D[MT],5,D_D[CAT],SMS, D_D[EP],-1,D_D[LOC],$A26),0)) -> 100.75 | L26: =IF(ISNA($A26),"",IFERROR(SUMIFS(D_D[INV],D_D[MT],8,D_D[CAT],SMS,D_D[LOC],$A26),0)) -> 0 | M26: =IF(ISNA($A26),"",IFERROR(SUMIFS(D_D[BL],D_D[MT],8,D_D[CAT],SMS,D_D[LOC],$A26),0)) -> 0 | N26: =IF(ISNA($A26),"",IFERROR(SUMIFS(D_D[ADP],D_D[MT],8,D_D[CAT],SMS,D_D[LOC],$A26),0)) -> 0 | O26: =IF(ISNA($A26),"",IFERROR(SUMIFS(D_D[PROD_MTD],D_D[MT],8,D_D[CAT],SMS,D_D[LOC],$A26),0)) -> 0 | P26: =IF(ISNA($A26),"",IFERROR(SUMIFS(D_D[PROD_FYTD],D_D[MT],8,D_D[CAT],SMS,D_D[LOC],$A26),0)) -> 0 | Q26: =IF(ISNA($A26),"",IFERROR(SUMIFS(D_D[ADCM],D_D[MT],8,D_D[CAT],SMS,D_D[LOC],$A26),0)) -> 0
A27: 311 | B27: 15 | C27: Pittsburgh | D27: =IF(ISNA($A27),"",IFERROR(SUMIFS(D_D[INV],D_D[MT],5,D_D[CAT],SMS, D_D[EP],-1,D_D[LOC],$A27),0)) -> 576 | E27: =IF(ISNA($A27),"",IFERROR(SUMIFS(D_D[BL],D_D[MT],5,D_D[CAT],SMS, D_D[EP],-1,D_D[LOC],$A27),0)) -> 243 | F27: 0.421875 | G27: =IF(ISNA($A27),"",IFERROR(SUMIFS(D_D[ADP],D_D[MT],5,D_D[CAT],SMS, D_D[EP],-1,D_D[LOC],$A27),0)) -> 161.91 | H27: =IF(ISNA($A27),"",IFERROR(SUMIFS(D_D[PROD_MTD],D_D[MT],5,D_D[CAT],SMS, D_D[EP],-1,D_D[LOC],$A27),0)) -> 1100 | I27: =IF(ISNA($A27),"",IFERROR(SUMIFS(D_D[ADCM],D_D[MT],5,D_D[CAT],SMS, D_D[EP],-1,D_D[LOC],$A27),0)) -> 125.53 | J27: =IF(ISNA($A27),"",IFERROR(SUMIFS(D_D[PROD_FYTD],D_D[MT],5,D_D[CAT],SMS, D_D[EP],-1,D_D[LOC],$A27),0)) -> 9397 | K27: =IF(ISNA($A27),"",IFERROR(SUMIFS(D_D[ADCF],D_D[MT],5,D_D[CAT],SMS, D_D[EP],-1,D_D[LOC],$A27),0)) -> 126.31 | L27: =IF(ISNA($A27),"",IFERROR(SUMIFS(D_D[INV],D_D[MT],8,D_D[CAT],SMS,D_D[LOC],$A27),0)) -> 0 | M27: =IF(ISNA($A27),"",IFERROR(SUMIFS(D_D[BL],D_D[MT],8,D_D[CAT],SMS,D_D[LOC],$A27),0)) -> 0 | N27: =IF(ISNA($A27),"",IFERROR(SUMIFS(D_D[ADP],D_D[MT],8,D_D[CAT],SMS,D_D[LOC],$A27),0)) -> 0 | O27: =IF(ISNA($A27),"",IFERROR(SUMIFS(D_D[PROD_MTD],D_D[MT],8,D_D[CAT],SMS,D_D[LOC],$A27),0)) -> 0 | P27: =IF(ISNA($A27),"",IFERROR(SUMIFS(D_D[PROD_FYTD],D_D[MT],8,D_D[CAT],SMS,D_D[LOC],$A27),0)) -> 0 | Q27: =IF(ISNA($A27),"",IFERROR(SUMIFS(D_D[ADCM],D_D[MT],8,D_D[CAT],SMS,D_D[LOC],$A27),0)) -> 0
A28: 304 | B28: 16 | C28: Providence | D28: =IF(ISNA($A28),"",IFERROR(SUMIFS(D_D[INV],D_D[MT],5,D_D[CAT],SMS, D_D[EP],-1,D_D[LOC],$A28),0)) -> 1010 | E28: =IF(ISNA($A28),"",IFERROR(SUMIFS(D_D[BL],D_D[MT],5,D_D[CAT],SMS, D_D[EP],-1,D_D[LOC],$A28),0)) -> 232 | F28: 0.2297029703 | G28: =IF(ISNA($A28),"",IFERROR(SUMIFS(D_D[ADP],D_D[MT],5,D_D[CAT],SMS, D_D[EP],-1,D_D[LOC],$A28),0)) -> 97.29 | H28: =IF(ISNA($A28),"",IFERROR(SUMIFS(D_D[PROD_MTD],D_D[MT],5,D_D[CAT],SMS, D_D[EP],-1,D_D[LOC],$A28),0)) -> 2389 | I28: =IF(ISNA($A28),"",IFERROR(SUMIFS(D_D[ADCM],D_D[MT],5,D_D[CAT],SMS, D_D[EP],-1,D_D[LOC],$A28),0)) -> 77.04 | J28: =IF(ISNA($A28),"",IFERROR(SUMIFS(D_D[PROD_FYTD],D_D[MT],5,D_D[CAT],SMS, D_D[EP],-1,D_D[LOC],$A28),0)) -> 21329 | K28: =IF(ISNA($A28),"",IFERROR(SUMIFS(D_D[ADCF],D_D[MT],5,D_D[CAT],SMS, D_D[EP],-1,D_D[LOC],$A28),0)) -> 70.15 | L28: =IF(ISNA($A28),"",IFERROR(SUMIFS(D_D[INV],D_D[MT],8,D_D[CAT],SMS,D_D[LOC],$A28),0)) -> 0 | M28: =IF(ISNA($A28),"",IFERROR(SUMIFS(D_D[BL],D_D[MT],8,D_D[CAT],SMS,D_D[LOC],$A28),0)) -> 0 | N28: =IF(ISNA($A28),"",IFERROR(SUMIFS(D_D[ADP],D_D[MT],8,D_D[CAT],SMS,D_D[LOC],$A28),0)) -> 0 | O28: =IF(ISNA($A28),"",IFERROR(SUMIFS(D_D[PROD_MTD],D_D[MT],8,D_D[CAT],SMS,D_D[LOC],$A28),0)) -> 0 | P28: =IF(ISNA($A28),"",IFERROR(SUMIFS(D_D[PROD_FYTD],D_D[MT],8,D_D[CAT],SMS,D_D[LOC],$A28),0)) -> 0 | Q28: =IF(ISNA($A28),"",IFERROR(SUMIFS(D_D[ADCM],D_D[MT],8,D_D[CAT],SMS,D_D[LOC],$A28),0)) -> 0
A29: 376 | B29: 17 | C29: St. Louis RMC | D29: =IF(ISNA($A29),"",IFERROR(SUMIFS(D_D[INV],D_D[MT],5,D_D[CAT],SMS, D_D[EP],-1,D_D[LOC],$A29),0)) -> 0 | E29: =IF(ISNA($A29),"",IFERROR(SUMIFS(D_D[BL],D_D[MT],5,D_D[CAT],SMS, D_D[EP],-1,D_D[LOC],$A29),0)) -> 0 | F29: 0 | G29: =IF(ISNA($A29),"",IFERROR(SUMIFS(D_D[ADP],D_D[MT],5,D_D[CAT],SMS, D_D[EP],-1,D_D[LOC],$A29),0)) -> 0 | H29: =IF(ISNA($A29),"",IFERROR(SUMIFS(D_D[PROD_MTD],D_D[MT],5,D_D[CAT],SMS, D_D[EP],-1,D_D[LOC],$A29),0)) -> 0 | I29: =IF(ISNA($A29),"",IFERROR(SUMIFS(D_D[ADCM],D_D[MT],5,D_D[CAT],SMS, D_D[EP],-1,D_D[LOC],$A29),0)) -> 0 | J29: =IF(ISNA($A29),"",IFERROR(SUMIFS(D_D[PROD_FYTD],D_D[MT],5,D_D[CAT],SMS, D_D[EP],-1,D_D[LOC],$A29),0)) -> 0 | K29: =IF(ISNA($A29),"",IFERROR(SUMIFS(D_D[ADCF],D_D[MT],5,D_D[CAT],SMS, D_D[EP],-1,D_D[LOC],$A29),0)) -> 0 | L29: =IF(ISNA($A29),"",IFERROR(SUMIFS(D_D[INV],D_D[MT],8,D_D[CAT],SMS,D_D[LOC],$A29),0)) -> 0 | M29: =IF(ISNA($A29),"",IFERROR(SUMIFS(D_D[BL],D_D[MT],8,D_D[CAT],SMS,D_D[LOC],$A29),0)) -> 0 | N29: =IF(ISNA($A29),"",IFERROR(SUMIFS(D_D[ADP],D_D[MT],8,D_D[CAT],SMS,D_D[LOC],$A29),0)) -> 0 | O29: =IF(ISNA($A29),"",IFERROR(SUMIFS(D_D[PROD_MTD],D_D[MT],8,D_D[CAT],SMS,D_D[LOC],$A29),0)) -> 0 | P29: =IF(ISNA($A29),"",IFERROR(SUMIFS(D_D[PROD_FYTD],D_D[MT],8,D_D[CAT],SMS,D_D[LOC],$A29),0)) -> 0 | Q29: =IF(ISNA($A29),"",IFERROR(SUMIFS(D_D[ADCM],D_D[MT],8,D_D[CAT],SMS,D_D[LOC],$A29),0)) -> 0
A30: 331 | B30: 18 | C30: St. Louis | D30: =IF(ISNA($A30),"",IFERROR(SUMIFS(D_D[INV],D_D[MT],5,D_D[CAT],SMS, D_D[EP],-1,D_D[LOC],$A30),0)) -> 2345 | E30: =IF(ISNA($A30),"",IFERROR(SUMIFS(D_D[BL],D_D[MT],5,D_D[CAT],SMS, D_D[EP],-1,D_D[LOC],$A30),0)) -> 685 | F30: 0.2921108742 | G30: =IF(ISNA($A30),"",IFERROR(SUMIFS(D_D[ADP],D_D[MT],5,D_D[CAT],SMS, D_D[EP],-1,D_D[LOC],$A30),0)) -> 122.77 | H30: =IF(ISNA($A30),"",IFERROR(SUMIFS(D_D[PROD_MTD],D_D[MT],5,D_D[CAT],SMS, D_D[EP],-1,D_D[LOC],$A30),0)) -> 1734 | I30: =IF(ISNA($A30),"",IFERROR(SUMIFS(D_D[ADCM],D_D[MT],5,D_D[CAT],SMS, D_D[EP],-1,D_D[LOC],$A30),0)) -> 161.59 | J30: =IF(ISNA($A30),"",IFERROR(SUMIFS(D_D[PROD_FYTD],D_D[MT],5,D_D[CAT],SMS, D_D[EP],-1,D_D[LOC],$A30),0)) -> 18590 | K30: =IF(ISNA($A30),"",IFERROR(SUMIFS(D_D[ADCF],D_D[MT],5,D_D[CAT],SMS, D_D[EP],-1,D_D[LOC],$A30),0)) -> 151.17 | L30: =IF(ISNA($A30),"",IFERROR(SUMIFS(D_D[INV],D_D[MT],8,D_D[CAT],SMS,D_D[LOC],$A30),0)) -> 0 | M30: =IF(ISNA($A30),"",IFERROR(SUMIFS(D_D[BL],D_D[MT],8,D_D[CAT],SMS,D_D[LOC],$A30),0)) -> 0 | N30: =IF(ISNA($A30),"",IFERROR(SUMIFS(D_D[ADP],D_D[MT],8,D_D[CAT],SMS,D_D[LOC],$A30),0)) -> 0 | O30: =IF(ISNA($A30),"",IFERROR(SUMIFS(D_D[PROD_MTD],D_D[MT],8,D_D[CAT],SMS,D_D[LOC],$A30),0)) -> 0 | P30: =IF(ISNA($A30),"",IFERROR(SUMIFS(D_D[PROD_FYTD],D_D[MT],8,D_D[CAT],SMS,D_D[LOC],$A30),0)) -> 0 | Q30: =IF(ISNA($A30),"",IFERROR(SUMIFS(D_D[ADCM],D_D[MT],8,D_D[CAT],SMS,D_D[LOC],$A30),0)) -> 0
A31: 402 | B31: 19 | C31: Togus | D31: =IF(ISNA($A31),"",IFERROR(SUMIFS(D_D[INV],D_D[MT],5,D_D[CAT],SMS, D_D[EP],-1,D_D[LOC],$A31),0)) -> 657 | E31: =IF(ISNA($A31),"",IFERROR(SUMIFS(D_D[BL],D_D[MT],5,D_D[CAT],SMS, D_D[EP],-1,D_D[LOC],$A31),0)) -> 165 | F31: 0.2511415525 | G31: =IF(ISNA($A31),"",IFERROR(SUMIFS(D_D[ADP],D_D[MT],5,D_D[CAT],SMS, D_D[EP],-1,D_D[LOC],$A31),0)) -> 108.01 | H31: =IF(ISNA($A31),"",IFERROR(SUMIFS(D_D[PROD_MTD],D_D[MT],5,D_D[CAT],SMS, D_D[EP],-1,D_D[LOC],$A31),0)) -> 1108 | I31: =IF(ISNA($A31),"",IFERROR(SUMIFS(D_D[ADCM],D_D[MT],5,D_D[CAT],SMS, D_D[EP],-1,D_D[LOC],$A31),0)) -> 126.97 | J31: =IF(ISNA($A31),"",IFERROR(SUMIFS(D_D[PROD_FYTD],D_D[MT],5,D_D[CAT],SMS, D_D[EP],-1,D_D[LOC],$A31),0)) -> 14907 | K31: =IF(ISNA($A31),"",IFERROR(SUMIFS(D_D[ADCF],D_D[MT],5,D_D[CAT],SMS, D_D[EP],-1,D_D[LOC],$A31),0)) -> 121.4 | L31: =IF(ISNA($A31),"",IFERROR(SUMIFS(D_D[INV],D_D[MT],8,D_D[CAT],SMS,D_D[LOC],$A31),0)) -> 0 | M31: =IF(ISNA($A31),"",IFERROR(SUMIFS(D_D[BL],D_D[MT],8,D_D[CAT],SMS,D_D[LOC],$A31),0)) -> 0 | N31: =IF(ISNA($A31),"",IFERROR(SUMIFS(D_D[ADP],D_D[MT],8,D_D[CAT],SMS,D_D[LOC],$A31),0)) -> 0 | O31: =IF(ISNA($A31),"",IFERROR(SUMIFS(D_D[PROD_MTD],D_D[MT],8,D_D[CAT],SMS,D_D[LOC],$A31),0)) -> 0 | P31: =IF(ISNA($A31),"",IFERROR(SUMIFS(D_D[PROD_FYTD],D_D[MT],8,D_D[CAT],SMS,D_D[LOC],$A31),0)) -> 0 | Q31: =IF(ISNA($A31),"",IFERROR(SUMIFS(D_D[ADCM],D_D[MT],8,D_D[CAT],SMS,D_D[LOC],$A31),0)) -> 0
A32: 372 | B32: 20 | C32: Washington | D32: =IF(ISNA($A32),"",IFERROR(SUMIFS(D_D[INV],D_D[MT],5,D_D[CAT],SMS, D_D[EP],-1,D_D[LOC],$A32),0)) -> 0 | E32: =IF(ISNA($A32),"",IFERROR(SUMIFS(D_D[BL],D_D[MT],5,D_D[CAT],SMS, D_D[EP],-1,D_D[LOC],$A32),0)) -> 0 | F32: 0 | G32: =IF(ISNA($A32),"",IFERROR(SUMIFS(D_D[ADP],D_D[MT],5,D_D[CAT],SMS, D_D[EP],-1,D_D[LOC],$A32),0)) -> 0 | H32: =IF(ISNA($A32),"",IFERROR(SUMIFS(D_D[PROD_MTD],D_D[MT],5,D_D[CAT],SMS, D_D[EP],-1,D_D[LOC],$A32),0)) -> 0 | I32: =IF(ISNA($A32),"",IFERROR(SUMIFS(D_D[ADCM],D_D[MT],5,D_D[CAT],SMS, D_D[EP],-1,D_D[LOC],$A32),0)) -> 0 | J32: =IF(ISNA($A32),"",IFERROR(SUMIFS(D_D[PROD_FYTD],D_D[MT],5,D_D[CAT],SMS, D_D[EP],-1,D_D[LOC],$A32),0)) -> 3 | K32: =IF(ISNA($A32),"",IFERROR(SUMIFS(D_D[ADCF],D_D[MT],5,D_D[CAT],SMS, D_D[EP],-1,D_D[LOC],$A32),0)) -> 121.67 | L32: =IF(ISNA($A32),"",IFERROR(SUMIFS(D_D[INV],D_D[MT],8,D_D[CAT],SMS,D_D[LOC],$A32),0)) -> 0 | M32: =IF(ISNA($A32),"",IFERROR(SUMIFS(D_D[BL],D_D[MT],8,D_D[CAT],SMS,D_D[LOC],$A32),0)) -> 0 | N32: =IF(ISNA($A32),"",IFERROR(SUMIFS(D_D[ADP],D_D[MT],8,D_D[CAT],SMS,D_D[LOC],$A32),0)) -> 0 | O32: =IF(ISNA($A32),"",IFERROR(SUMIFS(D_D[PROD_MTD],D_D[MT],8,D_D[CAT],SMS,D_D[LOC],$A32),0)) -> 0 | P32: =IF(ISNA($A32),"",IFERROR(SUMIFS(D_D[PROD_FYTD],D_D[MT],8,D_D[CAT],SMS,D_D[LOC],$A32),0)) -> 0 | Q32: =IF(ISNA($A32),"",IFERROR(SUMIFS(D_D[ADCM],D_D[MT],8,D_D[CAT],SMS,D_D[LOC],$A32),0)) -> 0
A33: 405 | B33: 21 | C33: White River Junction | D33: =IF(ISNA($A33),"",IFERROR(SUMIFS(D_D[INV],D_D[MT],5,D_D[CAT],SMS, D_D[EP],-1,D_D[LOC],$A33),0)) -> 78 | E33: =IF(ISNA($A33),"",IFERROR(SUMIFS(D_D[BL],D_D[MT],5,D_D[CAT],SMS, D_D[EP],-1,D_D[LOC],$A33),0)) -> 31 | F33: 0.3974358974 | G33: =IF(ISNA($A33),"",IFERROR(SUMIFS(D_D[ADP],D_D[MT],5,D_D[CAT],SMS, D_D[EP],-1,D_D[LOC],$A33),0)) -> 151.54 | H33: =IF(ISNA($A33),"",IFERROR(SUMIFS(D_D[PROD_MTD],D_D[MT],5,D_D[CAT],SMS, D_D[EP],-1,D_D[LOC],$A33),0)) -> 215 | I33: =IF(ISNA($A33),"",IFERROR(SUMIFS(D_D[ADCM],D_D[MT],5,D_D[CAT],SMS, D_D[EP],-1,D_D[LOC],$A33),0)) -> 148.13 | J33: =IF(ISNA($A33),"",IFERROR(SUMIFS(D_D[PROD_FYTD],D_D[MT],5,D_D[CAT],SMS, D_D[EP],-1,D_D[LOC],$A33),0)) -> 1847 | K33: =IF(ISNA($A33),"",IFERROR(SUMIFS(D_D[ADCF],D_D[MT],5,D_D[CAT],SMS, D_D[EP],-1,D_D[LOC],$A33),0)) -> 100.17 | L33: =IF(ISNA($A33),"",IFERROR(SUMIFS(D_D[INV],D_D[MT],8,D_D[CAT],SMS,D_D[LOC],$A33),0)) -> 0 | M33: =IF(ISNA($A33),"",IFERROR(SUMIFS(D_D[BL],D_D[MT],8,D_D[CAT],SMS,D_D[LOC],$A33),0)) -> 0 | N33: =IF(ISNA($A33),"",IFERROR(SUMIFS(D_D[ADP],D_D[MT],8,D_D[CAT],SMS,D_D[LOC],$A33),0)) -> 0 | O33: =IF(ISNA($A33),"",IFERROR(SUMIFS(D_D[PROD_MTD],D_D[MT],8,D_D[CAT],SMS,D_D[LOC],$A33),0)) -> 0 | P33: =IF(ISNA($A33),"",IFERROR(SUMIFS(D_D[PROD_FYTD],D_D[MT],8,D_D[CAT],SMS,D_D[LOC],$A33),0)) -> 0 | Q33: =IF(ISNA($A33),"",IFERROR(SUMIFS(D_D[ADCM],D_D[MT],8,D_D[CAT],SMS,D_D[LOC],$A33),0)) -> 0
A34: 460 | B34: 22 | C34: Wilmington | D34: =IF(ISNA($A34),"",IFERROR(SUMIFS(D_D[INV],D_D[MT],5,D_D[CAT],SMS, D_D[EP],-1,D_D[LOC],$A34),0)) -> 72 | E34: =IF(ISNA($A34),"",IFERROR(SUMIFS(D_D[BL],D_D[MT],5,D_D[CAT],SMS, D_D[EP],-1,D_D[LOC],$A34),0)) -> 25 | F34: 0.3472222222 | G34: =IF(ISNA($A34),"",IFERROR(SUMIFS(D_D[ADP],D_D[MT],5,D_D[CAT],SMS, D_D[EP],-1,D_D[LOC],$A34),0)) -> 107.63 | H34: =IF(ISNA($A34),"",IFERROR(SUMIFS(D_D[PROD_MTD],D_D[MT],5,D_D[CAT],SMS, D_D[EP],-1,D_D[LOC],$A34),0)) -> 206 | I34: =IF(ISNA($A34),"",IFERROR(SUMIFS(D_D[ADCM],D_D[MT],5,D_D[CAT],SMS, D_D[EP],-1,D_D[LOC],$A34),0)) -> 138.8 | J34: =IF(ISNA($A34),"",IFERROR(SUMIFS(D_D[PROD_FYTD],D_D[MT],5,D_D[CAT],SMS, D_D[EP],-1,D_D[LOC],$A34),0)) -> 1926 | K34: =IF(ISNA($A34),"",IFERROR(SUMIFS(D_D[ADCF],D_D[MT],5,D_D[CAT],SMS, D_D[EP],-1,D_D[LOC],$A34),0)) -> 108.03 | L34: =IF(ISNA($A34),"",IFERROR(SUMIFS(D_D[INV],D_D[MT],8,D_D[CAT],SMS,D_D[LOC],$A34),0)) -> 0 | M34: =IF(ISNA($A34),"",IFERROR(SUMIFS(D_D[BL],D_D[MT],8,D_D[CAT],SMS,D_D[LOC],$A34),0)) -> 0 | N34: =IF(ISNA($A34),"",IFERROR(SUMIFS(D_D[ADP],D_D[MT],8,D_D[CAT],SMS,D_D[LOC],$A34),0)) -> 0 | O34: =IF(ISNA($A34),"",IFERROR(SUMIFS(D_D[PROD_MTD],D_D[MT],8,D_D[CAT],SMS,D_D[LOC],$A34),0)) -> 0 | P34: =IF(ISNA($A34),"",IFERROR(SUMIFS(D_D[PROD_FYTD],D_D[MT],8,D_D[CAT],SMS,D_D[LOC],$A34),0)) -> 0 | Q34: =IF(ISNA($A34),"",IFERROR(SUMIFS(D_D[ADCM],D_D[MT],8,D_D[CAT],SMS,D_D[LOC],$A34),0)) -> 0
B35: 23 | D35: =IF(ISNA($A35),"",IFERROR(SUMIFS(D_D[INV],D_D[MT],5,D_D[CAT],SMS, D_D[EP],-1,D_D[LOC],$A35),0)) ->  | E35: =IF(ISNA($A35),"",IFERROR(SUMIFS(D_D[BL],D_D[MT],5,D_D[CAT],SMS, D_D[EP],-1,D_D[LOC],$A35),0)) ->  | G35: =IF(ISNA($A35),"",IFERROR(SUMIFS(D_D[ADP],D_D[MT],5,D_D[CAT],SMS, D_D[EP],-1,D_D[LOC],$A35),0)) ->  | H35: =IF(ISNA($A35),"",IFERROR(SUMIFS(D_D[PROD_MTD],D_D[MT],5,D_D[CAT],SMS, D_D[EP],-1,D_D[LOC],$A35),0)) ->  | I35: =IF(ISNA($A35),"",IFERROR(SUMIFS(D_D[ADCM],D_D[MT],5,D_D[CAT],SMS, D_D[EP],-1,D_D[LOC],$A35),0)) ->  | J35: =IF(ISNA($A35),"",IFERROR(SUMIFS(D_D[PROD_FYTD],D_D[MT],5,D_D[CAT],SMS, D_D[EP],-1,D_D[LOC],$A35),0)) ->  | K35: =IF(ISNA($A35),"",IFERROR(SUMIFS(D_D[ADCF],D_D[MT],5,D_D[CAT],SMS, D_D[EP],-1,D_D[LOC],$A35),0)) ->  | L35: =IF(ISNA($A35),"",IFERROR(SUMIFS(D_D[INV],D_D[MT],8,D_D[CAT],SMS,D_D[LOC],$A35),0)) ->  | M35: =IF(ISNA($A35),"",IFERROR(SUMIFS(D_D[BL],D_D[MT],8,D_D[CAT],SMS,D_D[LOC],$A35),0)) ->  | N35: =IF(ISNA($A35),"",IFERROR(SUMIFS(D_D[ADP],D_D[MT],8,D_D[CAT],SMS,D_D[LOC],$A35),0)) ->  | O35: =IF(ISNA($A35),"",IFERROR(SUMIFS(D_D[PROD_MTD],D_D[MT],8,D_D[CAT],SMS,D_D[LOC],$A35),0)) ->  | P35: =IF(ISNA($A35),"",IFERROR(SUMIFS(D_D[PROD_FYTD],D_D[MT],8,D_D[CAT],SMS,D_D[LOC],$A35),0)) ->  | Q35: =IF(ISNA($A35),"",IFERROR(SUMIFS(D_D[ADCM],D_D[MT],8,D_D[CAT],SMS,D_D[LOC],$A35),0)) -> 

Sheet Rating Bundle - SOO
C2: DISTRICT SELECTOR | D2: Compensation and Pension Rating Bundle Metrics | L2: Report through
D3: Station of Origin View | L3: =D_DT[] -> 2021-06-26
D4: The Station of Origination (SOO) primarily represents pending claims based on geographic boundaries | L4: ADP = Average Days Pending | O4: MTD = Month to Date
D5: Each Special Mission has distinct claim counts | L5: ADC = Average Days to Complete | O5: FYTD = Fiscal Year to Date
D6: When Special Mission is set to Pension, BDD, or Quickstart, the District Selector has no impact.
L7: Accuracy metrics are available on Rating Bundle - SOJ tab
D8: CLAIM METRICS | L8: ACCURACY METRICS
C9: SPECIAL MISSION SELECTOR | D9: # Pending | E9: # Pending > 125 Days | F9: % Pending > 125 Days | G9: ADP | H9: # Completed MTD | I9: ADC MTD | J9: # Completed FYTD | K9: ADC FYTD | L9: Accuracy measurement is available on the Rating Bundle SOJ tab
A12: 100 | C12: =Driver!$C$20& " Total" -> USA - All Missions Total | D12: =IF(ISNA($A12),"",IFERROR(SUMIFS(D_D[INV],D_D[MT],4,D_D[CAT],SMS,D_D[LOC],$A12),0)) -> 581396 | E12: =IF(ISNA($A12),"",IFERROR(SUMIFS(D_D[BL],D_D[MT],4,D_D[CAT],SMS,D_D[LOC],$A12),0)) -> 187912 | F12: =IF(ISNA($A12),"",IFERROR(E12/D12,0)) -> 0.323208278 | G12: =IF(ISNA($A12),"",IFERROR(SUMIFS(D_D[ADP],D_D[MT],4,D_D[CAT],SMS,D_D[LOC],$A12),0)) -> 133.29 | H12: =IF(ISNA($A12),"",IFERROR(SUMIFS(D_D[PROD_MTD],D_D[MT],4,D_D[CAT],SMS,D_D[LOC],$A12),0)) -> 115418 | I12: =IF(ISNA($A12),"",IFERROR(SUMIFS(D_D[ADCM],D_D[MT],4,D_D[CAT],SMS,D_D[LOC],$A12),0)) -> 108 | J12: =IF(ISNA($A12),"",IFERROR(SUMIFS(D_D[PROD_FYTD],D_D[MT],4,D_D[CAT],SMS,D_D[LOC],$A12),0)) -> 1086560 | K12: =IF(ISNA($A12),"",IFERROR(SUMIFS(D_D[ADCF],D_D[MT],4,D_D[CAT],SMS,D_D[LOC],$A12),0)) -> 111.62
A13: =INDEX(RO,(MATCH($C13,RO_D,0))) -> 394 | B13: 1 | C13: =IFERROR(INDEX(INDIRECT(DS_RO),B13),"") -> Northeast District | D13: =IF(ISNA($A13),"",IFERROR(SUMIFS(D_D[INV],D_D[MT],4,D_D[CAT],SMS,D_D[LOC],$A13),0)) -> 83046 | E13: =IF(ISNA($A13),"",IFERROR(SUMIFS(D_D[BL],D_D[MT],4,D_D[CAT],SMS,D_D[LOC],$A13),0)) -> 36659 | F13: =IF(ISNA($A13),"",IFERROR(E13/D13,0)) -> 0.4414300508 | G13: =IF(ISNA($A13),"",IFERROR(SUMIFS(D_D[ADP],D_D[MT],4,D_D[CAT],SMS,D_D[LOC],$A13),0)) -> 179.04 | H13: =IF(ISNA($A13),"",IFERROR(SUMIFS(D_D[PROD_MTD],D_D[MT],4,D_D[CAT],SMS,D_D[LOC],$A13),0)) -> 19339 | I13: =IF(ISNA($A13),"",IFERROR(SUMIFS(D_D[ADCM],D_D[MT],4,D_D[CAT],SMS,D_D[LOC],$A13),0)) -> 118.82 | J13: =IF(ISNA($A13),"",IFERROR(SUMIFS(D_D[PROD_FYTD],D_D[MT],4,D_D[CAT],SMS,D_D[LOC],$A13),0)) -> 193520 | K13: =IF(ISNA($A13),"",IFERROR(SUMIFS(D_D[ADCF],D_D[MT],4,D_D[CAT],SMS,D_D[LOC],$A13),0)) -> 124.9
A14: 313 | B14: 2 | C14: Baltimore | D14: =IF(ISNA($A14),"",IFERROR(SUMIFS(D_D[INV],D_D[MT],4,D_D[CAT],SMS,D_D[LOC],$A14),0)) -> 5593 | E14: =IF(ISNA($A14),"",IFERROR(SUMIFS(D_D[BL],D_D[MT],4,D_D[CAT],SMS,D_D[LOC],$A14),0)) -> 2196 | F14: =IF(ISNA($A14),"",IFERROR(E14/D14,0)) -> 0.3926336492 | G14: =IF(ISNA($A14),"",IFERROR(SUMIFS(D_D[ADP],D_D[MT],4,D_D[CAT],SMS,D_D[LOC],$A14),0)) -> 149.85 | H14: =IF(ISNA($A14),"",IFERROR(SUMIFS(D_D[PROD_MTD],D_D[MT],4,D_D[CAT],SMS,D_D[LOC],$A14),0)) -> 1443 | I14: =IF(ISNA($A14),"",IFERROR(SUMIFS(D_D[ADCM],D_D[MT],4,D_D[CAT],SMS,D_D[LOC],$A14),0)) -> 110.15 | J14: =IF(ISNA($A14),"",IFERROR(SUMIFS(D_D[PROD_FYTD],D_D[MT],4,D_D[CAT],SMS,D_D[LOC],$A14),0)) -> 13580 | K14: =IF(ISNA($A14),"",IFERROR(SUMIFS(D_D[ADCF],D_D[MT],4,D_D[CAT],SMS,D_D[LOC],$A14),0)) -> 122.92
A15: 301 | B15: 3 | C15: =IFERROR(INDEX(INDIRECT(DS_RO),B15),"") -> Boston | D15: =IF(ISNA($A15),"",IFERROR(SUMIFS(D_D[INV],D_D[MT],4,D_D[CAT],SMS,D_D[LOC],$A15),0)) -> 2289 | E15: =IF(ISNA($A15),"",IFERROR(SUMIFS(D_D[BL],D_D[MT],4,D_D[CAT],SMS,D_D[LOC],$A15),0)) -> 937 | F15: =IF(ISNA($A15),"",IFERROR(E15/D15,0)) -> 0.4093490607 | G15: =IF(ISNA($A15),"",IFERROR(SUMIFS(D_D[ADP],D_D[MT],4,D_D[CAT],SMS,D_D[LOC],$A15),0)) -> 158.04 | H15: =IF(ISNA($A15),"",IFERROR(SUMIFS(D_D[PROD_MTD],D_D[MT],4,D_D[CAT],SMS,D_D[LOC],$A15),0)) -> 528 | I15: =IF(ISNA($A15),"",IFERROR(SUMIFS(D_D[ADCM],D_D[MT],4,D_D[CAT],SMS,D_D[LOC],$A15),0)) -> 104.87 | J15: =IF(ISNA($A15),"",IFERROR(SUMIFS(D_D[PROD_FYTD],D_D[MT],4,D_D[CAT],SMS,D_D[LOC],$A15),0)) -> 4778 | K15: =IF(ISNA($A15),"",IFERROR(SUMIFS(D_D[ADCF],D_D[MT],4,D_D[CAT],SMS,D_D[LOC],$A15),0)) -> 118.33
A16: 307 | B16: 4 | C16: Buffalo | D16: =IF(ISNA($A16),"",IFERROR(SUMIFS(D_D[INV],D_D[MT],4,D_D[CAT],SMS,D_D[LOC],$A16),0)) -> 2982 | E16: =IF(ISNA($A16),"",IFERROR(SUMIFS(D_D[BL],D_D[MT],4,D_D[CAT],SMS,D_D[LOC],$A16),0)) -> 1199 | F16: 0.4020791415 | G16: =IF(ISNA($A16),"",IFERROR(SUMIFS(D_D[ADP],D_D[MT],4,D_D[CAT],SMS,D_D[LOC],$A16),0)) -> 165.17 | H16: =IF(ISNA($A16),"",IFERROR(SUMIFS(D_D[PROD_MTD],D_D[MT],4,D_D[CAT],SMS,D_D[LOC],$A16),0)) -> 573 | I16: =IF(ISNA($A16),"",IFERROR(SUMIFS(D_D[ADCM],D_D[MT],4,D_D[CAT],SMS,D_D[LOC],$A16),0)) -> 124.92 | J16: =IF(ISNA($A16),"",IFERROR(SUMIFS(D_D[PROD_FYTD],D_D[MT],4,D_D[CAT],SMS,D_D[LOC],$A16),0)) -> 5398 | K16: =IF(ISNA($A16),"",IFERROR(SUMIFS(D_D[ADCF],D_D[MT],4,D_D[CAT],SMS,D_D[LOC],$A16),0)) -> 147.52
A17: 328 | B17: 5 | C17: Chicago | D17: =IF(ISNA($A17),"",IFERROR(SUMIFS(D_D[INV],D_D[MT],4,D_D[CAT],SMS,D_D[LOC],$A17),0)) -> 6385 | E17: =IF(ISNA($A17),"",IFERROR(SUMIFS(D_D[BL],D_D[MT],4,D_D[CAT],SMS,D_D[LOC],$A17),0)) -> 2479 | F17: 0.3882537197 | G17: =IF(ISNA($A17),"",IFERROR(SUMIFS(D_D[ADP],D_D[MT],4,D_D[CAT],SMS,D_D[LOC],$A17),0)) -> 150.66 | H17: =IF(ISNA($A17),"",IFERROR(SUMIFS(D_D[PROD_MTD],D_D[MT],4,D_D[CAT],SMS,D_D[LOC],$A17),0)) -> 1307 | I17: =IF(ISNA($A17),"",IFERROR(SUMIFS(D_D[ADCM],D_D[MT],4,D_D[CAT],SMS,D_D[LOC],$A17),0)) -> 122.95 | J17: =IF(ISNA($A17),"",IFERROR(SUMIFS(D_D[PROD_FYTD],D_D[MT],4,D_D[CAT],SMS,D_D[LOC],$A17),0)) -> 12552 | K17: =IF(ISNA($A17),"",IFERROR(SUMIFS(D_D[ADCF],D_D[MT],4,D_D[CAT],SMS,D_D[LOC],$A17),0)) -> 128.69
A18: 325 | B18: 6 | C18: Cleveland | D18: =IF(ISNA($A18),"",IFERROR(SUMIFS(D_D[INV],D_D[MT],4,D_D[CAT],SMS,D_D[LOC],$A18),0)) -> 10042 | E18: =IF(ISNA($A18),"",IFERROR(SUMIFS(D_D[BL],D_D[MT],4,D_D[CAT],SMS,D_D[LOC],$A18),0)) -> 5139 | F18: 0.5117506473 | G18: =IF(ISNA($A18),"",IFERROR(SUMIFS(D_D[ADP],D_D[MT],4,D_D[CAT],SMS,D_D[LOC],$A18),0)) -> 222.55 | H18: =IF(ISNA($A18),"",IFERROR(SUMIFS(D_D[PROD_MTD],D_D[MT],4,D_D[CAT],SMS,D_D[LOC],$A18),0)) -> 1970 | I18: =IF(ISNA($A18),"",IFERROR(SUMIFS(D_D[ADCM],D_D[MT],4,D_D[CAT],SMS,D_D[LOC],$A18),0)) -> 143.51 | J18: =IF(ISNA($A18),"",IFERROR(SUMIFS(D_D[PROD_FYTD],D_D[MT],4,D_D[CAT],SMS,D_D[LOC],$A18),0)) -> 21883 | K18: =IF(ISNA($A18),"",IFERROR(SUMIFS(D_D[ADCF],D_D[MT],4,D_D[CAT],SMS,D_D[LOC],$A18),0)) -> 159.25
A19: 329 | B19: 7 | C19: Detroit | D19: =IF(ISNA($A19),"",IFERROR(SUMIFS(D_D[INV],D_D[MT],4,D_D[CAT],SMS,D_D[LOC],$A19),0)) -> 5806 | E19: =IF(ISNA($A19),"",IFERROR(SUMIFS(D_D[BL],D_D[MT],4,D_D[CAT],SMS,D_D[LOC],$A19),0)) -> 2617 | F19: 0.4507406132 | G19: =IF(ISNA($A19),"",IFERROR(SUMIFS(D_D[ADP],D_D[MT],4,D_D[CAT],SMS,D_D[LOC],$A19),0)) -> 183.96 | H19: =IF(ISNA($A19),"",IFERROR(SUMIFS(D_D[PROD_MTD],D_D[MT],4,D_D[CAT],SMS,D_D[LOC],$A19),0)) -> 1222 | I19: =IF(ISNA($A19),"",IFERROR(SUMIFS(D_D[ADCM],D_D[MT],4,D_D[CAT],SMS,D_D[LOC],$A19),0)) -> 140.52 | J19: =IF(ISNA($A19),"",IFERROR(SUMIFS(D_D[PROD_FYTD],D_D[MT],4,D_D[CAT],SMS,D_D[LOC],$A19),0)) -> 12295 | K19: =IF(ISNA($A19),"",IFERROR(SUMIFS(D_D[ADCF],D_D[MT],4,D_D[CAT],SMS,D_D[LOC],$A19),0)) -> 145.91
A20: 308 | B20: 8 | C20: Hartford | D20: =IF(ISNA($A20),"",IFERROR(SUMIFS(D_D[INV],D_D[MT],4,D_D[CAT],SMS,D_D[LOC],$A20),0)) -> 1795 | E20: =IF(ISNA($A20),"",IFERROR(SUMIFS(D_D[BL],D_D[MT],4,D_D[CAT],SMS,D_D[LOC],$A20),0)) -> 821 | F20: 0.4573816156 | G20: =IF(ISNA($A20),"",IFERROR(SUMIFS(D_D[ADP],D_D[MT],4,D_D[CAT],SMS,D_D[LOC],$A20),0)) -> 177.13 | H20: =IF(ISNA($A20),"",IFERROR(SUMIFS(D_D[PROD_MTD],D_D[MT],4,D_D[CAT],SMS,D_D[LOC],$A20),0)) -> 392 | I20: =IF(ISNA($A20),"",IFERROR(SUMIFS(D_D[ADCM],D_D[MT],4,D_D[CAT],SMS,D_D[LOC],$A20),0)) -> 119.28 | J20: =IF(ISNA($A20),"",IFERROR(SUMIFS(D_D[PROD_FYTD],D_D[MT],4,D_D[CAT],SMS,D_D[LOC],$A20),0)) -> 3199 | K20: =IF(ISNA($A20),"",IFERROR(SUMIFS(D_D[ADCF],D_D[MT],4,D_D[CAT],SMS,D_D[LOC],$A20),0)) -> 131.09
A21: 326 | B21: 9 | C21: Indianapolis | D21: =IF(ISNA($A21),"",IFERROR(SUMIFS(D_D[INV],D_D[MT],4,D_D[CAT],SMS,D_D[LOC],$A21),0)) -> 5126 | E21: =IF(ISNA($A21),"",IFERROR(SUMIFS(D_D[BL],D_D[MT],4,D_D[CAT],SMS,D_D[LOC],$A21),0)) -> 2281 | F21: 0.4449863441 | G21: =IF(ISNA($A21),"",IFERROR(SUMIFS(D_D[ADP],D_D[MT],4,D_D[CAT],SMS,D_D[LOC],$A21),0)) -> 177.37 | H21: =IF(ISNA($A21),"",IFERROR(SUMIFS(D_D[PROD_MTD],D_D[MT],4,D_D[CAT],SMS,D_D[LOC],$A21),0)) -> 1069 | I21: =IF(ISNA($A21),"",IFERROR(SUMIFS(D_D[ADCM],D_D[MT],4,D_D[CAT],SMS,D_D[LOC],$A21),0)) -> 125.92 | J21: =IF(ISNA($A21),"",IFERROR(SUMIFS(D_D[PROD_FYTD],D_D[MT],4,D_D[CAT],SMS,D_D[LOC],$A21),0)) -> 9768 | K21: =IF(ISNA($A21),"",IFERROR(SUMIFS(D_D[ADCF],D_D[MT],4,D_D[CAT],SMS,D_D[LOC],$A21),0)) -> 144.05
A22: 373 | B22: 10 | C22: Manchester | D22: =IF(ISNA($A22),"",IFERROR(SUMIFS(D_D[INV],D_D[MT],4,D_D[CAT],SMS,D_D[LOC],$A22),0)) -> 886 | E22: =IF(ISNA($A22),"",IFERROR(SUMIFS(D_D[BL],D_D[MT],4,D_D[CAT],SMS,D_D[LOC],$A22),0)) -> 388 | F22: 0.4379232506 | G22: =IF(ISNA($A22),"",IFERROR(SUMIFS(D_D[ADP],D_D[MT],4,D_D[CAT],SMS,D_D[LOC],$A22),0)) -> 168.94 | H22: =IF(ISNA($A22),"",IFERROR(SUMIFS(D_D[PROD_MTD],D_D[MT],4,D_D[CAT],SMS,D_D[LOC],$A22),0)) -> 193 | I22: =IF(ISNA($A22),"",IFERROR(SUMIFS(D_D[ADCM],D_D[MT],4,D_D[CAT],SMS,D_D[LOC],$A22),0)) -> 133.23 | J22: =IF(ISNA($A22),"",IFERROR(SUMIFS(D_D[PROD_FYTD],D_D[MT],4,D_D[CAT],SMS,D_D[LOC],$A22),0)) -> 1593 | K22: =IF(ISNA($A22),"",IFERROR(SUMIFS(D_D[ADCF],D_D[MT],4,D_D[CAT],SMS,D_D[LOC],$A22),0)) -> 146.09
A23: 330 | B23: 11 | C23: Milwaukee | D23: =IF(ISNA($A23),"",IFERROR(SUMIFS(D_D[INV],D_D[MT],4,D_D[CAT],SMS,D_D[LOC],$A23),0)) -> 7878 | E23: =IF(ISNA($A23),"",IFERROR(SUMIFS(D_D[BL],D_D[MT],4,D_D[CAT],SMS,D_D[LOC],$A23),0)) -> 4497 | F23: 0.5708301599 | G23: =IF(ISNA($A23),"",IFERROR(SUMIFS(D_D[ADP],D_D[MT],4,D_D[CAT],SMS,D_D[LOC],$A23),0)) -> 236.6 | H23: =IF(ISNA($A23),"",IFERROR(SUMIFS(D_D[PROD_MTD],D_D[MT],4,D_D[CAT],SMS,D_D[LOC],$A23),0)) -> 1883 | I23: =IF(ISNA($A23),"",IFERROR(SUMIFS(D_D[ADCM],D_D[MT],4,D_D[CAT],SMS,D_D[LOC],$A23),0)) -> 143.57 | J23: =IF(ISNA($A23),"",IFERROR(SUMIFS(D_D[PROD_FYTD],D_D[MT],4,D_D[CAT],SMS,D_D[LOC],$A23),0)) -> 26482 | K23: =IF(ISNA($A23),"",IFERROR(SUMIFS(D_D[ADCF],D_D[MT],4,D_D[CAT],SMS,D_D[LOC],$A23),0)) -> 124.52
A24: 306 | B24: 12 | C24: New York | D24: =IF(ISNA($A24),"",IFERROR(SUMIFS(D_D[INV],D_D[MT],4,D_D[CAT],SMS,D_D[LOC],$A24),0)) -> 4362 | E24: =IF(ISNA($A24),"",IFERROR(SUMIFS(D_D[BL],D_D[MT],4,D_D[CAT],SMS,D_D[LOC],$A24),0)) -> 1998 | F24: 0.4580467675 | G24: =IF(ISNA($A24),"",IFERROR(SUMIFS(D_D[ADP],D_D[MT],4,D_D[CAT],SMS,D_D[LOC],$A24),0)) -> 173.73 | H24: =IF(ISNA($A24),"",IFERROR(SUMIFS(D_D[PROD_MTD],D_D[MT],4,D_D[CAT],SMS,D_D[LOC],$A24),0)) -> 900 | I24: =IF(ISNA($A24),"",IFERROR(SUMIFS(D_D[ADCM],D_D[MT],4,D_D[CAT],SMS,D_D[LOC],$A24),0)) -> 149.25 | J24: =IF(ISNA($A24),"",IFERROR(SUMIFS(D_D[PROD_FYTD],D_D[MT],4,D_D[CAT],SMS,D_D[LOC],$A24),0)) -> 8265 | K24: =IF(ISNA($A24),"",IFERROR(SUMIFS(D_D[ADCF],D_D[MT],4,D_D[CAT],SMS,D_D[LOC],$A24),0)) -> 139.66
A25: 309 | B25: 13 | C25: Newark | D25: =IF(ISNA($A25),"",IFERROR(SUMIFS(D_D[INV],D_D[MT],4,D_D[CAT],SMS,D_D[LOC],$A25),0)) -> 2887 | E25: =IF(ISNA($A25),"",IFERROR(SUMIFS(D_D[BL],D_D[MT],4,D_D[CAT],SMS,D_D[LOC],$A25),0)) -> 1315 | F25: 0.4554901282 | G25: =IF(ISNA($A25),"",IFERROR(SUMIFS(D_D[ADP],D_D[MT],4,D_D[CAT],SMS,D_D[LOC],$A25),0)) -> 176.5 | H25: =IF(ISNA($A25),"",IFERROR(SUMIFS(D_D[PROD_MTD],D_D[MT],4,D_D[CAT],SMS,D_D[LOC],$A25),0)) -> 590 | I25: =IF(ISNA($A25),"",IFERROR(SUMIFS(D_D[ADCM],D_D[MT],4,D_D[CAT],SMS,D_D[LOC],$A25),0)) -> 138.68 | J25: =IF(ISNA($A25),"",IFERROR(SUMIFS(D_D[PROD_FYTD],D_D[MT],4,D_D[CAT],SMS,D_D[LOC],$A25),0)) -> 5700 | K25: =IF(ISNA($A25),"",IFERROR(SUMIFS(D_D[ADCF],D_D[MT],4,D_D[CAT],SMS,D_D[LOC],$A25),0)) -> 145.28
A26: 310 | B26: 14 | C26: Philadelphia | D26: =IF(ISNA($A26),"",IFERROR(SUMIFS(D_D[INV],D_D[MT],4,D_D[CAT],SMS,D_D[LOC],$A26),0)) -> 8280 | E26: =IF(ISNA($A26),"",IFERROR(SUMIFS(D_D[BL],D_D[MT],4,D_D[CAT],SMS,D_D[LOC],$A26),0)) -> 3932 | F26: 0.4748792271 | G26: =IF(ISNA($A26),"",IFERROR(SUMIFS(D_D[ADP],D_D[MT],4,D_D[CAT],SMS,D_D[LOC],$A26),0)) -> 189.22 | H26: =IF(ISNA($A26),"",IFERROR(SUMIFS(D_D[PROD_MTD],D_D[MT],4,D_D[CAT],SMS,D_D[LOC],$A26),0)) -> 2049 | I26: =IF(ISNA($A26),"",IFERROR(SUMIFS(D_D[ADCM],D_D[MT],4,D_D[CAT],SMS,D_D[LOC],$A26),0)) -> 126.49 | J26: =IF(ISNA($A26),"",IFERROR(SUMIFS(D_D[PROD_FYTD],D_D[MT],4,D_D[CAT],SMS,D_D[LOC],$A26),0)) -> 25840 | K26: =IF(ISNA($A26),"",IFERROR(SUMIFS(D_D[ADCF],D_D[MT],4,D_D[CAT],SMS,D_D[LOC],$A26),0)) -> 109.33
A27: 311 | B27: 15 | C27: Pittsburgh | D27: =IF(ISNA($A27),"",IFERROR(SUMIFS(D_D[INV],D_D[MT],4,D_D[CAT],SMS,D_D[LOC],$A27),0)) -> 5330 | E27: =IF(ISNA($A27),"",IFERROR(SUMIFS(D_D[BL],D_D[MT],4,D_D[CAT],SMS,D_D[LOC],$A27),0)) -> 2427 | F27: 0.4553470919 | G27: =IF(ISNA($A27),"",IFERROR(SUMIFS(D_D[ADP],D_D[MT],4,D_D[CAT],SMS,D_D[LOC],$A27),0)) -> 168.84 | H27: =IF(ISNA($A27),"",IFERROR(SUMIFS(D_D[PROD_MTD],D_D[MT],4,D_D[CAT],SMS,D_D[LOC],$A27),0)) -> 976 | I27: =IF(ISNA($A27),"",IFERROR(SUMIFS(D_D[ADCM],D_D[MT],4,D_D[CAT],SMS,D_D[LOC],$A27),0)) -> 126.8 | J27: =IF(ISNA($A27),"",IFERROR(SUMIFS(D_D[PROD_FYTD],D_D[MT],4,D_D[CAT],SMS,D_D[LOC],$A27),0)) -> 9286 | K27: =IF(ISNA($A27),"",IFERROR(SUMIFS(D_D[ADCF],D_D[MT],4,D_D[CAT],SMS,D_D[LOC],$A27),0)) -> 137.57
A28: 304 | B28: 16 | C28: Providence | D28: =IF(ISNA($A28),"",IFERROR(SUMIFS(D_D[INV],D_D[MT],4,D_D[CAT],SMS,D_D[LOC],$A28),0)) -> 2113 | E28: =IF(ISNA($A28),"",IFERROR(SUMIFS(D_D[BL],D_D[MT],4,D_D[CAT],SMS,D_D[LOC],$A28),0)) -> 780 | F28: 0.369143398 | G28: =IF(ISNA($A28),"",IFERROR(SUMIFS(D_D[ADP],D_D[MT],4,D_D[CAT],SMS,D_D[LOC],$A28),0)) -> 154.8 | H28: =IF(ISNA($A28),"",IFERROR(SUMIFS(D_D[PROD_MTD],D_D[MT],4,D_D[CAT],SMS,D_D[LOC],$A28),0)) -> 1533 | I28: =IF(ISNA($A28),"",IFERROR(SUMIFS(D_D[ADCM],D_D[MT],4,D_D[CAT],SMS,D_D[LOC],$A28),0)) -> 37.69 | J28: =IF(ISNA($A28),"",IFERROR(SUMIFS(D_D[PROD_FYTD],D_D[MT],4,D_D[CAT],SMS,D_D[LOC],$A28),0)) -> 14735 | K28: =IF(ISNA($A28),"",IFERROR(SUMIFS(D_D[ADCF],D_D[MT],4,D_D[CAT],SMS,D_D[LOC],$A28),0)) -> 39.83
A29: 376 | B29: 17 | C29: St. Louis RMC | D29: =IF(ISNA($A29),"",IFERROR(SUMIFS(D_D[INV],D_D[MT],4,D_D[CAT],SMS,D_D[LOC],$A29),0)) -> 2600 | E29: =IF(ISNA($A29),"",IFERROR(SUMIFS(D_D[BL],D_D[MT],4,D_D[CAT],SMS,D_D[LOC],$A29),0)) -> 12 | F29: 0.004615384615 | G29: =IF(ISNA($A29),"",IFERROR(SUMIFS(D_D[ADP],D_D[MT],4,D_D[CAT],SMS,D_D[LOC],$A29),0)) -> 57.86 | H29: =IF(ISNA($A29),"",IFERROR(SUMIFS(D_D[PROD_MTD],D_D[MT],4,D_D[CAT],SMS,D_D[LOC],$A29),0)) -> 876 | I29: =IF(ISNA($A29),"",IFERROR(SUMIFS(D_D[ADCM],D_D[MT],4,D_D[CAT],SMS,D_D[LOC],$A29),0)) -> 44.01 | J29: =IF(ISNA($A29),"",IFERROR(SUMIFS(D_D[PROD_FYTD],D_D[MT],4,D_D[CAT],SMS,D_D[LOC],$A29),0)) -> 1842 | K29: =IF(ISNA($A29),"",IFERROR(SUMIFS(D_D[ADCF],D_D[MT],4,D_D[CAT],SMS,D_D[LOC],$A29),0)) -> 29.67
A30: 331 | B30: 18 | C30: St. Louis | D30: =IF(ISNA($A30),"",IFERROR(SUMIFS(D_D[INV],D_D[MT],4,D_D[CAT],SMS,D_D[LOC],$A30),0)) -> 6091 | E30: =IF(ISNA($A30),"",IFERROR(SUMIFS(D_D[BL],D_D[MT],4,D_D[CAT],SMS,D_D[LOC],$A30),0)) -> 2503 | F30: 0.4109341652 | G30: =IF(ISNA($A30),"",IFERROR(SUMIFS(D_D[ADP],D_D[MT],4,D_D[CAT],SMS,D_D[LOC],$A30),0)) -> 166.25 | H30: =IF(ISNA($A30),"",IFERROR(SUMIFS(D_D[PROD_MTD],D_D[MT],4,D_D[CAT],SMS,D_D[LOC],$A30),0)) -> 1239 | I30: =IF(ISNA($A30),"",IFERROR(SUMIFS(D_D[ADCM],D_D[MT],4,D_D[CAT],SMS,D_D[LOC],$A30),0)) -> 121.7 | J30: =IF(ISNA($A30),"",IFERROR(SUMIFS(D_D[PROD_FYTD],D_D[MT],4,D_D[CAT],SMS,D_D[LOC],$A30),0)) -> 10931 | K30: =IF(ISNA($A30),"",IFERROR(SUMIFS(D_D[ADCF],D_D[MT],4,D_D[CAT],SMS,D_D[LOC],$A30),0)) -> 132.23
A31: 402 | B31: 19 | C31: Togus | D31: =IF(ISNA($A31),"",IFERROR(SUMIFS(D_D[INV],D_D[MT],4,D_D[CAT],SMS,D_D[LOC],$A31),0)) -> 1335 | E31: =IF(ISNA($A31),"",IFERROR(SUMIFS(D_D[BL],D_D[MT],4,D_D[CAT],SMS,D_D[LOC],$A31),0)) -> 619 | F31: 0.463670412 | G31: =IF(ISNA($A31),"",IFERROR(SUMIFS(D_D[ADP],D_D[MT],4,D_D[CAT],SMS,D_D[LOC],$A31),0)) -> 189.7 | H31: =IF(ISNA($A31),"",IFERROR(SUMIFS(D_D[PROD_MTD],D_D[MT],4,D_D[CAT],SMS,D_D[LOC],$A31),0)) -> 306 | I31: =IF(ISNA($A31),"",IFERROR(SUMIFS(D_D[ADCM],D_D[MT],4,D_D[CAT],SMS,D_D[LOC],$A31),0)) -> 130.54 | J31: =IF(ISNA($A31),"",IFERROR(SUMIFS(D_D[PROD_FYTD],D_D[MT],4,D_D[CAT],SMS,D_D[LOC],$A31),0)) -> 2653 | K31: =IF(ISNA($A31),"",IFERROR(SUMIFS(D_D[ADCF],D_D[MT],4,D_D[CAT],SMS,D_D[LOC],$A31),0)) -> 142.35
A32: 372 | B32: 20 | C32: Washington | D32: =IF(ISNA($A32),"",IFERROR(SUMIFS(D_D[INV],D_D[MT],4,D_D[CAT],SMS,D_D[LOC],$A32),0)) -> 273 | E32: =IF(ISNA($A32),"",IFERROR(SUMIFS(D_D[BL],D_D[MT],4,D_D[CAT],SMS,D_D[LOC],$A32),0)) -> 129 | F32: 0.4725274725 | G32: =IF(ISNA($A32),"",IFERROR(SUMIFS(D_D[ADP],D_D[MT],4,D_D[CAT],SMS,D_D[LOC],$A32),0)) -> 175.27 | H32: =IF(ISNA($A32),"",IFERROR(SUMIFS(D_D[PROD_MTD],D_D[MT],4,D_D[CAT],SMS,D_D[LOC],$A32),0)) -> 74 | I32: =IF(ISNA($A32),"",IFERROR(SUMIFS(D_D[ADCM],D_D[MT],4,D_D[CAT],SMS,D_D[LOC],$A32),0)) -> 102.85 | J32: =IF(ISNA($A32),"",IFERROR(SUMIFS(D_D[PROD_FYTD],D_D[MT],4,D_D[CAT],SMS,D_D[LOC],$A32),0)) -> 907 | K32: =IF(ISNA($A32),"",IFERROR(SUMIFS(D_D[ADCF],D_D[MT],4,D_D[CAT],SMS,D_D[LOC],$A32),0)) -> 124.16
A33: 405 | B33: 21 | C33: White River Junction | D33: =IF(ISNA($A33),"",IFERROR(SUMIFS(D_D[INV],D_D[MT],4,D_D[CAT],SMS,D_D[LOC],$A33),0)) -> 329 | E33: =IF(ISNA($A33),"",IFERROR(SUMIFS(D_D[BL],D_D[MT],4,D_D[CAT],SMS,D_D[LOC],$A33),0)) -> 163 | F33: 0.4954407295 | G33: =IF(ISNA($A33),"",IFERROR(SUMIFS(D_D[ADP],D_D[MT],4,D_D[CAT],SMS,D_D[LOC],$A33),0)) -> 174.1 | H33: =IF(ISNA($A33),"",IFERROR(SUMIFS(D_D[PROD_MTD],D_D[MT],4,D_D[CAT],SMS,D_D[LOC],$A33),0)) -> 75 | I33: =IF(ISNA($A33),"",IFERROR(SUMIFS(D_D[ADCM],D_D[MT],4,D_D[CAT],SMS,D_D[LOC],$A33),0)) -> 130.12 | J33: =IF(ISNA($A33),"",IFERROR(SUMIFS(D_D[PROD_FYTD],D_D[MT],4,D_D[CAT],SMS,D_D[LOC],$A33),0)) -> 559 | K33: =IF(ISNA($A33),"",IFERROR(SUMIFS(D_D[ADCF],D_D[MT],4,D_D[CAT],SMS,D_D[LOC],$A33),0)) -> 128.79
A34: 460 | B34: 22 | C34: Wilmington | D34: =IF(ISNA($A34),"",IFERROR(SUMIFS(D_D[INV],D_D[MT],4,D_D[CAT],SMS,D_D[LOC],$A34),0)) -> 664 | E34: =IF(ISNA($A34),"",IFERROR(SUMIFS(D_D[BL],D_D[MT],4,D_D[CAT],SMS,D_D[LOC],$A34),0)) -> 227 | F34: 0.3418674699 | G34: =IF(ISNA($A34),"",IFERROR(SUMIFS(D_D[ADP],D_D[MT],4,D_D[CAT],SMS,D_D[LOC],$A34),0)) -> 132.77 | H34: =IF(ISNA($A34),"",IFERROR(SUMIFS(D_D[PROD_MTD],D_D[MT],4,D_D[CAT],SMS,D_D[LOC],$A34),0)) -> 141 | I34: =IF(ISNA($A34),"",IFERROR(SUMIFS(D_D[ADCM],D_D[MT],4,D_D[CAT],SMS,D_D[LOC],$A34),0)) -> 113.25 | J34: =IF(ISNA($A34),"",IFERROR(SUMIFS(D_D[PROD_FYTD],D_D[MT],4,D_D[CAT],SMS,D_D[LOC],$A34),0)) -> 1274 | K34: =IF(ISNA($A34),"",IFERROR(SUMIFS(D_D[ADCF],D_D[MT],4,D_D[CAT],SMS,D_D[LOC],$A34),0)) -> 121.18
B35: 23 | D35: =IF(ISNA($A35),"",IFERROR(SUMIFS(D_D[INV],D_D[MT],4,D_D[CAT],SMS,D_D[LOC],$A35),0)) ->  | E35: =IF(ISNA($A35),"",IFERROR(SUMIFS(D_D[BL],D_D[MT],4,D_D[CAT],SMS,D_D[LOC],$A35),0)) ->  | G35: =IF(ISNA($A35),"",IFERROR(SUMIFS(D_D[ADP],D_D[MT],4,D_D[CAT],SMS,D_D[LOC],$A35),0)) ->  | H35: =IF(ISNA($A35),"",IFERROR(SUMIFS(D_D[PROD_MTD],D_D[MT],4,D_D[CAT],SMS,D_D[LOC],$A35),0)) ->  | I35: =IF(ISNA($A35),"",IFERROR(SUMIFS(D_D[ADCM],D_D[MT],4,D_D[CAT],SMS,D_D[LOC],$A35),0)) ->  | J35: =IF(ISNA($A35),"",IFERROR(SUMIFS(D_D[PROD_FYTD],D_D[MT],4,D_D[CAT],SMS,D_D[LOC],$A35),0)) ->  | K35: =IF(ISNA($A35),"",IFERROR(SUMIFS(D_D[ADCF],D_D[MT],4,D_D[CAT],SMS,D_D[LOC],$A35),0)) -> 

Sheet Rating Bundle - State
C2: DISTRICT SELECTOR | D2: Compensation and Pension Rating Bundle Metrics | L2: Report through
D3: State View | L3: =D_DT[] -> 2021-06-26
D4: The State listed is based on the address associated with the claim, not payment address | L4: ADP = Average Days Pending | O4: MTD = Month to Date
D5: Each Special Mission has distinct claim counts | L5: ADC = Average Days to Complete | O5: FYTD = Fiscal Year to Date
D6: When Special Mission is set to Pension, BDD, or Quickstart, the District Selector has no impact.
L7: Accuracy metrics are available on Rating Bundle - SOJ tab
D8: CLAIM METRICS | L8: ACCURACY METRICS
C9: SPECIAL MISSION SELECTOR | D9: # Pending | E9: # Pending > 125 Days | F9: % Pending > 125 Days | G9: ADP | H9: # Completed MTD | I9: ADC MTD | J9: # Completed FYTD | K9: ADC FYTD | L9: Accuracy measurement is available on the Rating Bundle SOJ tab
A12: 100 | C12: =Driver!$C$20& " Total" -> USA - All Missions Total | D12: =IF(ISNA($A12),"",IFERROR(SUMIFS(D_D[INV],D_D[MT],6,D_D[CAT],SMS,D_D[LOC],$A12),0)) -> 581396 | E12: =IF(ISNA($A12),"",IFERROR(SUMIFS(D_D[BL],D_D[MT],6,D_D[CAT],SMS,D_D[LOC],$A12),0)) -> 187912 | F12: =IF(ISNA($A12),"",IFERROR(E12/D12,0)) -> 0.323208278 | G12: =IF(ISNA($A12),"",IFERROR(SUMIFS(D_D[ADP],D_D[MT],6,D_D[CAT],SMS,D_D[LOC],$A12),0)) -> 133.29 | H12: =IF(ISNA($A12),"",IFERROR(SUMIFS(D_D[PROD_MTD],D_D[MT],6,D_D[CAT],SMS,D_D[LOC],$A12),0)) -> 115418 | I12: =IF(ISNA($A12),"",IFERROR(SUMIFS(D_D[ADCM],D_D[MT],6,D_D[CAT],SMS,D_D[LOC],$A12),0)) -> 108 | J12: =IF(ISNA($A12),"",IFERROR(SUMIFS(D_D[PROD_FYTD],D_D[MT],6,D_D[CAT],SMS,D_D[LOC],$A12),0)) -> 1086560 | K12: =IF(ISNA($A12),"",IFERROR(SUMIFS(D_D[ADCF],D_D[MT],6,D_D[CAT],SMS,D_D[LOC],$A12),0)) -> 111.62
A13: =INDEX(STATE,(MATCH($C13,STATE_D,0))) -> 394 | B13: 1 | C13: =IFERROR(INDEX(INDIRECT(DS_ST),B13),"") -> Northeast District | D13: =IF(ISNA($A13),"",IFERROR(SUMIFS(D_D[INV],D_D[MT],6,D_D[CAT],SMS,D_D[LOC],$A13),0)) -> 143932 | E13: =IF(ISNA($A13),"",IFERROR(SUMIFS(D_D[BL],D_D[MT],6,D_D[CAT],SMS,D_D[LOC],$A13),0)) -> 50100 | F13: =IF(ISNA($A13),"",IFERROR(E13/D13,0)) -> 0.3480810383 | G13: =IF(ISNA($A13),"",IFERROR(SUMIFS(D_D[ADP],D_D[MT],6,D_D[CAT],SMS,D_D[LOC],$A13),0)) -> 142.01 | H13: =IF(ISNA($A13),"",IFERROR(SUMIFS(D_D[PROD_MTD],D_D[MT],6,D_D[CAT],SMS,D_D[LOC],$A13),0)) -> 26293 | I13: =IF(ISNA($A13),"",IFERROR(SUMIFS(D_D[ADCM],D_D[MT],6,D_D[CAT],SMS,D_D[LOC],$A13),0)) -> 119.08 | J13: =IF(ISNA($A13),"",IFERROR(SUMIFS(D_D[PROD_FYTD],D_D[MT],6,D_D[CAT],SMS,D_D[LOC],$A13),0)) -> 243830 | K13: =IF(ISNA($A13),"",IFERROR(SUMIFS(D_D[ADCF],D_D[MT],6,D_D[CAT],SMS,D_D[LOC],$A13),0)) -> 120.3
A14: CT | B14: 2 | C14: Connecticut | D14: =IF(ISNA($A14),"",IFERROR(SUMIFS(D_D[INV],D_D[MT],6,D_D[CAT],SMS,D_D[LOC],$A14),0)) -> 3418 | E14: =IF(ISNA($A14),"",IFERROR(SUMIFS(D_D[BL],D_D[MT],6,D_D[CAT],SMS,D_D[LOC],$A14),0)) -> 1352 | F14: =IF(ISNA($A14),"",IFERROR(E14/D14,0)) -> 0.3955529549 | G14: =IF(ISNA($A14),"",IFERROR(SUMIFS(D_D[ADP],D_D[MT],6,D_D[CAT],SMS,D_D[LOC],$A14),0)) -> 160.46 | H14: =IF(ISNA($A14),"",IFERROR(SUMIFS(D_D[PROD_MTD],D_D[MT],6,D_D[CAT],SMS,D_D[LOC],$A14),0)) -> 619 | I14: =IF(ISNA($A14),"",IFERROR(SUMIFS(D_D[ADCM],D_D[MT],6,D_D[CAT],SMS,D_D[LOC],$A14),0)) -> 128.44 | J14: =IF(ISNA($A14),"",IFERROR(SUMIFS(D_D[PROD_FYTD],D_D[MT],6,D_D[CAT],SMS,D_D[LOC],$A14),0)) -> 5367 | K14: =IF(ISNA($A14),"",IFERROR(SUMIFS(D_D[ADCF],D_D[MT],6,D_D[CAT],SMS,D_D[LOC],$A14),0)) -> 127.38
A15: DE | B15: 3 | C15: =IFERROR(INDEX(INDIRECT(DS_ST),B15),"") -> Delaware | D15: =IF(ISNA($A15),"",IFERROR(SUMIFS(D_D[INV],D_D[MT],6,D_D[CAT],SMS,D_D[LOC],$A15),0)) -> 1630 | E15: =IF(ISNA($A15),"",IFERROR(SUMIFS(D_D[BL],D_D[MT],6,D_D[CAT],SMS,D_D[LOC],$A15),0)) -> 532 | F15: =IF(ISNA($A15),"",IFERROR(E15/D15,0)) -> 0.3263803681 | G15: =IF(ISNA($A15),"",IFERROR(SUMIFS(D_D[ADP],D_D[MT],6,D_D[CAT],SMS,D_D[LOC],$A15),0)) -> 131.65 | H15: =IF(ISNA($A15),"",IFERROR(SUMIFS(D_D[PROD_MTD],D_D[MT],6,D_D[CAT],SMS,D_D[LOC],$A15),0)) -> 317 | I15: =IF(ISNA($A15),"",IFERROR(SUMIFS(D_D[ADCM],D_D[MT],6,D_D[CAT],SMS,D_D[LOC],$A15),0)) -> 111.86 | J15: =IF(ISNA($A15),"",IFERROR(SUMIFS(D_D[PROD_FYTD],D_D[MT],6,D_D[CAT],SMS,D_D[LOC],$A15),0)) -> 3101 | K15: =IF(ISNA($A15),"",IFERROR(SUMIFS(D_D[ADCF],D_D[MT],6,D_D[CAT],SMS,D_D[LOC],$A15),0)) -> 111.44
A16: DC | B16: 4 | C16: District of Columbia | D16: =IF(ISNA($A16),"",IFERROR(SUMIFS(D_D[INV],D_D[MT],6,D_D[CAT],SMS,D_D[LOC],$A16),0)) -> 666 | E16: =IF(ISNA($A16),"",IFERROR(SUMIFS(D_D[BL],D_D[MT],6,D_D[CAT],SMS,D_D[LOC],$A16),0)) -> 230 | F16: 0.3453453453 | G16: =IF(ISNA($A16),"",IFERROR(SUMIFS(D_D[ADP],D_D[MT],6,D_D[CAT],SMS,D_D[LOC],$A16),0)) -> 142.78 | H16: =IF(ISNA($A16),"",IFERROR(SUMIFS(D_D[PROD_MTD],D_D[MT],6,D_D[CAT],SMS,D_D[LOC],$A16),0)) -> 167 | I16: =IF(ISNA($A16),"",IFERROR(SUMIFS(D_D[ADCM],D_D[MT],6,D_D[CAT],SMS,D_D[LOC],$A16),0)) -> 113.9 | J16: =IF(ISNA($A16),"",IFERROR(SUMIFS(D_D[PROD_FYTD],D_D[MT],6,D_D[CAT],SMS,D_D[LOC],$A16),0)) -> 1407 | K16: =IF(ISNA($A16),"",IFERROR(SUMIFS(D_D[ADCF],D_D[MT],6,D_D[CAT],SMS,D_D[LOC],$A16),0)) -> 121.41
A17: IL | B17: 5 | C17: Illinois | D17: =IF(ISNA($A17),"",IFERROR(SUMIFS(D_D[INV],D_D[MT],6,D_D[CAT],SMS,D_D[LOC],$A17),0)) -> 13507 | E17: =IF(ISNA($A17),"",IFERROR(SUMIFS(D_D[BL],D_D[MT],6,D_D[CAT],SMS,D_D[LOC],$A17),0)) -> 4468 | F17: 0.3307914415 | G17: =IF(ISNA($A17),"",IFERROR(SUMIFS(D_D[ADP],D_D[MT],6,D_D[CAT],SMS,D_D[LOC],$A17),0)) -> 136.06 | H17: =IF(ISNA($A17),"",IFERROR(SUMIFS(D_D[PROD_MTD],D_D[MT],6,D_D[CAT],SMS,D_D[LOC],$A17),0)) -> 2424 | I17: =IF(ISNA($A17),"",IFERROR(SUMIFS(D_D[ADCM],D_D[MT],6,D_D[CAT],SMS,D_D[LOC],$A17),0)) -> 114.11 | J17: =IF(ISNA($A17),"",IFERROR(SUMIFS(D_D[PROD_FYTD],D_D[MT],6,D_D[CAT],SMS,D_D[LOC],$A17),0)) -> 23099 | K17: =IF(ISNA($A17),"",IFERROR(SUMIFS(D_D[ADCF],D_D[MT],6,D_D[CAT],SMS,D_D[LOC],$A17),0)) -> 118.47
A18: IN | B18: 6 | C18: Indiana | D18: =IF(ISNA($A18),"",IFERROR(SUMIFS(D_D[INV],D_D[MT],6,D_D[CAT],SMS,D_D[LOC],$A18),0)) -> 10857 | E18: =IF(ISNA($A18),"",IFERROR(SUMIFS(D_D[BL],D_D[MT],6,D_D[CAT],SMS,D_D[LOC],$A18),0)) -> 3642 | F18: 0.3354517823 | G18: =IF(ISNA($A18),"",IFERROR(SUMIFS(D_D[ADP],D_D[MT],6,D_D[CAT],SMS,D_D[LOC],$A18),0)) -> 136.15 | H18: =IF(ISNA($A18),"",IFERROR(SUMIFS(D_D[PROD_MTD],D_D[MT],6,D_D[CAT],SMS,D_D[LOC],$A18),0)) -> 1997 | I18: =IF(ISNA($A18),"",IFERROR(SUMIFS(D_D[ADCM],D_D[MT],6,D_D[CAT],SMS,D_D[LOC],$A18),0)) -> 124.3 | J18: =IF(ISNA($A18),"",IFERROR(SUMIFS(D_D[PROD_FYTD],D_D[MT],6,D_D[CAT],SMS,D_D[LOC],$A18),0)) -> 17024 | K18: =IF(ISNA($A18),"",IFERROR(SUMIFS(D_D[ADCF],D_D[MT],6,D_D[CAT],SMS,D_D[LOC],$A18),0)) -> 122.69
A19: ME | B19: 7 | C19: Maine | D19: =IF(ISNA($A19),"",IFERROR(SUMIFS(D_D[INV],D_D[MT],6,D_D[CAT],SMS,D_D[LOC],$A19),0)) -> 2807 | E19: =IF(ISNA($A19),"",IFERROR(SUMIFS(D_D[BL],D_D[MT],6,D_D[CAT],SMS,D_D[LOC],$A19),0)) -> 1086 | F19: 0.3868899181 | G19: =IF(ISNA($A19),"",IFERROR(SUMIFS(D_D[ADP],D_D[MT],6,D_D[CAT],SMS,D_D[LOC],$A19),0)) -> 160.94 | H19: =IF(ISNA($A19),"",IFERROR(SUMIFS(D_D[PROD_MTD],D_D[MT],6,D_D[CAT],SMS,D_D[LOC],$A19),0)) -> 475 | I19: =IF(ISNA($A19),"",IFERROR(SUMIFS(D_D[ADCM],D_D[MT],6,D_D[CAT],SMS,D_D[LOC],$A19),0)) -> 131.95 | J19: =IF(ISNA($A19),"",IFERROR(SUMIFS(D_D[PROD_FYTD],D_D[MT],6,D_D[CAT],SMS,D_D[LOC],$A19),0)) -> 4053 | K19: =IF(ISNA($A19),"",IFERROR(SUMIFS(D_D[ADCF],D_D[MT],6,D_D[CAT],SMS,D_D[LOC],$A19),0)) -> 133.02
A20: MD | B20: 8 | C20: Maryland | D20: =IF(ISNA($A20),"",IFERROR(SUMIFS(D_D[INV],D_D[MT],6,D_D[CAT],SMS,D_D[LOC],$A20),0)) -> 9845 | E20: =IF(ISNA($A20),"",IFERROR(SUMIFS(D_D[BL],D_D[MT],6,D_D[CAT],SMS,D_D[LOC],$A20),0)) -> 3207 | F20: 0.3257491112 | G20: =IF(ISNA($A20),"",IFERROR(SUMIFS(D_D[ADP],D_D[MT],6,D_D[CAT],SMS,D_D[LOC],$A20),0)) -> 127.23 | H20: =IF(ISNA($A20),"",IFERROR(SUMIFS(D_D[PROD_MTD],D_D[MT],6,D_D[CAT],SMS,D_D[LOC],$A20),0)) -> 2485 | I20: =IF(ISNA($A20),"",IFERROR(SUMIFS(D_D[ADCM],D_D[MT],6,D_D[CAT],SMS,D_D[LOC],$A20),0)) -> 101.01 | J20: =IF(ISNA($A20),"",IFERROR(SUMIFS(D_D[PROD_FYTD],D_D[MT],6,D_D[CAT],SMS,D_D[LOC],$A20),0)) -> 23650 | K20: =IF(ISNA($A20),"",IFERROR(SUMIFS(D_D[ADCF],D_D[MT],6,D_D[CAT],SMS,D_D[LOC],$A20),0)) -> 108.55
A21: MA | B21: 9 | C21: Massachusetts | D21: =IF(ISNA($A21),"",IFERROR(SUMIFS(D_D[INV],D_D[MT],6,D_D[CAT],SMS,D_D[LOC],$A21),0)) -> 6155 | E21: =IF(ISNA($A21),"",IFERROR(SUMIFS(D_D[BL],D_D[MT],6,D_D[CAT],SMS,D_D[LOC],$A21),0)) -> 2366 | F21: 0.3844029245 | G21: =IF(ISNA($A21),"",IFERROR(SUMIFS(D_D[ADP],D_D[MT],6,D_D[CAT],SMS,D_D[LOC],$A21),0)) -> 153.73 | H21: =IF(ISNA($A21),"",IFERROR(SUMIFS(D_D[PROD_MTD],D_D[MT],6,D_D[CAT],SMS,D_D[LOC],$A21),0)) -> 1147 | I21: =IF(ISNA($A21),"",IFERROR(SUMIFS(D_D[ADCM],D_D[MT],6,D_D[CAT],SMS,D_D[LOC],$A21),0)) -> 123.89 | J21: =IF(ISNA($A21),"",IFERROR(SUMIFS(D_D[PROD_FYTD],D_D[MT],6,D_D[CAT],SMS,D_D[LOC],$A21),0)) -> 11167 | K21: =IF(ISNA($A21),"",IFERROR(SUMIFS(D_D[ADCF],D_D[MT],6,D_D[CAT],SMS,D_D[LOC],$A21),0)) -> 124.47
A22: MI | B22: 10 | C22: Michigan | D22: =IF(ISNA($A22),"",IFERROR(SUMIFS(D_D[INV],D_D[MT],6,D_D[CAT],SMS,D_D[LOC],$A22),0)) -> 12565 | E22: =IF(ISNA($A22),"",IFERROR(SUMIFS(D_D[BL],D_D[MT],6,D_D[CAT],SMS,D_D[LOC],$A22),0)) -> 4024 | F22: 0.3202546757 | G22: =IF(ISNA($A22),"",IFERROR(SUMIFS(D_D[ADP],D_D[MT],6,D_D[CAT],SMS,D_D[LOC],$A22),0)) -> 134.46 | H22: =IF(ISNA($A22),"",IFERROR(SUMIFS(D_D[PROD_MTD],D_D[MT],6,D_D[CAT],SMS,D_D[LOC],$A22),0)) -> 2231 | I22: =IF(ISNA($A22),"",IFERROR(SUMIFS(D_D[ADCM],D_D[MT],6,D_D[CAT],SMS,D_D[LOC],$A22),0)) -> 114.48 | J22: =IF(ISNA($A22),"",IFERROR(SUMIFS(D_D[PROD_FYTD],D_D[MT],6,D_D[CAT],SMS,D_D[LOC],$A22),0)) -> 21796 | K22: =IF(ISNA($A22),"",IFERROR(SUMIFS(D_D[ADCF],D_D[MT],6,D_D[CAT],SMS,D_D[LOC],$A22),0)) -> 112.49
A23: MO | B23: 11 | C23: Missouri | D23: =IF(ISNA($A23),"",IFERROR(SUMIFS(D_D[INV],D_D[MT],6,D_D[CAT],SMS,D_D[LOC],$A23),0)) -> 11927 | E23: =IF(ISNA($A23),"",IFERROR(SUMIFS(D_D[BL],D_D[MT],6,D_D[CAT],SMS,D_D[LOC],$A23),0)) -> 3853 | F23: 0.3230485453 | G23: =IF(ISNA($A23),"",IFERROR(SUMIFS(D_D[ADP],D_D[MT],6,D_D[CAT],SMS,D_D[LOC],$A23),0)) -> 136.82 | H23: =IF(ISNA($A23),"",IFERROR(SUMIFS(D_D[PROD_MTD],D_D[MT],6,D_D[CAT],SMS,D_D[LOC],$A23),0)) -> 2137 | I23: =IF(ISNA($A23),"",IFERROR(SUMIFS(D_D[ADCM],D_D[MT],6,D_D[CAT],SMS,D_D[LOC],$A23),0)) -> 107.8 | J23: =IF(ISNA($A23),"",IFERROR(SUMIFS(D_D[PROD_FYTD],D_D[MT],6,D_D[CAT],SMS,D_D[LOC],$A23),0)) -> 19344 | K23: =IF(ISNA($A23),"",IFERROR(SUMIFS(D_D[ADCF],D_D[MT],6,D_D[CAT],SMS,D_D[LOC],$A23),0)) -> 113.94
A24: NH | B24: 12 | C24: New Hampshire | D24: =IF(ISNA($A24),"",IFERROR(SUMIFS(D_D[INV],D_D[MT],6,D_D[CAT],SMS,D_D[LOC],$A24),0)) -> 2024 | E24: =IF(ISNA($A24),"",IFERROR(SUMIFS(D_D[BL],D_D[MT],6,D_D[CAT],SMS,D_D[LOC],$A24),0)) -> 831 | F24: 0.4105731225 | G24: =IF(ISNA($A24),"",IFERROR(SUMIFS(D_D[ADP],D_D[MT],6,D_D[CAT],SMS,D_D[LOC],$A24),0)) -> 164.37 | H24: =IF(ISNA($A24),"",IFERROR(SUMIFS(D_D[PROD_MTD],D_D[MT],6,D_D[CAT],SMS,D_D[LOC],$A24),0)) -> 380 | I24: =IF(ISNA($A24),"",IFERROR(SUMIFS(D_D[ADCM],D_D[MT],6,D_D[CAT],SMS,D_D[LOC],$A24),0)) -> 133.62 | J24: =IF(ISNA($A24),"",IFERROR(SUMIFS(D_D[PROD_FYTD],D_D[MT],6,D_D[CAT],SMS,D_D[LOC],$A24),0)) -> 3192 | K24: =IF(ISNA($A24),"",IFERROR(SUMIFS(D_D[ADCF],D_D[MT],6,D_D[CAT],SMS,D_D[LOC],$A24),0)) -> 140.32
A25: NJ | B25: 13 | C25: New Jersey | D25: =IF(ISNA($A25),"",IFERROR(SUMIFS(D_D[INV],D_D[MT],6,D_D[CAT],SMS,D_D[LOC],$A25),0)) -> 7334 | E25: =IF(ISNA($A25),"",IFERROR(SUMIFS(D_D[BL],D_D[MT],6,D_D[CAT],SMS,D_D[LOC],$A25),0)) -> 2862 | F25: 0.3902372512 | G25: =IF(ISNA($A25),"",IFERROR(SUMIFS(D_D[ADP],D_D[MT],6,D_D[CAT],SMS,D_D[LOC],$A25),0)) -> 154.06 | H25: =IF(ISNA($A25),"",IFERROR(SUMIFS(D_D[PROD_MTD],D_D[MT],6,D_D[CAT],SMS,D_D[LOC],$A25),0)) -> 1311 | I25: =IF(ISNA($A25),"",IFERROR(SUMIFS(D_D[ADCM],D_D[MT],6,D_D[CAT],SMS,D_D[LOC],$A25),0)) -> 125.82 | J25: =IF(ISNA($A25),"",IFERROR(SUMIFS(D_D[PROD_FYTD],D_D[MT],6,D_D[CAT],SMS,D_D[LOC],$A25),0)) -> 12809 | K25: =IF(ISNA($A25),"",IFERROR(SUMIFS(D_D[ADCF],D_D[MT],6,D_D[CAT],SMS,D_D[LOC],$A25),0)) -> 127.89
A26: NY | B26: 14 | C26: New York | D26: =IF(ISNA($A26),"",IFERROR(SUMIFS(D_D[INV],D_D[MT],6,D_D[CAT],SMS,D_D[LOC],$A26),0)) -> 15590 | E26: =IF(ISNA($A26),"",IFERROR(SUMIFS(D_D[BL],D_D[MT],6,D_D[CAT],SMS,D_D[LOC],$A26),0)) -> 5759 | F26: 0.3694034638 | G26: =IF(ISNA($A26),"",IFERROR(SUMIFS(D_D[ADP],D_D[MT],6,D_D[CAT],SMS,D_D[LOC],$A26),0)) -> 147.38 | H26: =IF(ISNA($A26),"",IFERROR(SUMIFS(D_D[PROD_MTD],D_D[MT],6,D_D[CAT],SMS,D_D[LOC],$A26),0)) -> 2607 | I26: =IF(ISNA($A26),"",IFERROR(SUMIFS(D_D[ADCM],D_D[MT],6,D_D[CAT],SMS,D_D[LOC],$A26),0)) -> 131.01 | J26: =IF(ISNA($A26),"",IFERROR(SUMIFS(D_D[PROD_FYTD],D_D[MT],6,D_D[CAT],SMS,D_D[LOC],$A26),0)) -> 24683 | K26: =IF(ISNA($A26),"",IFERROR(SUMIFS(D_D[ADCF],D_D[MT],6,D_D[CAT],SMS,D_D[LOC],$A26),0)) -> 126.23
A27: OH | B27: 15 | C27: Ohio | D27: =IF(ISNA($A27),"",IFERROR(SUMIFS(D_D[INV],D_D[MT],6,D_D[CAT],SMS,D_D[LOC],$A27),0)) -> 18002 | E27: =IF(ISNA($A27),"",IFERROR(SUMIFS(D_D[BL],D_D[MT],6,D_D[CAT],SMS,D_D[LOC],$A27),0)) -> 5755 | F27: 0.3196867015 | G27: =IF(ISNA($A27),"",IFERROR(SUMIFS(D_D[ADP],D_D[MT],6,D_D[CAT],SMS,D_D[LOC],$A27),0)) -> 135.14 | H27: =IF(ISNA($A27),"",IFERROR(SUMIFS(D_D[PROD_MTD],D_D[MT],6,D_D[CAT],SMS,D_D[LOC],$A27),0)) -> 3199 | I27: =IF(ISNA($A27),"",IFERROR(SUMIFS(D_D[ADCM],D_D[MT],6,D_D[CAT],SMS,D_D[LOC],$A27),0)) -> 112.53 | J27: =IF(ISNA($A27),"",IFERROR(SUMIFS(D_D[PROD_FYTD],D_D[MT],6,D_D[CAT],SMS,D_D[LOC],$A27),0)) -> 29426 | K27: =IF(ISNA($A27),"",IFERROR(SUMIFS(D_D[ADCF],D_D[MT],6,D_D[CAT],SMS,D_D[LOC],$A27),0)) -> 114.78
A28: PA | B28: 16 | C28: Pennsylvania | D28: =IF(ISNA($A28),"",IFERROR(SUMIFS(D_D[INV],D_D[MT],6,D_D[CAT],SMS,D_D[LOC],$A28),0)) -> 16325 | E28: =IF(ISNA($A28),"",IFERROR(SUMIFS(D_D[BL],D_D[MT],6,D_D[CAT],SMS,D_D[LOC],$A28),0)) -> 5757 | F28: 0.3526493109 | G28: =IF(ISNA($A28),"",IFERROR(SUMIFS(D_D[ADP],D_D[MT],6,D_D[CAT],SMS,D_D[LOC],$A28),0)) -> 146.21 | H28: =IF(ISNA($A28),"",IFERROR(SUMIFS(D_D[PROD_MTD],D_D[MT],6,D_D[CAT],SMS,D_D[LOC],$A28),0)) -> 2866 | I28: =IF(ISNA($A28),"",IFERROR(SUMIFS(D_D[ADCM],D_D[MT],6,D_D[CAT],SMS,D_D[LOC],$A28),0)) -> 127.31 | J28: =IF(ISNA($A28),"",IFERROR(SUMIFS(D_D[PROD_FYTD],D_D[MT],6,D_D[CAT],SMS,D_D[LOC],$A28),0)) -> 26950 | K28: =IF(ISNA($A28),"",IFERROR(SUMIFS(D_D[ADCF],D_D[MT],6,D_D[CAT],SMS,D_D[LOC],$A28),0)) -> 126.64
A29: RI | B29: 17 | C29: Rhode Island | D29: =IF(ISNA($A29),"",IFERROR(SUMIFS(D_D[INV],D_D[MT],6,D_D[CAT],SMS,D_D[LOC],$A29),0)) -> 1636 | E29: =IF(ISNA($A29),"",IFERROR(SUMIFS(D_D[BL],D_D[MT],6,D_D[CAT],SMS,D_D[LOC],$A29),0)) -> 634 | F29: 0.3875305623 | G29: =IF(ISNA($A29),"",IFERROR(SUMIFS(D_D[ADP],D_D[MT],6,D_D[CAT],SMS,D_D[LOC],$A29),0)) -> 155.9 | H29: =IF(ISNA($A29),"",IFERROR(SUMIFS(D_D[PROD_MTD],D_D[MT],6,D_D[CAT],SMS,D_D[LOC],$A29),0)) -> 274 | I29: =IF(ISNA($A29),"",IFERROR(SUMIFS(D_D[ADCM],D_D[MT],6,D_D[CAT],SMS,D_D[LOC],$A29),0)) -> 126.12 | J29: =IF(ISNA($A29),"",IFERROR(SUMIFS(D_D[PROD_FYTD],D_D[MT],6,D_D[CAT],SMS,D_D[LOC],$A29),0)) -> 2340 | K29: =IF(ISNA($A29),"",IFERROR(SUMIFS(D_D[ADCF],D_D[MT],6,D_D[CAT],SMS,D_D[LOC],$A29),0)) -> 137.4
A30: VT | B30: 18 | C30: Vermont | D30: =IF(ISNA($A30),"",IFERROR(SUMIFS(D_D[INV],D_D[MT],6,D_D[CAT],SMS,D_D[LOC],$A30),0)) -> 763 | E30: =IF(ISNA($A30),"",IFERROR(SUMIFS(D_D[BL],D_D[MT],6,D_D[CAT],SMS,D_D[LOC],$A30),0)) -> 359 | F30: 0.4705111402 | G30: =IF(ISNA($A30),"",IFERROR(SUMIFS(D_D[ADP],D_D[MT],6,D_D[CAT],SMS,D_D[LOC],$A30),0)) -> 178.77 | H30: =IF(ISNA($A30),"",IFERROR(SUMIFS(D_D[PROD_MTD],D_D[MT],6,D_D[CAT],SMS,D_D[LOC],$A30),0)) -> 128 | I30: =IF(ISNA($A30),"",IFERROR(SUMIFS(D_D[ADCM],D_D[MT],6,D_D[CAT],SMS,D_D[LOC],$A30),0)) -> 153.68 | J30: =IF(ISNA($A30),"",IFERROR(SUMIFS(D_D[PROD_FYTD],D_D[MT],6,D_D[CAT],SMS,D_D[LOC],$A30),0)) -> 1092 | K30: =IF(ISNA($A30),"",IFERROR(SUMIFS(D_D[ADCF],D_D[MT],6,D_D[CAT],SMS,D_D[LOC],$A30),0)) -> 142.6
A31: WI | B31: 19 | C31: Wisconsin | D31: =IF(ISNA($A31),"",IFERROR(SUMIFS(D_D[INV],D_D[MT],6,D_D[CAT],SMS,D_D[LOC],$A31),0)) -> 8881 | E31: =IF(ISNA($A31),"",IFERROR(SUMIFS(D_D[BL],D_D[MT],6,D_D[CAT],SMS,D_D[LOC],$A31),0)) -> 3383 | F31: 0.3809255714 | G31: =IF(ISNA($A31),"",IFERROR(SUMIFS(D_D[ADP],D_D[MT],6,D_D[CAT],SMS,D_D[LOC],$A31),0)) -> 148.89 | H31: =IF(ISNA($A31),"",IFERROR(SUMIFS(D_D[PROD_MTD],D_D[MT],6,D_D[CAT],SMS,D_D[LOC],$A31),0)) -> 1529 | I31: =IF(ISNA($A31),"",IFERROR(SUMIFS(D_D[ADCM],D_D[MT],6,D_D[CAT],SMS,D_D[LOC],$A31),0)) -> 127.06 | J31: =IF(ISNA($A31),"",IFERROR(SUMIFS(D_D[PROD_FYTD],D_D[MT],6,D_D[CAT],SMS,D_D[LOC],$A31),0)) -> 13330 | K31: =IF(ISNA($A31),"",IFERROR(SUMIFS(D_D[ADCF],D_D[MT],6,D_D[CAT],SMS,D_D[LOC],$A31),0)) -> 126.43
B32: 20 | D32: =IF(ISNA($A32),"",IFERROR(SUMIFS(D_D[INV],D_D[MT],6,D_D[CAT],SMS,D_D[LOC],$A32),0)) ->  | E32: =IF(ISNA($A32),"",IFERROR(SUMIFS(D_D[BL],D_D[MT],6,D_D[CAT],SMS,D_D[LOC],$A32),0)) ->  | G32: =IF(ISNA($A32),"",IFERROR(SUMIFS(D_D[ADP],D_D[MT],6,D_D[CAT],SMS,D_D[LOC],$A32),0)) ->  | H32: =IF(ISNA($A32),"",IFERROR(SUMIFS(D_D[PROD_MTD],D_D[MT],6,D_D[CAT],SMS,D_D[LOC],$A32),0)) ->  | I32: =IF(ISNA($A32),"",IFERROR(SUMIFS(D_D[ADCM],D_D[MT],6,D_D[CAT],SMS,D_D[LOC],$A32),0)) ->  | J32: =IF(ISNA($A32),"",IFERROR(SUMIFS(D_D[PROD_FYTD],D_D[MT],6,D_D[CAT],SMS,D_D[LOC],$A32),0)) ->  | K32: =IF(ISNA($A32),"",IFERROR(SUMIFS(D_D[ADCF],D_D[MT],6,D_D[CAT],SMS,D_D[LOC],$A32),0)) -> 
B33: 21 | D33: =IF(ISNA($A33),"",IFERROR(SUMIFS(D_D[INV],D_D[MT],6,D_D[CAT],SMS,D_D[LOC],$A33),0)) ->  | E33: =IF(ISNA($A33),"",IFERROR(SUMIFS(D_D[BL],D_D[MT],6,D_D[CAT],SMS,D_D[LOC],$A33),0)) ->  | G33: =IF(ISNA($A33),"",IFERROR(SUMIFS(D_D[ADP],D_D[MT],6,D_D[CAT],SMS,D_D[LOC],$A33),0)) ->  | H33: =IF(ISNA($A33),"",IFERROR(SUMIFS(D_D[PROD_MTD],D_D[MT],6,D_D[CAT],SMS,D_D[LOC],$A33),0)) ->  | I33: =IF(ISNA($A33),"",IFERROR(SUMIFS(D_D[ADCM],D_D[MT],6,D_D[CAT],SMS,D_D[LOC],$A33),0)) ->  | J33: =IF(ISNA($A33),"",IFERROR(SUMIFS(D_D[PROD_FYTD],D_D[MT],6,D_D[CAT],SMS,D_D[LOC],$A33),0)) ->  | K33: =IF(ISNA($A33),"",IFERROR(SUMIFS(D_D[ADCF],D_D[MT],6,D_D[CAT],SMS,D_D[LOC],$A33),0)) -> 
B34: 22 | D34: =IF(ISNA($A34),"",IFERROR(SUMIFS(D_D[INV],D_D[MT],6,D_D[CAT],SMS,D_D[LOC],$A34),0)) ->  | E34: =IF(ISNA($A34),"",IFERROR(SUMIFS(D_D[BL],D_D[MT],6,D_D[CAT],SMS,D_D[LOC],$A34),0)) ->  | G34: =IF(ISNA($A34),"",IFERROR(SUMIFS(D_D[ADP],D_D[MT],6,D_D[CAT],SMS,D_D[LOC],$A34),0)) ->  | H34: =IF(ISNA($A34),"",IFERROR(SUMIFS(D_D[PROD_MTD],D_D[MT],6,D_D[CAT],SMS,D_D[LOC],$A34),0)) ->  | I34: =IF(ISNA($A34),"",IFERROR(SUMIFS(D_D[ADCM],D_D[MT],6,D_D[CAT],SMS,D_D[LOC],$A34),0)) ->  | J34: =IF(ISNA($A34),"",IFERROR(SUMIFS(D_D[PROD_FYTD],D_D[MT],6,D_D[CAT],SMS,D_D[LOC],$A34),0)) ->  | K34: =IF(ISNA($A34),"",IFERROR(SUMIFS(D_D[ADCF],D_D[MT],6,D_D[CAT],SMS,D_D[LOC],$A34),0)) -> 
B35: 23 | D35: =IF(ISNA($A35),"",IFERROR(SUMIFS(D_D[INV],D_D[MT],6,D_D[CAT],SMS,D_D[LOC],$A35),0)) ->  | E35: =IF(ISNA($A35),"",IFERROR(SUMIFS(D_D[BL],D_D[MT],6,D_D[CAT],SMS,D_D[LOC],$A35),0)) ->  | G35: =IF(ISNA($A35),"",IFERROR(SUMIFS(D_D[ADP],D_D[MT],6,D_D[CAT],SMS,D_D[LOC],$A35),0)) ->  | H35: =IF(ISNA($A35),"",IFERROR(SUMIFS(D_D[PROD_MTD],D_D[MT],6,D_D[CAT],SMS,D_D[LOC],$A35),0)) ->  | I35: =IF(ISNA($A35),"",IFERROR(SUMIFS(D_D[ADCM],D_D[MT],6,D_D[CAT],SMS,D_D[LOC],$A35),0)) ->  | J35: =IF(ISNA($A35),"",IFERROR(SUMIFS(D_D[PROD_FYTD],D_D[MT],6,D_D[CAT],SMS,D_D[LOC],$A35),0)) ->  | K35: =IF(ISNA($A35),"",IFERROR(SUMIFS(D_D[ADCF],D_D[MT],6,D_D[CAT],SMS,D_D[LOC],$A35),0)) -> 

Sheet Rating Bundle - SOJ - NWQ
C2: DISTRICT SELECTOR | D2: Compensation and Pension Rating Bundle Metrics | J2: Report through
D3: NWQ-Station of Jurisdiction View | J3: =D_DT[] -> 2021-06-26
D4: The Station of Jurisdiction (SOJ) is the regional office assigned to work the claim | J4: ADP = Average Days Pending
D5: Each Special Mission has distinct claim counts
D6: When Special Mission is set to Pension, BDD, or Quickstart, the District Selector has | J6: Life Cycle Metrics defined on Legend tab
D7: no impact
D8: CLAIM METRICS | H8: LIFE CYCLE METRICS (as Percent of # Pending)
C9: SPECIAL MISSION SELECTOR | D9: # Pending | E9: # Pending > 125 Days | F9: % Pending > 125 Days | G9: ADP | H9: Pending Development | I9: Pending Evidence | J9: Pending Decision | K9: Pending Award | L9: Pending Authorization
A12: 100 | C12: =Driver!$C$20& " Total" -> USA - All Missions Total | D12: =IF(ISNA($A12),"",IFERROR(SUMIFS(D_D[INV],D_D[MT],5,D_D[CAT],SMS, D_D[EP],-1,D_D[LOC],$A12),0)) -> 581396 | E12: =IF(ISNA($A12),"",IFERROR(SUMIFS(D_D[BL],D_D[MT],5,D_D[CAT],SMS, D_D[EP],-1,D_D[LOC],$A12),0)) -> 187912 | F12: =IF(ISNA($A12),"",IFERROR(E12/D12,0)) -> 0.323208278 | G12: =IF(ISNA($A12),"",IFERROR(SUMIFS(D_D[ADP],D_D[MT],5,D_D[CAT],SMS, D_D[EP],-1,D_D[LOC],$A12),0)) -> 133.29 | H12: =IF(ISNA($A12),"",IFERROR(SUMIFS(D_D[DEV],D_D[MT],5,D_D[CAT],SMS, D_D[EP],-1,D_D[LOC],$A12)/$D12,0)) -> 0.01757838031 | I12: =IF(ISNA($A12),"",IFERROR(SUMIFS(D_D[EVD],D_D[MT],5,D_D[CAT],SMS, D_D[EP],-1,D_D[LOC],$A12)/$D12,0)) -> 0.8854532883 | J12: =IF(ISNA($A12),"",IFERROR(SUMIFS(D_D[DEC],D_D[MT],5,D_D[CAT],SMS, D_D[EP],-1,D_D[LOC],$A12)/$D12,0)) -> 0.08718498235 | K12: =IF(ISNA($A12),"",IFERROR(SUMIFS(D_D[AWD],D_D[MT],5,D_D[CAT],SMS, D_D[EP],-1,D_D[LOC],$A12)/$D12,0)) -> 0.006836992343 | L12: =IF(ISNA($A12),"",IFERROR(SUMIFS(D_D[AUT],D_D[MT],5,D_D[CAT],SMS, D_D[EP],-1,D_D[LOC],$A12)/$D12,0)) -> 0.002944636702
A13: 499 | C13: ="NWQ-"&Driver!$C$20& " Total" -> NWQ-USA - All Missions Total | D13: =IF(ISNA($A13),"",IFERROR(SUMIFS(D_D[INV],D_D[MT],5,D_D[CAT],SMS, D_D[EP],-1,D_D[LOC],$A13),0)) -> 506939 | E13: =IF(ISNA($A13),"",IFERROR(SUMIFS(D_D[BL],D_D[MT],5,D_D[CAT],SMS, D_D[EP],-1,D_D[LOC],$A13),0)) -> 159484 | F13: =IF(ISNA($A13),"",IFERROR(E13/D13,0)) -> 0.3146019541 | G13: =IF(ISNA($A13),"",IFERROR(SUMIFS(D_D[ADP],D_D[MT],5,D_D[CAT],SMS, D_D[EP],-1,D_D[LOC],$A13),0)) -> 130.66 | H13: =IF(ISNA($A13),"",IFERROR(SUMIFS(D_D[DEV],D_D[MT],5,D_D[CAT],SMS, D_D[EP],-1,D_D[LOC],$A13)/$D13,0)) -> 0.006631961636 | I13: =IF(ISNA($A13),"",IFERROR(SUMIFS(D_D[EVD],D_D[MT],5,D_D[CAT],SMS, D_D[EP],-1,D_D[LOC],$A13)/$D13,0)) -> 0.9284450397 | J13: =IF(ISNA($A13),"",IFERROR(SUMIFS(D_D[DEC],D_D[MT],5,D_D[CAT],SMS, D_D[EP],-1,D_D[LOC],$A13)/$D13,0)) -> 0.06449296661 | K13: =IF(ISNA($A13),"",IFERROR(SUMIFS(D_D[AWD],D_D[MT],5,D_D[CAT],SMS, D_D[EP],-1,D_D[LOC],$A13)/$D13,0)) -> 0.0004024152807 | L13: =IF(ISNA($A13),"",IFERROR(SUMIFS(D_D[AUT],D_D[MT],5,D_D[CAT],SMS, D_D[EP],-1,D_D[LOC],$A13)/$D13,0)) -> 2.761673495e-05
A14: =INDEX(RO,(MATCH($C14,RO_D,0))) -> 394 | B14: 1 | C14: =IFERROR(INDEX(INDIRECT(DS_RO),B14),"") -> Northeast District | D14: =IF(ISNA($A14),"",IFERROR(SUMIFS(D_D[INV],D_D[MT],5,D_D[CAT],SMS, D_D[EP],-1,D_D[LOC],$A14),0)) -> 14928 | E14: =IF(ISNA($A14),"",IFERROR(SUMIFS(D_D[BL],D_D[MT],5,D_D[CAT],SMS, D_D[EP],-1,D_D[LOC],$A14),0)) -> 4140 | F14: =IF(ISNA($A14),"",IFERROR(E14/D14,0)) -> 0.2773311897 | G14: =IF(ISNA($A14),"",IFERROR(SUMIFS(D_D[ADP],D_D[MT],5,D_D[CAT],SMS, D_D[EP],-1,D_D[LOC],$A14),0)) -> 114.71 | H14: =IF(ISNA($A14),"",IFERROR(SUMIFS(D_D[DEV],D_D[MT],5,D_D[CAT],SMS, D_D[EP],-1,D_D[LOC],$A14)/$D14,0)) -> 0.09740085745 | I14: =IF(ISNA($A14),"",IFERROR(SUMIFS(D_D[EVD],D_D[MT],5,D_D[CAT],SMS, D_D[EP],-1,D_D[LOC],$A14)/$D14,0)) -> 0.5876205788 | J14: =IF(ISNA($A14),"",IFERROR(SUMIFS(D_D[DEC],D_D[MT],5,D_D[CAT],SMS, D_D[EP],-1,D_D[LOC],$A14)/$D14,0)) -> 0.2338558414 | K14: =IF(ISNA($A14),"",IFERROR(SUMIFS(D_D[AWD],D_D[MT],5,D_D[CAT],SMS, D_D[EP],-1,D_D[LOC],$A14)/$D14,0)) -> 0.04829849946 | L14: =IF(ISNA($A14),"",IFERROR(SUMIFS(D_D[AUT],D_D[MT],5,D_D[CAT],SMS, D_D[EP],-1,D_D[LOC],$A14)/$D14,0)) -> 0.03282422294
A15: 313 | B15: 2 | C15: =IFERROR(INDEX(INDIRECT(DS_RO),B15),"") -> Baltimore | D15: =IF(ISNA($A15),"",IFERROR(SUMIFS(D_D[INV],D_D[MT],5,D_D[CAT],SMS, D_D[EP],-1,D_D[LOC],$A15),0)) -> 332 | E15: =IF(ISNA($A15),"",IFERROR(SUMIFS(D_D[BL],D_D[MT],5,D_D[CAT],SMS, D_D[EP],-1,D_D[LOC],$A15),0)) -> 87 | F15: =IF(ISNA($A15),"",IFERROR(E15/D15,0)) -> 0.2620481928 | G15: =IF(ISNA($A15),"",IFERROR(SUMIFS(D_D[ADP],D_D[MT],5,D_D[CAT],SMS, D_D[EP],-1,D_D[LOC],$A15),0)) -> 107.26 | H15: =IF(ISNA($A15),"",IFERROR(SUMIFS(D_D[DEV],D_D[MT],5,D_D[CAT],SMS, D_D[EP],-1,D_D[LOC],$A15)/$D15,0)) -> 0.1897590361 | I15: =IF(ISNA($A15),"",IFERROR(SUMIFS(D_D[EVD],D_D[MT],5,D_D[CAT],SMS, D_D[EP],-1,D_D[LOC],$A15)/$D15,0)) -> 0.5451807229 | J15: =IF(ISNA($A15),"",IFERROR(SUMIFS(D_D[DEC],D_D[MT],5,D_D[CAT],SMS, D_D[EP],-1,D_D[LOC],$A15)/$D15,0)) -> 0.1927710843 | K15: =IF(ISNA($A15),"",IFERROR(SUMIFS(D_D[AWD],D_D[MT],5,D_D[CAT],SMS, D_D[EP],-1,D_D[LOC],$A15)/$D15,0)) -> 0.05120481928 | L15: =IF(ISNA($A15),"",IFERROR(SUMIFS(D_D[AUT],D_D[MT],5,D_D[CAT],SMS, D_D[EP],-1,D_D[LOC],$A15)/$D15,0)) -> 0.02108433735
A16: 301 | B16: 3 | C16: Boston | D16: =IF(ISNA($A16),"",IFERROR(SUMIFS(D_D[INV],D_D[MT],5,D_D[CAT],SMS, D_D[EP],-1,D_D[LOC],$A16),0)) -> 336 | E16: =IF(ISNA($A16),"",IFERROR(SUMIFS(D_D[BL],D_D[MT],5,D_D[CAT],SMS, D_D[EP],-1,D_D[LOC],$A16),0)) -> 88 | F16: 0.2619047619 | G16: =IF(ISNA($A16),"",IFERROR(SUMIFS(D_D[ADP],D_D[MT],5,D_D[CAT],SMS, D_D[EP],-1,D_D[LOC],$A16),0)) -> 98.9 | H16: =IF(ISNA($A16),"",IFERROR(SUMIFS(D_D[DEV],D_D[MT],5,D_D[CAT],SMS, D_D[EP],-1,D_D[LOC],$A16)/$D16,0)) -> 0.08035714286 | I16: =IF(ISNA($A16),"",IFERROR(SUMIFS(D_D[EVD],D_D[MT],5,D_D[CAT],SMS, D_D[EP],-1,D_D[LOC],$A16)/$D16,0)) -> 0.5952380952 | J16: =IF(ISNA($A16),"",IFERROR(SUMIFS(D_D[DEC],D_D[MT],5,D_D[CAT],SMS, D_D[EP],-1,D_D[LOC],$A16)/$D16,0)) -> 0.2678571429 | K16: =IF(ISNA($A16),"",IFERROR(SUMIFS(D_D[AWD],D_D[MT],5,D_D[CAT],SMS, D_D[EP],-1,D_D[LOC],$A16)/$D16,0)) -> 0.03273809524 | L16: =IF(ISNA($A16),"",IFERROR(SUMIFS(D_D[AUT],D_D[MT],5,D_D[CAT],SMS, D_D[EP],-1,D_D[LOC],$A16)/$D16,0)) -> 0.02380952381
A17: 307 | B17: 4 | C17: Buffalo | D17: =IF(ISNA($A17),"",IFERROR(SUMIFS(D_D[INV],D_D[MT],5,D_D[CAT],SMS, D_D[EP],-1,D_D[LOC],$A17),0)) -> 492 | E17: =IF(ISNA($A17),"",IFERROR(SUMIFS(D_D[BL],D_D[MT],5,D_D[CAT],SMS, D_D[EP],-1,D_D[LOC],$A17),0)) -> 170 | F17: 0.3455284553 | G17: =IF(ISNA($A17),"",IFERROR(SUMIFS(D_D[ADP],D_D[MT],5,D_D[CAT],SMS, D_D[EP],-1,D_D[LOC],$A17),0)) -> 126.6 | H17: =IF(ISNA($A17),"",IFERROR(SUMIFS(D_D[DEV],D_D[MT],5,D_D[CAT],SMS, D_D[EP],-1,D_D[LOC],$A17)/$D17,0)) -> 0.1300813008 | I17: =IF(ISNA($A17),"",IFERROR(SUMIFS(D_D[EVD],D_D[MT],5,D_D[CAT],SMS, D_D[EP],-1,D_D[LOC],$A17)/$D17,0)) -> 0.581300813 | J17: =IF(ISNA($A17),"",IFERROR(SUMIFS(D_D[DEC],D_D[MT],5,D_D[CAT],SMS, D_D[EP],-1,D_D[LOC],$A17)/$D17,0)) -> 0.2296747967 | K17: =IF(ISNA($A17),"",IFERROR(SUMIFS(D_D[AWD],D_D[MT],5,D_D[CAT],SMS, D_D[EP],-1,D_D[LOC],$A17)/$D17,0)) -> 0.04674796748 | L17: =IF(ISNA($A17),"",IFERROR(SUMIFS(D_D[AUT],D_D[MT],5,D_D[CAT],SMS, D_D[EP],-1,D_D[LOC],$A17)/$D17,0)) -> 0.01219512195
A18: 328 | B18: 5 | C18: Chicago | D18: =IF(ISNA($A18),"",IFERROR(SUMIFS(D_D[INV],D_D[MT],5,D_D[CAT],SMS, D_D[EP],-1,D_D[LOC],$A18),0)) -> 535 | E18: =IF(ISNA($A18),"",IFERROR(SUMIFS(D_D[BL],D_D[MT],5,D_D[CAT],SMS, D_D[EP],-1,D_D[LOC],$A18),0)) -> 137 | F18: 0.2560747664 | G18: =IF(ISNA($A18),"",IFERROR(SUMIFS(D_D[ADP],D_D[MT],5,D_D[CAT],SMS, D_D[EP],-1,D_D[LOC],$A18),0)) -> 87.92 | H18: =IF(ISNA($A18),"",IFERROR(SUMIFS(D_D[DEV],D_D[MT],5,D_D[CAT],SMS, D_D[EP],-1,D_D[LOC],$A18)/$D18,0)) -> 0.1682242991 | I18: =IF(ISNA($A18),"",IFERROR(SUMIFS(D_D[EVD],D_D[MT],5,D_D[CAT],SMS, D_D[EP],-1,D_D[LOC],$A18)/$D18,0)) -> 0.5009345794 | J18: =IF(ISNA($A18),"",IFERROR(SUMIFS(D_D[DEC],D_D[MT],5,D_D[CAT],SMS, D_D[EP],-1,D_D[LOC],$A18)/$D18,0)) -> 0.2168224299 | K18: =IF(ISNA($A18),"",IFERROR(SUMIFS(D_D[AWD],D_D[MT],5,D_D[CAT],SMS, D_D[EP],-1,D_D[LOC],$A18)/$D18,0)) -> 0.03738317757 | L18: =IF(ISNA($A18),"",IFERROR(SUMIFS(D_D[AUT],D_D[MT],5,D_D[CAT],SMS, D_D[EP],-1,D_D[LOC],$A18)/$D18,0)) -> 0.07663551402
A19: 325 | B19: 6 | C19: Cleveland | D19: =IF(ISNA($A19),"",IFERROR(SUMIFS(D_D[INV],D_D[MT],5,D_D[CAT],SMS, D_D[EP],-1,D_D[LOC],$A19),0)) -> 1511 | E19: =IF(ISNA($A19),"",IFERROR(SUMIFS(D_D[BL],D_D[MT],5,D_D[CAT],SMS, D_D[EP],-1,D_D[LOC],$A19),0)) -> 431 | F19: 0.2852415619 | G19: =IF(ISNA($A19),"",IFERROR(SUMIFS(D_D[ADP],D_D[MT],5,D_D[CAT],SMS, D_D[EP],-1,D_D[LOC],$A19),0)) -> 118.06 | H19: =IF(ISNA($A19),"",IFERROR(SUMIFS(D_D[DEV],D_D[MT],5,D_D[CAT],SMS, D_D[EP],-1,D_D[LOC],$A19)/$D19,0)) -> 0.1191264064 | I19: =IF(ISNA($A19),"",IFERROR(SUMIFS(D_D[EVD],D_D[MT],5,D_D[CAT],SMS, D_D[EP],-1,D_D[LOC],$A19)/$D19,0)) -> 0.6055592323 | J19: =IF(ISNA($A19),"",IFERROR(SUMIFS(D_D[DEC],D_D[MT],5,D_D[CAT],SMS, D_D[EP],-1,D_D[LOC],$A19)/$D19,0)) -> 0.236929186 | K19: =IF(ISNA($A19),"",IFERROR(SUMIFS(D_D[AWD],D_D[MT],5,D_D[CAT],SMS, D_D[EP],-1,D_D[LOC],$A19)/$D19,0)) -> 0.02448709464 | L19: =IF(ISNA($A19),"",IFERROR(SUMIFS(D_D[AUT],D_D[MT],5,D_D[CAT],SMS, D_D[EP],-1,D_D[LOC],$A19)/$D19,0)) -> 0.01389808074
A20: 329 | B20: 7 | C20: Detroit | D20: =IF(ISNA($A20),"",IFERROR(SUMIFS(D_D[INV],D_D[MT],5,D_D[CAT],SMS, D_D[EP],-1,D_D[LOC],$A20),0)) -> 679 | E20: =IF(ISNA($A20),"",IFERROR(SUMIFS(D_D[BL],D_D[MT],5,D_D[CAT],SMS, D_D[EP],-1,D_D[LOC],$A20),0)) -> 133 | F20: 0.1958762887 | G20: =IF(ISNA($A20),"",IFERROR(SUMIFS(D_D[ADP],D_D[MT],5,D_D[CAT],SMS, D_D[EP],-1,D_D[LOC],$A20),0)) -> 91.34 | H20: =IF(ISNA($A20),"",IFERROR(SUMIFS(D_D[DEV],D_D[MT],5,D_D[CAT],SMS, D_D[EP],-1,D_D[LOC],$A20)/$D20,0)) -> 0.07216494845 | I20: =IF(ISNA($A20),"",IFERROR(SUMIFS(D_D[EVD],D_D[MT],5,D_D[CAT],SMS, D_D[EP],-1,D_D[LOC],$A20)/$D20,0)) -> 0.5169366716 | J20: =IF(ISNA($A20),"",IFERROR(SUMIFS(D_D[DEC],D_D[MT],5,D_D[CAT],SMS, D_D[EP],-1,D_D[LOC],$A20)/$D20,0)) -> 0.3490427099 | K20: =IF(ISNA($A20),"",IFERROR(SUMIFS(D_D[AWD],D_D[MT],5,D_D[CAT],SMS, D_D[EP],-1,D_D[LOC],$A20)/$D20,0)) -> 0.0559646539 | L20: =IF(ISNA($A20),"",IFERROR(SUMIFS(D_D[AUT],D_D[MT],5,D_D[CAT],SMS, D_D[EP],-1,D_D[LOC],$A20)/$D20,0)) -> 0.0058910162
A21: 308 | B21: 8 | C21: Hartford | D21: =IF(ISNA($A21),"",IFERROR(SUMIFS(D_D[INV],D_D[MT],5,D_D[CAT],SMS, D_D[EP],-1,D_D[LOC],$A21),0)) -> 509 | E21: =IF(ISNA($A21),"",IFERROR(SUMIFS(D_D[BL],D_D[MT],5,D_D[CAT],SMS, D_D[EP],-1,D_D[LOC],$A21),0)) -> 270 | F21: 0.5304518664 | G21: =IF(ISNA($A21),"",IFERROR(SUMIFS(D_D[ADP],D_D[MT],5,D_D[CAT],SMS, D_D[EP],-1,D_D[LOC],$A21),0)) -> 183.7 | H21: =IF(ISNA($A21),"",IFERROR(SUMIFS(D_D[DEV],D_D[MT],5,D_D[CAT],SMS, D_D[EP],-1,D_D[LOC],$A21)/$D21,0)) -> 0.08055009823 | I21: =IF(ISNA($A21),"",IFERROR(SUMIFS(D_D[EVD],D_D[MT],5,D_D[CAT],SMS, D_D[EP],-1,D_D[LOC],$A21)/$D21,0)) -> 0.721021611 | J21: =IF(ISNA($A21),"",IFERROR(SUMIFS(D_D[DEC],D_D[MT],5,D_D[CAT],SMS, D_D[EP],-1,D_D[LOC],$A21)/$D21,0)) -> 0.1728880157 | K21: =IF(ISNA($A21),"",IFERROR(SUMIFS(D_D[AWD],D_D[MT],5,D_D[CAT],SMS, D_D[EP],-1,D_D[LOC],$A21)/$D21,0)) -> 0.01768172888 | L21: =IF(ISNA($A21),"",IFERROR(SUMIFS(D_D[AUT],D_D[MT],5,D_D[CAT],SMS, D_D[EP],-1,D_D[LOC],$A21)/$D21,0)) -> 0.007858546169
A22: 326 | B22: 9 | C22: Indianapolis | D22: =IF(ISNA($A22),"",IFERROR(SUMIFS(D_D[INV],D_D[MT],5,D_D[CAT],SMS, D_D[EP],-1,D_D[LOC],$A22),0)) -> 561 | E22: =IF(ISNA($A22),"",IFERROR(SUMIFS(D_D[BL],D_D[MT],5,D_D[CAT],SMS, D_D[EP],-1,D_D[LOC],$A22),0)) -> 142 | F22: 0.2531194296 | G22: =IF(ISNA($A22),"",IFERROR(SUMIFS(D_D[ADP],D_D[MT],5,D_D[CAT],SMS, D_D[EP],-1,D_D[LOC],$A22),0)) -> 105.08 | H22: =IF(ISNA($A22),"",IFERROR(SUMIFS(D_D[DEV],D_D[MT],5,D_D[CAT],SMS, D_D[EP],-1,D_D[LOC],$A22)/$D22,0)) -> 0.1390374332 | I22: =IF(ISNA($A22),"",IFERROR(SUMIFS(D_D[EVD],D_D[MT],5,D_D[CAT],SMS, D_D[EP],-1,D_D[LOC],$A22)/$D22,0)) -> 0.6934046346 | J22: =IF(ISNA($A22),"",IFERROR(SUMIFS(D_D[DEC],D_D[MT],5,D_D[CAT],SMS, D_D[EP],-1,D_D[LOC],$A22)/$D22,0)) -> 0.1497326203 | K22: =IF(ISNA($A22),"",IFERROR(SUMIFS(D_D[AWD],D_D[MT],5,D_D[CAT],SMS, D_D[EP],-1,D_D[LOC],$A22)/$D22,0)) -> 0.01247771836 | L22: =IF(ISNA($A22),"",IFERROR(SUMIFS(D_D[AUT],D_D[MT],5,D_D[CAT],SMS, D_D[EP],-1,D_D[LOC],$A22)/$D22,0)) -> 0.005347593583
A23: 373 | B23: 10 | C23: Manchester | D23: =IF(ISNA($A23),"",IFERROR(SUMIFS(D_D[INV],D_D[MT],5,D_D[CAT],SMS, D_D[EP],-1,D_D[LOC],$A23),0)) -> 191 | E23: =IF(ISNA($A23),"",IFERROR(SUMIFS(D_D[BL],D_D[MT],5,D_D[CAT],SMS, D_D[EP],-1,D_D[LOC],$A23),0)) -> 78 | F23: 0.4083769634 | G23: =IF(ISNA($A23),"",IFERROR(SUMIFS(D_D[ADP],D_D[MT],5,D_D[CAT],SMS, D_D[EP],-1,D_D[LOC],$A23),0)) -> 155.97 | H23: =IF(ISNA($A23),"",IFERROR(SUMIFS(D_D[DEV],D_D[MT],5,D_D[CAT],SMS, D_D[EP],-1,D_D[LOC],$A23)/$D23,0)) -> 0.09947643979 | I23: =IF(ISNA($A23),"",IFERROR(SUMIFS(D_D[EVD],D_D[MT],5,D_D[CAT],SMS, D_D[EP],-1,D_D[LOC],$A23)/$D23,0)) -> 0.5445026178 | J23: =IF(ISNA($A23),"",IFERROR(SUMIFS(D_D[DEC],D_D[MT],5,D_D[CAT],SMS, D_D[EP],-1,D_D[LOC],$A23)/$D23,0)) -> 0.2670157068 | K23: =IF(ISNA($A23),"",IFERROR(SUMIFS(D_D[AWD],D_D[MT],5,D_D[CAT],SMS, D_D[EP],-1,D_D[LOC],$A23)/$D23,0)) -> 0.02617801047 | L23: =IF(ISNA($A23),"",IFERROR(SUMIFS(D_D[AUT],D_D[MT],5,D_D[CAT],SMS, D_D[EP],-1,D_D[LOC],$A23)/$D23,0)) -> 0.06282722513
A24: 330 | B24: 11 | C24: Milwaukee | D24: =IF(ISNA($A24),"",IFERROR(SUMIFS(D_D[INV],D_D[MT],5,D_D[CAT],SMS, D_D[EP],-1,D_D[LOC],$A24),0)) -> 1755 | E24: =IF(ISNA($A24),"",IFERROR(SUMIFS(D_D[BL],D_D[MT],5,D_D[CAT],SMS, D_D[EP],-1,D_D[LOC],$A24),0)) -> 314 | F24: 0.1789173789 | G24: =IF(ISNA($A24),"",IFERROR(SUMIFS(D_D[ADP],D_D[MT],5,D_D[CAT],SMS, D_D[EP],-1,D_D[LOC],$A24),0)) -> 90.49 | H24: =IF(ISNA($A24),"",IFERROR(SUMIFS(D_D[DEV],D_D[MT],5,D_D[CAT],SMS, D_D[EP],-1,D_D[LOC],$A24)/$D24,0)) -> 0.1401709402 | I24: =IF(ISNA($A24),"",IFERROR(SUMIFS(D_D[EVD],D_D[MT],5,D_D[CAT],SMS, D_D[EP],-1,D_D[LOC],$A24)/$D24,0)) -> 0.4843304843 | J24: =IF(ISNA($A24),"",IFERROR(SUMIFS(D_D[DEC],D_D[MT],5,D_D[CAT],SMS, D_D[EP],-1,D_D[LOC],$A24)/$D24,0)) -> 0.1863247863 | K24: =IF(ISNA($A24),"",IFERROR(SUMIFS(D_D[AWD],D_D[MT],5,D_D[CAT],SMS, D_D[EP],-1,D_D[LOC],$A24)/$D24,0)) -> 0.1048433048 | L24: =IF(ISNA($A24),"",IFERROR(SUMIFS(D_D[AUT],D_D[MT],5,D_D[CAT],SMS, D_D[EP],-1,D_D[LOC],$A24)/$D24,0)) -> 0.08433048433
A25: 306 | B25: 12 | C25: New York | D25: =IF(ISNA($A25),"",IFERROR(SUMIFS(D_D[INV],D_D[MT],5,D_D[CAT],SMS, D_D[EP],-1,D_D[LOC],$A25),0)) -> 698 | E25: =IF(ISNA($A25),"",IFERROR(SUMIFS(D_D[BL],D_D[MT],5,D_D[CAT],SMS, D_D[EP],-1,D_D[LOC],$A25),0)) -> 293 | F25: 0.4197707736 | G25: =IF(ISNA($A25),"",IFERROR(SUMIFS(D_D[ADP],D_D[MT],5,D_D[CAT],SMS, D_D[EP],-1,D_D[LOC],$A25),0)) -> 148.56 | H25: =IF(ISNA($A25),"",IFERROR(SUMIFS(D_D[DEV],D_D[MT],5,D_D[CAT],SMS, D_D[EP],-1,D_D[LOC],$A25)/$D25,0)) -> 0.1289398281 | I25: =IF(ISNA($A25),"",IFERROR(SUMIFS(D_D[EVD],D_D[MT],5,D_D[CAT],SMS, D_D[EP],-1,D_D[LOC],$A25)/$D25,0)) -> 0.6948424069 | J25: =IF(ISNA($A25),"",IFERROR(SUMIFS(D_D[DEC],D_D[MT],5,D_D[CAT],SMS, D_D[EP],-1,D_D[LOC],$A25)/$D25,0)) -> 0.1461318052 | K25: =IF(ISNA($A25),"",IFERROR(SUMIFS(D_D[AWD],D_D[MT],5,D_D[CAT],SMS, D_D[EP],-1,D_D[LOC],$A25)/$D25,0)) -> 0.01432664756 | L25: =IF(ISNA($A25),"",IFERROR(SUMIFS(D_D[AUT],D_D[MT],5,D_D[CAT],SMS, D_D[EP],-1,D_D[LOC],$A25)/$D25,0)) -> 0.01575931232
A26: 309 | B26: 13 | C26: Newark | D26: =IF(ISNA($A26),"",IFERROR(SUMIFS(D_D[INV],D_D[MT],5,D_D[CAT],SMS, D_D[EP],-1,D_D[LOC],$A26),0)) -> 311 | E26: =IF(ISNA($A26),"",IFERROR(SUMIFS(D_D[BL],D_D[MT],5,D_D[CAT],SMS, D_D[EP],-1,D_D[LOC],$A26),0)) -> 93 | F26: 0.2990353698 | G26: =IF(ISNA($A26),"",IFERROR(SUMIFS(D_D[ADP],D_D[MT],5,D_D[CAT],SMS, D_D[EP],-1,D_D[LOC],$A26),0)) -> 112.72 | H26: =IF(ISNA($A26),"",IFERROR(SUMIFS(D_D[DEV],D_D[MT],5,D_D[CAT],SMS, D_D[EP],-1,D_D[LOC],$A26)/$D26,0)) -> 0.07717041801 | I26: =IF(ISNA($A26),"",IFERROR(SUMIFS(D_D[EVD],D_D[MT],5,D_D[CAT],SMS, D_D[EP],-1,D_D[LOC],$A26)/$D26,0)) -> 0.7363344051 | J26: =IF(ISNA($A26),"",IFERROR(SUMIFS(D_D[DEC],D_D[MT],5,D_D[CAT],SMS, D_D[EP],-1,D_D[LOC],$A26)/$D26,0)) -> 0.09646302251 | K26: =IF(ISNA($A26),"",IFERROR(SUMIFS(D_D[AWD],D_D[MT],5,D_D[CAT],SMS, D_D[EP],-1,D_D[LOC],$A26)/$D26,0)) -> 0.09003215434 | L26: =IF(ISNA($A26),"",IFERROR(SUMIFS(D_D[AUT],D_D[MT],5,D_D[CAT],SMS, D_D[EP],-1,D_D[LOC],$A26)/$D26,0)) -> 0
A27: 310 | B27: 14 | C27: Philadelphia | D27: =IF(ISNA($A27),"",IFERROR(SUMIFS(D_D[INV],D_D[MT],5,D_D[CAT],SMS, D_D[EP],-1,D_D[LOC],$A27),0)) -> 2280 | E27: =IF(ISNA($A27),"",IFERROR(SUMIFS(D_D[BL],D_D[MT],5,D_D[CAT],SMS, D_D[EP],-1,D_D[LOC],$A27),0)) -> 523 | F27: 0.2293859649 | G27: =IF(ISNA($A27),"",IFERROR(SUMIFS(D_D[ADP],D_D[MT],5,D_D[CAT],SMS, D_D[EP],-1,D_D[LOC],$A27),0)) -> 107.07 | H27: =IF(ISNA($A27),"",IFERROR(SUMIFS(D_D[DEV],D_D[MT],5,D_D[CAT],SMS, D_D[EP],-1,D_D[LOC],$A27)/$D27,0)) -> 0.09166666667 | I27: =IF(ISNA($A27),"",IFERROR(SUMIFS(D_D[EVD],D_D[MT],5,D_D[CAT],SMS, D_D[EP],-1,D_D[LOC],$A27)/$D27,0)) -> 0.4807017544 | J27: =IF(ISNA($A27),"",IFERROR(SUMIFS(D_D[DEC],D_D[MT],5,D_D[CAT],SMS, D_D[EP],-1,D_D[LOC],$A27)/$D27,0)) -> 0.3307017544 | K27: =IF(ISNA($A27),"",IFERROR(SUMIFS(D_D[AWD],D_D[MT],5,D_D[CAT],SMS, D_D[EP],-1,D_D[LOC],$A27)/$D27,0)) -> 0.05745614035 | L27: =IF(ISNA($A27),"",IFERROR(SUMIFS(D_D[AUT],D_D[MT],5,D_D[CAT],SMS, D_D[EP],-1,D_D[LOC],$A27)/$D27,0)) -> 0.03947368421
A28: 311 | B28: 15 | C28: Pittsburgh | D28: =IF(ISNA($A28),"",IFERROR(SUMIFS(D_D[INV],D_D[MT],5,D_D[CAT],SMS, D_D[EP],-1,D_D[LOC],$A28),0)) -> 576 | E28: =IF(ISNA($A28),"",IFERROR(SUMIFS(D_D[BL],D_D[MT],5,D_D[CAT],SMS, D_D[EP],-1,D_D[LOC],$A28),0)) -> 243 | F28: 0.421875 | G28: =IF(ISNA($A28),"",IFERROR(SUMIFS(D_D[ADP],D_D[MT],5,D_D[CAT],SMS, D_D[EP],-1,D_D[LOC],$A28),0)) -> 161.91 | H28: =IF(ISNA($A28),"",IFERROR(SUMIFS(D_D[DEV],D_D[MT],5,D_D[CAT],SMS, D_D[EP],-1,D_D[LOC],$A28)/$D28,0)) -> 0.08680555556 | I28: =IF(ISNA($A28),"",IFERROR(SUMIFS(D_D[EVD],D_D[MT],5,D_D[CAT],SMS, D_D[EP],-1,D_D[LOC],$A28)/$D28,0)) -> 0.6736111111 | J28: =IF(ISNA($A28),"",IFERROR(SUMIFS(D_D[DEC],D_D[MT],5,D_D[CAT],SMS, D_D[EP],-1,D_D[LOC],$A28)/$D28,0)) -> 0.1510416667 | K28: =IF(ISNA($A28),"",IFERROR(SUMIFS(D_D[AWD],D_D[MT],5,D_D[CAT],SMS, D_D[EP],-1,D_D[LOC],$A28)/$D28,0)) -> 0.02604166667 | L28: =IF(ISNA($A28),"",IFERROR(SUMIFS(D_D[AUT],D_D[MT],5,D_D[CAT],SMS, D_D[EP],-1,D_D[LOC],$A28)/$D28,0)) -> 0.0625
A29: 304 | B29: 16 | C29: Providence | D29: =IF(ISNA($A29),"",IFERROR(SUMIFS(D_D[INV],D_D[MT],5,D_D[CAT],SMS, D_D[EP],-1,D_D[LOC],$A29),0)) -> 1010 | E29: =IF(ISNA($A29),"",IFERROR(SUMIFS(D_D[BL],D_D[MT],5,D_D[CAT],SMS, D_D[EP],-1,D_D[LOC],$A29),0)) -> 232 | F29: 0.2297029703 | G29: =IF(ISNA($A29),"",IFERROR(SUMIFS(D_D[ADP],D_D[MT],5,D_D[CAT],SMS, D_D[EP],-1,D_D[LOC],$A29),0)) -> 97.29 | H29: =IF(ISNA($A29),"",IFERROR(SUMIFS(D_D[DEV],D_D[MT],5,D_D[CAT],SMS, D_D[EP],-1,D_D[LOC],$A29)/$D29,0)) -> 0.05643564356 | I29: =IF(ISNA($A29),"",IFERROR(SUMIFS(D_D[EVD],D_D[MT],5,D_D[CAT],SMS, D_D[EP],-1,D_D[LOC],$A29)/$D29,0)) -> 0.4792079208 | J29: =IF(ISNA($A29),"",IFERROR(SUMIFS(D_D[DEC],D_D[MT],5,D_D[CAT],SMS, D_D[EP],-1,D_D[LOC],$A29)/$D29,0)) -> 0.299009901 | K29: =IF(ISNA($A29),"",IFERROR(SUMIFS(D_D[AWD],D_D[MT],5,D_D[CAT],SMS, D_D[EP],-1,D_D[LOC],$A29)/$D29,0)) -> 0.1079207921 | L29: =IF(ISNA($A29),"",IFERROR(SUMIFS(D_D[AUT],D_D[MT],5,D_D[CAT],SMS, D_D[EP],-1,D_D[LOC],$A29)/$D29,0)) -> 0.05742574257
A30: 376 | B30: 17 | C30: St. Louis RMC | D30: =IF(ISNA($A30),"",IFERROR(SUMIFS(D_D[INV],D_D[MT],5,D_D[CAT],SMS, D_D[EP],-1,D_D[LOC],$A30),0)) -> 0 | E30: =IF(ISNA($A30),"",IFERROR(SUMIFS(D_D[BL],D_D[MT],5,D_D[CAT],SMS, D_D[EP],-1,D_D[LOC],$A30),0)) -> 0 | F30: 0 | G30: =IF(ISNA($A30),"",IFERROR(SUMIFS(D_D[ADP],D_D[MT],5,D_D[CAT],SMS, D_D[EP],-1,D_D[LOC],$A30),0)) -> 0 | H30: =IF(ISNA($A30),"",IFERROR(SUMIFS(D_D[DEV],D_D[MT],5,D_D[CAT],SMS, D_D[EP],-1,D_D[LOC],$A30)/$D30,0)) -> 0 | I30: =IF(ISNA($A30),"",IFERROR(SUMIFS(D_D[EVD],D_D[MT],5,D_D[CAT],SMS, D_D[EP],-1,D_D[LOC],$A30)/$D30,0)) -> 0 | J30: =IF(ISNA($A30),"",IFERROR(SUMIFS(D_D[DEC],D_D[MT],5,D_D[CAT],SMS, D_D[EP],-1,D_D[LOC],$A30)/$D30,0)) -> 0 | K30: =IF(ISNA($A30),"",IFERROR(SUMIFS(D_D[AWD],D_D[MT],5,D_D[CAT],SMS, D_D[EP],-1,D_D[LOC],$A30)/$D30,0)) -> 0 | L30: =IF(ISNA($A30),"",IFERROR(SUMIFS(D_D[AUT],D_D[MT],5,D_D[CAT],SMS, D_D[EP],-1,D_D[LOC],$A30)/$D30,0)) -> 0
A31: 331 | B31: 18 | C31: St. Louis | D31: =IF(ISNA($A31),"",IFERROR(SUMIFS(D_D[INV],D_D[MT],5,D_D[CAT],SMS, D_D[EP],-1,D_D[LOC],$A31),0)) -> 2345 | E31: =IF(ISNA($A31),"",IFERROR(SUMIFS(D_D[BL],D_D[MT],5,D_D[CAT],SMS, D_D[EP],-1,D_D[LOC],$A31),0)) -> 685 | F31: 0.2921108742 | G31: =IF(ISNA($A31),"",IFERROR(SUMIFS(D_D[ADP],D_D[MT],5,D_D[CAT],SMS, D_D[EP],-1,D_D[LOC],$A31),0)) -> 122.77 | H31: =IF(ISNA($A31),"",IFERROR(SUMIFS(D_D[DEV],D_D[MT],5,D_D[CAT],SMS, D_D[EP],-1,D_D[LOC],$A31)/$D31,0)) -> 0.05501066098 | I31: =IF(ISNA($A31),"",IFERROR(SUMIFS(D_D[EVD],D_D[MT],5,D_D[CAT],SMS, D_D[EP],-1,D_D[LOC],$A31)/$D31,0)) -> 0.7257995736 | J31: =IF(ISNA($A31),"",IFERROR(SUMIFS(D_D[DEC],D_D[MT],5,D_D[CAT],SMS, D_D[EP],-1,D_D[LOC],$A31)/$D31,0)) -> 0.18891258 | K31: =IF(ISNA($A31),"",IFERROR(SUMIFS(D_D[AWD],D_D[MT],5,D_D[CAT],SMS, D_D[EP],-1,D_D[LOC],$A31)/$D31,0)) -> 0.01620469083 | L31: =IF(ISNA($A31),"",IFERROR(SUMIFS(D_D[AUT],D_D[MT],5,D_D[CAT],SMS, D_D[EP],-1,D_D[LOC],$A31)/$D31,0)) -> 0.01407249467
A32: 402 | B32: 19 | C32: Togus | D32: =IF(ISNA($A32),"",IFERROR(SUMIFS(D_D[INV],D_D[MT],5,D_D[CAT],SMS, D_D[EP],-1,D_D[LOC],$A32),0)) -> 657 | E32: =IF(ISNA($A32),"",IFERROR(SUMIFS(D_D[BL],D_D[MT],5,D_D[CAT],SMS, D_D[EP],-1,D_D[LOC],$A32),0)) -> 165 | F32: 0.2511415525 | G32: =IF(ISNA($A32),"",IFERROR(SUMIFS(D_D[ADP],D_D[MT],5,D_D[CAT],SMS, D_D[EP],-1,D_D[LOC],$A32),0)) -> 108.01 | H32: =IF(ISNA($A32),"",IFERROR(SUMIFS(D_D[DEV],D_D[MT],5,D_D[CAT],SMS, D_D[EP],-1,D_D[LOC],$A32)/$D32,0)) -> 0.02891933029 | I32: =IF(ISNA($A32),"",IFERROR(SUMIFS(D_D[EVD],D_D[MT],5,D_D[CAT],SMS, D_D[EP],-1,D_D[LOC],$A32)/$D32,0)) -> 0.5814307458 | J32: =IF(ISNA($A32),"",IFERROR(SUMIFS(D_D[DEC],D_D[MT],5,D_D[CAT],SMS, D_D[EP],-1,D_D[LOC],$A32)/$D32,0)) -> 0.3333333333 | K32: =IF(ISNA($A32),"",IFERROR(SUMIFS(D_D[AWD],D_D[MT],5,D_D[CAT],SMS, D_D[EP],-1,D_D[LOC],$A32)/$D32,0)) -> 0.04566210046 | L32: =IF(ISNA($A32),"",IFERROR(SUMIFS(D_D[AUT],D_D[MT],5,D_D[CAT],SMS, D_D[EP],-1,D_D[LOC],$A32)/$D32,0)) -> 0.01065449011
A33: 372 | B33: 20 | C33: Washington | D33: =IF(ISNA($A33),"",IFERROR(SUMIFS(D_D[INV],D_D[MT],5,D_D[CAT],SMS, D_D[EP],-1,D_D[LOC],$A33),0)) -> 0 | E33: =IF(ISNA($A33),"",IFERROR(SUMIFS(D_D[BL],D_D[MT],5,D_D[CAT],SMS, D_D[EP],-1,D_D[LOC],$A33),0)) -> 0 | F33: 0 | G33: =IF(ISNA($A33),"",IFERROR(SUMIFS(D_D[ADP],D_D[MT],5,D_D[CAT],SMS, D_D[EP],-1,D_D[LOC],$A33),0)) -> 0 | H33: =IF(ISNA($A33),"",IFERROR(SUMIFS(D_D[DEV],D_D[MT],5,D_D[CAT],SMS, D_D[EP],-1,D_D[LOC],$A33)/$D33,0)) -> 0 | I33: =IF(ISNA($A33),"",IFERROR(SUMIFS(D_D[EVD],D_D[MT],5,D_D[CAT],SMS, D_D[EP],-1,D_D[LOC],$A33)/$D33,0)) -> 0 | J33: =IF(ISNA($A33),"",IFERROR(SUMIFS(D_D[DEC],D_D[MT],5,D_D[CAT],SMS, D_D[EP],-1,D_D[LOC],$A33)/$D33,0)) -> 0 | K33: =IF(ISNA($A33),"",IFERROR(SUMIFS(D_D[AWD],D_D[MT],5,D_D[CAT],SMS, D_D[EP],-1,D_D[LOC],$A33)/$D33,0)) -> 0 | L33: =IF(ISNA($A33),"",IFERROR(SUMIFS(D_D[AUT],D_D[MT],5,D_D[CAT],SMS, D_D[EP],-1,D_D[LOC],$A33)/$D33,0)) -> 0
A34: 405 | B34: 21 | C34: White River Junction | D34: =IF(ISNA($A34),"",IFERROR(SUMIFS(D_D[INV],D_D[MT],5,D_D[CAT],SMS, D_D[EP],-1,D_D[LOC],$A34),0)) -> 78 | E34: =IF(ISNA($A34),"",IFERROR(SUMIFS(D_D[BL],D_D[MT],5,D_D[CAT],SMS, D_D[EP],-1,D_D[LOC],$A34),0)) -> 31 | F34: 0.3974358974 | G34: =IF(ISNA($A34),"",IFERROR(SUMIFS(D_D[ADP],D_D[MT],5,D_D[CAT],SMS, D_D[EP],-1,D_D[LOC],$A34),0)) -> 151.54 | H34: =IF(ISNA($A34),"",IFERROR(SUMIFS(D_D[DEV],D_D[MT],5,D_D[CAT],SMS, D_D[EP],-1,D_D[LOC],$A34)/$D34,0)) -> 0.1153846154 | I34: =IF(ISNA($A34),"",IFERROR(SUMIFS(D_D[EVD],D_D[MT],5,D_D[CAT],SMS, D_D[EP],-1,D_D[LOC],$A34)/$D34,0)) -> 0.6282051282 | J34: =IF(ISNA($A34),"",IFERROR(SUMIFS(D_D[DEC],D_D[MT],5,D_D[CAT],SMS, D_D[EP],-1,D_D[LOC],$A34)/$D34,0)) -> 0.1923076923 | K34: =IF(ISNA($A34),"",IFERROR(SUMIFS(D_D[AWD],D_D[MT],5,D_D[CAT],SMS, D_D[EP],-1,D_D[LOC],$A34)/$D34,0)) -> 0.0641025641 | L34: =IF(ISNA($A34),"",IFERROR(SUMIFS(D_D[AUT],D_D[MT],5,D_D[CAT],SMS, D_D[EP],-1,D_D[LOC],$A34)/$D34,0)) -> 0
A35: 460 | B35: 22 | C35: Wilmington | D35: =IF(ISNA($A35),"",IFERROR(SUMIFS(D_D[INV],D_D[MT],5,D_D[CAT],SMS, D_D[EP],-1,D_D[LOC],$A35),0)) -> 72 | E35: =IF(ISNA($A35),"",IFERROR(SUMIFS(D_D[BL],D_D[MT],5,D_D[CAT],SMS, D_D[EP],-1,D_D[LOC],$A35),0)) -> 25 | F35: 0.3472222222 | G35: =IF(ISNA($A35),"",IFERROR(SUMIFS(D_D[ADP],D_D[MT],5,D_D[CAT],SMS, D_D[EP],-1,D_D[LOC],$A35),0)) -> 107.63 | H35: =IF(ISNA($A35),"",IFERROR(SUMIFS(D_D[DEV],D_D[MT],5,D_D[CAT],SMS, D_D[EP],-1,D_D[LOC],$A35)/$D35,0)) -> 0.1388888889 | I35: =IF(ISNA($A35),"",IFERROR(SUMIFS(D_D[EVD],D_D[MT],5,D_D[CAT],SMS, D_D[EP],-1,D_D[LOC],$A35)/$D35,0)) -> 0.6388888889 | J35: =IF(ISNA($A35),"",IFERROR(SUMIFS(D_D[DEC],D_D[MT],5,D_D[CAT],SMS, D_D[EP],-1,D_D[LOC],$A35)/$D35,0)) -> 0.1527777778 | K35: =IF(ISNA($A35),"",IFERROR(SUMIFS(D_D[AWD],D_D[MT],5,D_D[CAT],SMS, D_D[EP],-1,D_D[LOC],$A35)/$D35,0)) -> 0.05555555556 | L35: =IF(ISNA($A35),"",IFERROR(SUMIFS(D_D[AUT],D_D[MT],5,D_D[CAT],SMS, D_D[EP],-1,D_D[LOC],$A35)/$D35,0)) -> 0.01388888889
B36: 23 | D36: =IF(ISNA($A36),"",IFERROR(SUMIFS(D_D[INV],D_D[MT],5,D_D[CAT],SMS, D_D[EP],-1,D_D[LOC],$A36),0)) ->  | E36: =IF(ISNA($A36),"",IFERROR(SUMIFS(D_D[BL],D_D[MT],5,D_D[CAT],SMS, D_D[EP],-1,D_D[LOC],$A36),0)) ->  | G36: =IF(ISNA($A36),"",IFERROR(SUMIFS(D_D[ADP],D_D[MT],5,D_D[CAT],SMS, D_D[EP],-1,D_D[LOC],$A36),0)) ->  | H36: =IF(ISNA($A36),"",IFERROR(SUMIFS(D_D[DEV],D_D[MT],5,D_D[CAT],SMS, D_D[EP],-1,D_D[LOC],$A36)/$D36,0)) ->  | I36: =IF(ISNA($A36),"",IFERROR(SUMIFS(D_D[EVD],D_D[MT],5,D_D[CAT],SMS, D_D[EP],-1,D_D[LOC],$A36)/$D36,0)) ->  | J36: =IF(ISNA($A36),"",IFERROR(SUMIFS(D_D[DEC],D_D[MT],5,D_D[CAT],SMS, D_D[EP],-1,D_D[LOC],$A36)/$D36,0)) ->  | K36: =IF(ISNA($A36),"",IFERROR(SUMIFS(D_D[AWD],D_D[MT],5,D_D[CAT],SMS, D_D[EP],-1,D_D[LOC],$A36)/$D36,0)) ->  | L36: =IF(ISNA($A36),"",IFERROR(SUMIFS(D_D[AUT],D_D[MT],5,D_D[CAT],SMS, D_D[EP],-1,D_D[LOC],$A36)/$D36,0)) -> 

Sheet Rating Bundle - NWQ - State
C2: DISTRICT SELECTOR | E2: Compensation and Pension Rating Bundle Metrics | J2: Report through
E3: NWQ State View | J3: =D_DT[] -> 2021-06-26
E4: The State listed is based on the address associated with the claim, not payment address
E6: Each Special Mission has distinct claim counts | J6: Life Cycle Metrics defined on Legend tab
E8: CLAIM METRICS | H8: LIFE CYCLE METRICS (as Percent of # Pending)
C9: SPECIAL MISSION SELECTOR | E9: # Pending | F9: # Pending > 125 Days | G9: % Pending > 125 Days | H9: Pending Development | I9: Pending Evidence | J9: Pending Decision | K9: Pending Award | L9: Pending Authorization
A12: 100 | C12: =Driver!$C$20 -> USA - All Missions | D12: Total | E12: =IF(ISNA($A12),"",IFERROR(SUMIFS(D_D[INV],D_D[MT],5,D_D[CAT],SMS, D_D[EP],-1,D_D[LOC],$A12),0)) -> 581396 | F12: =IF(ISNA($A12),"",IFERROR(SUMIFS(D_D[BL],D_D[MT],5,D_D[CAT],SMS, D_D[EP],-1,D_D[LOC],$A12),0)) -> 187912 | G12: =IF(ISNA($A12),"",IFERROR(F12/E12,0)) -> 0.323208278 | H12: =IF(ISNA($A12),"",IFERROR(SUMIFS(D_D[DEV],D_D[MT],5,D_D[CAT],SMS, D_D[EP],-1,D_D[LOC],$A12)/$E12,0)) -> 0.01757838031 | I12: =IF(ISNA($A12),"",IFERROR(SUMIFS(D_D[EVD],D_D[MT],5,D_D[CAT],SMS, D_D[EP],-1,D_D[LOC],$A12)/$E12,0)) -> 0.8854532883 | J12: =IF(ISNA($A12),"",IFERROR(SUMIFS(D_D[DEC],D_D[MT],5,D_D[CAT],SMS, D_D[EP],-1,D_D[LOC],$A12)/$E12,0)) -> 0.08718498235 | K12: =IF(ISNA($A12),"",IFERROR(SUMIFS(D_D[AWD],D_D[MT],5,D_D[CAT],SMS, D_D[EP],-1,D_D[LOC],$A12)/$E12,0)) -> 0.006836992343 | L12: =IF(ISNA($A12),"",IFERROR(SUMIFS(D_D[AUT],D_D[MT],5,D_D[CAT],SMS, D_D[EP],-1,D_D[LOC],$A12)/$E12,0)) -> 0.002944636702
A13: 499 | C13: ="NWQ-"&Driver!$C$20 -> NWQ-USA - All Missions | D13: Total | E13: =IF(ISNA($A13),"",IFERROR(SUMIFS(D_D[INV],D_D[MT],5,D_D[CAT],SMS, D_D[EP],-1,D_D[LOC],$A13),0)) -> 506939 | F13: =IF(ISNA($A13),"",IFERROR(SUMIFS(D_D[BL],D_D[MT],5,D_D[CAT],SMS, D_D[EP],-1,D_D[LOC],$A13),0)) -> 159484 | G13: =IF(ISNA($A13),"",IFERROR(F13/E13,0)) -> 0.3146019541 | H13: =IF(ISNA($A13),"",IFERROR(SUMIFS(D_D[DEV],D_D[MT],5,D_D[CAT],SMS, D_D[EP],-1,D_D[LOC],$A13)/$E13,0)) -> 0.006631961636 | I13: =IF(ISNA($A13),"",IFERROR(SUMIFS(D_D[EVD],D_D[MT],5,D_D[CAT],SMS, D_D[EP],-1,D_D[LOC],$A13)/$E13,0)) -> 0.9284450397 | J13: =IF(ISNA($A13),"",IFERROR(SUMIFS(D_D[DEC],D_D[MT],5,D_D[CAT],SMS, D_D[EP],-1,D_D[LOC],$A13)/$E13,0)) -> 0.06449296661 | K13: =IF(ISNA($A13),"",IFERROR(SUMIFS(D_D[AWD],D_D[MT],5,D_D[CAT],SMS, D_D[EP],-1,D_D[LOC],$A13)/$E13,0)) -> 0.0004024152807 | L13: =IF(ISNA($A13),"",IFERROR(SUMIFS(D_D[AUT],D_D[MT],5,D_D[CAT],SMS, D_D[EP],-1,D_D[LOC],$A13)/$E13,0)) -> 2.761673495e-05
A14: =INDEX(STATE,(MATCH($C14,STATE_D,0))) -> 394 | B14: 1 | C14: =IFERROR(INDEX(INDIRECT(DS_NWQ),B14),"") -> Northeast District | D14: =IFERROR(INDEX(INDIRECT(DS_NWQD),B14),"") ->  | E14: =IF(ISNA($A14),"",IFERROR(SUMIFS(D_D[INV],D_D[MT],5,D_D[CAT],SMS, D_D[EP],499,D_D[LOC],$A14),0)) -> 143932 | F14: =IF(ISNA($A14),"",IFERROR(SUMIFS(D_D[BL],D_D[MT],5,D_D[CAT],SMS, D_D[EP],499,D_D[LOC],$A14),0)) -> 50100 | G14: =IF(ISNA($A14),"",IFERROR(F14/E14,0)) -> 0.3480810383 | H14: =IF(ISNA($A14),"",IFERROR(SUMIFS(D_D[DEV],D_D[MT],5,D_D[CAT],SMS, D_D[EP],499,D_D[LOC],$A14)/$E14,0)) -> 0.01501403441 | I14: =IF(ISNA($A14),"",IFERROR(SUMIFS(D_D[EVD],D_D[MT],5,D_D[CAT],SMS, D_D[EP],499,D_D[LOC],$A14)/$E14,0)) -> 0.8968818609 | J14: =IF(ISNA($A14),"",IFERROR(SUMIFS(D_D[DEC],D_D[MT],5,D_D[CAT],SMS, D_D[EP],499,D_D[LOC],$A14)/$E14,0)) -> 0.07901648 | K14: =IF(ISNA($A14),"",IFERROR(SUMIFS(D_D[AWD],D_D[MT],5,D_D[CAT],SMS, D_D[EP],499,D_D[LOC],$A14)/$E14,0)) -> 0.006162632354 | L14: =IF(ISNA($A14),"",IFERROR(SUMIFS(D_D[AUT],D_D[MT],5,D_D[CAT],SMS, D_D[EP],499,D_D[LOC],$A14)/$E14,0)) -> 0.002918044632
A15: =IFERROR(INDEX(INDIRECT(DS_NWQI),B15),#N/A) -> CT100 | B15: 2 | C15: Connecticut | D15: =IFERROR(INDEX(INDIRECT(DS_NWQD),B15),"") -> Connecticut-Total | E15: =IF(ISNA($A15),"",IFERROR(SUMIFS(D_D[INV],D_D[MT],5,D_D[CAT],SMS, D_D[EP],499,D_D[LOC],$A15),0)) -> 3418 | F15: =IF(ISNA($A15),"",IFERROR(SUMIFS(D_D[BL],D_D[MT],5,D_D[CAT],SMS, D_D[EP],499,D_D[LOC],$A15),0)) -> 1352 | G15: 0.3955529549 | H15: =IF(ISNA($A15),"",IFERROR(SUMIFS(D_D[DEV],D_D[MT],5,D_D[CAT],SMS, D_D[EP],499,D_D[LOC],$A15)/$E15,0)) -> 0.01316559391 | I15: =IF(ISNA($A15),"",IFERROR(SUMIFS(D_D[EVD],D_D[MT],5,D_D[CAT],SMS, D_D[EP],499,D_D[LOC],$A15)/$E15,0)) -> 0.9201287303 | J15: =IF(ISNA($A15),"",IFERROR(SUMIFS(D_D[DEC],D_D[MT],5,D_D[CAT],SMS, D_D[EP],499,D_D[LOC],$A15)/$E15,0)) -> 0.05880631949 | K15: =IF(ISNA($A15),"",IFERROR(SUMIFS(D_D[AWD],D_D[MT],5,D_D[CAT],SMS, D_D[EP],499,D_D[LOC],$A15)/$E15,0)) -> 0.005266237566 | L15: =IF(ISNA($A15),"",IFERROR(SUMIFS(D_D[AUT],D_D[MT],5,D_D[CAT],SMS, D_D[EP],499,D_D[LOC],$A15)/$E15,0)) -> 0.002633118783
A16: CT308 | B16: 3 | C16: 0 | D16: Hartford RO | E16: =IF(ISNA($A16),"",IFERROR(SUMIFS(D_D[INV],D_D[MT],5,D_D[CAT],SMS, D_D[EP],499,D_D[LOC],$A16),0)) -> 26 | F16: =IF(ISNA($A16),"",IFERROR(SUMIFS(D_D[BL],D_D[MT],5,D_D[CAT],SMS, D_D[EP],499,D_D[LOC],$A16),0)) -> 5 | G16: 0.1923076923 | H16: =IF(ISNA($A16),"",IFERROR(SUMIFS(D_D[DEV],D_D[MT],5,D_D[CAT],SMS, D_D[EP],499,D_D[LOC],$A16)/$E16,0)) -> 0.6538461538 | I16: =IF(ISNA($A16),"",IFERROR(SUMIFS(D_D[EVD],D_D[MT],5,D_D[CAT],SMS, D_D[EP],499,D_D[LOC],$A16)/$E16,0)) -> 0.2692307692 | J16: =IF(ISNA($A16),"",IFERROR(SUMIFS(D_D[DEC],D_D[MT],5,D_D[CAT],SMS, D_D[EP],499,D_D[LOC],$A16)/$E16,0)) -> 0.03846153846 | K16: =IF(ISNA($A16),"",IFERROR(SUMIFS(D_D[AWD],D_D[MT],5,D_D[CAT],SMS, D_D[EP],499,D_D[LOC],$A16)/$E16,0)) -> 0 | L16: =IF(ISNA($A16),"",IFERROR(SUMIFS(D_D[AUT],D_D[MT],5,D_D[CAT],SMS, D_D[EP],499,D_D[LOC],$A16)/$E16,0)) -> 0.03846153846
A17: CT-1 | B17: 4 | D17: Connecticut-Other RO | E17: =IF(ISNA($A17),"",IFERROR(SUMIFS(D_D[INV],D_D[MT],5,D_D[CAT],SMS, D_D[EP],499,D_D[LOC],$A17),0)) -> 349 | F17: =IF(ISNA($A17),"",IFERROR(SUMIFS(D_D[BL],D_D[MT],5,D_D[CAT],SMS, D_D[EP],499,D_D[LOC],$A17),0)) -> 167 | G17: 0.4785100287 | H17: =IF(ISNA($A17),"",IFERROR(SUMIFS(D_D[DEV],D_D[MT],5,D_D[CAT],SMS, D_D[EP],499,D_D[LOC],$A17)/$E17,0)) -> 0.05730659026 | I17: =IF(ISNA($A17),"",IFERROR(SUMIFS(D_D[EVD],D_D[MT],5,D_D[CAT],SMS, D_D[EP],499,D_D[LOC],$A17)/$E17,0)) -> 0.6389684814 | J17: =IF(ISNA($A17),"",IFERROR(SUMIFS(D_D[DEC],D_D[MT],5,D_D[CAT],SMS, D_D[EP],499,D_D[LOC],$A17)/$E17,0)) -> 0.229226361 | K17: =IF(ISNA($A17),"",IFERROR(SUMIFS(D_D[AWD],D_D[MT],5,D_D[CAT],SMS, D_D[EP],499,D_D[LOC],$A17)/$E17,0)) -> 0.05157593123 | L17: =IF(ISNA($A17),"",IFERROR(SUMIFS(D_D[AUT],D_D[MT],5,D_D[CAT],SMS, D_D[EP],499,D_D[LOC],$A17)/$E17,0)) -> 0.0229226361
A18: CT499 | B18: 5 | D18: Connecticut-NWQ | E18: =IF(ISNA($A18),"",IFERROR(SUMIFS(D_D[INV],D_D[MT],5,D_D[CAT],SMS, D_D[EP],499,D_D[LOC],$A18),0)) -> 3043 | F18: =IF(ISNA($A18),"",IFERROR(SUMIFS(D_D[BL],D_D[MT],5,D_D[CAT],SMS, D_D[EP],499,D_D[LOC],$A18),0)) -> 1180 | G18: 0.3877752218 | H18: =IF(ISNA($A18),"",IFERROR(SUMIFS(D_D[DEV],D_D[MT],5,D_D[CAT],SMS, D_D[EP],499,D_D[LOC],$A18)/$E18,0)) -> 0.002628984555 | I18: =IF(ISNA($A18),"",IFERROR(SUMIFS(D_D[EVD],D_D[MT],5,D_D[CAT],SMS, D_D[EP],499,D_D[LOC],$A18)/$E18,0)) -> 0.9579362471 | J18: =IF(ISNA($A18),"",IFERROR(SUMIFS(D_D[DEC],D_D[MT],5,D_D[CAT],SMS, D_D[EP],499,D_D[LOC],$A18)/$E18,0)) -> 0.03943476832 | K18: =IF(ISNA($A18),"",IFERROR(SUMIFS(D_D[AWD],D_D[MT],5,D_D[CAT],SMS, D_D[EP],499,D_D[LOC],$A18)/$E18,0)) -> 0 | L18: =IF(ISNA($A18),"",IFERROR(SUMIFS(D_D[AUT],D_D[MT],5,D_D[CAT],SMS, D_D[EP],499,D_D[LOC],$A18)/$E18,0)) -> 0
A19: DE100 | B19: 6 | C19: Delaware | D19: Delaware-Total | E19: =IF(ISNA($A19),"",IFERROR(SUMIFS(D_D[INV],D_D[MT],5,D_D[CAT],SMS, D_D[EP],499,D_D[LOC],$A19),0)) -> 1630 | F19: =IF(ISNA($A19),"",IFERROR(SUMIFS(D_D[BL],D_D[MT],5,D_D[CAT],SMS, D_D[EP],499,D_D[LOC],$A19),0)) -> 532 | G19: 0.3263803681 | H19: =IF(ISNA($A19),"",IFERROR(SUMIFS(D_D[DEV],D_D[MT],5,D_D[CAT],SMS, D_D[EP],499,D_D[LOC],$A19)/$E19,0)) -> 0.008588957055 | I19: =IF(ISNA($A19),"",IFERROR(SUMIFS(D_D[EVD],D_D[MT],5,D_D[CAT],SMS, D_D[EP],499,D_D[LOC],$A19)/$E19,0)) -> 0.8926380368 | J19: =IF(ISNA($A19),"",IFERROR(SUMIFS(D_D[DEC],D_D[MT],5,D_D[CAT],SMS, D_D[EP],499,D_D[LOC],$A19)/$E19,0)) -> 0.08895705521 | K19: =IF(ISNA($A19),"",IFERROR(SUMIFS(D_D[AWD],D_D[MT],5,D_D[CAT],SMS, D_D[EP],499,D_D[LOC],$A19)/$E19,0)) -> 0.006134969325 | L19: =IF(ISNA($A19),"",IFERROR(SUMIFS(D_D[AUT],D_D[MT],5,D_D[CAT],SMS, D_D[EP],499,D_D[LOC],$A19)/$E19,0)) -> 0.003680981595
A20: DE460 | B20: 7 | C20: 0 | D20: Wilmington RO | E20: =IF(ISNA($A20),"",IFERROR(SUMIFS(D_D[INV],D_D[MT],5,D_D[CAT],SMS, D_D[EP],499,D_D[LOC],$A20),0)) -> 7 | F20: =IF(ISNA($A20),"",IFERROR(SUMIFS(D_D[BL],D_D[MT],5,D_D[CAT],SMS, D_D[EP],499,D_D[LOC],$A20),0)) -> 1 | G20: 0.1428571429 | H20: =IF(ISNA($A20),"",IFERROR(SUMIFS(D_D[DEV],D_D[MT],5,D_D[CAT],SMS, D_D[EP],499,D_D[LOC],$A20)/$E20,0)) -> 0.7142857143 | I20: =IF(ISNA($A20),"",IFERROR(SUMIFS(D_D[EVD],D_D[MT],5,D_D[CAT],SMS, D_D[EP],499,D_D[LOC],$A20)/$E20,0)) -> 0.1428571429 | J20: =IF(ISNA($A20),"",IFERROR(SUMIFS(D_D[DEC],D_D[MT],5,D_D[CAT],SMS, D_D[EP],499,D_D[LOC],$A20)/$E20,0)) -> 0 | K20: =IF(ISNA($A20),"",IFERROR(SUMIFS(D_D[AWD],D_D[MT],5,D_D[CAT],SMS, D_D[EP],499,D_D[LOC],$A20)/$E20,0)) -> 0.1428571429 | L20: =IF(ISNA($A20),"",IFERROR(SUMIFS(D_D[AUT],D_D[MT],5,D_D[CAT],SMS, D_D[EP],499,D_D[LOC],$A20)/$E20,0)) -> 0
A21: DE-1 | B21: 8 | D21: Delaware-Other RO | E21: =IF(ISNA($A21),"",IFERROR(SUMIFS(D_D[INV],D_D[MT],5,D_D[CAT],SMS, D_D[EP],499,D_D[LOC],$A21),0)) -> 184 | F21: =IF(ISNA($A21),"",IFERROR(SUMIFS(D_D[BL],D_D[MT],5,D_D[CAT],SMS, D_D[EP],499,D_D[LOC],$A21),0)) -> 70 | G21: 0.3804347826 | H21: =IF(ISNA($A21),"",IFERROR(SUMIFS(D_D[DEV],D_D[MT],5,D_D[CAT],SMS, D_D[EP],499,D_D[LOC],$A21)/$E21,0)) -> 0.02717391304 | I21: =IF(ISNA($A21),"",IFERROR(SUMIFS(D_D[EVD],D_D[MT],5,D_D[CAT],SMS, D_D[EP],499,D_D[LOC],$A21)/$E21,0)) -> 0.5760869565 | J21: =IF(ISNA($A21),"",IFERROR(SUMIFS(D_D[DEC],D_D[MT],5,D_D[CAT],SMS, D_D[EP],499,D_D[LOC],$A21)/$E21,0)) -> 0.3206521739 | K21: =IF(ISNA($A21),"",IFERROR(SUMIFS(D_D[AWD],D_D[MT],5,D_D[CAT],SMS, D_D[EP],499,D_D[LOC],$A21)/$E21,0)) -> 0.04347826087 | L21: =IF(ISNA($A21),"",IFERROR(SUMIFS(D_D[AUT],D_D[MT],5,D_D[CAT],SMS, D_D[EP],499,D_D[LOC],$A21)/$E21,0)) -> 0.03260869565
A22: DE499 | B22: 9 | D22: =IFERROR(INDEX(INDIRECT(DS_NWQD),B22),"") -> Delaware-NWQ | E22: =IF(ISNA($A22),"",IFERROR(SUMIFS(D_D[INV],D_D[MT],5,D_D[CAT],SMS, D_D[EP],499,D_D[LOC],$A22),0)) -> 1439 | F22: =IF(ISNA($A22),"",IFERROR(SUMIFS(D_D[BL],D_D[MT],5,D_D[CAT],SMS, D_D[EP],499,D_D[LOC],$A22),0)) -> 461 | G22: =IF(ISNA($A22),"",IFERROR(F22/E22,0)) -> 0.3203613621 | H22: =IF(ISNA($A22),"",IFERROR(SUMIFS(D_D[DEV],D_D[MT],5,D_D[CAT],SMS, D_D[EP],499,D_D[LOC],$A22)/$E22,0)) -> 0.002779708131 | I22: =IF(ISNA($A22),"",IFERROR(SUMIFS(D_D[EVD],D_D[MT],5,D_D[CAT],SMS, D_D[EP],499,D_D[LOC],$A22)/$E22,0)) -> 0.93676164 | J22: =IF(ISNA($A22),"",IFERROR(SUMIFS(D_D[DEC],D_D[MT],5,D_D[CAT],SMS, D_D[EP],499,D_D[LOC],$A22)/$E22,0)) -> 0.05976372481 | K22: =IF(ISNA($A22),"",IFERROR(SUMIFS(D_D[AWD],D_D[MT],5,D_D[CAT],SMS, D_D[EP],499,D_D[LOC],$A22)/$E22,0)) -> 0.0006949270327 | L22: =IF(ISNA($A22),"",IFERROR(SUMIFS(D_D[AUT],D_D[MT],5,D_D[CAT],SMS, D_D[EP],499,D_D[LOC],$A22)/$E22,0)) -> 0
A23: DC100 | B23: 10 | C23: DC | D23: DC-Total | E23: =IF(ISNA($A23),"",IFERROR(SUMIFS(D_D[INV],D_D[MT],5,D_D[CAT],SMS, D_D[EP],499,D_D[LOC],$A23),0)) -> 666 | F23: =IF(ISNA($A23),"",IFERROR(SUMIFS(D_D[BL],D_D[MT],5,D_D[CAT],SMS, D_D[EP],499,D_D[LOC],$A23),0)) -> 230 | G23: 0.3453453453 | H23: =IF(ISNA($A23),"",IFERROR(SUMIFS(D_D[DEV],D_D[MT],5,D_D[CAT],SMS, D_D[EP],499,D_D[LOC],$A23)/$E23,0)) -> 0.02252252252 | I23: =IF(ISNA($A23),"",IFERROR(SUMIFS(D_D[EVD],D_D[MT],5,D_D[CAT],SMS, D_D[EP],499,D_D[LOC],$A23)/$E23,0)) -> 0.8753753754 | J23: =IF(ISNA($A23),"",IFERROR(SUMIFS(D_D[DEC],D_D[MT],5,D_D[CAT],SMS, D_D[EP],499,D_D[LOC],$A23)/$E23,0)) -> 0.09159159159 | K23: =IF(ISNA($A23),"",IFERROR(SUMIFS(D_D[AWD],D_D[MT],5,D_D[CAT],SMS, D_D[EP],499,D_D[LOC],$A23)/$E23,0)) -> 0.007507507508 | L23: =IF(ISNA($A23),"",IFERROR(SUMIFS(D_D[AUT],D_D[MT],5,D_D[CAT],SMS, D_D[EP],499,D_D[LOC],$A23)/$E23,0)) -> 0.003003003003
A24: DC372 | B24: 11 | D24: Washington DC RO | E24: =IF(ISNA($A24),"",IFERROR(SUMIFS(D_D[INV],D_D[MT],5,D_D[CAT],SMS, D_D[EP],499,D_D[LOC],$A24),0)) -> 0 | F24: =IF(ISNA($A24),"",IFERROR(SUMIFS(D_D[BL],D_D[MT],5,D_D[CAT],SMS, D_D[EP],499,D_D[LOC],$A24),0)) -> 0 | G24: 0 | H24: =IF(ISNA($A24),"",IFERROR(SUMIFS(D_D[DEV],D_D[MT],5,D_D[CAT],SMS, D_D[EP],499,D_D[LOC],$A24)/$E24,0)) -> 0 | I24: =IF(ISNA($A24),"",IFERROR(SUMIFS(D_D[EVD],D_D[MT],5,D_D[CAT],SMS, D_D[EP],499,D_D[LOC],$A24)/$E24,0)) -> 0 | J24: =IF(ISNA($A24),"",IFERROR(SUMIFS(D_D[DEC],D_D[MT],5,D_D[CAT],SMS, D_D[EP],499,D_D[LOC],$A24)/$E24,0)) -> 0 | K24: =IF(ISNA($A24),"",IFERROR(SUMIFS(D_D[AWD],D_D[MT],5,D_D[CAT],SMS, D_D[EP],499,D_D[LOC],$A24)/$E24,0)) -> 0 | L24: =IF(ISNA($A24),"",IFERROR(SUMIFS(D_D[AUT],D_D[MT],5,D_D[CAT],SMS, D_D[EP],499,D_D[LOC],$A24)/$E24,0)) -> 0
A25: DC-1 | B25: 12 | D25: DC-Other RO | E25: =IF(ISNA($A25),"",IFERROR(SUMIFS(D_D[INV],D_D[MT],5,D_D[CAT],SMS, D_D[EP],499,D_D[LOC],$A25),0)) -> 97 | F25: =IF(ISNA($A25),"",IFERROR(SUMIFS(D_D[BL],D_D[MT],5,D_D[CAT],SMS, D_D[EP],499,D_D[LOC],$A25),0)) -> 35 | G25: 0.3608247423 | H25: =IF(ISNA($A25),"",IFERROR(SUMIFS(D_D[DEV],D_D[MT],5,D_D[CAT],SMS, D_D[EP],499,D_D[LOC],$A25)/$E25,0)) -> 0.1237113402 | I25: =IF(ISNA($A25),"",IFERROR(SUMIFS(D_D[EVD],D_D[MT],5,D_D[CAT],SMS, D_D[EP],499,D_D[LOC],$A25)/$E25,0)) -> 0.5979381443 | J25: =IF(ISNA($A25),"",IFERROR(SUMIFS(D_D[DEC],D_D[MT],5,D_D[CAT],SMS, D_D[EP],499,D_D[LOC],$A25)/$E25,0)) -> 0.206185567 | K25: =IF(ISNA($A25),"",IFERROR(SUMIFS(D_D[AWD],D_D[MT],5,D_D[CAT],SMS, D_D[EP],499,D_D[LOC],$A25)/$E25,0)) -> 0.05154639175 | L25: =IF(ISNA($A25),"",IFERROR(SUMIFS(D_D[AUT],D_D[MT],5,D_D[CAT],SMS, D_D[EP],499,D_D[LOC],$A25)/$E25,0)) -> 0.0206185567
A26: DC499 | B26: 13 | D26: DC-NWQ | E26: =IF(ISNA($A26),"",IFERROR(SUMIFS(D_D[INV],D_D[MT],5,D_D[CAT],SMS, D_D[EP],499,D_D[LOC],$A26),0)) -> 569 | F26: =IF(ISNA($A26),"",IFERROR(SUMIFS(D_D[BL],D_D[MT],5,D_D[CAT],SMS, D_D[EP],499,D_D[LOC],$A26),0)) -> 195 | G26: 0.3427065026 | H26: =IF(ISNA($A26),"",IFERROR(SUMIFS(D_D[DEV],D_D[MT],5,D_D[CAT],SMS, D_D[EP],499,D_D[LOC],$A26)/$E26,0)) -> 0.005272407733 | I26: =IF(ISNA($A26),"",IFERROR(SUMIFS(D_D[EVD],D_D[MT],5,D_D[CAT],SMS, D_D[EP],499,D_D[LOC],$A26)/$E26,0)) -> 0.9226713533 | J26: =IF(ISNA($A26),"",IFERROR(SUMIFS(D_D[DEC],D_D[MT],5,D_D[CAT],SMS, D_D[EP],499,D_D[LOC],$A26)/$E26,0)) -> 0.07205623902 | K26: =IF(ISNA($A26),"",IFERROR(SUMIFS(D_D[AWD],D_D[MT],5,D_D[CAT],SMS, D_D[EP],499,D_D[LOC],$A26)/$E26,0)) -> 0 | L26: =IF(ISNA($A26),"",IFERROR(SUMIFS(D_D[AUT],D_D[MT],5,D_D[CAT],SMS, D_D[EP],499,D_D[LOC],$A26)/$E26,0)) -> 0
A27: IL100 | B27: 14 | C27: Illinois | D27: Illinois-Total | E27: =IF(ISNA($A27),"",IFERROR(SUMIFS(D_D[INV],D_D[MT],5,D_D[CAT],SMS, D_D[EP],499,D_D[LOC],$A27),0)) -> 13507 | F27: =IF(ISNA($A27),"",IFERROR(SUMIFS(D_D[BL],D_D[MT],5,D_D[CAT],SMS, D_D[EP],499,D_D[LOC],$A27),0)) -> 4468 | G27: 0.3307914415 | H27: =IF(ISNA($A27),"",IFERROR(SUMIFS(D_D[DEV],D_D[MT],5,D_D[CAT],SMS, D_D[EP],499,D_D[LOC],$A27)/$E27,0)) -> 0.015991708 | I27: =IF(ISNA($A27),"",IFERROR(SUMIFS(D_D[EVD],D_D[MT],5,D_D[CAT],SMS, D_D[EP],499,D_D[LOC],$A27)/$E27,0)) -> 0.8831716888 | J27: =IF(ISNA($A27),"",IFERROR(SUMIFS(D_D[DEC],D_D[MT],5,D_D[CAT],SMS, D_D[EP],499,D_D[LOC],$A27)/$E27,0)) -> 0.09210039239 | K27: =IF(ISNA($A27),"",IFERROR(SUMIFS(D_D[AWD],D_D[MT],5,D_D[CAT],SMS, D_D[EP],499,D_D[LOC],$A27)/$E27,0)) -> 0.005848819131 | L27: =IF(ISNA($A27),"",IFERROR(SUMIFS(D_D[AUT],D_D[MT],5,D_D[CAT],SMS, D_D[EP],499,D_D[LOC],$A27)/$E27,0)) -> 0.002813356038
A28: IL328 | B28: 15 | C28: 0 | D28: =IFERROR(INDEX(INDIRECT(DS_NWQD),B28),"") -> Chicago RO | E28: =IF(ISNA($A28),"",IFERROR(SUMIFS(D_D[INV],D_D[MT],5,D_D[CAT],SMS, D_D[EP],499,D_D[LOC],$A28),0)) -> 190 | F28: =IF(ISNA($A28),"",IFERROR(SUMIFS(D_D[BL],D_D[MT],5,D_D[CAT],SMS, D_D[EP],499,D_D[LOC],$A28),0)) -> 22 | G28: =IF(ISNA($A28),"",IFERROR(F28/E28,0)) -> 0.1157894737 | H28: =IF(ISNA($A28),"",IFERROR(SUMIFS(D_D[DEV],D_D[MT],5,D_D[CAT],SMS, D_D[EP],499,D_D[LOC],$A28)/$E28,0)) -> 0.3578947368 | I28: =IF(ISNA($A28),"",IFERROR(SUMIFS(D_D[EVD],D_D[MT],5,D_D[CAT],SMS, D_D[EP],499,D_D[LOC],$A28)/$E28,0)) -> 0.4473684211 | J28: =IF(ISNA($A28),"",IFERROR(SUMIFS(D_D[DEC],D_D[MT],5,D_D[CAT],SMS, D_D[EP],499,D_D[LOC],$A28)/$E28,0)) -> 0.1421052632 | K28: =IF(ISNA($A28),"",IFERROR(SUMIFS(D_D[AWD],D_D[MT],5,D_D[CAT],SMS, D_D[EP],499,D_D[LOC],$A28)/$E28,0)) -> 0.005263157895 | L28: =IF(ISNA($A28),"",IFERROR(SUMIFS(D_D[AUT],D_D[MT],5,D_D[CAT],SMS, D_D[EP],499,D_D[LOC],$A28)/$E28,0)) -> 0.04736842105
A29: IL-1 | B29: 16 | D29: Illinois-Other RO | E29: =IF(ISNA($A29),"",IFERROR(SUMIFS(D_D[INV],D_D[MT],5,D_D[CAT],SMS, D_D[EP],499,D_D[LOC],$A29),0)) -> 1473 | F29: =IF(ISNA($A29),"",IFERROR(SUMIFS(D_D[BL],D_D[MT],5,D_D[CAT],SMS, D_D[EP],499,D_D[LOC],$A29),0)) -> 658 | G29: 0.4467073999 | H29: =IF(ISNA($A29),"",IFERROR(SUMIFS(D_D[DEV],D_D[MT],5,D_D[CAT],SMS, D_D[EP],499,D_D[LOC],$A29)/$E29,0)) -> 0.05974202308 | I29: =IF(ISNA($A29),"",IFERROR(SUMIFS(D_D[EVD],D_D[MT],5,D_D[CAT],SMS, D_D[EP],499,D_D[LOC],$A29)/$E29,0)) -> 0.6014935506 | J29: =IF(ISNA($A29),"",IFERROR(SUMIFS(D_D[DEC],D_D[MT],5,D_D[CAT],SMS, D_D[EP],499,D_D[LOC],$A29)/$E29,0)) -> 0.2715546504 | K29: =IF(ISNA($A29),"",IFERROR(SUMIFS(D_D[AWD],D_D[MT],5,D_D[CAT],SMS, D_D[EP],499,D_D[LOC],$A29)/$E29,0)) -> 0.04684317719 | L29: =IF(ISNA($A29),"",IFERROR(SUMIFS(D_D[AUT],D_D[MT],5,D_D[CAT],SMS, D_D[EP],499,D_D[LOC],$A29)/$E29,0)) -> 0.01968771215
A30: IL499 | B30: 17 | D30: Illinois-NWQ | E30: =IF(ISNA($A30),"",IFERROR(SUMIFS(D_D[INV],D_D[MT],5,D_D[CAT],SMS, D_D[EP],499,D_D[LOC],$A30),0)) -> 11844 | F30: =IF(ISNA($A30),"",IFERROR(SUMIFS(D_D[BL],D_D[MT],5,D_D[CAT],SMS, D_D[EP],499,D_D[LOC],$A30),0)) -> 3788 | G30: 0.3198243837 | H30: =IF(ISNA($A30),"",IFERROR(SUMIFS(D_D[DEV],D_D[MT],5,D_D[CAT],SMS, D_D[EP],499,D_D[LOC],$A30)/$E30,0)) -> 0.00506585613 | I30: =IF(ISNA($A30),"",IFERROR(SUMIFS(D_D[EVD],D_D[MT],5,D_D[CAT],SMS, D_D[EP],499,D_D[LOC],$A30)/$E30,0)) -> 0.9251941912 | J30: =IF(ISNA($A30),"",IFERROR(SUMIFS(D_D[DEC],D_D[MT],5,D_D[CAT],SMS, D_D[EP],499,D_D[LOC],$A30)/$E30,0)) -> 0.0689800743 | K30: =IF(ISNA($A30),"",IFERROR(SUMIFS(D_D[AWD],D_D[MT],5,D_D[CAT],SMS, D_D[EP],499,D_D[LOC],$A30)/$E30,0)) -> 0.0007598784195 | L30: =IF(ISNA($A30),"",IFERROR(SUMIFS(D_D[AUT],D_D[MT],5,D_D[CAT],SMS, D_D[EP],499,D_D[LOC],$A30)/$E30,0)) -> 0
A31: IN100 | B31: 18 | C31: Indiana | D31: Indiana-Total | E31: =IF(ISNA($A31),"",IFERROR(SUMIFS(D_D[INV],D_D[MT],5,D_D[CAT],SMS, D_D[EP],499,D_D[LOC],$A31),0)) -> 10857 | F31: =IF(ISNA($A31),"",IFERROR(SUMIFS(D_D[BL],D_D[MT],5,D_D[CAT],SMS, D_D[EP],499,D_D[LOC],$A31),0)) -> 3642 | G31: 0.3354517823 | H31: =IF(ISNA($A31),"",IFERROR(SUMIFS(D_D[DEV],D_D[MT],5,D_D[CAT],SMS, D_D[EP],499,D_D[LOC],$A31)/$E31,0)) -> 0.01648705904 | I31: =IF(ISNA($A31),"",IFERROR(SUMIFS(D_D[EVD],D_D[MT],5,D_D[CAT],SMS, D_D[EP],499,D_D[LOC],$A31)/$E31,0)) -> 0.8993276227 | J31: =IF(ISNA($A31),"",IFERROR(SUMIFS(D_D[DEC],D_D[MT],5,D_D[CAT],SMS, D_D[EP],499,D_D[LOC],$A31)/$E31,0)) -> 0.0765404808 | K31: =IF(ISNA($A31),"",IFERROR(SUMIFS(D_D[AWD],D_D[MT],5,D_D[CAT],SMS, D_D[EP],499,D_D[LOC],$A31)/$E31,0)) -> 0.00525006908 | L31: =IF(ISNA($A31),"",IFERROR(SUMIFS(D_D[AUT],D_D[MT],5,D_D[CAT],SMS, D_D[EP],499,D_D[LOC],$A31)/$E31,0)) -> 0.002394768352
A32: IN326 | B32: 19 | C32: 0 | D32: Indianapolis RO | E32: =IF(ISNA($A32),"",IFERROR(SUMIFS(D_D[INV],D_D[MT],5,D_D[CAT],SMS, D_D[EP],499,D_D[LOC],$A32),0)) -> 123 | F32: =IF(ISNA($A32),"",IFERROR(SUMIFS(D_D[BL],D_D[MT],5,D_D[CAT],SMS, D_D[EP],499,D_D[LOC],$A32),0)) -> 17 | G32: 0.1382113821 | H32: =IF(ISNA($A32),"",IFERROR(SUMIFS(D_D[DEV],D_D[MT],5,D_D[CAT],SMS, D_D[EP],499,D_D[LOC],$A32)/$E32,0)) -> 0.3902439024 | I32: =IF(ISNA($A32),"",IFERROR(SUMIFS(D_D[EVD],D_D[MT],5,D_D[CAT],SMS, D_D[EP],499,D_D[LOC],$A32)/$E32,0)) -> 0.5203252033 | J32: =IF(ISNA($A32),"",IFERROR(SUMIFS(D_D[DEC],D_D[MT],5,D_D[CAT],SMS, D_D[EP],499,D_D[LOC],$A32)/$E32,0)) -> 0.07317073171 | K32: =IF(ISNA($A32),"",IFERROR(SUMIFS(D_D[AWD],D_D[MT],5,D_D[CAT],SMS, D_D[EP],499,D_D[LOC],$A32)/$E32,0)) -> 0.008130081301 | L32: =IF(ISNA($A32),"",IFERROR(SUMIFS(D_D[AUT],D_D[MT],5,D_D[CAT],SMS, D_D[EP],499,D_D[LOC],$A32)/$E32,0)) -> 0.008130081301
A33: IN-1 | B33: 20 | D33: Indiana-Other RO | E33: =IF(ISNA($A33),"",IFERROR(SUMIFS(D_D[INV],D_D[MT],5,D_D[CAT],SMS, D_D[EP],499,D_D[LOC],$A33),0)) -> 1117 | F33: =IF(ISNA($A33),"",IFERROR(SUMIFS(D_D[BL],D_D[MT],5,D_D[CAT],SMS, D_D[EP],499,D_D[LOC],$A33),0)) -> 516 | G33: 0.4619516562 | H33: =IF(ISNA($A33),"",IFERROR(SUMIFS(D_D[DEV],D_D[MT],5,D_D[CAT],SMS, D_D[EP],499,D_D[LOC],$A33)/$E33,0)) -> 0.07162041182 | I33: =IF(ISNA($A33),"",IFERROR(SUMIFS(D_D[EVD],D_D[MT],5,D_D[CAT],SMS, D_D[EP],499,D_D[LOC],$A33)/$E33,0)) -> 0.6168307968 | J33: =IF(ISNA($A33),"",IFERROR(SUMIFS(D_D[DEC],D_D[MT],5,D_D[CAT],SMS, D_D[EP],499,D_D[LOC],$A33)/$E33,0)) -> 0.2417188899 | K33: =IF(ISNA($A33),"",IFERROR(SUMIFS(D_D[AWD],D_D[MT],5,D_D[CAT],SMS, D_D[EP],499,D_D[LOC],$A33)/$E33,0)) -> 0.04834377798 | L33: =IF(ISNA($A33),"",IFERROR(SUMIFS(D_D[AUT],D_D[MT],5,D_D[CAT],SMS, D_D[EP],499,D_D[LOC],$A33)/$E33,0)) -> 0.02148612355
A34: IN499 | B34: 21 | D34: Indiana-NWQ | E34: =IF(ISNA($A34),"",IFERROR(SUMIFS(D_D[INV],D_D[MT],5,D_D[CAT],SMS, D_D[EP],499,D_D[LOC],$A34),0)) -> 9617 | F34: =IF(ISNA($A34),"",IFERROR(SUMIFS(D_D[BL],D_D[MT],5,D_D[CAT],SMS, D_D[EP],499,D_D[LOC],$A34),0)) -> 3109 | G34: 0.3232816887 | H34: =IF(ISNA($A34),"",IFERROR(SUMIFS(D_D[DEV],D_D[MT],5,D_D[CAT],SMS, D_D[EP],499,D_D[LOC],$A34)/$E34,0)) -> 0.005303109078 | I34: =IF(ISNA($A34),"",IFERROR(SUMIFS(D_D[EVD],D_D[MT],5,D_D[CAT],SMS, D_D[EP],499,D_D[LOC],$A34)/$E34,0)) -> 0.9369865863 | J34: =IF(ISNA($A34),"",IFERROR(SUMIFS(D_D[DEC],D_D[MT],5,D_D[CAT],SMS, D_D[EP],499,D_D[LOC],$A34)/$E34,0)) -> 0.05739835708 | K34: =IF(ISNA($A34),"",IFERROR(SUMIFS(D_D[AWD],D_D[MT],5,D_D[CAT],SMS, D_D[EP],499,D_D[LOC],$A34)/$E34,0)) -> 0.0002079650619 | L34: =IF(ISNA($A34),"",IFERROR(SUMIFS(D_D[AUT],D_D[MT],5,D_D[CAT],SMS, D_D[EP],499,D_D[LOC],$A34)/$E34,0)) -> 0.0001039825309
A35: ME100 | B35: 22 | C35: Maine | D35: Maine-Total | E35: =IF(ISNA($A35),"",IFERROR(SUMIFS(D_D[INV],D_D[MT],5,D_D[CAT],SMS, D_D[EP],499,D_D[LOC],$A35),0)) -> 2807 | F35: =IF(ISNA($A35),"",IFERROR(SUMIFS(D_D[BL],D_D[MT],5,D_D[CAT],SMS, D_D[EP],499,D_D[LOC],$A35),0)) -> 1086 | G35: 0.3868899181 | H35: =IF(ISNA($A35),"",IFERROR(SUMIFS(D_D[DEV],D_D[MT],5,D_D[CAT],SMS, D_D[EP],499,D_D[LOC],$A35)/$E35,0)) -> 0.008193801211 | I35: =IF(ISNA($A35),"",IFERROR(SUMIFS(D_D[EVD],D_D[MT],5,D_D[CAT],SMS, D_D[EP],499,D_D[LOC],$A35)/$E35,0)) -> 0.8984681154 | J35: =IF(ISNA($A35),"",IFERROR(SUMIFS(D_D[DEC],D_D[MT],5,D_D[CAT],SMS, D_D[EP],499,D_D[LOC],$A35)/$E35,0)) -> 0.08407552547 | K35: =IF(ISNA($A35),"",IFERROR(SUMIFS(D_D[AWD],D_D[MT],5,D_D[CAT],SMS, D_D[EP],499,D_D[LOC],$A35)/$E35,0)) -> 0.007125044532 | L35: =IF(ISNA($A35),"",IFERROR(SUMIFS(D_D[AUT],D_D[MT],5,D_D[CAT],SMS, D_D[EP],499,D_D[LOC],$A35)/$E35,0)) -> 0.002137513359
A36: ME402 | B36: 23 | C36: 0 | D36: Togus RO | E36: =IF(ISNA($A36),"",IFERROR(SUMIFS(D_D[INV],D_D[MT],5,D_D[CAT],SMS, D_D[EP],499,D_D[LOC],$A36),0)) -> 27 | F36: =IF(ISNA($A36),"",IFERROR(SUMIFS(D_D[BL],D_D[MT],5,D_D[CAT],SMS, D_D[EP],499,D_D[LOC],$A36),0)) -> 4 | G36: 0.1481481481 | H36: =IF(ISNA($A36),"",IFERROR(SUMIFS(D_D[DEV],D_D[MT],5,D_D[CAT],SMS, D_D[EP],499,D_D[LOC],$A36)/$E36,0)) -> 0.3333333333 | I36: =IF(ISNA($A36),"",IFERROR(SUMIFS(D_D[EVD],D_D[MT],5,D_D[CAT],SMS, D_D[EP],499,D_D[LOC],$A36)/$E36,0)) -> 0.5185185185 | J36: =IF(ISNA($A36),"",IFERROR(SUMIFS(D_D[DEC],D_D[MT],5,D_D[CAT],SMS, D_D[EP],499,D_D[LOC],$A36)/$E36,0)) -> 0.03703703704 | K36: =IF(ISNA($A36),"",IFERROR(SUMIFS(D_D[AWD],D_D[MT],5,D_D[CAT],SMS, D_D[EP],499,D_D[LOC],$A36)/$E36,0)) -> 0.03703703704 | L36: =IF(ISNA($A36),"",IFERROR(SUMIFS(D_D[AUT],D_D[MT],5,D_D[CAT],SMS, D_D[EP],499,D_D[LOC],$A36)/$E36,0)) -> 0.07407407407
A37: ME-1 | B37: 24 | C37: 0 | D37: Maine-Other RO | E37: =IF(ISNA($A37),"",IFERROR(SUMIFS(D_D[INV],D_D[MT],5,D_D[CAT],SMS, D_D[EP],499,D_D[LOC],$A37),0)) -> 329 | F37: =IF(ISNA($A37),"",IFERROR(SUMIFS(D_D[BL],D_D[MT],5,D_D[CAT],SMS, D_D[EP],499,D_D[LOC],$A37),0)) -> 156 | G37: 0.4741641337 | H37: =IF(ISNA($A37),"",IFERROR(SUMIFS(D_D[DEV],D_D[MT],5,D_D[CAT],SMS, D_D[EP],499,D_D[LOC],$A37)/$E37,0)) -> 0.02127659574 | I37: =IF(ISNA($A37),"",IFERROR(SUMIFS(D_D[EVD],D_D[MT],5,D_D[CAT],SMS, D_D[EP],499,D_D[LOC],$A37)/$E37,0)) -> 0.623100304 | J37: =IF(ISNA($A37),"",IFERROR(SUMIFS(D_D[DEC],D_D[MT],5,D_D[CAT],SMS, D_D[EP],499,D_D[LOC],$A37)/$E37,0)) -> 0.2887537994 | K37: =IF(ISNA($A37),"",IFERROR(SUMIFS(D_D[AWD],D_D[MT],5,D_D[CAT],SMS, D_D[EP],499,D_D[LOC],$A37)/$E37,0)) -> 0.0547112462 | L37: =IF(ISNA($A37),"",IFERROR(SUMIFS(D_D[AUT],D_D[MT],5,D_D[CAT],SMS, D_D[EP],499,D_D[LOC],$A37)/$E37,0)) -> 0.01215805471
A38: ME499 | B38: 25 | C38: 0 | D38: Maine-NWQ | E38: =IF(ISNA($A38),"",IFERROR(SUMIFS(D_D[INV],D_D[MT],5,D_D[CAT],SMS, D_D[EP],499,D_D[LOC],$A38),0)) -> 2451 | F38: =IF(ISNA($A38),"",IFERROR(SUMIFS(D_D[BL],D_D[MT],5,D_D[CAT],SMS, D_D[EP],499,D_D[LOC],$A38),0)) -> 926 | G38: 0.3778049776 | H38: =IF(ISNA($A38),"",IFERROR(SUMIFS(D_D[DEV],D_D[MT],5,D_D[CAT],SMS, D_D[EP],499,D_D[LOC],$A38)/$E38,0)) -> 0.002855977152 | I38: =IF(ISNA($A38),"",IFERROR(SUMIFS(D_D[EVD],D_D[MT],5,D_D[CAT],SMS, D_D[EP],499,D_D[LOC],$A38)/$E38,0)) -> 0.9396164831 | J38: =IF(ISNA($A38),"",IFERROR(SUMIFS(D_D[DEC],D_D[MT],5,D_D[CAT],SMS, D_D[EP],499,D_D[LOC],$A38)/$E38,0)) -> 0.05711954304 | K38: =IF(ISNA($A38),"",IFERROR(SUMIFS(D_D[AWD],D_D[MT],5,D_D[CAT],SMS, D_D[EP],499,D_D[LOC],$A38)/$E38,0)) -> 0.000407996736 | L38: =IF(ISNA($A38),"",IFERROR(SUMIFS(D_D[AUT],D_D[MT],5,D_D[CAT],SMS, D_D[EP],499,D_D[LOC],$A38)/$E38,0)) -> 0
A39: MD100 | B39: 26 | C39: Maryland | D39: Maryland-Total | E39: =IF(ISNA($A39),"",IFERROR(SUMIFS(D_D[INV],D_D[MT],5,D_D[CAT],SMS, D_D[EP],499,D_D[LOC],$A39),0)) -> 9845 | F39: =IF(ISNA($A39),"",IFERROR(SUMIFS(D_D[BL],D_D[MT],5,D_D[CAT],SMS, D_D[EP],499,D_D[LOC],$A39),0)) -> 3207 | G39: 0.3257491112 | H39: =IF(ISNA($A39),"",IFERROR(SUMIFS(D_D[DEV],D_D[MT],5,D_D[CAT],SMS, D_D[EP],499,D_D[LOC],$A39)/$E39,0)) -> 0.0157440325 | I39: =IF(ISNA($A39),"",IFERROR(SUMIFS(D_D[EVD],D_D[MT],5,D_D[CAT],SMS, D_D[EP],499,D_D[LOC],$A39)/$E39,0)) -> 0.8767902489 | J39: =IF(ISNA($A39),"",IFERROR(SUMIFS(D_D[DEC],D_D[MT],5,D_D[CAT],SMS, D_D[EP],499,D_D[LOC],$A39)/$E39,0)) -> 0.09476891823 | K39: =IF(ISNA($A39),"",IFERROR(SUMIFS(D_D[AWD],D_D[MT],5,D_D[CAT],SMS, D_D[EP],499,D_D[LOC],$A39)/$E39,0)) -> 0.00873539868 | L39: =IF(ISNA($A39),"",IFERROR(SUMIFS(D_D[AUT],D_D[MT],5,D_D[CAT],SMS, D_D[EP],499,D_D[LOC],$A39)/$E39,0)) -> 0.003961401727
A40: MD313 | B40: 27 | C40: 0 | D40: Baltimore RO | E40: =IF(ISNA($A40),"",IFERROR(SUMIFS(D_D[INV],D_D[MT],5,D_D[CAT],SMS, D_D[EP],499,D_D[LOC],$A40),0)) -> 136 | F40: =IF(ISNA($A40),"",IFERROR(SUMIFS(D_D[BL],D_D[MT],5,D_D[CAT],SMS, D_D[EP],499,D_D[LOC],$A40),0)) -> 17 | G40: 0.125 | H40: =IF(ISNA($A40),"",IFERROR(SUMIFS(D_D[DEV],D_D[MT],5,D_D[CAT],SMS, D_D[EP],499,D_D[LOC],$A40)/$E40,0)) -> 0.3676470588 | I40: =IF(ISNA($A40),"",IFERROR(SUMIFS(D_D[EVD],D_D[MT],5,D_D[CAT],SMS, D_D[EP],499,D_D[LOC],$A40)/$E40,0)) -> 0.4705882353 | J40: =IF(ISNA($A40),"",IFERROR(SUMIFS(D_D[DEC],D_D[MT],5,D_D[CAT],SMS, D_D[EP],499,D_D[LOC],$A40)/$E40,0)) -> 0.1029411765 | K40: =IF(ISNA($A40),"",IFERROR(SUMIFS(D_D[AWD],D_D[MT],5,D_D[CAT],SMS, D_D[EP],499,D_D[LOC],$A40)/$E40,0)) -> 0.03676470588 | L40: =IF(ISNA($A40),"",IFERROR(SUMIFS(D_D[AUT],D_D[MT],5,D_D[CAT],SMS, D_D[EP],499,D_D[LOC],$A40)/$E40,0)) -> 0.02205882353
A41: MD-1 | B41: 28 | C41: 0 | D41: Maryland-Other RO | E41: =IF(ISNA($A41),"",IFERROR(SUMIFS(D_D[INV],D_D[MT],5,D_D[CAT],SMS, D_D[EP],499,D_D[LOC],$A41),0)) -> 1341 | F41: =IF(ISNA($A41),"",IFERROR(SUMIFS(D_D[BL],D_D[MT],5,D_D[CAT],SMS, D_D[EP],499,D_D[LOC],$A41),0)) -> 565 | G41: 0.4213273676 | H41: =IF(ISNA($A41),"",IFERROR(SUMIFS(D_D[DEV],D_D[MT],5,D_D[CAT],SMS, D_D[EP],499,D_D[LOC],$A41)/$E41,0)) -> 0.04996271439 | I41: =IF(ISNA($A41),"",IFERROR(SUMIFS(D_D[EVD],D_D[MT],5,D_D[CAT],SMS, D_D[EP],499,D_D[LOC],$A41)/$E41,0)) -> 0.5570469799 | J41: =IF(ISNA($A41),"",IFERROR(SUMIFS(D_D[DEC],D_D[MT],5,D_D[CAT],SMS, D_D[EP],499,D_D[LOC],$A41)/$E41,0)) -> 0.3102162565 | K41: =IF(ISNA($A41),"",IFERROR(SUMIFS(D_D[AWD],D_D[MT],5,D_D[CAT],SMS, D_D[EP],499,D_D[LOC],$A41)/$E41,0)) -> 0.05592841163 | L41: =IF(ISNA($A41),"",IFERROR(SUMIFS(D_D[AUT],D_D[MT],5,D_D[CAT],SMS, D_D[EP],499,D_D[LOC],$A41)/$E41,0)) -> 0.02684563758
A42: MD499 | B42: 29 | C42: 0 | D42: Maryland-NWQ | E42: =IF(ISNA($A42),"",IFERROR(SUMIFS(D_D[INV],D_D[MT],5,D_D[CAT],SMS, D_D[EP],499,D_D[LOC],$A42),0)) -> 8368 | F42: =IF(ISNA($A42),"",IFERROR(SUMIFS(D_D[BL],D_D[MT],5,D_D[CAT],SMS, D_D[EP],499,D_D[LOC],$A42),0)) -> 2625 | G42: 0.3136950287 | H42: =IF(ISNA($A42),"",IFERROR(SUMIFS(D_D[DEV],D_D[MT],5,D_D[CAT],SMS, D_D[EP],499,D_D[LOC],$A42)/$E42,0)) -> 0.004541108987 | I42: =IF(ISNA($A42),"",IFERROR(SUMIFS(D_D[EVD],D_D[MT],5,D_D[CAT],SMS, D_D[EP],499,D_D[LOC],$A42)/$E42,0)) -> 0.9346319312 | J42: =IF(ISNA($A42),"",IFERROR(SUMIFS(D_D[DEC],D_D[MT],5,D_D[CAT],SMS, D_D[EP],499,D_D[LOC],$A42)/$E42,0)) -> 0.06010994264 | K42: =IF(ISNA($A42),"",IFERROR(SUMIFS(D_D[AWD],D_D[MT],5,D_D[CAT],SMS, D_D[EP],499,D_D[LOC],$A42)/$E42,0)) -> 0.0007170172084 | L42: =IF(ISNA($A42),"",IFERROR(SUMIFS(D_D[AUT],D_D[MT],5,D_D[CAT],SMS, D_D[EP],499,D_D[LOC],$A42)/$E42,0)) -> 0
A43: MA100 | B43: 30 | C43: Massachusetts | D43: Massachusetts-Total | E43: =IF(ISNA($A43),"",IFERROR(SUMIFS(D_D[INV],D_D[MT],5,D_D[CAT],SMS, D_D[EP],499,D_D[LOC],$A43),0)) -> 6155 | F43: =IF(ISNA($A43),"",IFERROR(SUMIFS(D_D[BL],D_D[MT],5,D_D[CAT],SMS, D_D[EP],499,D_D[LOC],$A43),0)) -> 2366 | G43: 0.3844029245 | H43: =IF(ISNA($A43),"",IFERROR(SUMIFS(D_D[DEV],D_D[MT],5,D_D[CAT],SMS, D_D[EP],499,D_D[LOC],$A43)/$E43,0)) -> 0.0136474411 | I43: =IF(ISNA($A43),"",IFERROR(SUMIFS(D_D[EVD],D_D[MT],5,D_D[CAT],SMS, D_D[EP],499,D_D[LOC],$A43)/$E43,0)) -> 0.9153533712 | J43: =IF(ISNA($A43),"",IFERROR(SUMIFS(D_D[DEC],D_D[MT],5,D_D[CAT],SMS, D_D[EP],499,D_D[LOC],$A43)/$E43,0)) -> 0.06173842405 | K43: =IF(ISNA($A43),"",IFERROR(SUMIFS(D_D[AWD],D_D[MT],5,D_D[CAT],SMS, D_D[EP],499,D_D[LOC],$A43)/$E43,0)) -> 0.006986190089 | L43: =IF(ISNA($A43),"",IFERROR(SUMIFS(D_D[AUT],D_D[MT],5,D_D[CAT],SMS, D_D[EP],499,D_D[LOC],$A43)/$E43,0)) -> 0.002274573517
A44: MA301 | B44: 31 | C44: 0 | D44: Boston RO | E44: =IF(ISNA($A44),"",IFERROR(SUMIFS(D_D[INV],D_D[MT],5,D_D[CAT],SMS, D_D[EP],499,D_D[LOC],$A44),0)) -> 43 | F44: =IF(ISNA($A44),"",IFERROR(SUMIFS(D_D[BL],D_D[MT],5,D_D[CAT],SMS, D_D[EP],499,D_D[LOC],$A44),0)) -> 8 | G44: 0.1860465116 | H44: =IF(ISNA($A44),"",IFERROR(SUMIFS(D_D[DEV],D_D[MT],5,D_D[CAT],SMS, D_D[EP],499,D_D[LOC],$A44)/$E44,0)) -> 0.488372093 | I44: =IF(ISNA($A44),"",IFERROR(SUMIFS(D_D[EVD],D_D[MT],5,D_D[CAT],SMS, D_D[EP],499,D_D[LOC],$A44)/$E44,0)) -> 0.4186046512 | J44: =IF(ISNA($A44),"",IFERROR(SUMIFS(D_D[DEC],D_D[MT],5,D_D[CAT],SMS, D_D[EP],499,D_D[LOC],$A44)/$E44,0)) -> 0.06976744186 | K44: =IF(ISNA($A44),"",IFERROR(SUMIFS(D_D[AWD],D_D[MT],5,D_D[CAT],SMS, D_D[EP],499,D_D[LOC],$A44)/$E44,0)) -> 0.02325581395 | L44: =IF(ISNA($A44),"",IFERROR(SUMIFS(D_D[AUT],D_D[MT],5,D_D[CAT],SMS, D_D[EP],499,D_D[LOC],$A44)/$E44,0)) -> 0
A45: MA-1 | B45: 32 | C45: 0 | D45: Massachusetts-Other RO | E45: =IF(ISNA($A45),"",IFERROR(SUMIFS(D_D[INV],D_D[MT],5,D_D[CAT],SMS, D_D[EP],499,D_D[LOC],$A45),0)) -> 720 | F45: =IF(ISNA($A45),"",IFERROR(SUMIFS(D_D[BL],D_D[MT],5,D_D[CAT],SMS, D_D[EP],499,D_D[LOC],$A45),0)) -> 268 | G45: 0.3722222222 | H45: =IF(ISNA($A45),"",IFERROR(SUMIFS(D_D[DEV],D_D[MT],5,D_D[CAT],SMS, D_D[EP],499,D_D[LOC],$A45)/$E45,0)) -> 0.06388888889 | I45: =IF(ISNA($A45),"",IFERROR(SUMIFS(D_D[EVD],D_D[MT],5,D_D[CAT],SMS, D_D[EP],499,D_D[LOC],$A45)/$E45,0)) -> 0.6472222222 | J45: =IF(ISNA($A45),"",IFERROR(SUMIFS(D_D[DEC],D_D[MT],5,D_D[CAT],SMS, D_D[EP],499,D_D[LOC],$A45)/$E45,0)) -> 0.2125 | K45: =IF(ISNA($A45),"",IFERROR(SUMIFS(D_D[AWD],D_D[MT],5,D_D[CAT],SMS, D_D[EP],499,D_D[LOC],$A45)/$E45,0)) -> 0.05694444444 | L45: =IF(ISNA($A45),"",IFERROR(SUMIFS(D_D[AUT],D_D[MT],5,D_D[CAT],SMS, D_D[EP],499,D_D[LOC],$A45)/$E45,0)) -> 0.01944444444
A46: MA499 | B46: 33 | C46: 0 | D46: Massachusetts-NWQ | E46: =IF(ISNA($A46),"",IFERROR(SUMIFS(D_D[INV],D_D[MT],5,D_D[CAT],SMS, D_D[EP],499,D_D[LOC],$A46),0)) -> 5392 | F46: =IF(ISNA($A46),"",IFERROR(SUMIFS(D_D[BL],D_D[MT],5,D_D[CAT],SMS, D_D[EP],499,D_D[LOC],$A46),0)) -> 2090 | G46: 0.387611276 | H46: =IF(ISNA($A46),"",IFERROR(SUMIFS(D_D[DEV],D_D[MT],5,D_D[CAT],SMS, D_D[EP],499,D_D[LOC],$A46)/$E46,0)) -> 0.003152818991 | I46: =IF(ISNA($A46),"",IFERROR(SUMIFS(D_D[EVD],D_D[MT],5,D_D[CAT],SMS, D_D[EP],499,D_D[LOC],$A46)/$E46,0)) -> 0.9551186944 | J46: =IF(ISNA($A46),"",IFERROR(SUMIFS(D_D[DEC],D_D[MT],5,D_D[CAT],SMS, D_D[EP],499,D_D[LOC],$A46)/$E46,0)) -> 0.04154302671 | K46: =IF(ISNA($A46),"",IFERROR(SUMIFS(D_D[AWD],D_D[MT],5,D_D[CAT],SMS, D_D[EP],499,D_D[LOC],$A46)/$E46,0)) -> 0.0001854599407 | L46: =IF(ISNA($A46),"",IFERROR(SUMIFS(D_D[AUT],D_D[MT],5,D_D[CAT],SMS, D_D[EP],499,D_D[LOC],$A46)/$E46,0)) -> 0
A47: =IFERROR(INDEX(INDIRECT(DS_NWQI),B47),#N/A) -> MI100 | B47: 34 | C47: Michigan | D47: Michigan-Total | E47: =IF(ISNA($A47),"",IFERROR(SUMIFS(D_D[INV],D_D[MT],5,D_D[CAT],SMS, D_D[EP],499,D_D[LOC],$A47),0)) -> 12565 | F47: =IF(ISNA($A47),"",IFERROR(SUMIFS(D_D[BL],D_D[MT],5,D_D[CAT],SMS, D_D[EP],499,D_D[LOC],$A47),0)) -> 4024 | G47: 0.3202546757 | H47: =IF(ISNA($A47),"",IFERROR(SUMIFS(D_D[DEV],D_D[MT],5,D_D[CAT],SMS, D_D[EP],499,D_D[LOC],$A47)/$E47,0)) -> 0.01432550736 | I47: =IF(ISNA($A47),"",IFERROR(SUMIFS(D_D[EVD],D_D[MT],5,D_D[CAT],SMS, D_D[EP],499,D_D[LOC],$A47)/$E47,0)) -> 0.8970155193 | J47: =IF(ISNA($A47),"",IFERROR(SUMIFS(D_D[DEC],D_D[MT],5,D_D[CAT],SMS, D_D[EP],499,D_D[LOC],$A47)/$E47,0)) -> 0.07966573816 | K47: =IF(ISNA($A47),"",IFERROR(SUMIFS(D_D[AWD],D_D[MT],5,D_D[CAT],SMS, D_D[EP],499,D_D[LOC],$A47)/$E47,0)) -> 0.006128133705 | L47: =IF(ISNA($A47),"",IFERROR(SUMIFS(D_D[AUT],D_D[MT],5,D_D[CAT],SMS, D_D[EP],499,D_D[LOC],$A47)/$E47,0)) -> 0.002865101472
A48: MI329 | B48: 35 | C48: 0 | D48: Detroit RO | E48: =IF(ISNA($A48),"",IFERROR(SUMIFS(D_D[INV],D_D[MT],5,D_D[CAT],SMS, D_D[EP],499,D_D[LOC],$A48),0)) -> 150 | F48: =IF(ISNA($A48),"",IFERROR(SUMIFS(D_D[BL],D_D[MT],5,D_D[CAT],SMS, D_D[EP],499,D_D[LOC],$A48),0)) -> 15 | G48: 0.1 | H48: =IF(ISNA($A48),"",IFERROR(SUMIFS(D_D[DEV],D_D[MT],5,D_D[CAT],SMS, D_D[EP],499,D_D[LOC],$A48)/$E48,0)) -> 0.2333333333 | I48: =IF(ISNA($A48),"",IFERROR(SUMIFS(D_D[EVD],D_D[MT],5,D_D[CAT],SMS, D_D[EP],499,D_D[LOC],$A48)/$E48,0)) -> 0.56 | J48: =IF(ISNA($A48),"",IFERROR(SUMIFS(D_D[DEC],D_D[MT],5,D_D[CAT],SMS, D_D[EP],499,D_D[LOC],$A48)/$E48,0)) -> 0.1733333333 | K48: =IF(ISNA($A48),"",IFERROR(SUMIFS(D_D[AWD],D_D[MT],5,D_D[CAT],SMS, D_D[EP],499,D_D[LOC],$A48)/$E48,0)) -> 0.02666666667 | L48: =IF(ISNA($A48),"",IFERROR(SUMIFS(D_D[AUT],D_D[MT],5,D_D[CAT],SMS, D_D[EP],499,D_D[LOC],$A48)/$E48,0)) -> 0.006666666667
A49: MI-1 | B49: 36 | C49: 0 | D49: =IFERROR(INDEX(INDIRECT(DS_NWQD),B49),"") -> Michigan-Other RO | E49: =IF(ISNA($A49),"",IFERROR(SUMIFS(D_D[INV],D_D[MT],5,D_D[CAT],SMS, D_D[EP],499,D_D[LOC],$A49),0)) -> 1363 | F49: =IF(ISNA($A49),"",IFERROR(SUMIFS(D_D[BL],D_D[MT],5,D_D[CAT],SMS, D_D[EP],499,D_D[LOC],$A49),0)) -> 577 | G49: =IF(ISNA($A49),"",IFERROR(F49/E49,0)) -> 0.4233308877 | H49: =IF(ISNA($A49),"",IFERROR(SUMIFS(D_D[DEV],D_D[MT],5,D_D[CAT],SMS, D_D[EP],499,D_D[LOC],$A49)/$E49,0)) -> 0.06896551724 | I49: =IF(ISNA($A49),"",IFERROR(SUMIFS(D_D[EVD],D_D[MT],5,D_D[CAT],SMS, D_D[EP],499,D_D[LOC],$A49)/$E49,0)) -> 0.6588407924 | J49: =IF(ISNA($A49),"",IFERROR(SUMIFS(D_D[DEC],D_D[MT],5,D_D[CAT],SMS, D_D[EP],499,D_D[LOC],$A49)/$E49,0)) -> 0.1973587674 | K49: =IF(ISNA($A49),"",IFERROR(SUMIFS(D_D[AWD],D_D[MT],5,D_D[CAT],SMS, D_D[EP],499,D_D[LOC],$A49)/$E49,0)) -> 0.04915627293 | L49: =IF(ISNA($A49),"",IFERROR(SUMIFS(D_D[AUT],D_D[MT],5,D_D[CAT],SMS, D_D[EP],499,D_D[LOC],$A49)/$E49,0)) -> 0.02567865004
A50: MI499 | B50: 37 | C50: 0 | D50: Michigan-NWQ | E50: =IF(ISNA($A50),"",IFERROR(SUMIFS(D_D[INV],D_D[MT],5,D_D[CAT],SMS, D_D[EP],499,D_D[LOC],$A50),0)) -> 11052 | F50: =IF(ISNA($A50),"",IFERROR(SUMIFS(D_D[BL],D_D[MT],5,D_D[CAT],SMS, D_D[EP],499,D_D[LOC],$A50),0)) -> 3432 | G50: 0.3105320304 | H50: =IF(ISNA($A50),"",IFERROR(SUMIFS(D_D[DEV],D_D[MT],5,D_D[CAT],SMS, D_D[EP],499,D_D[LOC],$A50)/$E50,0)) -> 0.004614549403 | I50: =IF(ISNA($A50),"",IFERROR(SUMIFS(D_D[EVD],D_D[MT],5,D_D[CAT],SMS, D_D[EP],499,D_D[LOC],$A50)/$E50,0)) -> 0.9309627217 | J50: =IF(ISNA($A50),"",IFERROR(SUMIFS(D_D[DEC],D_D[MT],5,D_D[CAT],SMS, D_D[EP],499,D_D[LOC],$A50)/$E50,0)) -> 0.06387984075 | K50: =IF(ISNA($A50),"",IFERROR(SUMIFS(D_D[AWD],D_D[MT],5,D_D[CAT],SMS, D_D[EP],499,D_D[LOC],$A50)/$E50,0)) -> 0.000542888165 | L50: =IF(ISNA($A50),"",IFERROR(SUMIFS(D_D[AUT],D_D[MT],5,D_D[CAT],SMS, D_D[EP],499,D_D[LOC],$A50)/$E50,0)) -> 0
A51: MO100 | B51: 38 | C51: Missouri | D51: Missouri-Total | E51: =IF(ISNA($A51),"",IFERROR(SUMIFS(D_D[INV],D_D[MT],5,D_D[CAT],SMS, D_D[EP],499,D_D[LOC],$A51),0)) -> 11927 | F51: =IF(ISNA($A51),"",IFERROR(SUMIFS(D_D[BL],D_D[MT],5,D_D[CAT],SMS, D_D[EP],499,D_D[LOC],$A51),0)) -> 3853 | G51: 0.3230485453 | H51: =IF(ISNA($A51),"",IFERROR(SUMIFS(D_D[DEV],D_D[MT],5,D_D[CAT],SMS, D_D[EP],499,D_D[LOC],$A51)/$E51,0)) -> 0.01567871217 | I51: =IF(ISNA($A51),"",IFERROR(SUMIFS(D_D[EVD],D_D[MT],5,D_D[CAT],SMS, D_D[EP],499,D_D[LOC],$A51)/$E51,0)) -> 0.8867275929 | J51: =IF(ISNA($A51),"",IFERROR(SUMIFS(D_D[DEC],D_D[MT],5,D_D[CAT],SMS, D_D[EP],499,D_D[LOC],$A51)/$E51,0)) -> 0.08837092312 | K51: =IF(ISNA($A51),"",IFERROR(SUMIFS(D_D[AWD],D_D[MT],5,D_D[CAT],SMS, D_D[EP],499,D_D[LOC],$A51)/$E51,0)) -> 0.006707470445 | L51: =IF(ISNA($A51),"",IFERROR(SUMIFS(D_D[AUT],D_D[MT],5,D_D[CAT],SMS, D_D[EP],499,D_D[LOC],$A51)/$E51,0)) -> 0.002515301417
A52: MO331 | B52: 39 | C52: 0 | D52: St. Louis RO | E52: =IF(ISNA($A52),"",IFERROR(SUMIFS(D_D[INV],D_D[MT],5,D_D[CAT],SMS, D_D[EP],499,D_D[LOC],$A52),0)) -> 169 | F52: =IF(ISNA($A52),"",IFERROR(SUMIFS(D_D[BL],D_D[MT],5,D_D[CAT],SMS, D_D[EP],499,D_D[LOC],$A52),0)) -> 24 | G52: 0.1420118343 | H52: =IF(ISNA($A52),"",IFERROR(SUMIFS(D_D[DEV],D_D[MT],5,D_D[CAT],SMS, D_D[EP],499,D_D[LOC],$A52)/$E52,0)) -> 0.3372781065 | I52: =IF(ISNA($A52),"",IFERROR(SUMIFS(D_D[EVD],D_D[MT],5,D_D[CAT],SMS, D_D[EP],499,D_D[LOC],$A52)/$E52,0)) -> 0.4674556213 | J52: =IF(ISNA($A52),"",IFERROR(SUMIFS(D_D[DEC],D_D[MT],5,D_D[CAT],SMS, D_D[EP],499,D_D[LOC],$A52)/$E52,0)) -> 0.1656804734 | K52: =IF(ISNA($A52),"",IFERROR(SUMIFS(D_D[AWD],D_D[MT],5,D_D[CAT],SMS, D_D[EP],499,D_D[LOC],$A52)/$E52,0)) -> 0.01775147929 | L52: =IF(ISNA($A52),"",IFERROR(SUMIFS(D_D[AUT],D_D[MT],5,D_D[CAT],SMS, D_D[EP],499,D_D[LOC],$A52)/$E52,0)) -> 0.01183431953
A53: MO-1 | B53: 40 | C53: 0 | D53: Missouri-Other RO | E53: =IF(ISNA($A53),"",IFERROR(SUMIFS(D_D[INV],D_D[MT],5,D_D[CAT],SMS, D_D[EP],499,D_D[LOC],$A53),0)) -> 1303 | F53: =IF(ISNA($A53),"",IFERROR(SUMIFS(D_D[BL],D_D[MT],5,D_D[CAT],SMS, D_D[EP],499,D_D[LOC],$A53),0)) -> 558 | G53: 0.4282425173 | H53: =IF(ISNA($A53),"",IFERROR(SUMIFS(D_D[DEV],D_D[MT],5,D_D[CAT],SMS, D_D[EP],499,D_D[LOC],$A53)/$E53,0)) -> 0.06293169609 | I53: =IF(ISNA($A53),"",IFERROR(SUMIFS(D_D[EVD],D_D[MT],5,D_D[CAT],SMS, D_D[EP],499,D_D[LOC],$A53)/$E53,0)) -> 0.6354566385 | J53: =IF(ISNA($A53),"",IFERROR(SUMIFS(D_D[DEC],D_D[MT],5,D_D[CAT],SMS, D_D[EP],499,D_D[LOC],$A53)/$E53,0)) -> 0.2271680737 | K53: =IF(ISNA($A53),"",IFERROR(SUMIFS(D_D[AWD],D_D[MT],5,D_D[CAT],SMS, D_D[EP],499,D_D[LOC],$A53)/$E53,0)) -> 0.05295471988 | L53: =IF(ISNA($A53),"",IFERROR(SUMIFS(D_D[AUT],D_D[MT],5,D_D[CAT],SMS, D_D[EP],499,D_D[LOC],$A53)/$E53,0)) -> 0.02148887183
A54: MO499 | B54: 41 | C54: 0 | D54: Missouri-NWQ | E54: =IF(ISNA($A54),"",IFERROR(SUMIFS(D_D[INV],D_D[MT],5,D_D[CAT],SMS, D_D[EP],499,D_D[LOC],$A54),0)) -> 10455 | F54: =IF(ISNA($A54),"",IFERROR(SUMIFS(D_D[BL],D_D[MT],5,D_D[CAT],SMS, D_D[EP],499,D_D[LOC],$A54),0)) -> 3271 | G54: 0.3128646581 | H54: =IF(ISNA($A54),"",IFERROR(SUMIFS(D_D[DEV],D_D[MT],5,D_D[CAT],SMS, D_D[EP],499,D_D[LOC],$A54)/$E54,0)) -> 0.004591104735 | I54: =IF(ISNA($A54),"",IFERROR(SUMIFS(D_D[EVD],D_D[MT],5,D_D[CAT],SMS, D_D[EP],499,D_D[LOC],$A54)/$E54,0)) -> 0.92482066 | J54: =IF(ISNA($A54),"",IFERROR(SUMIFS(D_D[DEC],D_D[MT],5,D_D[CAT],SMS, D_D[EP],499,D_D[LOC],$A54)/$E54,0)) -> 0.06982305117 | K54: =IF(ISNA($A54),"",IFERROR(SUMIFS(D_D[AWD],D_D[MT],5,D_D[CAT],SMS, D_D[EP],499,D_D[LOC],$A54)/$E54,0)) -> 0.0007651841224 | L54: =IF(ISNA($A54),"",IFERROR(SUMIFS(D_D[AUT],D_D[MT],5,D_D[CAT],SMS, D_D[EP],499,D_D[LOC],$A54)/$E54,0)) -> 0
A55: NH100 | B55: 42 | C55: New Hampshire | D55: New Hampshire-Total | E55: =IF(ISNA($A55),"",IFERROR(SUMIFS(D_D[INV],D_D[MT],5,D_D[CAT],SMS, D_D[EP],499,D_D[LOC],$A55),0)) -> 2024 | F55: =IF(ISNA($A55),"",IFERROR(SUMIFS(D_D[BL],D_D[MT],5,D_D[CAT],SMS, D_D[EP],499,D_D[LOC],$A55),0)) -> 831 | G55: 0.4105731225 | H55: =IF(ISNA($A55),"",IFERROR(SUMIFS(D_D[DEV],D_D[MT],5,D_D[CAT],SMS, D_D[EP],499,D_D[LOC],$A55)/$E55,0)) -> 0.01333992095 | I55: =IF(ISNA($A55),"",IFERROR(SUMIFS(D_D[EVD],D_D[MT],5,D_D[CAT],SMS, D_D[EP],499,D_D[LOC],$A55)/$E55,0)) -> 0.9085968379 | J55: =IF(ISNA($A55),"",IFERROR(SUMIFS(D_D[DEC],D_D[MT],5,D_D[CAT],SMS, D_D[EP],499,D_D[LOC],$A55)/$E55,0)) -> 0.07411067194 | K55: =IF(ISNA($A55),"",IFERROR(SUMIFS(D_D[AWD],D_D[MT],5,D_D[CAT],SMS, D_D[EP],499,D_D[LOC],$A55)/$E55,0)) -> 0.003458498024 | L55: =IF(ISNA($A55),"",IFERROR(SUMIFS(D_D[AUT],D_D[MT],5,D_D[CAT],SMS, D_D[EP],499,D_D[LOC],$A55)/$E55,0)) -> 0.0004940711462
A56: NH373 | B56: 43 | C56: 0 | D56: Manchester RO | E56: =IF(ISNA($A56),"",IFERROR(SUMIFS(D_D[INV],D_D[MT],5,D_D[CAT],SMS, D_D[EP],499,D_D[LOC],$A56),0)) -> 16 | F56: =IF(ISNA($A56),"",IFERROR(SUMIFS(D_D[BL],D_D[MT],5,D_D[CAT],SMS, D_D[EP],499,D_D[LOC],$A56),0)) -> 0 | G56: 0 | H56: =IF(ISNA($A56),"",IFERROR(SUMIFS(D_D[DEV],D_D[MT],5,D_D[CAT],SMS, D_D[EP],499,D_D[LOC],$A56)/$E56,0)) -> 0.5625 | I56: =IF(ISNA($A56),"",IFERROR(SUMIFS(D_D[EVD],D_D[MT],5,D_D[CAT],SMS, D_D[EP],499,D_D[LOC],$A56)/$E56,0)) -> 0.3125 | J56: =IF(ISNA($A56),"",IFERROR(SUMIFS(D_D[DEC],D_D[MT],5,D_D[CAT],SMS, D_D[EP],499,D_D[LOC],$A56)/$E56,0)) -> 0 | K56: =IF(ISNA($A56),"",IFERROR(SUMIFS(D_D[AWD],D_D[MT],5,D_D[CAT],SMS, D_D[EP],499,D_D[LOC],$A56)/$E56,0)) -> 0.0625 | L56: =IF(ISNA($A56),"",IFERROR(SUMIFS(D_D[AUT],D_D[MT],5,D_D[CAT],SMS, D_D[EP],499,D_D[LOC],$A56)/$E56,0)) -> 0.0625
A57: NH-1 | B57: 44 | C57: 0 | D57: New Hampshire-Other RO | E57: =IF(ISNA($A57),"",IFERROR(SUMIFS(D_D[INV],D_D[MT],5,D_D[CAT],SMS, D_D[EP],499,D_D[LOC],$A57),0)) -> 243 | F57: =IF(ISNA($A57),"",IFERROR(SUMIFS(D_D[BL],D_D[MT],5,D_D[CAT],SMS, D_D[EP],499,D_D[LOC],$A57),0)) -> 114 | G57: 0.4691358025 | H57: =IF(ISNA($A57),"",IFERROR(SUMIFS(D_D[DEV],D_D[MT],5,D_D[CAT],SMS, D_D[EP],499,D_D[LOC],$A57)/$E57,0)) -> 0.0329218107 | I57: =IF(ISNA($A57),"",IFERROR(SUMIFS(D_D[EVD],D_D[MT],5,D_D[CAT],SMS, D_D[EP],499,D_D[LOC],$A57)/$E57,0)) -> 0.6378600823 | J57: =IF(ISNA($A57),"",IFERROR(SUMIFS(D_D[DEC],D_D[MT],5,D_D[CAT],SMS, D_D[EP],499,D_D[LOC],$A57)/$E57,0)) -> 0.304526749 | K57: =IF(ISNA($A57),"",IFERROR(SUMIFS(D_D[AWD],D_D[MT],5,D_D[CAT],SMS, D_D[EP],499,D_D[LOC],$A57)/$E57,0)) -> 0.02469135802 | L57: =IF(ISNA($A57),"",IFERROR(SUMIFS(D_D[AUT],D_D[MT],5,D_D[CAT],SMS, D_D[EP],499,D_D[LOC],$A57)/$E57,0)) -> 0
A58: NH499 | B58: 45 | C58: 0 | D58: New Hampshire-NWQ | E58: =IF(ISNA($A58),"",IFERROR(SUMIFS(D_D[INV],D_D[MT],5,D_D[CAT],SMS, D_D[EP],499,D_D[LOC],$A58),0)) -> 1765 | F58: =IF(ISNA($A58),"",IFERROR(SUMIFS(D_D[BL],D_D[MT],5,D_D[CAT],SMS, D_D[EP],499,D_D[LOC],$A58),0)) -> 717 | G58: 0.4062322946 | H58: =IF(ISNA($A58),"",IFERROR(SUMIFS(D_D[DEV],D_D[MT],5,D_D[CAT],SMS, D_D[EP],499,D_D[LOC],$A58)/$E58,0)) -> 0.00566572238 | I58: =IF(ISNA($A58),"",IFERROR(SUMIFS(D_D[EVD],D_D[MT],5,D_D[CAT],SMS, D_D[EP],499,D_D[LOC],$A58)/$E58,0)) -> 0.9512747875 | J58: =IF(ISNA($A58),"",IFERROR(SUMIFS(D_D[DEC],D_D[MT],5,D_D[CAT],SMS, D_D[EP],499,D_D[LOC],$A58)/$E58,0)) -> 0.04305949008 | K58: =IF(ISNA($A58),"",IFERROR(SUMIFS(D_D[AWD],D_D[MT],5,D_D[CAT],SMS, D_D[EP],499,D_D[LOC],$A58)/$E58,0)) -> 0 | L58: =IF(ISNA($A58),"",IFERROR(SUMIFS(D_D[AUT],D_D[MT],5,D_D[CAT],SMS, D_D[EP],499,D_D[LOC],$A58)/$E58,0)) -> 0
A59: NJ100 | B59: 46 | C59: New Jersey | D59: New Jersey-Total | E59: =IF(ISNA($A59),"",IFERROR(SUMIFS(D_D[INV],D_D[MT],5,D_D[CAT],SMS, D_D[EP],499,D_D[LOC],$A59),0)) -> 7334 | F59: =IF(ISNA($A59),"",IFERROR(SUMIFS(D_D[BL],D_D[MT],5,D_D[CAT],SMS, D_D[EP],499,D_D[LOC],$A59),0)) -> 2862 | G59: 0.3902372512 | H59: =IF(ISNA($A59),"",IFERROR(SUMIFS(D_D[DEV],D_D[MT],5,D_D[CAT],SMS, D_D[EP],499,D_D[LOC],$A59)/$E59,0)) -> 0.01499863649 | I59: =IF(ISNA($A59),"",IFERROR(SUMIFS(D_D[EVD],D_D[MT],5,D_D[CAT],SMS, D_D[EP],499,D_D[LOC],$A59)/$E59,0)) -> 0.9001908917 | J59: =IF(ISNA($A59),"",IFERROR(SUMIFS(D_D[DEC],D_D[MT],5,D_D[CAT],SMS, D_D[EP],499,D_D[LOC],$A59)/$E59,0)) -> 0.07431142623 | K59: =IF(ISNA($A59),"",IFERROR(SUMIFS(D_D[AWD],D_D[MT],5,D_D[CAT],SMS, D_D[EP],499,D_D[LOC],$A59)/$E59,0)) -> 0.007499318244 | L59: =IF(ISNA($A59),"",IFERROR(SUMIFS(D_D[AUT],D_D[MT],5,D_D[CAT],SMS, D_D[EP],499,D_D[LOC],$A59)/$E59,0)) -> 0.002999727298
A60: NJ309 | B60: 47 | C60: 0 | D60: =IFERROR(INDEX(INDIRECT(DS_NWQD),B60),"") -> Newark RO | E60: =IF(ISNA($A60),"",IFERROR(SUMIFS(D_D[INV],D_D[MT],5,D_D[CAT],SMS, D_D[EP],499,D_D[LOC],$A60),0)) -> 35 | F60: =IF(ISNA($A60),"",IFERROR(SUMIFS(D_D[BL],D_D[MT],5,D_D[CAT],SMS, D_D[EP],499,D_D[LOC],$A60),0)) -> 8 | G60: =IF(ISNA($A60),"",IFERROR(F60/E60,0)) -> 0.2285714286 | H60: =IF(ISNA($A60),"",IFERROR(SUMIFS(D_D[DEV],D_D[MT],5,D_D[CAT],SMS, D_D[EP],499,D_D[LOC],$A60)/$E60,0)) -> 0.5142857143 | I60: =IF(ISNA($A60),"",IFERROR(SUMIFS(D_D[EVD],D_D[MT],5,D_D[CAT],SMS, D_D[EP],499,D_D[LOC],$A60)/$E60,0)) -> 0.3714285714 | J60: =IF(ISNA($A60),"",IFERROR(SUMIFS(D_D[DEC],D_D[MT],5,D_D[CAT],SMS, D_D[EP],499,D_D[LOC],$A60)/$E60,0)) -> 0 | K60: =IF(ISNA($A60),"",IFERROR(SUMIFS(D_D[AWD],D_D[MT],5,D_D[CAT],SMS, D_D[EP],499,D_D[LOC],$A60)/$E60,0)) -> 0.1142857143 | L60: =IF(ISNA($A60),"",IFERROR(SUMIFS(D_D[AUT],D_D[MT],5,D_D[CAT],SMS, D_D[EP],499,D_D[LOC],$A60)/$E60,0)) -> 0
A61: NJ-1 | B61: 48 | C61: 0 | D61: New Jersey-Other RO | E61: =IF(ISNA($A61),"",IFERROR(SUMIFS(D_D[INV],D_D[MT],5,D_D[CAT],SMS, D_D[EP],499,D_D[LOC],$A61),0)) -> 857 | F61: =IF(ISNA($A61),"",IFERROR(SUMIFS(D_D[BL],D_D[MT],5,D_D[CAT],SMS, D_D[EP],499,D_D[LOC],$A61),0)) -> 372 | G61: 0.4340723454 | H61: =IF(ISNA($A61),"",IFERROR(SUMIFS(D_D[DEV],D_D[MT],5,D_D[CAT],SMS, D_D[EP],499,D_D[LOC],$A61)/$E61,0)) -> 0.08401400233 | I61: =IF(ISNA($A61),"",IFERROR(SUMIFS(D_D[EVD],D_D[MT],5,D_D[CAT],SMS, D_D[EP],499,D_D[LOC],$A61)/$E61,0)) -> 0.5962660443 | J61: =IF(ISNA($A61),"",IFERROR(SUMIFS(D_D[DEC],D_D[MT],5,D_D[CAT],SMS, D_D[EP],499,D_D[LOC],$A61)/$E61,0)) -> 0.2415402567 | K61: =IF(ISNA($A61),"",IFERROR(SUMIFS(D_D[AWD],D_D[MT],5,D_D[CAT],SMS, D_D[EP],499,D_D[LOC],$A61)/$E61,0)) -> 0.05250875146 | L61: =IF(ISNA($A61),"",IFERROR(SUMIFS(D_D[AUT],D_D[MT],5,D_D[CAT],SMS, D_D[EP],499,D_D[LOC],$A61)/$E61,0)) -> 0.02567094516
A62: NJ499 | B62: 49 | C62: 0 | D62: New Jersey-NWQ | E62: =IF(ISNA($A62),"",IFERROR(SUMIFS(D_D[INV],D_D[MT],5,D_D[CAT],SMS, D_D[EP],499,D_D[LOC],$A62),0)) -> 6442 | F62: =IF(ISNA($A62),"",IFERROR(SUMIFS(D_D[BL],D_D[MT],5,D_D[CAT],SMS, D_D[EP],499,D_D[LOC],$A62),0)) -> 2482 | G62: 0.3852840733 | H62: =IF(ISNA($A62),"",IFERROR(SUMIFS(D_D[DEV],D_D[MT],5,D_D[CAT],SMS, D_D[EP],499,D_D[LOC],$A62)/$E62,0)) -> 0.003104625893 | I62: =IF(ISNA($A62),"",IFERROR(SUMIFS(D_D[EVD],D_D[MT],5,D_D[CAT],SMS, D_D[EP],499,D_D[LOC],$A62)/$E62,0)) -> 0.9434958088 | J62: =IF(ISNA($A62),"",IFERROR(SUMIFS(D_D[DEC],D_D[MT],5,D_D[CAT],SMS, D_D[EP],499,D_D[LOC],$A62)/$E62,0)) -> 0.05246817758 | K62: =IF(ISNA($A62),"",IFERROR(SUMIFS(D_D[AWD],D_D[MT],5,D_D[CAT],SMS, D_D[EP],499,D_D[LOC],$A62)/$E62,0)) -> 0.0009313877678 | L62: =IF(ISNA($A62),"",IFERROR(SUMIFS(D_D[AUT],D_D[MT],5,D_D[CAT],SMS, D_D[EP],499,D_D[LOC],$A62)/$E62,0)) -> 0
A63: NY100 | B63: 50 | C63: =IFERROR(INDEX(INDIRECT(DS_NWQ),B63),"") -> New York | D63: New York-Total | E63: =IF(ISNA($A63),"",IFERROR(SUMIFS(D_D[INV],D_D[MT],5,D_D[CAT],SMS, D_D[EP],499,D_D[LOC],$A63),0)) -> 15590 | F63: =IF(ISNA($A63),"",IFERROR(SUMIFS(D_D[BL],D_D[MT],5,D_D[CAT],SMS, D_D[EP],499,D_D[LOC],$A63),0)) -> 5759 | G63: 0.3694034638 | H63: =IF(ISNA($A63),"",IFERROR(SUMIFS(D_D[DEV],D_D[MT],5,D_D[CAT],SMS, D_D[EP],499,D_D[LOC],$A63)/$E63,0)) -> 0.01385503528 | I63: =IF(ISNA($A63),"",IFERROR(SUMIFS(D_D[EVD],D_D[MT],5,D_D[CAT],SMS, D_D[EP],499,D_D[LOC],$A63)/$E63,0)) -> 0.9062860808 | J63: =IF(ISNA($A63),"",IFERROR(SUMIFS(D_D[DEC],D_D[MT],5,D_D[CAT],SMS, D_D[EP],499,D_D[LOC],$A63)/$E63,0)) -> 0.07113534317 | K63: =IF(ISNA($A63),"",IFERROR(SUMIFS(D_D[AWD],D_D[MT],5,D_D[CAT],SMS, D_D[EP],499,D_D[LOC],$A63)/$E63,0)) -> 0.005452212957 | L63: =IF(ISNA($A63),"",IFERROR(SUMIFS(D_D[AUT],D_D[MT],5,D_D[CAT],SMS, D_D[EP],499,D_D[LOC],$A63)/$E63,0)) -> 0.003271327774
A64: NY307 | B64: 51 | C64: 0 | D64: =IFERROR(INDEX(INDIRECT(DS_NWQD),B64),"") -> Buffalo RO | E64: =IF(ISNA($A64),"",IFERROR(SUMIFS(D_D[INV],D_D[MT],5,D_D[CAT],SMS, D_D[EP],499,D_D[LOC],$A64),0)) -> 63 | F64: =IF(ISNA($A64),"",IFERROR(SUMIFS(D_D[BL],D_D[MT],5,D_D[CAT],SMS, D_D[EP],499,D_D[LOC],$A64),0)) -> 13 | G64: =IF(ISNA($A64),"",IFERROR(F64/E64,0)) -> 0.2063492063 | H64: =IF(ISNA($A64),"",IFERROR(SUMIFS(D_D[DEV],D_D[MT],5,D_D[CAT],SMS, D_D[EP],499,D_D[LOC],$A64)/$E64,0)) -> 0.4920634921 | I64: =IF(ISNA($A64),"",IFERROR(SUMIFS(D_D[EVD],D_D[MT],5,D_D[CAT],SMS, D_D[EP],499,D_D[LOC],$A64)/$E64,0)) -> 0.2857142857 | J64: =IF(ISNA($A64),"",IFERROR(SUMIFS(D_D[DEC],D_D[MT],5,D_D[CAT],SMS, D_D[EP],499,D_D[LOC],$A64)/$E64,0)) -> 0.2063492063 | K64: =IF(ISNA($A64),"",IFERROR(SUMIFS(D_D[AWD],D_D[MT],5,D_D[CAT],SMS, D_D[EP],499,D_D[LOC],$A64)/$E64,0)) -> 0.01587301587 | L64: =IF(ISNA($A64),"",IFERROR(SUMIFS(D_D[AUT],D_D[MT],5,D_D[CAT],SMS, D_D[EP],499,D_D[LOC],$A64)/$E64,0)) -> 0
A65: NY306 | B65: 52 | C65: 0 | D65: New York RO | E65: =IF(ISNA($A65),"",IFERROR(SUMIFS(D_D[INV],D_D[MT],5,D_D[CAT],SMS, D_D[EP],499,D_D[LOC],$A65),0)) -> 119 | F65: =IF(ISNA($A65),"",IFERROR(SUMIFS(D_D[BL],D_D[MT],5,D_D[CAT],SMS, D_D[EP],499,D_D[LOC],$A65),0)) -> 21 | G65: 0.1764705882 | H65: =IF(ISNA($A65),"",IFERROR(SUMIFS(D_D[DEV],D_D[MT],5,D_D[CAT],SMS, D_D[EP],499,D_D[LOC],$A65)/$E65,0)) -> 0.3697478992 | I65: =IF(ISNA($A65),"",IFERROR(SUMIFS(D_D[EVD],D_D[MT],5,D_D[CAT],SMS, D_D[EP],499,D_D[LOC],$A65)/$E65,0)) -> 0.4705882353 | J65: =IF(ISNA($A65),"",IFERROR(SUMIFS(D_D[DEC],D_D[MT],5,D_D[CAT],SMS, D_D[EP],499,D_D[LOC],$A65)/$E65,0)) -> 0.1260504202 | K65: =IF(ISNA($A65),"",IFERROR(SUMIFS(D_D[AWD],D_D[MT],5,D_D[CAT],SMS, D_D[EP],499,D_D[LOC],$A65)/$E65,0)) -> 0.01680672269 | L65: =IF(ISNA($A65),"",IFERROR(SUMIFS(D_D[AUT],D_D[MT],5,D_D[CAT],SMS, D_D[EP],499,D_D[LOC],$A65)/$E65,0)) -> 0.01680672269
A66: NY-1 | B66: 53 | C66: 0 | D66: New York-Other RO | E66: =IF(ISNA($A66),"",IFERROR(SUMIFS(D_D[INV],D_D[MT],5,D_D[CAT],SMS, D_D[EP],499,D_D[LOC],$A66),0)) -> 1612 | F66: =IF(ISNA($A66),"",IFERROR(SUMIFS(D_D[BL],D_D[MT],5,D_D[CAT],SMS, D_D[EP],499,D_D[LOC],$A66),0)) -> 720 | G66: 0.4466501241 | H66: =IF(ISNA($A66),"",IFERROR(SUMIFS(D_D[DEV],D_D[MT],5,D_D[CAT],SMS, D_D[EP],499,D_D[LOC],$A66)/$E66,0)) -> 0.05272952854 | I66: =IF(ISNA($A66),"",IFERROR(SUMIFS(D_D[EVD],D_D[MT],5,D_D[CAT],SMS, D_D[EP],499,D_D[LOC],$A66)/$E66,0)) -> 0.6253101737 | J66: =IF(ISNA($A66),"",IFERROR(SUMIFS(D_D[DEC],D_D[MT],5,D_D[CAT],SMS, D_D[EP],499,D_D[LOC],$A66)/$E66,0)) -> 0.2425558313 | K66: =IF(ISNA($A66),"",IFERROR(SUMIFS(D_D[AWD],D_D[MT],5,D_D[CAT],SMS, D_D[EP],499,D_D[LOC],$A66)/$E66,0)) -> 0.04900744417 | L66: =IF(ISNA($A66),"",IFERROR(SUMIFS(D_D[AUT],D_D[MT],5,D_D[CAT],SMS, D_D[EP],499,D_D[LOC],$A66)/$E66,0)) -> 0.03039702233
A67: NY499 | B67: 54 | C67: 0 | D67: New York-NWQ | E67: =IF(ISNA($A67),"",IFERROR(SUMIFS(D_D[INV],D_D[MT],5,D_D[CAT],SMS, D_D[EP],499,D_D[LOC],$A67),0)) -> 13796 | F67: =IF(ISNA($A67),"",IFERROR(SUMIFS(D_D[BL],D_D[MT],5,D_D[CAT],SMS, D_D[EP],499,D_D[LOC],$A67),0)) -> 5005 | G67: 0.3627863149 | H67: =IF(ISNA($A67),"",IFERROR(SUMIFS(D_D[DEV],D_D[MT],5,D_D[CAT],SMS, D_D[EP],499,D_D[LOC],$A67)/$E67,0)) -> 0.004059147579 | I67: =IF(ISNA($A67),"",IFERROR(SUMIFS(D_D[EVD],D_D[MT],5,D_D[CAT],SMS, D_D[EP],499,D_D[LOC],$A67)/$E67,0)) -> 0.9457089011 | J67: =IF(ISNA($A67),"",IFERROR(SUMIFS(D_D[DEC],D_D[MT],5,D_D[CAT],SMS, D_D[EP],499,D_D[LOC],$A67)/$E67,0)) -> 0.05001449696 | K67: =IF(ISNA($A67),"",IFERROR(SUMIFS(D_D[AWD],D_D[MT],5,D_D[CAT],SMS, D_D[EP],499,D_D[LOC],$A67)/$E67,0)) -> 0.0002174543346 | L67: =IF(ISNA($A67),"",IFERROR(SUMIFS(D_D[AUT],D_D[MT],5,D_D[CAT],SMS, D_D[EP],499,D_D[LOC],$A67)/$E67,0)) -> 0
A68: OH100 | B68: 55 | C68: Ohio | D68: Ohio-Total | E68: =IF(ISNA($A68),"",IFERROR(SUMIFS(D_D[INV],D_D[MT],5,D_D[CAT],SMS, D_D[EP],499,D_D[LOC],$A68),0)) -> 18002 | F68: =IF(ISNA($A68),"",IFERROR(SUMIFS(D_D[BL],D_D[MT],5,D_D[CAT],SMS, D_D[EP],499,D_D[LOC],$A68),0)) -> 5755 | G68: 0.3196867015 | H68: =IF(ISNA($A68),"",IFERROR(SUMIFS(D_D[DEV],D_D[MT],5,D_D[CAT],SMS, D_D[EP],499,D_D[LOC],$A68)/$E68,0)) -> 0.01777580269 | I68: =IF(ISNA($A68),"",IFERROR(SUMIFS(D_D[EVD],D_D[MT],5,D_D[CAT],SMS, D_D[EP],499,D_D[LOC],$A68)/$E68,0)) -> 0.8938451283 | J68: =IF(ISNA($A68),"",IFERROR(SUMIFS(D_D[DEC],D_D[MT],5,D_D[CAT],SMS, D_D[EP],499,D_D[LOC],$A68)/$E68,0)) -> 0.0786579269 | K68: =IF(ISNA($A68),"",IFERROR(SUMIFS(D_D[AWD],D_D[MT],5,D_D[CAT],SMS, D_D[EP],499,D_D[LOC],$A68)/$E68,0)) -> 0.006221530941 | L68: =IF(ISNA($A68),"",IFERROR(SUMIFS(D_D[AUT],D_D[MT],5,D_D[CAT],SMS, D_D[EP],499,D_D[LOC],$A68)/$E68,0)) -> 0.003499611154
A69: OH325 | B69: 56 | C69: 0 | D69: Cleveland RO | E69: =IF(ISNA($A69),"",IFERROR(SUMIFS(D_D[INV],D_D[MT],5,D_D[CAT],SMS, D_D[EP],499,D_D[LOC],$A69),0)) -> 260 | F69: =IF(ISNA($A69),"",IFERROR(SUMIFS(D_D[BL],D_D[MT],5,D_D[CAT],SMS, D_D[EP],499,D_D[LOC],$A69),0)) -> 48 | G69: 0.1846153846 | H69: =IF(ISNA($A69),"",IFERROR(SUMIFS(D_D[DEV],D_D[MT],5,D_D[CAT],SMS, D_D[EP],499,D_D[LOC],$A69)/$E69,0)) -> 0.3846153846 | I69: =IF(ISNA($A69),"",IFERROR(SUMIFS(D_D[EVD],D_D[MT],5,D_D[CAT],SMS, D_D[EP],499,D_D[LOC],$A69)/$E69,0)) -> 0.3730769231 | J69: =IF(ISNA($A69),"",IFERROR(SUMIFS(D_D[DEC],D_D[MT],5,D_D[CAT],SMS, D_D[EP],499,D_D[LOC],$A69)/$E69,0)) -> 0.1923076923 | K69: =IF(ISNA($A69),"",IFERROR(SUMIFS(D_D[AWD],D_D[MT],5,D_D[CAT],SMS, D_D[EP],499,D_D[LOC],$A69)/$E69,0)) -> 0.01923076923 | L69: =IF(ISNA($A69),"",IFERROR(SUMIFS(D_D[AUT],D_D[MT],5,D_D[CAT],SMS, D_D[EP],499,D_D[LOC],$A69)/$E69,0)) -> 0.03076923077
A70: OH-1 | B70: 57 | C70: 0 | D70: Ohio-Other RO | E70: =IF(ISNA($A70),"",IFERROR(SUMIFS(D_D[INV],D_D[MT],5,D_D[CAT],SMS, D_D[EP],499,D_D[LOC],$A70),0)) -> 2007 | F70: =IF(ISNA($A70),"",IFERROR(SUMIFS(D_D[BL],D_D[MT],5,D_D[CAT],SMS, D_D[EP],499,D_D[LOC],$A70),0)) -> 807 | G70: 0.4020926756 | H70: =IF(ISNA($A70),"",IFERROR(SUMIFS(D_D[DEV],D_D[MT],5,D_D[CAT],SMS, D_D[EP],499,D_D[LOC],$A70)/$E70,0)) -> 0.07324364723 | I70: =IF(ISNA($A70),"",IFERROR(SUMIFS(D_D[EVD],D_D[MT],5,D_D[CAT],SMS, D_D[EP],499,D_D[LOC],$A70)/$E70,0)) -> 0.6128550075 | J70: =IF(ISNA($A70),"",IFERROR(SUMIFS(D_D[DEC],D_D[MT],5,D_D[CAT],SMS, D_D[EP],499,D_D[LOC],$A70)/$E70,0)) -> 0.2366716492 | K70: =IF(ISNA($A70),"",IFERROR(SUMIFS(D_D[AWD],D_D[MT],5,D_D[CAT],SMS, D_D[EP],499,D_D[LOC],$A70)/$E70,0)) -> 0.05032386647 | L70: =IF(ISNA($A70),"",IFERROR(SUMIFS(D_D[AUT],D_D[MT],5,D_D[CAT],SMS, D_D[EP],499,D_D[LOC],$A70)/$E70,0)) -> 0.0269058296
A71: OH499 | B71: 58 | C71: 0 | D71: Ohio-NWQ | E71: =IF(ISNA($A71),"",IFERROR(SUMIFS(D_D[INV],D_D[MT],5,D_D[CAT],SMS, D_D[EP],499,D_D[LOC],$A71),0)) -> 15735 | F71: =IF(ISNA($A71),"",IFERROR(SUMIFS(D_D[BL],D_D[MT],5,D_D[CAT],SMS, D_D[EP],499,D_D[LOC],$A71),0)) -> 4900 | G71: 0.3114076899 | H71: =IF(ISNA($A71),"",IFERROR(SUMIFS(D_D[DEV],D_D[MT],5,D_D[CAT],SMS, D_D[EP],499,D_D[LOC],$A71)/$E71,0)) -> 0.004639339053 | I71: =IF(ISNA($A71),"",IFERROR(SUMIFS(D_D[EVD],D_D[MT],5,D_D[CAT],SMS, D_D[EP],499,D_D[LOC],$A71)/$E71,0)) -> 0.9382904353 | J71: =IF(ISNA($A71),"",IFERROR(SUMIFS(D_D[DEC],D_D[MT],5,D_D[CAT],SMS, D_D[EP],499,D_D[LOC],$A71)/$E71,0)) -> 0.05662535748 | K71: =IF(ISNA($A71),"",IFERROR(SUMIFS(D_D[AWD],D_D[MT],5,D_D[CAT],SMS, D_D[EP],499,D_D[LOC],$A71)/$E71,0)) -> 0.0003813155386 | L71: =IF(ISNA($A71),"",IFERROR(SUMIFS(D_D[AUT],D_D[MT],5,D_D[CAT],SMS, D_D[EP],499,D_D[LOC],$A71)/$E71,0)) -> 6.355258977e-05
A72: PA100 | B72: 59 | C72: Pennsylvania | D72: Pennsylvania-Total | E72: =IF(ISNA($A72),"",IFERROR(SUMIFS(D_D[INV],D_D[MT],5,D_D[CAT],SMS, D_D[EP],499,D_D[LOC],$A72),0)) -> 16325 | F72: =IF(ISNA($A72),"",IFERROR(SUMIFS(D_D[BL],D_D[MT],5,D_D[CAT],SMS, D_D[EP],499,D_D[LOC],$A72),0)) -> 5757 | G72: 0.3526493109 | H72: =IF(ISNA($A72),"",IFERROR(SUMIFS(D_D[DEV],D_D[MT],5,D_D[CAT],SMS, D_D[EP],499,D_D[LOC],$A72)/$E72,0)) -> 0.01372128637 | I72: =IF(ISNA($A72),"",IFERROR(SUMIFS(D_D[EVD],D_D[MT],5,D_D[CAT],SMS, D_D[EP],499,D_D[LOC],$A72)/$E72,0)) -> 0.9054211332 | J72: =IF(ISNA($A72),"",IFERROR(SUMIFS(D_D[DEC],D_D[MT],5,D_D[CAT],SMS, D_D[EP],499,D_D[LOC],$A72)/$E72,0)) -> 0.07258805513 | K72: =IF(ISNA($A72),"",IFERROR(SUMIFS(D_D[AWD],D_D[MT],5,D_D[CAT],SMS, D_D[EP],499,D_D[LOC],$A72)/$E72,0)) -> 0.005206738132 | L72: =IF(ISNA($A72),"",IFERROR(SUMIFS(D_D[AUT],D_D[MT],5,D_D[CAT],SMS, D_D[EP],499,D_D[LOC],$A72)/$E72,0)) -> 0.003062787136
A73: PA310 | B73: 60 | C73: 0 | D73: Philadelphia RO | E73: =IF(ISNA($A73),"",IFERROR(SUMIFS(D_D[INV],D_D[MT],5,D_D[CAT],SMS, D_D[EP],499,D_D[LOC],$A73),0)) -> 191 | F73: =IF(ISNA($A73),"",IFERROR(SUMIFS(D_D[BL],D_D[MT],5,D_D[CAT],SMS, D_D[EP],499,D_D[LOC],$A73),0)) -> 42 | G73: 0.219895288 | H73: =IF(ISNA($A73),"",IFERROR(SUMIFS(D_D[DEV],D_D[MT],5,D_D[CAT],SMS, D_D[EP],499,D_D[LOC],$A73)/$E73,0)) -> 0.2617801047 | I73: =IF(ISNA($A73),"",IFERROR(SUMIFS(D_D[EVD],D_D[MT],5,D_D[CAT],SMS, D_D[EP],499,D_D[LOC],$A73)/$E73,0)) -> 0.4345549738 | J73: =IF(ISNA($A73),"",IFERROR(SUMIFS(D_D[DEC],D_D[MT],5,D_D[CAT],SMS, D_D[EP],499,D_D[LOC],$A73)/$E73,0)) -> 0.2460732984 | K73: =IF(ISNA($A73),"",IFERROR(SUMIFS(D_D[AWD],D_D[MT],5,D_D[CAT],SMS, D_D[EP],499,D_D[LOC],$A73)/$E73,0)) -> 0.03141361257 | L73: =IF(ISNA($A73),"",IFERROR(SUMIFS(D_D[AUT],D_D[MT],5,D_D[CAT],SMS, D_D[EP],499,D_D[LOC],$A73)/$E73,0)) -> 0.02617801047
A74: PA311 | B74: 61 | C74: 0 | D74: Pittsburgh RO | E74: =IF(ISNA($A74),"",IFERROR(SUMIFS(D_D[INV],D_D[MT],5,D_D[CAT],SMS, D_D[EP],499,D_D[LOC],$A74),0)) -> 55 | F74: =IF(ISNA($A74),"",IFERROR(SUMIFS(D_D[BL],D_D[MT],5,D_D[CAT],SMS, D_D[EP],499,D_D[LOC],$A74),0)) -> 7 | G74: 0.1272727273 | H74: =IF(ISNA($A74),"",IFERROR(SUMIFS(D_D[DEV],D_D[MT],5,D_D[CAT],SMS, D_D[EP],499,D_D[LOC],$A74)/$E74,0)) -> 0.3818181818 | I74: =IF(ISNA($A74),"",IFERROR(SUMIFS(D_D[EVD],D_D[MT],5,D_D[CAT],SMS, D_D[EP],499,D_D[LOC],$A74)/$E74,0)) -> 0.4181818182 | J74: =IF(ISNA($A74),"",IFERROR(SUMIFS(D_D[DEC],D_D[MT],5,D_D[CAT],SMS, D_D[EP],499,D_D[LOC],$A74)/$E74,0)) -> 0.09090909091 | K74: =IF(ISNA($A74),"",IFERROR(SUMIFS(D_D[AWD],D_D[MT],5,D_D[CAT],SMS, D_D[EP],499,D_D[LOC],$A74)/$E74,0)) -> 0.03636363636 | L74: =IF(ISNA($A74),"",IFERROR(SUMIFS(D_D[AUT],D_D[MT],5,D_D[CAT],SMS, D_D[EP],499,D_D[LOC],$A74)/$E74,0)) -> 0.07272727273
A75: PA-1 | B75: 62 | C75: 0 | D75: Pennsylvania-Other RO | E75: =IF(ISNA($A75),"",IFERROR(SUMIFS(D_D[INV],D_D[MT],5,D_D[CAT],SMS, D_D[EP],499,D_D[LOC],$A75),0)) -> 1748 | F75: =IF(ISNA($A75),"",IFERROR(SUMIFS(D_D[BL],D_D[MT],5,D_D[CAT],SMS, D_D[EP],499,D_D[LOC],$A75),0)) -> 796 | G75: 0.4553775744 | H75: =IF(ISNA($A75),"",IFERROR(SUMIFS(D_D[DEV],D_D[MT],5,D_D[CAT],SMS, D_D[EP],499,D_D[LOC],$A75)/$E75,0)) -> 0.05778032037 | I75: =IF(ISNA($A75),"",IFERROR(SUMIFS(D_D[EVD],D_D[MT],5,D_D[CAT],SMS, D_D[EP],499,D_D[LOC],$A75)/$E75,0)) -> 0.6390160183 | J75: =IF(ISNA($A75),"",IFERROR(SUMIFS(D_D[DEC],D_D[MT],5,D_D[CAT],SMS, D_D[EP],499,D_D[LOC],$A75)/$E75,0)) -> 0.23798627 | K75: =IF(ISNA($A75),"",IFERROR(SUMIFS(D_D[AWD],D_D[MT],5,D_D[CAT],SMS, D_D[EP],499,D_D[LOC],$A75)/$E75,0)) -> 0.04233409611 | L75: =IF(ISNA($A75),"",IFERROR(SUMIFS(D_D[AUT],D_D[MT],5,D_D[CAT],SMS, D_D[EP],499,D_D[LOC],$A75)/$E75,0)) -> 0.02288329519
A76: PA499 | B76: 63 | C76: 0 | D76: Pennsylvania-NWQ | E76: =IF(ISNA($A76),"",IFERROR(SUMIFS(D_D[INV],D_D[MT],5,D_D[CAT],SMS, D_D[EP],499,D_D[LOC],$A76),0)) -> 14331 | F76: =IF(ISNA($A76),"",IFERROR(SUMIFS(D_D[BL],D_D[MT],5,D_D[CAT],SMS, D_D[EP],499,D_D[LOC],$A76),0)) -> 4912 | G76: 0.3427534715 | H76: =IF(ISNA($A76),"",IFERROR(SUMIFS(D_D[DEV],D_D[MT],5,D_D[CAT],SMS, D_D[EP],499,D_D[LOC],$A76)/$E76,0)) -> 0.003628497662 | I76: =IF(ISNA($A76),"",IFERROR(SUMIFS(D_D[EVD],D_D[MT],5,D_D[CAT],SMS, D_D[EP],499,D_D[LOC],$A76)/$E76,0)) -> 0.9460609867 | J76: =IF(ISNA($A76),"",IFERROR(SUMIFS(D_D[DEC],D_D[MT],5,D_D[CAT],SMS, D_D[EP],499,D_D[LOC],$A76)/$E76,0)) -> 0.05003140046 | K76: =IF(ISNA($A76),"",IFERROR(SUMIFS(D_D[AWD],D_D[MT],5,D_D[CAT],SMS, D_D[EP],499,D_D[LOC],$A76)/$E76,0)) -> 0.0002093364036 | L76: =IF(ISNA($A76),"",IFERROR(SUMIFS(D_D[AUT],D_D[MT],5,D_D[CAT],SMS, D_D[EP],499,D_D[LOC],$A76)/$E76,0)) -> 6.97788012e-05
A77: RI100 | B77: 64 | C77: Rhode Island | D77: Rhode Island-Total | E77: =IF(ISNA($A77),"",IFERROR(SUMIFS(D_D[INV],D_D[MT],5,D_D[CAT],SMS, D_D[EP],499,D_D[LOC],$A77),0)) -> 1636 | F77: =IF(ISNA($A77),"",IFERROR(SUMIFS(D_D[BL],D_D[MT],5,D_D[CAT],SMS, D_D[EP],499,D_D[LOC],$A77),0)) -> 634 | G77: 0.3875305623 | H77: =IF(ISNA($A77),"",IFERROR(SUMIFS(D_D[DEV],D_D[MT],5,D_D[CAT],SMS, D_D[EP],499,D_D[LOC],$A77)/$E77,0)) -> 0.01466992665 | I77: =IF(ISNA($A77),"",IFERROR(SUMIFS(D_D[EVD],D_D[MT],5,D_D[CAT],SMS, D_D[EP],499,D_D[LOC],$A77)/$E77,0)) -> 0.9077017115 | J77: =IF(ISNA($A77),"",IFERROR(SUMIFS(D_D[DEC],D_D[MT],5,D_D[CAT],SMS, D_D[EP],499,D_D[LOC],$A77)/$E77,0)) -> 0.06479217604 | K77: =IF(ISNA($A77),"",IFERROR(SUMIFS(D_D[AWD],D_D[MT],5,D_D[CAT],SMS, D_D[EP],499,D_D[LOC],$A77)/$E77,0)) -> 0.0097799511 | L77: =IF(ISNA($A77),"",IFERROR(SUMIFS(D_D[AUT],D_D[MT],5,D_D[CAT],SMS, D_D[EP],499,D_D[LOC],$A77)/$E77,0)) -> 0.003056234719
A78: RI304 | B78: 65 | C78: 0 | D78: Providence RO | E78: =IF(ISNA($A78),"",IFERROR(SUMIFS(D_D[INV],D_D[MT],5,D_D[CAT],SMS, D_D[EP],499,D_D[LOC],$A78),0)) -> 30 | F78: =IF(ISNA($A78),"",IFERROR(SUMIFS(D_D[BL],D_D[MT],5,D_D[CAT],SMS, D_D[EP],499,D_D[LOC],$A78),0)) -> 9 | G78: 0.3 | H78: =IF(ISNA($A78),"",IFERROR(SUMIFS(D_D[DEV],D_D[MT],5,D_D[CAT],SMS, D_D[EP],499,D_D[LOC],$A78)/$E78,0)) -> 0.4333333333 | I78: =IF(ISNA($A78),"",IFERROR(SUMIFS(D_D[EVD],D_D[MT],5,D_D[CAT],SMS, D_D[EP],499,D_D[LOC],$A78)/$E78,0)) -> 0.4333333333 | J78: =IF(ISNA($A78),"",IFERROR(SUMIFS(D_D[DEC],D_D[MT],5,D_D[CAT],SMS, D_D[EP],499,D_D[LOC],$A78)/$E78,0)) -> 0.1333333333 | K78: =IF(ISNA($A78),"",IFERROR(SUMIFS(D_D[AWD],D_D[MT],5,D_D[CAT],SMS, D_D[EP],499,D_D[LOC],$A78)/$E78,0)) -> 0 | L78: =IF(ISNA($A78),"",IFERROR(SUMIFS(D_D[AUT],D_D[MT],5,D_D[CAT],SMS, D_D[EP],499,D_D[LOC],$A78)/$E78,0)) -> 0
A79: RI-1 | B79: 66 | C79: 0 | D79: Rhode Island-Other RO | E79: =IF(ISNA($A79),"",IFERROR(SUMIFS(D_D[INV],D_D[MT],5,D_D[CAT],SMS, D_D[EP],499,D_D[LOC],$A79),0)) -> 193 | F79: =IF(ISNA($A79),"",IFERROR(SUMIFS(D_D[BL],D_D[MT],5,D_D[CAT],SMS, D_D[EP],499,D_D[LOC],$A79),0)) -> 84 | G79: 0.4352331606 | H79: =IF(ISNA($A79),"",IFERROR(SUMIFS(D_D[DEV],D_D[MT],5,D_D[CAT],SMS, D_D[EP],499,D_D[LOC],$A79)/$E79,0)) -> 0.0310880829 | I79: =IF(ISNA($A79),"",IFERROR(SUMIFS(D_D[EVD],D_D[MT],5,D_D[CAT],SMS, D_D[EP],499,D_D[LOC],$A79)/$E79,0)) -> 0.6321243523 | J79: =IF(ISNA($A79),"",IFERROR(SUMIFS(D_D[DEC],D_D[MT],5,D_D[CAT],SMS, D_D[EP],499,D_D[LOC],$A79)/$E79,0)) -> 0.2331606218 | K79: =IF(ISNA($A79),"",IFERROR(SUMIFS(D_D[AWD],D_D[MT],5,D_D[CAT],SMS, D_D[EP],499,D_D[LOC],$A79)/$E79,0)) -> 0.07772020725 | L79: =IF(ISNA($A79),"",IFERROR(SUMIFS(D_D[AUT],D_D[MT],5,D_D[CAT],SMS, D_D[EP],499,D_D[LOC],$A79)/$E79,0)) -> 0.02590673575
A80: RI499 | B80: 67 | C80: 0 | D80: Rhode Island-NWQ | E80: =IF(ISNA($A80),"",IFERROR(SUMIFS(D_D[INV],D_D[MT],5,D_D[CAT],SMS, D_D[EP],499,D_D[LOC],$A80),0)) -> 1413 | F80: =IF(ISNA($A80),"",IFERROR(SUMIFS(D_D[BL],D_D[MT],5,D_D[CAT],SMS, D_D[EP],499,D_D[LOC],$A80),0)) -> 541 | G80: 0.3828733192 | H80: =IF(ISNA($A80),"",IFERROR(SUMIFS(D_D[DEV],D_D[MT],5,D_D[CAT],SMS, D_D[EP],499,D_D[LOC],$A80)/$E80,0)) -> 0.003538570418 | I80: =IF(ISNA($A80),"",IFERROR(SUMIFS(D_D[EVD],D_D[MT],5,D_D[CAT],SMS, D_D[EP],499,D_D[LOC],$A80)/$E80,0)) -> 0.9554140127 | J80: =IF(ISNA($A80),"",IFERROR(SUMIFS(D_D[DEC],D_D[MT],5,D_D[CAT],SMS, D_D[EP],499,D_D[LOC],$A80)/$E80,0)) -> 0.04033970276 | K80: =IF(ISNA($A80),"",IFERROR(SUMIFS(D_D[AWD],D_D[MT],5,D_D[CAT],SMS, D_D[EP],499,D_D[LOC],$A80)/$E80,0)) -> 0.0007077140835 | L80: =IF(ISNA($A80),"",IFERROR(SUMIFS(D_D[AUT],D_D[MT],5,D_D[CAT],SMS, D_D[EP],499,D_D[LOC],$A80)/$E80,0)) -> 0
A81: VT100 | B81: 68 | C81: =IFERROR(INDEX(INDIRECT(DS_NWQ),B81),"") -> Vermont | D81: Vermont-Total | E81: =IF(ISNA($A81),"",IFERROR(SUMIFS(D_D[INV],D_D[MT],5,D_D[CAT],SMS, D_D[EP],499,D_D[LOC],$A81),0)) -> 763 | F81: =IF(ISNA($A81),"",IFERROR(SUMIFS(D_D[BL],D_D[MT],5,D_D[CAT],SMS, D_D[EP],499,D_D[LOC],$A81),0)) -> 359 | G81: 0.4705111402 | H81: =IF(ISNA($A81),"",IFERROR(SUMIFS(D_D[DEV],D_D[MT],5,D_D[CAT],SMS, D_D[EP],499,D_D[LOC],$A81)/$E81,0)) -> 0.009174311927 | I81: =IF(ISNA($A81),"",IFERROR(SUMIFS(D_D[EVD],D_D[MT],5,D_D[CAT],SMS, D_D[EP],499,D_D[LOC],$A81)/$E81,0)) -> 0.9161205767 | J81: =IF(ISNA($A81),"",IFERROR(SUMIFS(D_D[DEC],D_D[MT],5,D_D[CAT],SMS, D_D[EP],499,D_D[LOC],$A81)/$E81,0)) -> 0.0629095675 | K81: =IF(ISNA($A81),"",IFERROR(SUMIFS(D_D[AWD],D_D[MT],5,D_D[CAT],SMS, D_D[EP],499,D_D[LOC],$A81)/$E81,0)) -> 0.009174311927 | L81: =IF(ISNA($A81),"",IFERROR(SUMIFS(D_D[AUT],D_D[MT],5,D_D[CAT],SMS, D_D[EP],499,D_D[LOC],$A81)/$E81,0)) -> 0.002621231979
A82: VT405 | B82: 69 | C82: 0 | D82: =IFERROR(INDEX(INDIRECT(DS_NWQD),B82),"") -> White River RO | E82: =IF(ISNA($A82),"",IFERROR(SUMIFS(D_D[INV],D_D[MT],5,D_D[CAT],SMS, D_D[EP],499,D_D[LOC],$A82),0)) -> 2 | F82: =IF(ISNA($A82),"",IFERROR(SUMIFS(D_D[BL],D_D[MT],5,D_D[CAT],SMS, D_D[EP],499,D_D[LOC],$A82),0)) -> 0 | G82: =IF(ISNA($A82),"",IFERROR(F82/E82,0)) -> 0 | H82: =IF(ISNA($A82),"",IFERROR(SUMIFS(D_D[DEV],D_D[MT],5,D_D[CAT],SMS, D_D[EP],499,D_D[LOC],$A82)/$E82,0)) -> 0.5 | I82: =IF(ISNA($A82),"",IFERROR(SUMIFS(D_D[EVD],D_D[MT],5,D_D[CAT],SMS, D_D[EP],499,D_D[LOC],$A82)/$E82,0)) -> 0.5 | J82: =IF(ISNA($A82),"",IFERROR(SUMIFS(D_D[DEC],D_D[MT],5,D_D[CAT],SMS, D_D[EP],499,D_D[LOC],$A82)/$E82,0)) -> 0 | K82: =IF(ISNA($A82),"",IFERROR(SUMIFS(D_D[AWD],D_D[MT],5,D_D[CAT],SMS, D_D[EP],499,D_D[LOC],$A82)/$E82,0)) -> 0 | L82: =IF(ISNA($A82),"",IFERROR(SUMIFS(D_D[AUT],D_D[MT],5,D_D[CAT],SMS, D_D[EP],499,D_D[LOC],$A82)/$E82,0)) -> 0
A83: VT-1 | B83: 70 | C83: 0 | D83: Vermont-Other RO | E83: =IF(ISNA($A83),"",IFERROR(SUMIFS(D_D[INV],D_D[MT],5,D_D[CAT],SMS, D_D[EP],499,D_D[LOC],$A83),0)) -> 96 | F83: =IF(ISNA($A83),"",IFERROR(SUMIFS(D_D[BL],D_D[MT],5,D_D[CAT],SMS, D_D[EP],499,D_D[LOC],$A83),0)) -> 44 | G83: 0.4583333333 | H83: =IF(ISNA($A83),"",IFERROR(SUMIFS(D_D[DEV],D_D[MT],5,D_D[CAT],SMS, D_D[EP],499,D_D[LOC],$A83)/$E83,0)) -> 0.04166666667 | I83: =IF(ISNA($A83),"",IFERROR(SUMIFS(D_D[EVD],D_D[MT],5,D_D[CAT],SMS, D_D[EP],499,D_D[LOC],$A83)/$E83,0)) -> 0.625 | J83: =IF(ISNA($A83),"",IFERROR(SUMIFS(D_D[DEC],D_D[MT],5,D_D[CAT],SMS, D_D[EP],499,D_D[LOC],$A83)/$E83,0)) -> 0.2395833333 | K83: =IF(ISNA($A83),"",IFERROR(SUMIFS(D_D[AWD],D_D[MT],5,D_D[CAT],SMS, D_D[EP],499,D_D[LOC],$A83)/$E83,0)) -> 0.07291666667 | L83: =IF(ISNA($A83),"",IFERROR(SUMIFS(D_D[AUT],D_D[MT],5,D_D[CAT],SMS, D_D[EP],499,D_D[LOC],$A83)/$E83,0)) -> 0.02083333333
A84: VT499 | B84: 71 | C84: 0 | D84: Vermont-NWQ | E84: =IF(ISNA($A84),"",IFERROR(SUMIFS(D_D[INV],D_D[MT],5,D_D[CAT],SMS, D_D[EP],499,D_D[LOC],$A84),0)) -> 665 | F84: =IF(ISNA($A84),"",IFERROR(SUMIFS(D_D[BL],D_D[MT],5,D_D[CAT],SMS, D_D[EP],499,D_D[LOC],$A84),0)) -> 315 | G84: 0.4736842105 | H84: =IF(ISNA($A84),"",IFERROR(SUMIFS(D_D[DEV],D_D[MT],5,D_D[CAT],SMS, D_D[EP],499,D_D[LOC],$A84)/$E84,0)) -> 0.003007518797 | I84: =IF(ISNA($A84),"",IFERROR(SUMIFS(D_D[EVD],D_D[MT],5,D_D[CAT],SMS, D_D[EP],499,D_D[LOC],$A84)/$E84,0)) -> 0.9593984962 | J84: =IF(ISNA($A84),"",IFERROR(SUMIFS(D_D[DEC],D_D[MT],5,D_D[CAT],SMS, D_D[EP],499,D_D[LOC],$A84)/$E84,0)) -> 0.03759398496 | K84: =IF(ISNA($A84),"",IFERROR(SUMIFS(D_D[AWD],D_D[MT],5,D_D[CAT],SMS, D_D[EP],499,D_D[LOC],$A84)/$E84,0)) -> 0 | L84: =IF(ISNA($A84),"",IFERROR(SUMIFS(D_D[AUT],D_D[MT],5,D_D[CAT],SMS, D_D[EP],499,D_D[LOC],$A84)/$E84,0)) -> 0
A85: WI100 | B85: 72 | C85: Wisconsin | D85: Wisconsin-Total | E85: =IF(ISNA($A85),"",IFERROR(SUMIFS(D_D[INV],D_D[MT],5,D_D[CAT],SMS, D_D[EP],499,D_D[LOC],$A85),0)) -> 8881 | F85: =IF(ISNA($A85),"",IFERROR(SUMIFS(D_D[BL],D_D[MT],5,D_D[CAT],SMS, D_D[EP],499,D_D[LOC],$A85),0)) -> 3383 | G85: 0.3809255714 | H85: =IF(ISNA($A85),"",IFERROR(SUMIFS(D_D[DEV],D_D[MT],5,D_D[CAT],SMS, D_D[EP],499,D_D[LOC],$A85)/$E85,0)) -> 0.01520099088 | I85: =IF(ISNA($A85),"",IFERROR(SUMIFS(D_D[EVD],D_D[MT],5,D_D[CAT],SMS, D_D[EP],499,D_D[LOC],$A85)/$E85,0)) -> 0.8955072627 | J85: =IF(ISNA($A85),"",IFERROR(SUMIFS(D_D[DEC],D_D[MT],5,D_D[CAT],SMS, D_D[EP],499,D_D[LOC],$A85)/$E85,0)) -> 0.08197275082 | K85: =IF(ISNA($A85),"",IFERROR(SUMIFS(D_D[AWD],D_D[MT],5,D_D[CAT],SMS, D_D[EP],499,D_D[LOC],$A85)/$E85,0)) -> 0.00506699696 | L85: =IF(ISNA($A85),"",IFERROR(SUMIFS(D_D[AUT],D_D[MT],5,D_D[CAT],SMS, D_D[EP],499,D_D[LOC],$A85)/$E85,0)) -> 0.002251998649
A86: WI330 | B86: 73 | C86: 0 | D86: Milwaukee RO | E86: =IF(ISNA($A86),"",IFERROR(SUMIFS(D_D[INV],D_D[MT],5,D_D[CAT],SMS, D_D[EP],499,D_D[LOC],$A86),0)) -> 76 | F86: =IF(ISNA($A86),"",IFERROR(SUMIFS(D_D[BL],D_D[MT],5,D_D[CAT],SMS, D_D[EP],499,D_D[LOC],$A86),0)) -> 11 | G86: 0.1447368421 | H86: =IF(ISNA($A86),"",IFERROR(SUMIFS(D_D[DEV],D_D[MT],5,D_D[CAT],SMS, D_D[EP],499,D_D[LOC],$A86)/$E86,0)) -> 0.4473684211 | I86: =IF(ISNA($A86),"",IFERROR(SUMIFS(D_D[EVD],D_D[MT],5,D_D[CAT],SMS, D_D[EP],499,D_D[LOC],$A86)/$E86,0)) -> 0.2368421053 | J86: =IF(ISNA($A86),"",IFERROR(SUMIFS(D_D[DEC],D_D[MT],5,D_D[CAT],SMS, D_D[EP],499,D_D[LOC],$A86)/$E86,0)) -> 0.2368421053 | K86: =IF(ISNA($A86),"",IFERROR(SUMIFS(D_D[AWD],D_D[MT],5,D_D[CAT],SMS, D_D[EP],499,D_D[LOC],$A86)/$E86,0)) -> 0.01315789474 | L86: =IF(ISNA($A86),"",IFERROR(SUMIFS(D_D[AUT],D_D[MT],5,D_D[CAT],SMS, D_D[EP],499,D_D[LOC],$A86)/$E86,0)) -> 0.06578947368
A87: WI-1 | B87: 74 | C87: 0 | D87: Wisconsin-Other RO | E87: =IF(ISNA($A87),"",IFERROR(SUMIFS(D_D[INV],D_D[MT],5,D_D[CAT],SMS, D_D[EP],499,D_D[LOC],$A87),0)) -> 1003 | F87: =IF(ISNA($A87),"",IFERROR(SUMIFS(D_D[BL],D_D[MT],5,D_D[CAT],SMS, D_D[EP],499,D_D[LOC],$A87),0)) -> 475 | G87: 0.4735792622 | H87: =IF(ISNA($A87),"",IFERROR(SUMIFS(D_D[DEV],D_D[MT],5,D_D[CAT],SMS, D_D[EP],499,D_D[LOC],$A87)/$E87,0)) -> 0.05682951147 | I87: =IF(ISNA($A87),"",IFERROR(SUMIFS(D_D[EVD],D_D[MT],5,D_D[CAT],SMS, D_D[EP],499,D_D[LOC],$A87)/$E87,0)) -> 0.666001994 | J87: =IF(ISNA($A87),"",IFERROR(SUMIFS(D_D[DEC],D_D[MT],5,D_D[CAT],SMS, D_D[EP],499,D_D[LOC],$A87)/$E87,0)) -> 0.2203389831 | K87: =IF(ISNA($A87),"",IFERROR(SUMIFS(D_D[AWD],D_D[MT],5,D_D[CAT],SMS, D_D[EP],499,D_D[LOC],$A87)/$E87,0)) -> 0.04187437687 | L87: =IF(ISNA($A87),"",IFERROR(SUMIFS(D_D[AUT],D_D[MT],5,D_D[CAT],SMS, D_D[EP],499,D_D[LOC],$A87)/$E87,0)) -> 0.0149551346
A88: WI499 | B88: 75 | C88: 0 | D88: Wisconsin-NWQ | E88: =IF(ISNA($A88),"",IFERROR(SUMIFS(D_D[INV],D_D[MT],5,D_D[CAT],SMS, D_D[EP],499,D_D[LOC],$A88),0)) -> 7802 | F88: =IF(ISNA($A88),"",IFERROR(SUMIFS(D_D[BL],D_D[MT],5,D_D[CAT],SMS, D_D[EP],499,D_D[LOC],$A88),0)) -> 2897 | G88: 0.3713150474 | H88: =IF(ISNA($A88),"",IFERROR(SUMIFS(D_D[DEV],D_D[MT],5,D_D[CAT],SMS, D_D[EP],499,D_D[LOC],$A88)/$E88,0)) -> 0.005639579595 | I88: =IF(ISNA($A88),"",IFERROR(SUMIFS(D_D[EVD],D_D[MT],5,D_D[CAT],SMS, D_D[EP],499,D_D[LOC],$A88)/$E88,0)) -> 0.931427839 | J88: =IF(ISNA($A88),"",IFERROR(SUMIFS(D_D[DEC],D_D[MT],5,D_D[CAT],SMS, D_D[EP],499,D_D[LOC],$A88)/$E88,0)) -> 0.06267623686 | K88: =IF(ISNA($A88),"",IFERROR(SUMIFS(D_D[AWD],D_D[MT],5,D_D[CAT],SMS, D_D[EP],499,D_D[LOC],$A88)/$E88,0)) -> 0.000256344527 | L88: =IF(ISNA($A88),"",IFERROR(SUMIFS(D_D[AUT],D_D[MT],5,D_D[CAT],SMS, D_D[EP],499,D_D[LOC],$A88)/$E88,0)) -> 0
B89: 77 | D89: =IFERROR(INDEX(INDIRECT(DS_NWQD),B89),"") ->  | E89: =IF(ISNA($A89),"",IFERROR(SUMIFS(D_D[INV],D_D[MT],5,D_D[CAT],SMS, D_D[EP],499,D_D[LOC],$A89),0)) ->  | F89: =IF(ISNA($A89),"",IFERROR(SUMIFS(D_D[BL],D_D[MT],5,D_D[CAT],SMS, D_D[EP],499,D_D[LOC],$A89),0)) ->  | G89: =IF(ISNA($A89),"",IFERROR(F89/E89,0)) ->  | H89: =IF(ISNA($A89),"",IFERROR(SUMIFS(D_D[DEV],D_D[MT],5,D_D[CAT],SMS, D_D[EP],499,D_D[LOC],$A89)/$E89,0)) ->  | I89: =IF(ISNA($A89),"",IFERROR(SUMIFS(D_D[EVD],D_D[MT],5,D_D[CAT],SMS, D_D[EP],499,D_D[LOC],$A89)/$E89,0)) ->  | J89: =IF(ISNA($A89),"",IFERROR(SUMIFS(D_D[DEC],D_D[MT],5,D_D[CAT],SMS, D_D[EP],499,D_D[LOC],$A89)/$E89,0)) ->  | K89: =IF(ISNA($A89),"",IFERROR(SUMIFS(D_D[AWD],D_D[MT],5,D_D[CAT],SMS, D_D[EP],499,D_D[LOC],$A89)/$E89,0)) ->  | L89: =IF(ISNA($A89),"",IFERROR(SUMIFS(D_D[AUT],D_D[MT],5,D_D[CAT],SMS, D_D[EP],499,D_D[LOC],$A89)/$E89,0)) -> 

Sheet Traditional Aggregate (TA)
B2: ="Compensation and Pension National Inventory - Historical Reporting Bundles* - Data through " -> Compensation and Pension National Inventory - Historical Reporting Bundles* - Data through | H2: =D_DT[] -> 2021-06-26
B3: *The data on this page represents historical, alternative reporting on VBA claims processing. VBA actively measures and monitors these workloads, but the bundles are not specifically tied to VBA's strategic target 125 Days and 98% Accuracy. The Rating Bundle measures are the only claims processing bundle that is directly related to the strategic 2015 goals. End products which are included in the Rating Bundle group are highlighted in green.
B4: Compensation Entitlement | G4: Pension Entitlement | L4: Legacy Appeals
B5: Measurement | C5: Claims Pending | D5: Pending over 125 days | E5: Percent Pending over 125 days | G5: Measurement | H5: Claims Pending | I5: Pending over 125 days | J5: Percent Pending over 125 days | L5: Measurement | M5: Appeals Pending | N5: Average Days Pending
B6: Original Entitlement - Veterans1 | C6: =SUM(C7:C9) -> 140501 | D6: =SUM(D7:D9) -> 69471 | E6: =IFERROR(D6/C6,0) -> 0.4944519968 | G6: Original Entitlement | H6: =SUM(H7:H9) -> 6014 | I6: =SUM(I7:I9) -> 579 | J6: =IFERROR(I6/H6,0) -> 0.0962753575 | K6: 1 | L6: Notice of Disagreements | M6: =IFERROR(SUMIFS(D_D[INV],D_D[MT],7,D_D[CAT],1,D_D[EP],$K6),0) -> 1715 | N6: =IFERROR(SUMIFS(D_D[ADP],D_D[MT],7,D_D[CAT],1,D_D[EP],$K6),0) -> 1192.21
A7: 095 | B7: EP 095 - Initial entitlement decisions for Voc Rehab | C7: =IFERROR(SUMIFS(D_D[INV],D_D[MT],3,D_D[CAT],TA_21,D_D[EP],$A7),0) -> 5 | D7: =IFERROR(SUMIFS(D_D[BL],D_D[MT],3,D_D[CAT],TA_21,D_D[EP],$A7),0) -> 0 | E7: =IFERROR(D7/C7,0) -> 0 | F7: 180 | G7: EP 180 - Initial entitlement - Veteran | H7: =IFERROR(SUMIFS(D_D[INV],D_D[MT],3,D_D[CAT],TA_31,D_D[EP],$F7),0) -> 2307 | I7: =IFERROR(SUMIFS(D_D[BL],D_D[MT],3,D_D[CAT],TA_31,D_D[EP],$F7),0) -> 283 | J7: 0.1226701344 | K7: 9 | L7: Statement of the Case* | M7: =IFERROR(SUMIFS(D_D[INV],D_D[MT],7,D_D[CAT],1,D_D[EP],$K7),0) -> 540 | N7: =IFERROR(SUMIFS(D_D[ADP],D_D[MT],7,D_D[CAT],1,D_D[EP],$K7),0) -> 1384.13
A8: 010 | B8: EP 010 - Initial entitlement for service-connected disability (=>8) | C8: =IFERROR(SUMIFS(D_D[INV],D_D[MT],3,D_D[CAT],TA_21,D_D[EP],$A8),0) -> 49284 | D8: =IFERROR(SUMIFS(D_D[BL],D_D[MT],3,D_D[CAT],TA_21,D_D[EP],$A8),0) -> 25579 | E8: 0.5190122555 | F8: 120 | G8: EP 120 - Increased entitlement and/or reconsideration | H8: =IFERROR(SUMIFS(D_D[INV],D_D[MT],3,D_D[CAT],TA_31,D_D[EP],$F8),0) -> 1035 | I8: =IFERROR(SUMIFS(D_D[BL],D_D[MT],3,D_D[CAT],TA_31,D_D[EP],$F8),0) -> 88 | J8: 0.08502415459 | K8: 2 | L8: Form 9s | M8: =IFERROR(SUMIFS(D_D[INV],D_D[MT],7,D_D[CAT],1,D_D[EP],$K8),0) -> 591 | N8: =IFERROR(SUMIFS(D_D[ADP],D_D[MT],7,D_D[CAT],1,D_D[EP],$K8),0) -> 773.21
A9: 110 | B9: EP 110 - Initial entitlement for service-connected disability (<=7) | C9: =IFERROR(SUMIFS(D_D[INV],D_D[MT],3,D_D[CAT],TA_21,D_D[EP],$A9),0) -> 91212 | D9: =IFERROR(SUMIFS(D_D[BL],D_D[MT],3,D_D[CAT],TA_21,D_D[EP],$A9),0) -> 43892 | E9: 0.4812086129 | F9: 190 | G9: EP 190 - Initial entitlement - Survivor | H9: =IFERROR(SUMIFS(D_D[INV],D_D[MT],3,D_D[CAT],TA_31,D_D[EP],$F9),0) -> 2672 | I9: =IFERROR(SUMIFS(D_D[BL],D_D[MT],3,D_D[CAT],TA_31,D_D[EP],$F9),0) -> 208 | J9: 0.07784431138 | K9: 3 | L9: Remands | M9: =IFERROR(SUMIFS(D_D[INV],D_D[MT],7,D_D[CAT],1,D_D[EP],$K9),0) -> 29092 | N9: =IFERROR(SUMIFS(D_D[ADP],D_D[MT],7,D_D[CAT],1,D_D[EP],$K9),0) -> 292.41
B10: Original Entitlement - Survivors2 | C10: =SUM(C11:C12) -> 8312 | D10: =SUM(D11:D12) -> 2923 | E10: 0.3516602502 | G10: Pension Award Adjustments | H10: =SUM(H11:H16) -> 1170 | I10: =SUM(I11:I16) -> 56 | J10: 0.04786324786 | L10: Total Appeals Pending Under VBA control | M10: =M6+M7+M8+M9 -> 31938
A11: 140 | B11: EP 140 - Initial claims from surviving spouses, children or parents | C11: =IFERROR(SUMIFS(D_D[INV],D_D[MT],3,D_D[CAT],TA_21,D_D[EP],$A11),0) -> 8267 | D11: =IFERROR(SUMIFS(D_D[BL],D_D[MT],3,D_D[CAT],TA_21,D_D[EP],$A11),0) -> 2910 | E11: 0.3520019354 | F11: 135 | G11: EP 135 - Hospitalization adjustment (non-rating) | H11: =IFERROR(SUMIFS(D_D[INV],D_D[MT],3,D_D[CAT],TA_32,D_D[EP],$F11),0) -> 41 | I11: =IFERROR(SUMIFS(D_D[BL],D_D[MT],3,D_D[CAT],TA_32,D_D[EP],$F11),0) -> 2 | J11: =IFERROR(I11/H11,0) -> 0.0487804878 | L11: *the veteran has 60 days to respond to an SOC to continue onto the Form 9 stage
A12: 410 | B12: EP 410 - Initial claims from Veterans' children with Spina bifida and/or birth defects | C12: =IFERROR(SUMIFS(D_D[INV],D_D[MT],3,D_D[CAT],TA_21,D_D[EP],$A12),0) -> 45 | D12: =IFERROR(SUMIFS(D_D[BL],D_D[MT],3,D_D[CAT],TA_21,D_D[EP],$A12),0) -> 13 | E12: 0.2888888889 | F12: 137 | G12: EP 137 - Dependency | H12: =IFERROR(SUMIFS(D_D[INV],D_D[MT],3,D_D[CAT],TA_32,D_D[EP],$F12),0) -> 0 | I12: =IFERROR(SUMIFS(D_D[BL],D_D[MT],3,D_D[CAT],TA_32,D_D[EP],$F12),0) -> 0 | J12: 0 | L12: RAMP (Rapid Appeals Modernization Program)
B13: Supplemental Entitlement | C13: =SUM(C14:C17) -> 258400 | D13: =SUM(D14:D17) -> 93428 | E13: 0.3615634675 | F13: 150G | G13: EP 150 - Income adjustments | H13: =IFERROR(SUMIFS(D_D[INV],D_D[MT],3,D_D[CAT],TA_32,D_D[EP],$F13),0) -> 1107 | I13: =IFERROR(SUMIFS(D_D[BL],D_D[MT],3,D_D[CAT],TA_32,D_D[EP],$F13),0) -> 52 | J13: 0.04697380307 | K13: 7 | L13: EP 682 - Higher Level Review | M13: =IFERROR(SUMIFS(D_D[INV],D_D[MT],7,D_D[CAT],1,D_D[EP],$K13),0) -> 1 | N13: =IFERROR(SUMIFS(D_D[ADP],D_D[MT],7,D_D[CAT],1,D_D[EP],$K13),0) -> 33
A14: 040 | B14: EP 040 - Supplemental Claims (AMA) | C14: =IFERROR(SUMIFS(D_D[INV],D_D[MT],3,D_D[CAT],TA_21,D_D[EP],$A14),0) -> 57359 | D14: =IFERROR(SUMIFS(D_D[BL],D_D[MT],3,D_D[CAT],TA_21,D_D[EP],$A14),0) -> 23569 | E14: 0.4109032584 | F14: 155 | G14: EP 155 - Annual eligibility verification reporting (EVRs) | H14: =IFERROR(SUMIFS(D_D[INV],D_D[MT],3,D_D[CAT],TA_32,D_D[EP],$F14),0) -> 0 | I14: =IFERROR(SUMIFS(D_D[BL],D_D[MT],3,D_D[CAT],TA_32,D_D[EP],$F14),0) -> 0 | J14: 0 | K14: 8 | L14: EP 683 - Supplemental Evidence | M14: =IFERROR(SUMIFS(D_D[INV],D_D[MT],7,D_D[CAT],1,D_D[EP],$K14),0) -> 34 | N14: =IFERROR(SUMIFS(D_D[ADP],D_D[MT],7,D_D[CAT],1,D_D[EP],$K14),0) -> 844.5
A15: 020 | B15: EP 020 - Increased evaluation and/or additional claimed conditions | C15: =IFERROR(SUMIFS(D_D[INV],D_D[MT],3,D_D[CAT],TA_21,D_D[EP],$A15),0) -> 200751 | D15: =IFERROR(SUMIFS(D_D[BL],D_D[MT],3,D_D[CAT],TA_21,D_D[EP],$A15),0) -> 69830 | E15: 0.3478438464 | F15: 297 | G15: EP 297 - Misc determinations | H15: =IFERROR(SUMIFS(D_D[INV],D_D[MT],3,D_D[CAT],TA_32,D_D[EP],$F15),0) -> 2 | I15: =IFERROR(SUMIFS(D_D[BL],D_D[MT],3,D_D[CAT],TA_32,D_D[EP],$F15),0) -> 1 | J15: 0.5 | K15: 6 | L15: Total RAMP | M15: =IFERROR(SUMIFS(D_D[INV],D_D[MT],7,D_D[CAT],1,D_D[EP],$K15),0) -> 35 | N15: =IFERROR(SUMIFS(D_D[ADP],D_D[MT],7,D_D[CAT],1,D_D[EP],$K15),0) -> 821.31
A16: 320 | B16: EP 320 -Increased entitlement due to hospitalization or surgery | C16: =IFERROR(SUMIFS(D_D[INV],D_D[MT],3,D_D[CAT],TA_21,D_D[EP],$A16),0) -> 285 | D16: =IFERROR(SUMIFS(D_D[BL],D_D[MT],3,D_D[CAT],TA_21,D_D[EP],$A16),0) -> 27 | E16: 0.09473684211 | F16: 607 | G16: EP 607 - Due process | H16: =IFERROR(SUMIFS(D_D[INV],D_D[MT],3,D_D[CAT],TA_32,D_D[EP],$F16),0) -> 20 | I16: =IFERROR(SUMIFS(D_D[BL],D_D[MT],3,D_D[CAT],TA_32,D_D[EP],$F16),0) -> 1 | J16: 0.05
A17: 420 | B17: EP 420 - Spina bifida and/or birth defects reconsideration | C17: =IFERROR(SUMIFS(D_D[INV],D_D[MT],3,D_D[CAT],TA_21,D_D[EP],$A17),0) -> 5 | D17: =IFERROR(SUMIFS(D_D[BL],D_D[MT],3,D_D[CAT],TA_21,D_D[EP],$A17),0) -> 2 | E17: 0.4 | G17: Program Reviews | H17: =SUM(H18:H20) -> 313 | I17: =SUM(I18:I20) -> 303 | J17: =IFERROR(I17/H17,0) -> 0.9680511182 | L17: DROC Decision Review Workload (AMA)
A18: 12 | B18: Award Adjustments | C18: =SUM(C19:C25) -> 101861 | D18: =SUM(D19:D25) -> 21258 | E18: 0.2086961644 | F18: 154 | G18: EP 154 - Income Verification Match | H18: =IFERROR(SUMIFS(D_D[INV],D_D[MT],3,D_D[CAT],TA_33,D_D[EP],$F18),0) -> 6 | I18: =IFERROR(SUMIFS(D_D[BL],D_D[MT],3,D_D[CAT],TA_33,D_D[EP],$F18),0) -> 5 | J18: 0.8333333333 | M18: Claims Pending | N18: Average Days Pending
A19: 130G | B19: EP 130 - Dependency | C19: =IFERROR(SUMIFS(D_D[INV],D_D[MT],3,D_D[CAT],TA_22,D_D[EP],$A19),0) -> 10438 | D19: =IFERROR(SUMIFS(D_D[BL],D_D[MT],3,D_D[CAT],TA_22,D_D[EP],$A19),0) -> 1478 | E19: =IFERROR(D19/C19,0) -> 0.1415980073 | F19: 696 | G19: EP 696 - Cost of Living Adjustments | H19: =IFERROR(SUMIFS(D_D[INV],D_D[MT],3,D_D[CAT],TA_33,D_D[EP],$F19),0) -> 307 | I19: =IFERROR(SUMIFS(D_D[BL],D_D[MT],3,D_D[CAT],TA_33,D_D[EP],$F19),0) -> 298 | J19: 0.9706840391 | K19: 1 | L19: EP 030 - Higher-Level Reviews (HLR) | M19: =IFERROR(SUMIFS(D_D[INV],D_D[MT],12,D_D[CAT],9000,D_D[EP],$K19),0) -> 18458 | N19: =IFERROR(SUMIFS(D_D[ADP],D_D[MT],12,D_D[CAT],9000,D_D[EP],$K19),0) -> 36.22792285
A20: 133 | B20: EP 133 - Survivor restored entitlement | C20: =IFERROR(SUMIFS(D_D[INV],D_D[MT],3,D_D[CAT],TA_22,D_D[EP],$A20),0) -> 0 | D20: =IFERROR(SUMIFS(D_D[BL],D_D[MT],3,D_D[CAT],TA_22,D_D[EP],$A20),0) -> 0 | E20: 0 | F20: 697 | G20: EP 697 - Non-entitlement reviews | H20: =IFERROR(SUMIFS(D_D[INV],D_D[MT],3,D_D[CAT],TA_33,D_D[EP],$F20),0) -> 0 | I20: =IFERROR(SUMIFS(D_D[BL],D_D[MT],3,D_D[CAT],TA_33,D_D[EP],$F20),0) -> 0 | J20: 0 | K20: 1.1 | L20: HLR - Compensation | M20: =IFERROR(SUMIFS(D_D[INV],D_D[MT],12,D_D[CAT],9000,D_D[EP],$K20),0) -> 17881 | N20: =IFERROR(SUMIFS(D_D[ADP],D_D[MT],12,D_D[CAT],9000,D_D[EP],$K20),0) -> 35.71852805
A21: 135 | B21: EP 135 - Hospitalization adjustment (non-rating) | C21: =IFERROR(SUMIFS(D_D[INV],D_D[MT],3,D_D[CAT],TA_22,D_D[EP],$A21),0) -> 43 | D21: =IFERROR(SUMIFS(D_D[BL],D_D[MT],3,D_D[CAT],TA_22,D_D[EP],$A21),0) -> 1 | E21: 0.02325581395 | G21: Pension Other | H21: =SUM(H22:H25) -> 127 | I21: =SUM(I22:I25) -> 13 | J21: =IFERROR(I21/H21,0) -> 0.1023622047 | K21: 1.2 | L21: HLR - Pension | M21: =IFERROR(SUMIFS(D_D[INV],D_D[MT],12,D_D[CAT],9000,D_D[EP],$K21),0) -> 577 | N21: =IFERROR(SUMIFS(D_D[ADP],D_D[MT],12,D_D[CAT],9000,D_D[EP],$K21),0) -> 52.01386482
A22: 290G | B22: EP 290 - Misc determinations | C22: =IFERROR(SUMIFS(D_D[INV],D_D[MT],3,D_D[CAT],TA_22,D_D[EP],$A22),0) -> 25569 | D22: =IFERROR(SUMIFS(D_D[BL],D_D[MT],3,D_D[CAT],TA_22,D_D[EP],$A22),0) -> 4626 | E22: 0.1809222105 | F22: 407 | G22: EP 407 - Correspondence | H22: =IFERROR(SUMIFS(D_D[INV],D_D[MT],3,D_D[CAT],TA_34,D_D[EP],$F22),0) -> 115 | I22: =IFERROR(SUMIFS(D_D[BL],D_D[MT],3,D_D[CAT],TA_34,D_D[EP],$F22),0) -> 10 | J22: 0.08695652174 | K22: 2 | L22: EP 040 - Higher-Level Review Returns (HLRR) | M22: =IFERROR(SUMIFS(D_D[INV],D_D[MT],12,D_D[CAT],9000,D_D[EP],$K22),0) -> 11038 | N22: =IFERROR(SUMIFS(D_D[ADP],D_D[MT],12,D_D[CAT],9000,D_D[EP],$K22),0) -> 101.9459141
A23: 450 | B23: EP 450 - Spina bifida and/or birth defects adjustments | C23: =IFERROR(SUMIFS(D_D[INV],D_D[MT],3,D_D[CAT],TA_22,D_D[EP],$A23),0) -> 9 | D23: =IFERROR(SUMIFS(D_D[BL],D_D[MT],3,D_D[CAT],TA_22,D_D[EP],$A23),0) -> 6 | E23: 0.6666666667 | F23: 507 | G23: EP 507 - Congressional correspondence | H23: =IFERROR(SUMIFS(D_D[INV],D_D[MT],3,D_D[CAT],TA_34,D_D[EP],$F23),0) -> 0 | I23: =IFERROR(SUMIFS(D_D[BL],D_D[MT],3,D_D[CAT],TA_34,D_D[EP],$F23),0) -> 0 | J23: 0 | K23: 2.1 | L23: HLRR - Compensation | M23: =IFERROR(SUMIFS(D_D[INV],D_D[MT],12,D_D[CAT],9000,D_D[EP],$K23),0) -> 10799 | N23: =IFERROR(SUMIFS(D_D[ADP],D_D[MT],12,D_D[CAT],9000,D_D[EP],$K23),0) -> 101.2428003
A24: 310G | B24: EP 310 -Future examination for disabilities | C24: =IFERROR(SUMIFS(D_D[INV],D_D[MT],3,D_D[CAT],TA_22,D_D[EP],$A24),0) -> 15175 | D24: =IFERROR(SUMIFS(D_D[BL],D_D[MT],3,D_D[CAT],TA_22,D_D[EP],$A24),0) -> 5465 | E24: 0.3601317957 | F24: 937 | G24: EP 937 - Internal quality reviews | H24: =IFERROR(SUMIFS(D_D[INV],D_D[MT],3,D_D[CAT],TA_34,D_D[EP],$F24),0) -> 12 | I24: =IFERROR(SUMIFS(D_D[BL],D_D[MT],3,D_D[CAT],TA_34,D_D[EP],$F24),0) -> 3 | J24: 0.25 | K24: 2.2 | L24: HLRR - Pension | M24: =IFERROR(SUMIFS(D_D[INV],D_D[MT],12,D_D[CAT],9000,D_D[EP],$K24),0) -> 239 | N24: =IFERROR(SUMIFS(D_D[ADP],D_D[MT],12,D_D[CAT],9000,D_D[EP],$K24),0) -> 133.7154812
A25: 600G | B25: EP 600 - Due process | C25: =IFERROR(SUMIFS(D_D[INV],D_D[MT],3,D_D[CAT],TA_22,D_D[EP],$A25),0) -> 50627 | D25: =IFERROR(SUMIFS(D_D[BL],D_D[MT],3,D_D[CAT],TA_22,D_D[EP],$A25),0) -> 9682 | E25: 0.1912418275 | F25: 967 | G25: EP 967 - Correction of errors | H25: =IFERROR(SUMIFS(D_D[INV],D_D[MT],3,D_D[CAT],TA_34,D_D[EP],$F25),0) -> 0 | I25: =IFERROR(SUMIFS(D_D[BL],D_D[MT],3,D_D[CAT],TA_34,D_D[EP],$F25),0) -> 0 | J25: 0 | K25: 3 | L25: EP 040 - Board AMA Returns (Remands) | M25: =IFERROR(SUMIFS(D_D[INV],D_D[MT],12,D_D[CAT],9000,D_D[EP],$K25),0) -> 3213 | N25: =IFERROR(SUMIFS(D_D[ADP],D_D[MT],12,D_D[CAT],9000,D_D[EP],$K25),0) -> 160.1101774
B26: Program Reviews | C26: =SUM(C27:C33) -> 544 | D26: =SUM(D27:D33) -> 303 | E26: =IFERROR(D26/C26,0) -> 0.5569852941 | G26: Pension Burial/Accrued | H26: =SUM(H27:H29) -> 1619 | I26: =SUM(I27:I29) -> 777 | J26: =IFERROR(I26/H26,0) -> 0.4799258802 | K26: 3.1 | L26: Remands - Compensation | M26: =IFERROR(SUMIFS(D_D[INV],D_D[MT],12,D_D[CAT],9000,D_D[EP],$K26),0) -> 3127 | N26: =IFERROR(SUMIFS(D_D[ADP],D_D[MT],12,D_D[CAT],9000,D_D[EP],$K26),0) -> 160.5756316
A27: 314 | B27: EP 314 - Income verification for unemployability | C27: =IFERROR(SUMIFS(D_D[INV],D_D[MT],3,D_D[CAT],TA_23,D_D[EP],$A27),0) -> 0 | D27: =IFERROR(SUMIFS(D_D[BL],D_D[MT],3,D_D[CAT],TA_23,D_D[EP],$A27),0) -> 0 | E27: 0 | F27: 167 | G27: EP 167 - Burials | H27: =IFERROR(SUMIFS(D_D[INV],D_D[MT],3,D_D[CAT],TA_35,D_D[EP],$F27),0) -> 0 | I27: =IFERROR(SUMIFS(D_D[BL],D_D[MT],3,D_D[CAT],TA_35,D_D[EP],$F27),0) -> 0 | J27: 0 | K27: 3.2 | L27: Remands - Pension | M27: =IFERROR(SUMIFS(D_D[INV],D_D[MT],12,D_D[CAT],9000,D_D[EP],$K27),0) -> 86 | N27: =IFERROR(SUMIFS(D_D[ADP],D_D[MT],12,D_D[CAT],9000,D_D[EP],$K27),0) -> 143.1860465
A28: 680G | B28: EP 680 - Review of Hemodialysis related cases/conditions | C28: =IFERROR(SUMIFS(D_D[INV],D_D[MT],3,D_D[CAT],TA_23,D_D[EP],$A28),0) -> 66 | D28: =IFERROR(SUMIFS(D_D[BL],D_D[MT],3,D_D[CAT],TA_23,D_D[EP],$A28),0) -> 38 | E28: 0.5757575758 | F28: 165 | G28: EP 165 - Accrued | H28: =IFERROR(SUMIFS(D_D[INV],D_D[MT],3,D_D[CAT],TA_36,D_D[EP],$F28),0) -> 1619 | I28: =IFERROR(SUMIFS(D_D[BL],D_D[MT],3,D_D[CAT],TA_36,D_D[EP],$F28),0) -> 777 | J28: 0.4799258802 | K28: 4 | L28: EP 030 - Board AMA Full Grants | M28: =IFERROR(SUMIFS(D_D[INV],D_D[MT],12,D_D[CAT],9000,D_D[EP],$K28),0) -> 491 | N28: =IFERROR(SUMIFS(D_D[ADP],D_D[MT],12,D_D[CAT],9000,D_D[EP],$K28),0) -> 78.61507128
A29: 682 | B29: EP 682 - Review of Radiation related cases/conditions | C29: =IFERROR(SUMIFS(D_D[INV],D_D[MT],3,D_D[CAT],TA_23,D_D[EP],$A29),0) -> 0 | D29: =IFERROR(SUMIFS(D_D[BL],D_D[MT],3,D_D[CAT],TA_23,D_D[EP],$A29),0) -> 0 | E29: 0 | K29: 4.1 | L29: Grants - Compensation | M29: =IFERROR(SUMIFS(D_D[INV],D_D[MT],12,D_D[CAT],9000,D_D[EP],$K29),0) -> 450 | N29: =IFERROR(SUMIFS(D_D[ADP],D_D[MT],12,D_D[CAT],9000,D_D[EP],$K29),0) -> 79.20222222
A30: 684 | B30: EP 684 - Review of Misc cases referred to central office | C30: =IFERROR(SUMIFS(D_D[INV],D_D[MT],3,D_D[CAT],TA_23,D_D[EP],$A30),0) -> 1 | D30: =IFERROR(SUMIFS(D_D[BL],D_D[MT],3,D_D[CAT],TA_23,D_D[EP],$A30),0) -> 0 | E30: 0 | K30: 4.2 | L30: Grants - Pension | M30: =IFERROR(SUMIFS(D_D[INV],D_D[MT],12,D_D[CAT],9000,D_D[EP],$K30),0) -> 41 | N30: =IFERROR(SUMIFS(D_D[ADP],D_D[MT],12,D_D[CAT],9000,D_D[EP],$K30),0) -> 72.17073171
A31: 685 | B31: EP 685 - Review of effective date related to herbicide exposure | C31: =IFERROR(SUMIFS(D_D[INV],D_D[MT],3,D_D[CAT],TA_23,D_D[EP],$A31),0) -> 307 | D31: =IFERROR(SUMIFS(D_D[BL],D_D[MT],3,D_D[CAT],TA_23,D_D[EP],$A31),0) -> 240 | E31: 0.7817589577
A32: 690G | B32: EP 690 - Cost of Living Adjustments (COLAs) and other reviews | C32: =IFERROR(SUMIFS(D_D[INV],D_D[MT],3,D_D[CAT],TA_23,D_D[EP],$A32),0) -> 170 | D32: =IFERROR(SUMIFS(D_D[BL],D_D[MT],3,D_D[CAT],TA_23,D_D[EP],$A32),0) -> 25 | E32: 0.1470588235 | L32: Integrated Disability Evaluation System (IDES)
A33: 690 | B33: EP 690 - Social Security number verification | C33: =IFERROR(SUMIFS(D_D[INV],D_D[MT],3,D_D[CAT],TA_23,D_D[EP],$A33),0) -> 0 | D33: =IFERROR(SUMIFS(D_D[BL],D_D[MT],3,D_D[CAT],TA_23,D_D[EP],$A33),0) -> 0 | E33: 0 | L33: Number of IDES claims pending | N33: =IFERROR(SUMIFS(D_D[INV],D_D[MT],10,D_D[CAT],1,D_D[EP],-1),0) -> 23017
B34: Compensation Other | C34: =SUM(C35:C45) -> 205154 | D34: =SUM(D35:D45) -> 35820 | E34: =IFERROR(D34/C34,0) -> 0.174600544
A35: 335 | B35: EP 335 - Blue Water Navy (Agent Orange) | C35: =IFERROR(SUMIFS(D_D[INV],D_D[MT],3,D_D[CAT],TA_24,D_D[EP],$A35),0) -> 17261 | D35: =IFERROR(SUMIFS(D_D[BL],D_D[MT],3,D_D[CAT],TA_24,D_D[EP],$A35),0) -> 15854 | E35: =IFERROR(D35/C35,0) -> 0.9184867621
A36: 400G | B36: EP 400 - Correspondence | C36: =IFERROR(SUMIFS(D_D[INV],D_D[MT],3,D_D[CAT],TA_24,D_D[EP],$A36),0) -> 9972 | D36: =IFERROR(SUMIFS(D_D[BL],D_D[MT],3,D_D[CAT],TA_24,D_D[EP],$A36),0) -> 884 | E36: 0.088648215
A37: 500G | B37: EP 500 - Congressional correspondence | C37: =IFERROR(SUMIFS(D_D[INV],D_D[MT],3,D_D[CAT],TA_24,D_D[EP],$A37),0) -> 184 | D37: =IFERROR(SUMIFS(D_D[BL],D_D[MT],3,D_D[CAT],TA_24,D_D[EP],$A37),0) -> 7 | E37: 0.03804347826
A38: 510 | B38: EP 510 - Freedom of Information Act (FOIA) requests | C38: =IFERROR(SUMIFS(D_D[INV],D_D[MT],3,D_D[CAT],TA_24,D_D[EP],$A38),0) -> 42339 | D38: =IFERROR(SUMIFS(D_D[BL],D_D[MT],3,D_D[CAT],TA_24,D_D[EP],$A38),0) -> 10207 | E38: 0.2410779659
A39: 930G | B39: EP 930 - Review, including quality assurance | C39: =IFERROR(SUMIFS(D_D[INV],D_D[MT],3,D_D[CAT],TA_24,D_D[EP],$A39),0) -> 10596 | D39: =IFERROR(SUMIFS(D_D[BL],D_D[MT],3,D_D[CAT],TA_24,D_D[EP],$A39),0) -> 8354 | E39: 0.788410721
A40: 960G | B40: EP 960 - Correction of errors | C40: =IFERROR(SUMIFS(D_D[INV],D_D[MT],3,D_D[CAT],TA_24,D_D[EP],$A40),0) -> 593 | D40: =IFERROR(SUMIFS(D_D[BL],D_D[MT],3,D_D[CAT],TA_24,D_D[EP],$A40),0) -> 99 | E40: 0.1669477234
A41: 681 | B41: EP 681 - Used to control claims under the Nehmer Agent Orange stipulation | C41: =IFERROR(SUMIFS(D_D[INV],D_D[MT],3,D_D[CAT],TA_24,D_D[EP],$A41),0) -> 111 | D41: =IFERROR(SUMIFS(D_D[BL],D_D[MT],3,D_D[CAT],TA_24,D_D[EP],$A41),0) -> 67 | E41: =IFERROR(D41/C41,0) -> 0.6036036036
A42: 687 | B42: EP 687 - Nehmer Agent Orange Presumptive | C42: =IFERROR(SUMIFS(D_D[INV],D_D[MT],3,D_D[CAT],TA_24,D_D[EP],$A42),0) -> 54765 | D42: =IFERROR(SUMIFS(D_D[BL],D_D[MT],3,D_D[CAT],TA_24,D_D[EP],$A42),0) -> 18 | E42: =IFERROR(D42/C42,0) -> 0.0003286770748
A43: 688 | B43: EP 688 - NDAA Nehmer Agent Orange Reviews | C43: =IFERROR(SUMIFS(D_D[INV],D_D[MT],3,D_D[CAT],TA_24,D_D[EP],$A43),0) -> 69323 | D43: =IFERROR(SUMIFS(D_D[BL],D_D[MT],3,D_D[CAT],TA_24,D_D[EP],$A43),0) -> 323 | E43: =IFERROR(D43/C43,0) -> 0.004659348268
A44: 405 | B44: EP 405 - Reopened or new Agent Orange claims between 9/01/10 and 10/24/2011 | C44: =IFERROR(SUMIFS(D_D[INV],D_D[MT],3,D_D[CAT],TA_24,D_D[EP],$A44),0) -> 0 | D44: =IFERROR(SUMIFS(D_D[BL],D_D[MT],3,D_D[CAT],TA_24,D_D[EP],$A44),0) -> 0 | E44: =IFERROR(D44/C44,0) -> 0
A45: 409 | B45: EP 409 - Agent Orange claims where an interim decision was provided; No longer used as of 10/24/2011 | C45: =IFERROR(SUMIFS(D_D[INV],D_D[MT],3,D_D[CAT],TA_24,D_D[EP],$A45),0) -> 10 | D45: =IFERROR(SUMIFS(D_D[BL],D_D[MT],3,D_D[CAT],TA_24,D_D[EP],$A45),0) -> 7 | E45: =IFERROR(D45/C45,0) -> 0.7
B46: Compensation Burial/Accrued | C46: =SUM(C47:C49) -> 7712 | D46: =SUM(D47:D49) -> 1891 | E46: =IFERROR(D46/C46,0) -> 0.2452022822
A47: 160G | B47: EP 160 - Burials | C47: =IFERROR(SUMIFS(D_D[INV],D_D[MT],3,D_D[CAT],TA_25,D_D[EP],$A47),0) -> 5279 | D47: =IFERROR(SUMIFS(D_D[BL],D_D[MT],3,D_D[CAT],TA_25,D_D[EP],$A47),0) -> 1579 | E47: 0.2991096799
A48: 165 | B48: EP 165 - Accrued | C48: =IFERROR(SUMIFS(D_D[INV],D_D[MT],3,D_D[CAT],TA_26,D_D[EP],$A48),0) -> 2433 | D48: =IFERROR(SUMIFS(D_D[BL],D_D[MT],3,D_D[CAT],TA_26,D_D[EP],$A48),0) -> 312 | E48: 0.1282367448

Sheet Diarys and Future Claims
B1: Compensation and Pension Diary and Future Claims - Historical Reporting Bundles* - Data through | F1: =D_DT[] -> 2021-06-26
B2: The data on this page represents future claims that VA is aware of. A portion of these claims roll into the traditional Rating Bundle group of end-products (EP) once the date of claim matures.
B3: Compensation Entitlement | E3: Pension Entitlement
B4: Measurement | C4: Claims Pending | E4: Measurement | F4: Claims Pending
B5: Original Entitlement - Veterans1 | C5: =SUM(C6:C8) -> 17507 | E5: Original Entitlement | F5: =SUM(F6:F8) -> 0
A6: 095 | B6: EP 095 - Initial entitlement decisions for Voc Rehab | C6: =IFERROR(SUMIFS(D_D[INV],D_D[MT],11,D_D[CAT],TA_21,D_D[EP],$A6),0) -> 0 | D6: 180 | E6: EP 180 - Initial entitlement - Veteran | F6: =IFERROR(SUMIFS(D_D[INV],D_D[MT],11,D_D[CAT],TA_31,D_D[EP],$D6),0) -> 0
A7: 010 | B7: EP 010 - Initial entitlement for service-connected disability (=>8) | C7: =IFERROR(SUMIFS(D_D[INV],D_D[MT],11,D_D[CAT],TA_21,D_D[EP],$A7),0) -> 14400 | D7: 120 | E7: EP 120 - Increased entitlement and/or reconsideration | F7: =IFERROR(SUMIFS(D_D[INV],D_D[MT],11,D_D[CAT],TA_31,D_D[EP],$D7),0) -> 0
A8: 110 | B8: EP 110 - Initial entitlement for service-connected disability (<=7) | C8: =IFERROR(SUMIFS(D_D[INV],D_D[MT],11,D_D[CAT],TA_21,D_D[EP],$A8),0) -> 3107 | D8: 190 | E8: EP 190 - Initial entitlement - Survivor | F8: =IFERROR(SUMIFS(D_D[INV],D_D[MT],11,D_D[CAT],TA_31,D_D[EP],$D8),0) -> 0
B9: Original Entitlement - Survivors2 | C9: =SUM(C10:C11) -> 0 | E9: Pension Award Adjustments | F9: =SUM(F10:F15) -> 0
A10: 140 | B10: EP 140 - Initial claims from surviving spouses, children or parents | C10: =IFERROR(SUMIFS(D_D[INV],D_D[MT],11,D_D[CAT],TA_21,D_D[EP],$A10),0) -> 0 | D10: 135 | E10: EP 135 - Hospitalization adjustment (non-rating) | F10: =IFERROR(SUMIFS(D_D[INV],D_D[MT],11,D_D[CAT],TA_31,D_D[EP],$D10),0) -> 0
A11: 410 | B11: EP 410 - Initial claims from Veterans' children with Spina bifida and/or birth defects | C11: =IFERROR(SUMIFS(D_D[INV],D_D[MT],11,D_D[CAT],TA_21,D_D[EP],$A11),0) -> 0 | D11: 137 | E11: EP 137 - Dependency | F11: =IFERROR(SUMIFS(D_D[INV],D_D[MT],11,D_D[CAT],TA_31,D_D[EP],$D11),0) -> 0
B12: Supplemental Entitlement | C12: =SUM(C13:C16) -> 567 | D12: 150G | E12: EP 150 - Income adjustments | F12: =IFERROR(SUMIFS(D_D[INV],D_D[MT],11,D_D[CAT],TA_31,D_D[EP],$D12),0) -> 0
A13: 040 | B13: EP 040 - Decision Review Request | C13: =IFERROR(SUMIFS(D_D[INV],D_D[MT],11,D_D[CAT],TA_21,D_D[EP],$A13),0) -> 0 | D13: 155 | E13: EP 155 - Annual eligibility verification reporting (EVRs) | F13: =IFERROR(SUMIFS(D_D[INV],D_D[MT],11,D_D[CAT],TA_31,D_D[EP],$D13),0) -> 0
A14: 020 | B14: EP 020 - Increased evaluation and/or additional claimed conditions | C14: =IFERROR(SUMIFS(D_D[INV],D_D[MT],11,D_D[CAT],TA_21,D_D[EP],$A14),0) -> 567 | D14: 297 | E14: EP 297 - Misc determinations | F14: =IFERROR(SUMIFS(D_D[INV],D_D[MT],11,D_D[CAT],TA_31,D_D[EP],$D14),0) -> 0
A15: 320 | B15: EP 320 -Increased entitlement due to hospitalization or surgery | C15: =IFERROR(SUMIFS(D_D[INV],D_D[MT],11,D_D[CAT],TA_21,D_D[EP],$A15),0) -> 0 | D15: 607 | E15: EP 607 - Due process | F15: =IFERROR(SUMIFS(D_D[INV],D_D[MT],11,D_D[CAT],TA_31,D_D[EP],$D15),0) -> 0
A16: 420 | B16: EP 420 - Spina bifida and/or birth defects reconsideration | C16: =IFERROR(SUMIFS(D_D[INV],D_D[MT],11,D_D[CAT],TA_21,D_D[EP],$A16),0) -> 0 | E16: Program Reviews | F16: =SUM(F17:F19) -> 0
A17: 12 | B17: Award Adjustments | C17: =SUM(C18:C24) -> 15 | D17: 154 | E17: EP 154 - Income Verification Match | F17: =IFERROR(SUMIFS(D_D[INV],D_D[MT],11,D_D[CAT],TA_31,D_D[EP],$D17),0) -> 0
A18: 130G | B18: EP 130 - Dependency | C18: =IFERROR(SUMIFS(D_D[INV],D_D[MT],11,D_D[CAT],TA_22,D_D[EP],$A18),0) -> 6 | D18: 696 | E18: EP 696 - Cost of Living Adjustments | F18: =IFERROR(SUMIFS(D_D[INV],D_D[MT],11,D_D[CAT],TA_31,D_D[EP],$D18),0) -> 0
A19: 133 | B19: EP 133 - Survivor restored entitlement | C19: =IFERROR(SUMIFS(D_D[INV],D_D[MT],11,D_D[CAT],TA_22,D_D[EP],$A19),0) -> 0 | D19: 697 | E19: EP 697 - Non-entitlement reviews | F19: =IFERROR(SUMIFS(D_D[INV],D_D[MT],11,D_D[CAT],TA_31,D_D[EP],$D19),0) -> 0
A20: 135 | B20: EP 135 - Hospitalization adjustment (non-rating) | C20: =IFERROR(SUMIFS(D_D[INV],D_D[MT],11,D_D[CAT],TA_22,D_D[EP],$A20),0) -> 0 | E20: Pension Other | F20: =SUM(F21:F24) -> 0
A21: 290G | B21: EP 290 - Misc determinations | C21: =IFERROR(SUMIFS(D_D[INV],D_D[MT],11,D_D[CAT],TA_22,D_D[EP],$A21),0) -> 9 | D21: 407 | E21: EP 407 - Correspondence | F21: =IFERROR(SUMIFS(D_D[INV],D_D[MT],11,D_D[CAT],TA_31,D_D[EP],$D21),0) -> 0
A22: 450 | B22: EP 450 - Spina bifida and/or birth defects adjustments | C22: =IFERROR(SUMIFS(D_D[INV],D_D[MT],11,D_D[CAT],TA_22,D_D[EP],$A22),0) -> 0 | D22: 507 | E22: EP 507 - Congressional correspondence | F22: =IFERROR(SUMIFS(D_D[INV],D_D[MT],11,D_D[CAT],TA_31,D_D[EP],$D22),0) -> 0
A23: 310G | B23: EP 310 -Future examination for disabilities | C23: =IFERROR(SUMIFS(D_D[INV],D_D[MT],11,D_D[CAT],TA_22,D_D[EP],$A23),0) -> 0 | D23: 937 | E23: EP 937 - Internal quality reviews | F23: =IFERROR(SUMIFS(D_D[INV],D_D[MT],11,D_D[CAT],TA_31,D_D[EP],$D23),0) -> 0
A24: 600G | B24: EP 600 - Due process | C24: =IFERROR(SUMIFS(D_D[INV],D_D[MT],11,D_D[CAT],TA_22,D_D[EP],$A24),0) -> 0 | D24: 967 | E24: EP 967 - Correction of errors | F24: =IFERROR(SUMIFS(D_D[INV],D_D[MT],11,D_D[CAT],TA_31,D_D[EP],$D24),0) -> 0
B25: Program Reviews | C25: =SUM(C26:C33) -> 837 | E25: Pension Burial/Accrued | F25: =SUM(F26:F27) -> 0
A26: 314 | B26: EP 314 - Income verification for unemployability | C26: =IFERROR(SUMIFS(D_D[INV],D_D[MT],11,D_D[CAT],TA_23,D_D[EP],$A26),0) -> 0 | D26: 167 | E26: EP 167 - Burials | F26: =IFERROR(SUMIFS(D_D[INV],D_D[MT],11,D_D[CAT],TA_31,D_D[EP],$D26),0) -> 0
A27: 330 | B27: EP 330 - Reviews | C27: =IFERROR(SUMIFS(D_D[INV],D_D[MT],11,D_D[CAT],TA_23,D_D[EP],$A27),0) -> 837 | D27: 165 | E27: EP 165 - Accrued | F27: =IFERROR(SUMIFS(D_D[INV],D_D[MT],11,D_D[CAT],TA_31,D_D[EP],$D27),0) -> 0
A28: 680G | B28: EP 680 - Review of Hemodialysis related cases/conditions | C28: =IFERROR(SUMIFS(D_D[INV],D_D[MT],11,D_D[CAT],TA_23,D_D[EP],$A28),0) -> 0
A29: 682 | B29: EP 682 - Review of Radiation related cases/conditions | C29: =IFERROR(SUMIFS(D_D[INV],D_D[MT],11,D_D[CAT],TA_23,D_D[EP],$A29),0) -> 0
A30: 684 | B30: EP 684 - Review of Misc cases referred to central office | C30: =IFERROR(SUMIFS(D_D[INV],D_D[MT],11,D_D[CAT],TA_23,D_D[EP],$A30),0) -> 0 | E30: Integrated Disability Evaluation System (IDES)
A31: 685 | B31: EP 685 - Review of effective date related to herbicide exposure | C31: =IFERROR(SUMIFS(D_D[INV],D_D[MT],11,D_D[CAT],TA_23,D_D[EP],$A31),0) -> 0 | E31: EP 689 - IDES | F31: =IFERROR(SUMIFS(D_D[INV],D_D[MT],11,D_D[CAT],1,D_D[EP],-1),0) -> 1
A32: 690G | B32: EP 690 - Cost of Living Adjustments (COLAs) and other reviews | C32: =IFERROR(SUMIFS(D_D[INV],D_D[MT],11,D_D[CAT],TA_23,D_D[EP],$A32),0) -> 0
A33: 690 | B33: EP 690 - Social Security number verification | C33: =IFERROR(SUMIFS(D_D[INV],D_D[MT],11,D_D[CAT],TA_23,D_D[EP],$A33),0) -> 0
B34: Compensation Other | C34: =SUM(C35:C44) -> 56
A35: 335 | B35: EP 335 - Blue Water Navy (Agent Orange) | C35: =IFERROR(SUMIFS(D_D[INV],D_D[MT],11,D_D[CAT],TA_24,D_D[EP],$A35),0) -> 0
A36: 400G | B36: EP 400 - Correspondence | C36: =IFERROR(SUMIFS(D_D[INV],D_D[MT],11,D_D[CAT],TA_24,D_D[EP],$A36),0) -> 53
A37: 500G | B37: EP 500 - Congressional correspondence | C37: =IFERROR(SUMIFS(D_D[INV],D_D[MT],11,D_D[CAT],TA_24,D_D[EP],$A37),0) -> 0
A38: 510 | B38: EP 510 - Freedom of Information Act (FOIA) requests | C38: =IFERROR(SUMIFS(D_D[INV],D_D[MT],11,D_D[CAT],TA_24,D_D[EP],$A38),0) -> 0
A39: 930G | B39: EP 930 - Review, including quality assurance | C39: =IFERROR(SUMIFS(D_D[INV],D_D[MT],11,D_D[CAT],TA_24,D_D[EP],$A39),0) -> 3
A40: 960G | B40: EP 960 - Correction of errors | C40: =IFERROR(SUMIFS(D_D[INV],D_D[MT],11,D_D[CAT],TA_24,D_D[EP],$A40),0) -> 0
A41: 681 | B41: EP 681 - Used to control claims under the Nehmer Agent Orange stipulation | C41: =IFERROR(SUMIFS(D_D[INV],D_D[MT],11,D_D[CAT],TA_24,D_D[EP],$A41),0) -> 0
A42: 687 | B42: EP 687 - Previously used for Nehmer Agent Orange presumptive issues | C42: =IFERROR(SUMIFS(D_D[INV],D_D[MT],11,D_D[CAT],TA_24,D_D[EP],$A42),0) -> 0
A43: 405 | B43: EP 405 - Reopened or new Agent Orange claims between 9/01/10 and 10/24/2011 | C43: =IFERROR(SUMIFS(D_D[INV],D_D[MT],11,D_D[CAT],TA_24,D_D[EP],$A43),0) -> 0
A44: 409 | B44: EP 409 - Agent Orange claims where an interim decision was provided; No longer used as of 10/24/2011 | C44: =IFERROR(SUMIFS(D_D[INV],D_D[MT],11,D_D[CAT],TA_24,D_D[EP],$A44),0) -> 0
B45: Compensation Burial/Accrued | C45: =SUM(C46:C47) -> 0
A46: 160G | B46: EP 160 - Burials | C46: =IFERROR(SUMIFS(D_D[INV],D_D[MT],11,D_D[CAT],TA_25,D_D[EP],$A46),0) -> 0
A47: 165 | B47: EP 165 - Accrued | C47: =IFERROR(SUMIFS(D_D[INV],D_D[MT],11,D_D[CAT],TA_25,D_D[EP],$A47),0) -> 0

Sheet TA-Regional Office
C1: 2000 | D1: 2000 | E1: 11 | F1: 11 | H1: 12 | I1: 12 | K1: 13 | L1: 13 | N1: 14 | O1: 14 | Q1: 15 | R1: 16 | S1: 1
B2: Scroll down to see Pension | C2: =("Inventory by Regional Office - Data through ") -> Inventory by Regional Office - Data through | G2: =D_DT[] -> 2021-06-26
C3: *The claims pending under 'Non-Rating' are a subset of claims listed under the 'Award Adjustment' column and should not be counted twice when computing totals
C4: Non-Rating | E4: Entitlement | H4: Award Adjustment | K4: Program Review | N4: Other | Q4: Burial | R4: Accrued | S4: Legacy Appeals
C5: Claims Pending | D5: Avg. Days Pending | E5: Claims Pending | F5: Pending over 125 days | G5: Percent Pending over 125 days | H5: Claims Pending | I5: Pending over 125 days | J5: Percent Pending over 125 days | K5: Claims Pending | L5: Pending over 125 days | M5: Percent Pending over 125 days | N5: Claims Pending | O5: Pending over 125 days | P5: Percent Pending over 125 days | Q5: Claims Pending | R5: Claims Pending | S5: Appeals Pending
C6: Compensation
A7: 100 | B7: USA Compensation | C7: =IFERROR(SUMIFS(D_D[INV],D_D[MT],1,D_D[CAT],TA_20,D_D[EP],-1, D_D[LOC],$A7),0) -> 36007 | D7: =IFERROR(SUMIFS(D_D[ADP],D_D[MT],1,D_D[CAT],D$1,D_D[EP],-1, D_D[LOC],$A7),0) -> 84.66 | E7: =IFERROR(SUMIFS(D_D[INV],D_D[MT],2,D_D[CAT],TA_21,D_D[EP],-1, D_D[LOC],$A7),0) -> 421464 | F7: =IFERROR(SUMIFS(D_D[BL],D_D[MT],2,D_D[CAT],TA_21,D_D[EP],-1, D_D[LOC],$A7),0) -> 165822 | G7: =IFERROR(F7/E7,"0%") -> 0.3934428563 | H7: =IFERROR(SUMIFS(D_D[INV],D_D[MT],2,D_D[CAT],TA_22,D_D[EP],-1, D_D[LOC],$A7),0) -> 101861 | I7: =IFERROR(SUMIFS(D_D[BL],D_D[MT],2,D_D[CAT],TA_22,D_D[EP],-1, D_D[LOC],$A7),0) -> 21258 | J7: =IFERROR(I7/H7,"0%") -> 0.2086961644 | K7: =IFERROR(SUMIFS(D_D[INV],D_D[MT],2,D_D[CAT],TA_23,D_D[EP],-1, D_D[LOC],$A7),0) -> 1349 | L7: =IFERROR(SUMIFS(D_D[BL],D_D[MT],2,D_D[CAT],TA_23,D_D[EP],-1, D_D[LOC],$A7),0) -> 349 | M7: =IFERROR(L7/K7,"0%") -> 0.2587101557 | N7: =IFERROR(SUMIFS(D_D[INV],D_D[MT],2,D_D[CAT],TA_24,D_D[EP],-1, D_D[LOC],$A7),0) - 'Diarys and Future Claims'!C35 -> 205155 | O7: =IFERROR(SUMIFS(D_D[BL],D_D[MT],2,D_D[CAT],TA_24,D_D[EP],-1, D_D[LOC],$A7),0) -> 35820 | P7: =IFERROR(O7/N7,"0%") -> 0.1745996929 | Q7: =IFERROR(SUMIFS(D_D[INV],D_D[MT],2,D_D[CAT],TA_25,D_D[EP],-1, D_D[LOC],$A7),0) -> 5279 | R7: =IFERROR(SUMIFS(D_D[INV],D_D[MT],2,D_D[CAT],TA_26,D_D[EP],-1, D_D[LOC],$A7),0) -> 2433 | S7: =IFERROR(SUMIFS(D_D[INV],D_D[MT],7,D_D[CAT],2,D_D[EP],TA_20, D_D[LOC],$A7),0) -> 30909
A8: 394 | B8: Northeast | C8: =IFERROR(SUMIFS(D_D[INV],D_D[MT],1,D_D[CAT],TA_20,D_D[EP],-1, D_D[LOC],$A8),0) -> 10124 | D8: =IFERROR(SUMIFS(D_D[ADP],D_D[MT],1,D_D[CAT],D$1,D_D[EP],-1, D_D[LOC],$A8),0) -> 83.24 | E8: =IFERROR(SUMIFS(D_D[INV],D_D[MT],2,D_D[CAT],TA_21,D_D[EP],-1, D_D[LOC],$A8),0) -> 74153 | F8: =IFERROR(SUMIFS(D_D[BL],D_D[MT],2,D_D[CAT],TA_21,D_D[EP],-1, D_D[LOC],$A8),0) -> 31822 | G8: =IFERROR(F8/E8,"0%") -> 0.4291397516 | H8: =IFERROR(SUMIFS(D_D[INV],D_D[MT],2,D_D[CAT],TA_22,D_D[EP],-1, D_D[LOC],$A8),0) -> 29171 | I8: =IFERROR(SUMIFS(D_D[BL],D_D[MT],2,D_D[CAT],TA_22,D_D[EP],-1, D_D[LOC],$A8),0) -> 5798 | J8: =IFERROR(I8/H8,"0%") -> 0.1987590415 | K8: =IFERROR(SUMIFS(D_D[INV],D_D[MT],2,D_D[CAT],TA_23,D_D[EP],-1, D_D[LOC],$A8),0) -> 241 | L8: =IFERROR(SUMIFS(D_D[BL],D_D[MT],2,D_D[CAT],TA_23,D_D[EP],-1, D_D[LOC],$A8),0) -> 24 | M8: =IFERROR(L8/K8,"0%") -> 0.09958506224 | N8: =IFERROR(SUMIFS(D_D[INV],D_D[MT],2,D_D[CAT],TA_24,D_D[EP],-1, D_D[LOC],$A8),0) -> 19477 | O8: =IFERROR(SUMIFS(D_D[BL],D_D[MT],2,D_D[CAT],TA_24,D_D[EP],-1, D_D[LOC],$A8),0) -> 7560 | P8: =IFERROR(O8/N8,"0%") -> 0.3881501258 | Q8: =IFERROR(SUMIFS(D_D[INV],D_D[MT],2,D_D[CAT],TA_25,D_D[EP],-1, D_D[LOC],$A8),0) -> 1755 | R8: =IFERROR(SUMIFS(D_D[INV],D_D[MT],2,D_D[CAT],TA_26,D_D[EP],-1, D_D[LOC],$A8),0) -> 59 | S8: =IFERROR(SUMIFS(D_D[INV],D_D[MT],7,D_D[CAT],2,D_D[EP],TA_20, D_D[LOC],$A8),0) -> 315
A9: 313 | B9: Baltimore | C9: =IFERROR(SUMIFS(D_D[INV],D_D[MT],1,D_D[CAT],TA_20,D_D[EP],-1, D_D[LOC],$A9),0) -> 155 | D9: =IFERROR(SUMIFS(D_D[ADP],D_D[MT],1,D_D[CAT],D$1,D_D[EP],-1, D_D[LOC],$A9),0) -> 66.41 | E9: =IFERROR(SUMIFS(D_D[INV],D_D[MT],2,D_D[CAT],TA_21,D_D[EP],-1, D_D[LOC],$A9),0) -> 5297 | F9: =IFERROR(SUMIFS(D_D[BL],D_D[MT],2,D_D[CAT],TA_21,D_D[EP],-1, D_D[LOC],$A9),0) -> 2075 | G9: 0.3917311686 | H9: =IFERROR(SUMIFS(D_D[INV],D_D[MT],2,D_D[CAT],TA_22,D_D[EP],-1, D_D[LOC],$A9),0) -> 625 | I9: =IFERROR(SUMIFS(D_D[BL],D_D[MT],2,D_D[CAT],TA_22,D_D[EP],-1, D_D[LOC],$A9),0) -> 100 | J9: 0.16 | K9: =IFERROR(SUMIFS(D_D[INV],D_D[MT],2,D_D[CAT],TA_23,D_D[EP],-1, D_D[LOC],$A9),0) -> 9 | L9: =IFERROR(SUMIFS(D_D[BL],D_D[MT],2,D_D[CAT],TA_23,D_D[EP],-1, D_D[LOC],$A9),0) -> 1 | M9: 0.1111111111 | N9: =IFERROR(SUMIFS(D_D[INV],D_D[MT],2,D_D[CAT],TA_24,D_D[EP],-1, D_D[LOC],$A9),0) -> 487 | O9: =IFERROR(SUMIFS(D_D[BL],D_D[MT],2,D_D[CAT],TA_24,D_D[EP],-1, D_D[LOC],$A9),0) -> 184 | P9: 0.3778234086 | Q9: =IFERROR(SUMIFS(D_D[INV],D_D[MT],2,D_D[CAT],TA_25,D_D[EP],-1, D_D[LOC],$A9),0) -> 14 | R9: =IFERROR(SUMIFS(D_D[INV],D_D[MT],2,D_D[CAT],TA_26,D_D[EP],-1, D_D[LOC],$A9),0) -> 5 | S9: =IFERROR(SUMIFS(D_D[INV],D_D[MT],7,D_D[CAT],2,D_D[EP],TA_20, D_D[LOC],$A9),0) -> 4
A10: 301 | B10: Boston | C10: =IFERROR(SUMIFS(D_D[INV],D_D[MT],1,D_D[CAT],TA_20,D_D[EP],-1, D_D[LOC],$A10),0) -> 34 | D10: =IFERROR(SUMIFS(D_D[ADP],D_D[MT],1,D_D[CAT],D$1,D_D[EP],-1, D_D[LOC],$A10),0) -> 60.32 | E10: =IFERROR(SUMIFS(D_D[INV],D_D[MT],2,D_D[CAT],TA_21,D_D[EP],-1, D_D[LOC],$A10),0) -> 2075 | F10: =IFERROR(SUMIFS(D_D[BL],D_D[MT],2,D_D[CAT],TA_21,D_D[EP],-1, D_D[LOC],$A10),0) -> 850 | G10: =IFERROR(F10/E10,"0%") -> 0.4096385542 | H10: =IFERROR(SUMIFS(D_D[INV],D_D[MT],2,D_D[CAT],TA_22,D_D[EP],-1, D_D[LOC],$A10),0) -> 497 | I10: =IFERROR(SUMIFS(D_D[BL],D_D[MT],2,D_D[CAT],TA_22,D_D[EP],-1, D_D[LOC],$A10),0) -> 111 | J10: =IFERROR(I10/H10,"0%") -> 0.2233400402 | K10: =IFERROR(SUMIFS(D_D[INV],D_D[MT],2,D_D[CAT],TA_23,D_D[EP],-1, D_D[LOC],$A10),0) -> 12 | L10: =IFERROR(SUMIFS(D_D[BL],D_D[MT],2,D_D[CAT],TA_23,D_D[EP],-1, D_D[LOC],$A10),0) -> 1 | M10: =IFERROR(L10/K10,"0%") -> 0.08333333333 | N10: =IFERROR(SUMIFS(D_D[INV],D_D[MT],2,D_D[CAT],TA_24,D_D[EP],-1, D_D[LOC],$A10),0) -> 140 | O10: =IFERROR(SUMIFS(D_D[BL],D_D[MT],2,D_D[CAT],TA_24,D_D[EP],-1, D_D[LOC],$A10),0) -> 89 | P10: =IFERROR(O10/N10,"0%") -> 0.6357142857 | Q10: =IFERROR(SUMIFS(D_D[INV],D_D[MT],2,D_D[CAT],TA_25,D_D[EP],-1, D_D[LOC],$A10),0) -> 18 | R10: =IFERROR(SUMIFS(D_D[INV],D_D[MT],2,D_D[CAT],TA_26,D_D[EP],-1, D_D[LOC],$A10),0) -> 2 | S10: =IFERROR(SUMIFS(D_D[INV],D_D[MT],7,D_D[CAT],2,D_D[EP],TA_20, D_D[LOC],$A10),0) -> 0
A11: 307 | B11: Buffalo | C11: =IFERROR(SUMIFS(D_D[INV],D_D[MT],1,D_D[CAT],TA_20,D_D[EP],-1, D_D[LOC],$A11),0) -> 86 | D11: =IFERROR(SUMIFS(D_D[ADP],D_D[MT],1,D_D[CAT],D$1,D_D[EP],-1, D_D[LOC],$A11),0) -> 95.6 | E11: =IFERROR(SUMIFS(D_D[INV],D_D[MT],2,D_D[CAT],TA_21,D_D[EP],-1, D_D[LOC],$A11),0) -> 2547 | F11: =IFERROR(SUMIFS(D_D[BL],D_D[MT],2,D_D[CAT],TA_21,D_D[EP],-1, D_D[LOC],$A11),0) -> 1016 | G11: 0.3989006675 | H11: =IFERROR(SUMIFS(D_D[INV],D_D[MT],2,D_D[CAT],TA_22,D_D[EP],-1, D_D[LOC],$A11),0) -> 620 | I11: =IFERROR(SUMIFS(D_D[BL],D_D[MT],2,D_D[CAT],TA_22,D_D[EP],-1, D_D[LOC],$A11),0) -> 155 | J11: 0.25 | K11: =IFERROR(SUMIFS(D_D[INV],D_D[MT],2,D_D[CAT],TA_23,D_D[EP],-1, D_D[LOC],$A11),0) -> 17 | L11: =IFERROR(SUMIFS(D_D[BL],D_D[MT],2,D_D[CAT],TA_23,D_D[EP],-1, D_D[LOC],$A11),0) -> 0 | M11: 0 | N11: =IFERROR(SUMIFS(D_D[INV],D_D[MT],2,D_D[CAT],TA_24,D_D[EP],-1, D_D[LOC],$A11),0) -> 202 | O11: =IFERROR(SUMIFS(D_D[BL],D_D[MT],2,D_D[CAT],TA_24,D_D[EP],-1, D_D[LOC],$A11),0) -> 146 | P11: 0.7227722772 | Q11: =IFERROR(SUMIFS(D_D[INV],D_D[MT],2,D_D[CAT],TA_25,D_D[EP],-1, D_D[LOC],$A11),0) -> 21 | R11: =IFERROR(SUMIFS(D_D[INV],D_D[MT],2,D_D[CAT],TA_26,D_D[EP],-1, D_D[LOC],$A11),0) -> 2 | S11: =IFERROR(SUMIFS(D_D[INV],D_D[MT],7,D_D[CAT],2,D_D[EP],TA_20, D_D[LOC],$A11),0) -> 17
A12: 328 | B12: Chicago | C12: =IFERROR(SUMIFS(D_D[INV],D_D[MT],1,D_D[CAT],TA_20,D_D[EP],-1, D_D[LOC],$A12),0) -> 184 | D12: =IFERROR(SUMIFS(D_D[ADP],D_D[MT],1,D_D[CAT],D$1,D_D[EP],-1, D_D[LOC],$A12),0) -> 75.54 | E12: =IFERROR(SUMIFS(D_D[INV],D_D[MT],2,D_D[CAT],TA_21,D_D[EP],-1, D_D[LOC],$A12),0) -> 5872 | F12: =IFERROR(SUMIFS(D_D[BL],D_D[MT],2,D_D[CAT],TA_21,D_D[EP],-1, D_D[LOC],$A12),0) -> 2265 | G12: 0.3857288828 | H12: =IFERROR(SUMIFS(D_D[INV],D_D[MT],2,D_D[CAT],TA_22,D_D[EP],-1, D_D[LOC],$A12),0) -> 1012 | I12: =IFERROR(SUMIFS(D_D[BL],D_D[MT],2,D_D[CAT],TA_22,D_D[EP],-1, D_D[LOC],$A12),0) -> 191 | J12: 0.1887351779 | K12: =IFERROR(SUMIFS(D_D[INV],D_D[MT],2,D_D[CAT],TA_23,D_D[EP],-1, D_D[LOC],$A12),0) -> 22 | L12: =IFERROR(SUMIFS(D_D[BL],D_D[MT],2,D_D[CAT],TA_23,D_D[EP],-1, D_D[LOC],$A12),0) -> 0 | M12: 0 | N12: =IFERROR(SUMIFS(D_D[INV],D_D[MT],2,D_D[CAT],TA_24,D_D[EP],-1, D_D[LOC],$A12),0) -> 436 | O12: =IFERROR(SUMIFS(D_D[BL],D_D[MT],2,D_D[CAT],TA_24,D_D[EP],-1, D_D[LOC],$A12),0) -> 262 | P12: 0.6009174312 | Q12: =IFERROR(SUMIFS(D_D[INV],D_D[MT],2,D_D[CAT],TA_25,D_D[EP],-1, D_D[LOC],$A12),0) -> 35 | R12: =IFERROR(SUMIFS(D_D[INV],D_D[MT],2,D_D[CAT],TA_26,D_D[EP],-1, D_D[LOC],$A12),0) -> 2 | S12: =IFERROR(SUMIFS(D_D[INV],D_D[MT],7,D_D[CAT],2,D_D[EP],TA_20, D_D[LOC],$A12),0) -> 8
A13: 325 | B13: Cleveland | C13: =IFERROR(SUMIFS(D_D[INV],D_D[MT],1,D_D[CAT],TA_20,D_D[EP],-1, D_D[LOC],$A13),0) -> 368 | D13: =IFERROR(SUMIFS(D_D[ADP],D_D[MT],1,D_D[CAT],D$1,D_D[EP],-1, D_D[LOC],$A13),0) -> 118.1 | E13: =IFERROR(SUMIFS(D_D[INV],D_D[MT],2,D_D[CAT],TA_21,D_D[EP],-1, D_D[LOC],$A13),0) -> 8449 | F13: =IFERROR(SUMIFS(D_D[BL],D_D[MT],2,D_D[CAT],TA_21,D_D[EP],-1, D_D[LOC],$A13),0) -> 4221 | G13: 0.4995857498 | H13: =IFERROR(SUMIFS(D_D[INV],D_D[MT],2,D_D[CAT],TA_22,D_D[EP],-1, D_D[LOC],$A13),0) -> 1660 | I13: =IFERROR(SUMIFS(D_D[BL],D_D[MT],2,D_D[CAT],TA_22,D_D[EP],-1, D_D[LOC],$A13),0) -> 407 | J13: 0.2451807229 | K13: =IFERROR(SUMIFS(D_D[INV],D_D[MT],2,D_D[CAT],TA_23,D_D[EP],-1, D_D[LOC],$A13),0) -> 19 | L13: =IFERROR(SUMIFS(D_D[BL],D_D[MT],2,D_D[CAT],TA_23,D_D[EP],-1, D_D[LOC],$A13),0) -> 4 | M13: 0.2105263158 | N13: =IFERROR(SUMIFS(D_D[INV],D_D[MT],2,D_D[CAT],TA_24,D_D[EP],-1, D_D[LOC],$A13),0) -> 1661 | O13: =IFERROR(SUMIFS(D_D[BL],D_D[MT],2,D_D[CAT],TA_24,D_D[EP],-1, D_D[LOC],$A13),0) -> 1105 | P13: 0.6652618904 | Q13: =IFERROR(SUMIFS(D_D[INV],D_D[MT],2,D_D[CAT],TA_25,D_D[EP],-1, D_D[LOC],$A13),0) -> 47 | R13: =IFERROR(SUMIFS(D_D[INV],D_D[MT],2,D_D[CAT],TA_26,D_D[EP],-1, D_D[LOC],$A13),0) -> 6 | S13: =IFERROR(SUMIFS(D_D[INV],D_D[MT],7,D_D[CAT],2,D_D[EP],TA_20, D_D[LOC],$A13),0) -> 9
A14: 329 | B14: Detroit | C14: =IFERROR(SUMIFS(D_D[INV],D_D[MT],1,D_D[CAT],TA_20,D_D[EP],-1, D_D[LOC],$A14),0) -> 994 | D14: =IFERROR(SUMIFS(D_D[ADP],D_D[MT],1,D_D[CAT],D$1,D_D[EP],-1, D_D[LOC],$A14),0) -> 67.97 | E14: =IFERROR(SUMIFS(D_D[INV],D_D[MT],2,D_D[CAT],TA_21,D_D[EP],-1, D_D[LOC],$A14),0) -> 5296 | F14: =IFERROR(SUMIFS(D_D[BL],D_D[MT],2,D_D[CAT],TA_21,D_D[EP],-1, D_D[LOC],$A14),0) -> 2329 | G14: 0.439765861 | H14: =IFERROR(SUMIFS(D_D[INV],D_D[MT],2,D_D[CAT],TA_22,D_D[EP],-1, D_D[LOC],$A14),0) -> 3166 | I14: =IFERROR(SUMIFS(D_D[BL],D_D[MT],2,D_D[CAT],TA_22,D_D[EP],-1, D_D[LOC],$A14),0) -> 387 | J14: 0.1222362603 | K14: =IFERROR(SUMIFS(D_D[INV],D_D[MT],2,D_D[CAT],TA_23,D_D[EP],-1, D_D[LOC],$A14),0) -> 30 | L14: =IFERROR(SUMIFS(D_D[BL],D_D[MT],2,D_D[CAT],TA_23,D_D[EP],-1, D_D[LOC],$A14),0) -> 7 | M14: 0.2333333333 | N14: =IFERROR(SUMIFS(D_D[INV],D_D[MT],2,D_D[CAT],TA_24,D_D[EP],-1, D_D[LOC],$A14),0) -> 638 | O14: =IFERROR(SUMIFS(D_D[BL],D_D[MT],2,D_D[CAT],TA_24,D_D[EP],-1, D_D[LOC],$A14),0) -> 380 | P14: 0.5956112853 | Q14: =IFERROR(SUMIFS(D_D[INV],D_D[MT],2,D_D[CAT],TA_25,D_D[EP],-1, D_D[LOC],$A14),0) -> 61 | R14: =IFERROR(SUMIFS(D_D[INV],D_D[MT],2,D_D[CAT],TA_26,D_D[EP],-1, D_D[LOC],$A14),0) -> 5 | S14: =IFERROR(SUMIFS(D_D[INV],D_D[MT],7,D_D[CAT],2,D_D[EP],TA_20, D_D[LOC],$A14),0) -> 11
A15: 308 | B15: Hartford | C15: =IFERROR(SUMIFS(D_D[INV],D_D[MT],1,D_D[CAT],TA_20,D_D[EP],-1, D_D[LOC],$A15),0) -> 40 | D15: =IFERROR(SUMIFS(D_D[ADP],D_D[MT],1,D_D[CAT],D$1,D_D[EP],-1, D_D[LOC],$A15),0) -> 65.3 | E15: =IFERROR(SUMIFS(D_D[INV],D_D[MT],2,D_D[CAT],TA_21,D_D[EP],-1, D_D[LOC],$A15),0) -> 1581 | F15: =IFERROR(SUMIFS(D_D[BL],D_D[MT],2,D_D[CAT],TA_21,D_D[EP],-1, D_D[LOC],$A15),0) -> 699 | G15: 0.4421252372 | H15: =IFERROR(SUMIFS(D_D[INV],D_D[MT],2,D_D[CAT],TA_22,D_D[EP],-1, D_D[LOC],$A15),0) -> 433 | I15: =IFERROR(SUMIFS(D_D[BL],D_D[MT],2,D_D[CAT],TA_22,D_D[EP],-1, D_D[LOC],$A15),0) -> 129 | J15: 0.2979214781 | K15: =IFERROR(SUMIFS(D_D[INV],D_D[MT],2,D_D[CAT],TA_23,D_D[EP],-1, D_D[LOC],$A15),0) -> 3 | L15: =IFERROR(SUMIFS(D_D[BL],D_D[MT],2,D_D[CAT],TA_23,D_D[EP],-1, D_D[LOC],$A15),0) -> 0 | M15: 0 | N15: =IFERROR(SUMIFS(D_D[INV],D_D[MT],2,D_D[CAT],TA_24,D_D[EP],-1, D_D[LOC],$A15),0) -> 266 | O15: =IFERROR(SUMIFS(D_D[BL],D_D[MT],2,D_D[CAT],TA_24,D_D[EP],-1, D_D[LOC],$A15),0) -> 145 | P15: 0.545112782 | Q15: =IFERROR(SUMIFS(D_D[INV],D_D[MT],2,D_D[CAT],TA_25,D_D[EP],-1, D_D[LOC],$A15),0) -> 9 | R15: =IFERROR(SUMIFS(D_D[INV],D_D[MT],2,D_D[CAT],TA_26,D_D[EP],-1, D_D[LOC],$A15),0) -> 0 | S15: =IFERROR(SUMIFS(D_D[INV],D_D[MT],7,D_D[CAT],2,D_D[EP],TA_20, D_D[LOC],$A15),0) -> 1
A16: 326 | B16: Indianapolis | C16: =IFERROR(SUMIFS(D_D[INV],D_D[MT],1,D_D[CAT],TA_20,D_D[EP],-1, D_D[LOC],$A16),0) -> 4118 | D16: =IFERROR(SUMIFS(D_D[ADP],D_D[MT],1,D_D[CAT],D$1,D_D[EP],-1, D_D[LOC],$A16),0) -> 100.14 | E16: =IFERROR(SUMIFS(D_D[INV],D_D[MT],2,D_D[CAT],TA_21,D_D[EP],-1, D_D[LOC],$A16),0) -> 4733 | F16: =IFERROR(SUMIFS(D_D[BL],D_D[MT],2,D_D[CAT],TA_21,D_D[EP],-1, D_D[LOC],$A16),0) -> 2052 | G16: 0.4335516586 | H16: =IFERROR(SUMIFS(D_D[INV],D_D[MT],2,D_D[CAT],TA_22,D_D[EP],-1, D_D[LOC],$A16),0) -> 5143 | I16: =IFERROR(SUMIFS(D_D[BL],D_D[MT],2,D_D[CAT],TA_22,D_D[EP],-1, D_D[LOC],$A16),0) -> 1224 | J16: 0.2379933891 | K16: =IFERROR(SUMIFS(D_D[INV],D_D[MT],2,D_D[CAT],TA_23,D_D[EP],-1, D_D[LOC],$A16),0) -> 13 | L16: =IFERROR(SUMIFS(D_D[BL],D_D[MT],2,D_D[CAT],TA_23,D_D[EP],-1, D_D[LOC],$A16),0) -> 1 | M16: 0.07692307692 | N16: =IFERROR(SUMIFS(D_D[INV],D_D[MT],2,D_D[CAT],TA_24,D_D[EP],-1, D_D[LOC],$A16),0) -> 506 | O16: =IFERROR(SUMIFS(D_D[BL],D_D[MT],2,D_D[CAT],TA_24,D_D[EP],-1, D_D[LOC],$A16),0) -> 260 | P16: 0.5138339921 | Q16: =IFERROR(SUMIFS(D_D[INV],D_D[MT],2,D_D[CAT],TA_25,D_D[EP],-1, D_D[LOC],$A16),0) -> 29 | R16: =IFERROR(SUMIFS(D_D[INV],D_D[MT],2,D_D[CAT],TA_26,D_D[EP],-1, D_D[LOC],$A16),0) -> 8 | S16: =IFERROR(SUMIFS(D_D[INV],D_D[MT],7,D_D[CAT],2,D_D[EP],TA_20, D_D[LOC],$A16),0) -> 7
A17: 373 | B17: Manchester | C17: =IFERROR(SUMIFS(D_D[INV],D_D[MT],1,D_D[CAT],TA_20,D_D[EP],-1, D_D[LOC],$A17),0) -> 100 | D17: =IFERROR(SUMIFS(D_D[ADP],D_D[MT],1,D_D[CAT],D$1,D_D[EP],-1, D_D[LOC],$A17),0) -> 63.81 | E17: =IFERROR(SUMIFS(D_D[INV],D_D[MT],2,D_D[CAT],TA_21,D_D[EP],-1, D_D[LOC],$A17),0) -> 797 | F17: =IFERROR(SUMIFS(D_D[BL],D_D[MT],2,D_D[CAT],TA_21,D_D[EP],-1, D_D[LOC],$A17),0) -> 339 | G17: 0.4253450439 | H17: =IFERROR(SUMIFS(D_D[INV],D_D[MT],2,D_D[CAT],TA_22,D_D[EP],-1, D_D[LOC],$A17),0) -> 287 | I17: =IFERROR(SUMIFS(D_D[BL],D_D[MT],2,D_D[CAT],TA_22,D_D[EP],-1, D_D[LOC],$A17),0) -> 57 | J17: 0.1986062718 | K17: =IFERROR(SUMIFS(D_D[INV],D_D[MT],2,D_D[CAT],TA_23,D_D[EP],-1, D_D[LOC],$A17),0) -> 0 | L17: =IFERROR(SUMIFS(D_D[BL],D_D[MT],2,D_D[CAT],TA_23,D_D[EP],-1, D_D[LOC],$A17),0) -> 0 | M17: 0% | N17: =IFERROR(SUMIFS(D_D[INV],D_D[MT],2,D_D[CAT],TA_24,D_D[EP],-1, D_D[LOC],$A17),0) -> 97 | O17: =IFERROR(SUMIFS(D_D[BL],D_D[MT],2,D_D[CAT],TA_24,D_D[EP],-1, D_D[LOC],$A17),0) -> 52 | P17: 0.5360824742 | Q17: =IFERROR(SUMIFS(D_D[INV],D_D[MT],2,D_D[CAT],TA_25,D_D[EP],-1, D_D[LOC],$A17),0) -> 2 | R17: =IFERROR(SUMIFS(D_D[INV],D_D[MT],2,D_D[CAT],TA_26,D_D[EP],-1, D_D[LOC],$A17),0) -> 3 | S17: =IFERROR(SUMIFS(D_D[INV],D_D[MT],7,D_D[CAT],2,D_D[EP],TA_20, D_D[LOC],$A17),0) -> 3
A18: 330 | B18: Milwaukee | C18: =IFERROR(SUMIFS(D_D[INV],D_D[MT],1,D_D[CAT],TA_20,D_D[EP],-1, D_D[LOC],$A18),0) -> 2516 | D18: =IFERROR(SUMIFS(D_D[ADP],D_D[MT],1,D_D[CAT],D$1,D_D[EP],-1, D_D[LOC],$A18),0) -> 56.64 | E18: =IFERROR(SUMIFS(D_D[INV],D_D[MT],2,D_D[CAT],TA_21,D_D[EP],-1, D_D[LOC],$A18),0) -> 6745 | F18: =IFERROR(SUMIFS(D_D[BL],D_D[MT],2,D_D[CAT],TA_21,D_D[EP],-1, D_D[LOC],$A18),0) -> 3758 | G18: 0.557153447 | H18: =IFERROR(SUMIFS(D_D[INV],D_D[MT],2,D_D[CAT],TA_22,D_D[EP],-1, D_D[LOC],$A18),0) -> 6670 | I18: =IFERROR(SUMIFS(D_D[BL],D_D[MT],2,D_D[CAT],TA_22,D_D[EP],-1, D_D[LOC],$A18),0) -> 817 | J18: 0.1224887556 | K18: =IFERROR(SUMIFS(D_D[INV],D_D[MT],2,D_D[CAT],TA_23,D_D[EP],-1, D_D[LOC],$A18),0) -> 33 | L18: =IFERROR(SUMIFS(D_D[BL],D_D[MT],2,D_D[CAT],TA_23,D_D[EP],-1, D_D[LOC],$A18),0) -> 6 | M18: 0.1818181818 | N18: =IFERROR(SUMIFS(D_D[INV],D_D[MT],2,D_D[CAT],TA_24,D_D[EP],-1, D_D[LOC],$A18),0) -> 1278 | O18: =IFERROR(SUMIFS(D_D[BL],D_D[MT],2,D_D[CAT],TA_24,D_D[EP],-1, D_D[LOC],$A18),0) -> 945 | P18: 0.7394366197 | Q18: =IFERROR(SUMIFS(D_D[INV],D_D[MT],2,D_D[CAT],TA_25,D_D[EP],-1, D_D[LOC],$A18),0) -> 718 | R18: =IFERROR(SUMIFS(D_D[INV],D_D[MT],2,D_D[CAT],TA_26,D_D[EP],-1, D_D[LOC],$A18),0) -> 0 | S18: =IFERROR(SUMIFS(D_D[INV],D_D[MT],7,D_D[CAT],2,D_D[EP],TA_20, D_D[LOC],$A18),0) -> 3
A19: 306 | B19: New York | C19: =IFERROR(SUMIFS(D_D[INV],D_D[MT],1,D_D[CAT],TA_20,D_D[EP],-1, D_D[LOC],$A19),0) -> 124 | D19: =IFERROR(SUMIFS(D_D[ADP],D_D[MT],1,D_D[CAT],D$1,D_D[EP],-1, D_D[LOC],$A19),0) -> 67.59 | E19: =IFERROR(SUMIFS(D_D[INV],D_D[MT],2,D_D[CAT],TA_21,D_D[EP],-1, D_D[LOC],$A19),0) -> 3990 | F19: =IFERROR(SUMIFS(D_D[BL],D_D[MT],2,D_D[CAT],TA_21,D_D[EP],-1, D_D[LOC],$A19),0) -> 1843 | G19: 0.4619047619 | H19: =IFERROR(SUMIFS(D_D[INV],D_D[MT],2,D_D[CAT],TA_22,D_D[EP],-1, D_D[LOC],$A19),0) -> 862 | I19: =IFERROR(SUMIFS(D_D[BL],D_D[MT],2,D_D[CAT],TA_22,D_D[EP],-1, D_D[LOC],$A19),0) -> 196 | J19: 0.2273781903 | K19: =IFERROR(SUMIFS(D_D[INV],D_D[MT],2,D_D[CAT],TA_23,D_D[EP],-1, D_D[LOC],$A19),0) -> 23 | L19: =IFERROR(SUMIFS(D_D[BL],D_D[MT],2,D_D[CAT],TA_23,D_D[EP],-1, D_D[LOC],$A19),0) -> 2 | M19: 0.08695652174 | N19: =IFERROR(SUMIFS(D_D[INV],D_D[MT],2,D_D[CAT],TA_24,D_D[EP],-1, D_D[LOC],$A19),0) -> 313 | O19: =IFERROR(SUMIFS(D_D[BL],D_D[MT],2,D_D[CAT],TA_24,D_D[EP],-1, D_D[LOC],$A19),0) -> 186 | P19: 0.5942492013 | Q19: =IFERROR(SUMIFS(D_D[INV],D_D[MT],2,D_D[CAT],TA_25,D_D[EP],-1, D_D[LOC],$A19),0) -> 18 | R19: =IFERROR(SUMIFS(D_D[INV],D_D[MT],2,D_D[CAT],TA_26,D_D[EP],-1, D_D[LOC],$A19),0) -> 2 | S19: =IFERROR(SUMIFS(D_D[INV],D_D[MT],7,D_D[CAT],2,D_D[EP],TA_20, D_D[LOC],$A19),0) -> 5
A20: 309 | B20: Newark | C20: =IFERROR(SUMIFS(D_D[INV],D_D[MT],1,D_D[CAT],TA_20,D_D[EP],-1, D_D[LOC],$A20),0) -> 93 | D20: =IFERROR(SUMIFS(D_D[ADP],D_D[MT],1,D_D[CAT],D$1,D_D[EP],-1, D_D[LOC],$A20),0) -> 114.51 | E20: =IFERROR(SUMIFS(D_D[INV],D_D[MT],2,D_D[CAT],TA_21,D_D[EP],-1, D_D[LOC],$A20),0) -> 2648 | F20: =IFERROR(SUMIFS(D_D[BL],D_D[MT],2,D_D[CAT],TA_21,D_D[EP],-1, D_D[LOC],$A20),0) -> 1207 | G20: 0.45581571 | H20: =IFERROR(SUMIFS(D_D[INV],D_D[MT],2,D_D[CAT],TA_22,D_D[EP],-1, D_D[LOC],$A20),0) -> 408 | I20: =IFERROR(SUMIFS(D_D[BL],D_D[MT],2,D_D[CAT],TA_22,D_D[EP],-1, D_D[LOC],$A20),0) -> 98 | J20: 0.2401960784 | K20: =IFERROR(SUMIFS(D_D[INV],D_D[MT],2,D_D[CAT],TA_23,D_D[EP],-1, D_D[LOC],$A20),0) -> 6 | L20: =IFERROR(SUMIFS(D_D[BL],D_D[MT],2,D_D[CAT],TA_23,D_D[EP],-1, D_D[LOC],$A20),0) -> 1 | M20: 0.1666666667 | N20: =IFERROR(SUMIFS(D_D[INV],D_D[MT],2,D_D[CAT],TA_24,D_D[EP],-1, D_D[LOC],$A20),0) -> 162 | O20: =IFERROR(SUMIFS(D_D[BL],D_D[MT],2,D_D[CAT],TA_24,D_D[EP],-1, D_D[LOC],$A20),0) -> 109 | P20: 0.6728395062 | Q20: =IFERROR(SUMIFS(D_D[INV],D_D[MT],2,D_D[CAT],TA_25,D_D[EP],-1, D_D[LOC],$A20),0) -> 11 | R20: =IFERROR(SUMIFS(D_D[INV],D_D[MT],2,D_D[CAT],TA_26,D_D[EP],-1, D_D[LOC],$A20),0) -> 1 | S20: =IFERROR(SUMIFS(D_D[INV],D_D[MT],7,D_D[CAT],2,D_D[EP],TA_20, D_D[LOC],$A20),0) -> 5
A21: 310 | B21: Philadelphia | C21: =IFERROR(SUMIFS(D_D[INV],D_D[MT],1,D_D[CAT],TA_20,D_D[EP],-1, D_D[LOC],$A21),0) -> 429 | D21: =IFERROR(SUMIFS(D_D[ADP],D_D[MT],1,D_D[CAT],D$1,D_D[EP],-1, D_D[LOC],$A21),0) -> 101.14 | E21: =IFERROR(SUMIFS(D_D[INV],D_D[MT],2,D_D[CAT],TA_21,D_D[EP],-1, D_D[LOC],$A21),0) -> 7125 | F21: =IFERROR(SUMIFS(D_D[BL],D_D[MT],2,D_D[CAT],TA_21,D_D[EP],-1, D_D[LOC],$A21),0) -> 3296 | G21: 0.4625964912 | H21: =IFERROR(SUMIFS(D_D[INV],D_D[MT],2,D_D[CAT],TA_22,D_D[EP],-1, D_D[LOC],$A21),0) -> 4462 | I21: =IFERROR(SUMIFS(D_D[BL],D_D[MT],2,D_D[CAT],TA_22,D_D[EP],-1, D_D[LOC],$A21),0) -> 1054 | J21: 0.2362169431 | K21: =IFERROR(SUMIFS(D_D[INV],D_D[MT],2,D_D[CAT],TA_23,D_D[EP],-1, D_D[LOC],$A21),0) -> 17 | L21: =IFERROR(SUMIFS(D_D[BL],D_D[MT],2,D_D[CAT],TA_23,D_D[EP],-1, D_D[LOC],$A21),0) -> 1 | M21: 0.05882352941 | N21: =IFERROR(SUMIFS(D_D[INV],D_D[MT],2,D_D[CAT],TA_24,D_D[EP],-1, D_D[LOC],$A21),0) -> 1097 | O21: =IFERROR(SUMIFS(D_D[BL],D_D[MT],2,D_D[CAT],TA_24,D_D[EP],-1, D_D[LOC],$A21),0) -> 767 | P21: 0.6991795807 | Q21: =IFERROR(SUMIFS(D_D[INV],D_D[MT],2,D_D[CAT],TA_25,D_D[EP],-1, D_D[LOC],$A21),0) -> 629 | R21: =IFERROR(SUMIFS(D_D[INV],D_D[MT],2,D_D[CAT],TA_26,D_D[EP],-1, D_D[LOC],$A21),0) -> 0 | S21: =IFERROR(SUMIFS(D_D[INV],D_D[MT],7,D_D[CAT],2,D_D[EP],TA_20, D_D[LOC],$A21),0) -> 11
A22: 311 | B22: Pittsburgh | C22: =IFERROR(SUMIFS(D_D[INV],D_D[MT],1,D_D[CAT],TA_20,D_D[EP],-1, D_D[LOC],$A22),0) -> 154 | D22: =IFERROR(SUMIFS(D_D[ADP],D_D[MT],1,D_D[CAT],D$1,D_D[EP],-1, D_D[LOC],$A22),0) -> 83.45 | E22: =IFERROR(SUMIFS(D_D[INV],D_D[MT],2,D_D[CAT],TA_21,D_D[EP],-1, D_D[LOC],$A22),0) -> 4964 | F22: =IFERROR(SUMIFS(D_D[BL],D_D[MT],2,D_D[CAT],TA_21,D_D[EP],-1, D_D[LOC],$A22),0) -> 2243 | G22: 0.4518533441 | H22: =IFERROR(SUMIFS(D_D[INV],D_D[MT],2,D_D[CAT],TA_22,D_D[EP],-1, D_D[LOC],$A22),0) -> 758 | I22: =IFERROR(SUMIFS(D_D[BL],D_D[MT],2,D_D[CAT],TA_22,D_D[EP],-1, D_D[LOC],$A22),0) -> 155 | J22: 0.2044854881 | K22: =IFERROR(SUMIFS(D_D[INV],D_D[MT],2,D_D[CAT],TA_23,D_D[EP],-1, D_D[LOC],$A22),0) -> 10 | L22: =IFERROR(SUMIFS(D_D[BL],D_D[MT],2,D_D[CAT],TA_23,D_D[EP],-1, D_D[LOC],$A22),0) -> 0 | M22: 0 | N22: =IFERROR(SUMIFS(D_D[INV],D_D[MT],2,D_D[CAT],TA_24,D_D[EP],-1, D_D[LOC],$A22),0) -> 302 | O22: =IFERROR(SUMIFS(D_D[BL],D_D[MT],2,D_D[CAT],TA_24,D_D[EP],-1, D_D[LOC],$A22),0) -> 190 | P22: 0.6291390728 | Q22: =IFERROR(SUMIFS(D_D[INV],D_D[MT],2,D_D[CAT],TA_25,D_D[EP],-1, D_D[LOC],$A22),0) -> 24 | R22: =IFERROR(SUMIFS(D_D[INV],D_D[MT],2,D_D[CAT],TA_26,D_D[EP],-1, D_D[LOC],$A22),0) -> 0 | S22: =IFERROR(SUMIFS(D_D[INV],D_D[MT],7,D_D[CAT],2,D_D[EP],TA_20, D_D[LOC],$A22),0) -> 222
A23: 304 | B23: Providence | C23: =IFERROR(SUMIFS(D_D[INV],D_D[MT],1,D_D[CAT],TA_20,D_D[EP],-1, D_D[LOC],$A23),0) -> 175 | D23: =IFERROR(SUMIFS(D_D[ADP],D_D[MT],1,D_D[CAT],D$1,D_D[EP],-1, D_D[LOC],$A23),0) -> 45.5 | E23: =IFERROR(SUMIFS(D_D[INV],D_D[MT],2,D_D[CAT],TA_21,D_D[EP],-1, D_D[LOC],$A23),0) -> 1914 | F23: =IFERROR(SUMIFS(D_D[BL],D_D[MT],2,D_D[CAT],TA_21,D_D[EP],-1, D_D[LOC],$A23),0) -> 646 | G23: 0.3375130617 | H23: =IFERROR(SUMIFS(D_D[INV],D_D[MT],2,D_D[CAT],TA_22,D_D[EP],-1, D_D[LOC],$A23),0) -> 588 | I23: =IFERROR(SUMIFS(D_D[BL],D_D[MT],2,D_D[CAT],TA_22,D_D[EP],-1, D_D[LOC],$A23),0) -> 154 | J23: 0.2619047619 | K23: =IFERROR(SUMIFS(D_D[INV],D_D[MT],2,D_D[CAT],TA_23,D_D[EP],-1, D_D[LOC],$A23),0) -> 5 | L23: =IFERROR(SUMIFS(D_D[BL],D_D[MT],2,D_D[CAT],TA_23,D_D[EP],-1, D_D[LOC],$A23),0) -> 0 | M23: 0 | N23: =IFERROR(SUMIFS(D_D[INV],D_D[MT],2,D_D[CAT],TA_24,D_D[EP],-1, D_D[LOC],$A23),0) -> 203 | O23: =IFERROR(SUMIFS(D_D[BL],D_D[MT],2,D_D[CAT],TA_24,D_D[EP],-1, D_D[LOC],$A23),0) -> 146 | P23: 0.7192118227 | Q23: =IFERROR(SUMIFS(D_D[INV],D_D[MT],2,D_D[CAT],TA_25,D_D[EP],-1, D_D[LOC],$A23),0) -> 13 | R23: =IFERROR(SUMIFS(D_D[INV],D_D[MT],2,D_D[CAT],TA_26,D_D[EP],-1, D_D[LOC],$A23),0) -> 3 | S23: =IFERROR(SUMIFS(D_D[INV],D_D[MT],7,D_D[CAT],2,D_D[EP],TA_20, D_D[LOC],$A23),0) -> 1
A24: 376 | B24: St. Louis RMC | C24: =IFERROR(SUMIFS(D_D[INV],D_D[MT],1,D_D[CAT],TA_20,D_D[EP],-1, D_D[LOC],$A24),0) -> 53 | D24: =IFERROR(SUMIFS(D_D[ADP],D_D[MT],1,D_D[CAT],D$1,D_D[EP],-1, D_D[LOC],$A24),0) -> 54.85 | E24: =IFERROR(SUMIFS(D_D[INV],D_D[MT],2,D_D[CAT],TA_21,D_D[EP],-1, D_D[LOC],$A24),0) -> 2560 | F24: =IFERROR(SUMIFS(D_D[BL],D_D[MT],2,D_D[CAT],TA_21,D_D[EP],-1, D_D[LOC],$A24),0) -> 11 | G24: 0.004296875 | H24: =IFERROR(SUMIFS(D_D[INV],D_D[MT],2,D_D[CAT],TA_22,D_D[EP],-1, D_D[LOC],$A24),0) -> 56 | I24: =IFERROR(SUMIFS(D_D[BL],D_D[MT],2,D_D[CAT],TA_22,D_D[EP],-1, D_D[LOC],$A24),0) -> 0 | J24: 0 | K24: =IFERROR(SUMIFS(D_D[INV],D_D[MT],2,D_D[CAT],TA_23,D_D[EP],-1, D_D[LOC],$A24),0) -> 0 | L24: =IFERROR(SUMIFS(D_D[BL],D_D[MT],2,D_D[CAT],TA_23,D_D[EP],-1, D_D[LOC],$A24),0) -> 0 | M24: 0% | N24: =IFERROR(SUMIFS(D_D[INV],D_D[MT],2,D_D[CAT],TA_24,D_D[EP],-1, D_D[LOC],$A24),0) -> 10453 | O24: =IFERROR(SUMIFS(D_D[BL],D_D[MT],2,D_D[CAT],TA_24,D_D[EP],-1, D_D[LOC],$A24),0) -> 1850 | P24: 0.1769826844 | Q24: =IFERROR(SUMIFS(D_D[INV],D_D[MT],2,D_D[CAT],TA_25,D_D[EP],-1, D_D[LOC],$A24),0) -> 57 | R24: =IFERROR(SUMIFS(D_D[INV],D_D[MT],2,D_D[CAT],TA_26,D_D[EP],-1, D_D[LOC],$A24),0) -> 0 | S24: =IFERROR(SUMIFS(D_D[INV],D_D[MT],7,D_D[CAT],2,D_D[EP],TA_20, D_D[LOC],$A24),0) -> 0
A25: 331 | B25: St. Louis | C25: =IFERROR(SUMIFS(D_D[INV],D_D[MT],1,D_D[CAT],TA_20,D_D[EP],-1, D_D[LOC],$A25),0) -> 257 | D25: =IFERROR(SUMIFS(D_D[ADP],D_D[MT],1,D_D[CAT],D$1,D_D[EP],-1, D_D[LOC],$A25),0) -> 114.19 | E25: =IFERROR(SUMIFS(D_D[INV],D_D[MT],2,D_D[CAT],TA_21,D_D[EP],-1, D_D[LOC],$A25),0) -> 5229 | F25: =IFERROR(SUMIFS(D_D[BL],D_D[MT],2,D_D[CAT],TA_21,D_D[EP],-1, D_D[LOC],$A25),0) -> 1968 | G25: 0.3763625932 | H25: =IFERROR(SUMIFS(D_D[INV],D_D[MT],2,D_D[CAT],TA_22,D_D[EP],-1, D_D[LOC],$A25),0) -> 988 | I25: =IFERROR(SUMIFS(D_D[BL],D_D[MT],2,D_D[CAT],TA_22,D_D[EP],-1, D_D[LOC],$A25),0) -> 306 | J25: 0.3097165992 | K25: =IFERROR(SUMIFS(D_D[INV],D_D[MT],2,D_D[CAT],TA_23,D_D[EP],-1, D_D[LOC],$A25),0) -> 14 | L25: =IFERROR(SUMIFS(D_D[BL],D_D[MT],2,D_D[CAT],TA_23,D_D[EP],-1, D_D[LOC],$A25),0) -> 0 | M25: 0 | N25: =IFERROR(SUMIFS(D_D[INV],D_D[MT],2,D_D[CAT],TA_24,D_D[EP],-1, D_D[LOC],$A25),0) -> 1000 | O25: =IFERROR(SUMIFS(D_D[BL],D_D[MT],2,D_D[CAT],TA_24,D_D[EP],-1, D_D[LOC],$A25),0) -> 599 | P25: 0.599 | Q25: =IFERROR(SUMIFS(D_D[INV],D_D[MT],2,D_D[CAT],TA_25,D_D[EP],-1, D_D[LOC],$A25),0) -> 31 | R25: =IFERROR(SUMIFS(D_D[INV],D_D[MT],2,D_D[CAT],TA_26,D_D[EP],-1, D_D[LOC],$A25),0) -> 6 | S25: =IFERROR(SUMIFS(D_D[INV],D_D[MT],7,D_D[CAT],2,D_D[EP],TA_20, D_D[LOC],$A25),0) -> 5
A26: 402 | B26: Togus | C26: =IFERROR(SUMIFS(D_D[INV],D_D[MT],1,D_D[CAT],TA_20,D_D[EP],-1, D_D[LOC],$A26),0) -> 104 | D26: =IFERROR(SUMIFS(D_D[ADP],D_D[MT],1,D_D[CAT],D$1,D_D[EP],-1, D_D[LOC],$A26),0) -> 106.57 | E26: =IFERROR(SUMIFS(D_D[INV],D_D[MT],2,D_D[CAT],TA_21,D_D[EP],-1, D_D[LOC],$A26),0) -> 1203 | F26: =IFERROR(SUMIFS(D_D[BL],D_D[MT],2,D_D[CAT],TA_21,D_D[EP],-1, D_D[LOC],$A26),0) -> 546 | G26: 0.4538653367 | H26: =IFERROR(SUMIFS(D_D[INV],D_D[MT],2,D_D[CAT],TA_22,D_D[EP],-1, D_D[LOC],$A26),0) -> 541 | I26: =IFERROR(SUMIFS(D_D[BL],D_D[MT],2,D_D[CAT],TA_22,D_D[EP],-1, D_D[LOC],$A26),0) -> 179 | J26: 0.3308687616 | K26: =IFERROR(SUMIFS(D_D[INV],D_D[MT],2,D_D[CAT],TA_23,D_D[EP],-1, D_D[LOC],$A26),0) -> 0 | L26: =IFERROR(SUMIFS(D_D[BL],D_D[MT],2,D_D[CAT],TA_23,D_D[EP],-1, D_D[LOC],$A26),0) -> 0 | M26: 0% | N26: =IFERROR(SUMIFS(D_D[INV],D_D[MT],2,D_D[CAT],TA_24,D_D[EP],-1, D_D[LOC],$A26),0) -> 184 | O26: =IFERROR(SUMIFS(D_D[BL],D_D[MT],2,D_D[CAT],TA_24,D_D[EP],-1, D_D[LOC],$A26),0) -> 106 | P26: 0.5760869565 | Q26: =IFERROR(SUMIFS(D_D[INV],D_D[MT],2,D_D[CAT],TA_25,D_D[EP],-1, D_D[LOC],$A26),0) -> 7 | R26: =IFERROR(SUMIFS(D_D[INV],D_D[MT],2,D_D[CAT],TA_26,D_D[EP],-1, D_D[LOC],$A26),0) -> 10 | S26: =IFERROR(SUMIFS(D_D[INV],D_D[MT],7,D_D[CAT],2,D_D[EP],TA_20, D_D[LOC],$A26),0) -> 1
A27: 372 | B27: Washington | C27: =IFERROR(SUMIFS(D_D[INV],D_D[MT],1,D_D[CAT],TA_20,D_D[EP],-1, D_D[LOC],$A27),0) -> 103 | D27: =IFERROR(SUMIFS(D_D[ADP],D_D[MT],1,D_D[CAT],D$1,D_D[EP],-1, D_D[LOC],$A27),0) -> 38.62 | E27: =IFERROR(SUMIFS(D_D[INV],D_D[MT],2,D_D[CAT],TA_21,D_D[EP],-1, D_D[LOC],$A27),0) -> 227 | F27: =IFERROR(SUMIFS(D_D[BL],D_D[MT],2,D_D[CAT],TA_21,D_D[EP],-1, D_D[LOC],$A27),0) -> 113 | G27: 0.4977973568 | H27: =IFERROR(SUMIFS(D_D[INV],D_D[MT],2,D_D[CAT],TA_22,D_D[EP],-1, D_D[LOC],$A27),0) -> 161 | I27: =IFERROR(SUMIFS(D_D[BL],D_D[MT],2,D_D[CAT],TA_22,D_D[EP],-1, D_D[LOC],$A27),0) -> 18 | J27: 0.1118012422 | K27: =IFERROR(SUMIFS(D_D[INV],D_D[MT],2,D_D[CAT],TA_23,D_D[EP],-1, D_D[LOC],$A27),0) -> 4 | L27: =IFERROR(SUMIFS(D_D[BL],D_D[MT],2,D_D[CAT],TA_23,D_D[EP],-1, D_D[LOC],$A27),0) -> 0 | M27: 0 | N27: =IFERROR(SUMIFS(D_D[INV],D_D[MT],2,D_D[CAT],TA_24,D_D[EP],-1, D_D[LOC],$A27),0) -> 8 | O27: =IFERROR(SUMIFS(D_D[BL],D_D[MT],2,D_D[CAT],TA_24,D_D[EP],-1, D_D[LOC],$A27),0) -> 1 | P27: 0.125 | Q27: =IFERROR(SUMIFS(D_D[INV],D_D[MT],2,D_D[CAT],TA_25,D_D[EP],-1, D_D[LOC],$A27),0) -> 0 | R27: =IFERROR(SUMIFS(D_D[INV],D_D[MT],2,D_D[CAT],TA_26,D_D[EP],-1, D_D[LOC],$A27),0) -> 0 | S27: =IFERROR(SUMIFS(D_D[INV],D_D[MT],7,D_D[CAT],2,D_D[EP],TA_20, D_D[LOC],$A27),0) -> 0
A28: 405 | B28: White River Junction | C28: =IFERROR(SUMIFS(D_D[INV],D_D[MT],1,D_D[CAT],TA_20,D_D[EP],-1, D_D[LOC],$A28),0) -> 13 | D28: =IFERROR(SUMIFS(D_D[ADP],D_D[MT],1,D_D[CAT],D$1,D_D[EP],-1, D_D[LOC],$A28),0) -> 130.92 | E28: =IFERROR(SUMIFS(D_D[INV],D_D[MT],2,D_D[CAT],TA_21,D_D[EP],-1, D_D[LOC],$A28),0) -> 284 | F28: =IFERROR(SUMIFS(D_D[BL],D_D[MT],2,D_D[CAT],TA_21,D_D[EP],-1, D_D[LOC],$A28),0) -> 139 | G28: 0.4894366197 | H28: =IFERROR(SUMIFS(D_D[INV],D_D[MT],2,D_D[CAT],TA_22,D_D[EP],-1, D_D[LOC],$A28),0) -> 114 | I28: =IFERROR(SUMIFS(D_D[BL],D_D[MT],2,D_D[CAT],TA_22,D_D[EP],-1, D_D[LOC],$A28),0) -> 33 | J28: 0.2894736842 | K28: =IFERROR(SUMIFS(D_D[INV],D_D[MT],2,D_D[CAT],TA_23,D_D[EP],-1, D_D[LOC],$A28),0) -> 0 | L28: =IFERROR(SUMIFS(D_D[BL],D_D[MT],2,D_D[CAT],TA_23,D_D[EP],-1, D_D[LOC],$A28),0) -> 0 | M28: 0% | N28: =IFERROR(SUMIFS(D_D[INV],D_D[MT],2,D_D[CAT],TA_24,D_D[EP],-1, D_D[LOC],$A28),0) -> 18 | O28: =IFERROR(SUMIFS(D_D[BL],D_D[MT],2,D_D[CAT],TA_24,D_D[EP],-1, D_D[LOC],$A28),0) -> 17 | P28: 0.9444444444 | Q28: =IFERROR(SUMIFS(D_D[INV],D_D[MT],2,D_D[CAT],TA_25,D_D[EP],-1, D_D[LOC],$A28),0) -> 4 | R28: =IFERROR(SUMIFS(D_D[INV],D_D[MT],2,D_D[CAT],TA_26,D_D[EP],-1, D_D[LOC],$A28),0) -> 4 | S28: =IFERROR(SUMIFS(D_D[INV],D_D[MT],7,D_D[CAT],2,D_D[EP],TA_20, D_D[LOC],$A28),0) -> 2
A29: 460 | B29: Wilmington | C29: =IFERROR(SUMIFS(D_D[INV],D_D[MT],1,D_D[CAT],TA_20,D_D[EP],-1, D_D[LOC],$A29),0) -> 24 | D29: =IFERROR(SUMIFS(D_D[ADP],D_D[MT],1,D_D[CAT],D$1,D_D[EP],-1, D_D[LOC],$A29),0) -> 45.88 | E29: =IFERROR(SUMIFS(D_D[INV],D_D[MT],2,D_D[CAT],TA_21,D_D[EP],-1, D_D[LOC],$A29),0) -> 617 | F29: =IFERROR(SUMIFS(D_D[BL],D_D[MT],2,D_D[CAT],TA_21,D_D[EP],-1, D_D[LOC],$A29),0) -> 206 | G29: 0.3338735818 | H29: =IFERROR(SUMIFS(D_D[INV],D_D[MT],2,D_D[CAT],TA_22,D_D[EP],-1, D_D[LOC],$A29),0) -> 120 | I29: =IFERROR(SUMIFS(D_D[BL],D_D[MT],2,D_D[CAT],TA_22,D_D[EP],-1, D_D[LOC],$A29),0) -> 27 | J29: 0.225 | K29: =IFERROR(SUMIFS(D_D[INV],D_D[MT],2,D_D[CAT],TA_23,D_D[EP],-1, D_D[LOC],$A29),0) -> 4 | L29: =IFERROR(SUMIFS(D_D[BL],D_D[MT],2,D_D[CAT],TA_23,D_D[EP],-1, D_D[LOC],$A29),0) -> 0 | M29: 0 | N29: =IFERROR(SUMIFS(D_D[INV],D_D[MT],2,D_D[CAT],TA_24,D_D[EP],-1, D_D[LOC],$A29),0) -> 26 | O29: =IFERROR(SUMIFS(D_D[BL],D_D[MT],2,D_D[CAT],TA_24,D_D[EP],-1, D_D[LOC],$A29),0) -> 21 | P29: 0.8076923077 | Q29: =IFERROR(SUMIFS(D_D[INV],D_D[MT],2,D_D[CAT],TA_25,D_D[EP],-1, D_D[LOC],$A29),0) -> 7 | R29: =IFERROR(SUMIFS(D_D[INV],D_D[MT],2,D_D[CAT],TA_26,D_D[EP],-1, D_D[LOC],$A29),0) -> 0 | S29: =IFERROR(SUMIFS(D_D[INV],D_D[MT],7,D_D[CAT],2,D_D[EP],TA_20, D_D[LOC],$A29),0) -> 0
A30: 393 | B30: Southeast | C30: =IFERROR(SUMIFS(D_D[INV],D_D[MT],1,D_D[CAT],TA_20,D_D[EP],-1, D_D[LOC],$A30),0) -> 10156 | D30: =IFERROR(SUMIFS(D_D[ADP],D_D[MT],1,D_D[CAT],D$1,D_D[EP],-1, D_D[LOC],$A30),0) -> 106.83 | E30: =IFERROR(SUMIFS(D_D[INV],D_D[MT],2,D_D[CAT],TA_21,D_D[EP],-1, D_D[LOC],$A30),0) -> 107334 | F30: =IFERROR(SUMIFS(D_D[BL],D_D[MT],2,D_D[CAT],TA_21,D_D[EP],-1, D_D[LOC],$A30),0) -> 45765 | G30: 0.4263793393 | H30: =IFERROR(SUMIFS(D_D[INV],D_D[MT],2,D_D[CAT],TA_22,D_D[EP],-1, D_D[LOC],$A30),0) -> 28090 | I30: =IFERROR(SUMIFS(D_D[BL],D_D[MT],2,D_D[CAT],TA_22,D_D[EP],-1, D_D[LOC],$A30),0) -> 6434 | J30: 0.2290494838 | K30: =IFERROR(SUMIFS(D_D[INV],D_D[MT],2,D_D[CAT],TA_23,D_D[EP],-1, D_D[LOC],$A30),0) -> 592 | L30: =IFERROR(SUMIFS(D_D[BL],D_D[MT],2,D_D[CAT],TA_23,D_D[EP],-1, D_D[LOC],$A30),0) -> 268 | M30: 0.4527027027 | N30: =IFERROR(SUMIFS(D_D[INV],D_D[MT],2,D_D[CAT],TA_24,D_D[EP],-1, D_D[LOC],$A30),0) -> 12221 | O30: =IFERROR(SUMIFS(D_D[BL],D_D[MT],2,D_D[CAT],TA_24,D_D[EP],-1, D_D[LOC],$A30),0) -> 6573 | P30: 0.5378446936 | Q30: =IFERROR(SUMIFS(D_D[INV],D_D[MT],2,D_D[CAT],TA_25,D_D[EP],-1, D_D[LOC],$A30),0) -> 522 | R30: =IFERROR(SUMIFS(D_D[INV],D_D[MT],2,D_D[CAT],TA_26,D_D[EP],-1, D_D[LOC],$A30),0) -> 105 | S30: =IFERROR(SUMIFS(D_D[INV],D_D[MT],7,D_D[CAT],2,D_D[EP],TA_20, D_D[LOC],$A30),0) -> 512
A31: 316 | B31: Atlanta | C31: =IFERROR(SUMIFS(D_D[INV],D_D[MT],1,D_D[CAT],TA_20,D_D[EP],-1, D_D[LOC],$A31),0) -> 578 | D31: =IFERROR(SUMIFS(D_D[ADP],D_D[MT],1,D_D[CAT],D$1,D_D[EP],-1, D_D[LOC],$A31),0) -> 148.39 | E31: =IFERROR(SUMIFS(D_D[INV],D_D[MT],2,D_D[CAT],TA_21,D_D[EP],-1, D_D[LOC],$A31),0) -> 15112 | F31: =IFERROR(SUMIFS(D_D[BL],D_D[MT],2,D_D[CAT],TA_21,D_D[EP],-1, D_D[LOC],$A31),0) -> 6391 | G31: 0.4229089465 | H31: =IFERROR(SUMIFS(D_D[INV],D_D[MT],2,D_D[CAT],TA_22,D_D[EP],-1, D_D[LOC],$A31),0) -> 2276 | I31: =IFERROR(SUMIFS(D_D[BL],D_D[MT],2,D_D[CAT],TA_22,D_D[EP],-1, D_D[LOC],$A31),0) -> 688 | J31: 0.30228471 | K31: =IFERROR(SUMIFS(D_D[INV],D_D[MT],2,D_D[CAT],TA_23,D_D[EP],-1, D_D[LOC],$A31),0) -> 26 | L31: =IFERROR(SUMIFS(D_D[BL],D_D[MT],2,D_D[CAT],TA_23,D_D[EP],-1, D_D[LOC],$A31),0) -> 6 | M31: 0.2307692308 | N31: =IFERROR(SUMIFS(D_D[INV],D_D[MT],2,D_D[CAT],TA_24,D_D[EP],-1, D_D[LOC],$A31),0) -> 792 | O31: =IFERROR(SUMIFS(D_D[BL],D_D[MT],2,D_D[CAT],TA_24,D_D[EP],-1, D_D[LOC],$A31),0) -> 543 | P31: 0.6856060606 | Q31: =IFERROR(SUMIFS(D_D[INV],D_D[MT],2,D_D[CAT],TA_25,D_D[EP],-1, D_D[LOC],$A31),0) -> 58 | R31: =IFERROR(SUMIFS(D_D[INV],D_D[MT],2,D_D[CAT],TA_26,D_D[EP],-1, D_D[LOC],$A31),0) -> 2 | S31: =IFERROR(SUMIFS(D_D[INV],D_D[MT],7,D_D[CAT],2,D_D[EP],TA_20, D_D[LOC],$A31),0) -> 20
A32: 319 | B32: Columbia | C32: =IFERROR(SUMIFS(D_D[INV],D_D[MT],1,D_D[CAT],TA_20,D_D[EP],-1, D_D[LOC],$A32),0) -> 3642 | D32: =IFERROR(SUMIFS(D_D[ADP],D_D[MT],1,D_D[CAT],D$1,D_D[EP],-1, D_D[LOC],$A32),0) -> 143.46 | E32: =IFERROR(SUMIFS(D_D[INV],D_D[MT],2,D_D[CAT],TA_21,D_D[EP],-1, D_D[LOC],$A32),0) -> 7232 | F32: =IFERROR(SUMIFS(D_D[BL],D_D[MT],2,D_D[CAT],TA_21,D_D[EP],-1, D_D[LOC],$A32),0) -> 3025 | G32: =IFERROR(F32/E32,"0%") -> 0.4182798673 | H32: =IFERROR(SUMIFS(D_D[INV],D_D[MT],2,D_D[CAT],TA_22,D_D[EP],-1, D_D[LOC],$A32),0) -> 4770 | I32: =IFERROR(SUMIFS(D_D[BL],D_D[MT],2,D_D[CAT],TA_22,D_D[EP],-1, D_D[LOC],$A32),0) -> 1448 | J32: =IFERROR(I32/H32,"0%") -> 0.3035639413 | K32: =IFERROR(SUMIFS(D_D[INV],D_D[MT],2,D_D[CAT],TA_23,D_D[EP],-1, D_D[LOC],$A32),0) -> 17 | L32: =IFERROR(SUMIFS(D_D[BL],D_D[MT],2,D_D[CAT],TA_23,D_D[EP],-1, D_D[LOC],$A32),0) -> 2 | M32: =IFERROR(L32/K32,"0%") -> 0.1176470588 | N32: =IFERROR(SUMIFS(D_D[INV],D_D[MT],2,D_D[CAT],TA_24,D_D[EP],-1, D_D[LOC],$A32),0) -> 636 | O32: =IFERROR(SUMIFS(D_D[BL],D_D[MT],2,D_D[CAT],TA_24,D_D[EP],-1, D_D[LOC],$A32),0) -> 375 | P32: =IFERROR(O32/N32,"0%") -> 0.5896226415 | Q32: =IFERROR(SUMIFS(D_D[INV],D_D[MT],2,D_D[CAT],TA_25,D_D[EP],-1, D_D[LOC],$A32),0) -> 30 | R32: =IFERROR(SUMIFS(D_D[INV],D_D[MT],2,D_D[CAT],TA_26,D_D[EP],-1, D_D[LOC],$A32),0) -> 1 | S32: =IFERROR(SUMIFS(D_D[INV],D_D[MT],7,D_D[CAT],2,D_D[EP],TA_20, D_D[LOC],$A32),0) -> 7
A33: 315 | B33: Huntington | C33: =IFERROR(SUMIFS(D_D[INV],D_D[MT],1,D_D[CAT],TA_20,D_D[EP],-1, D_D[LOC],$A33),0) -> 58 | D33: =IFERROR(SUMIFS(D_D[ADP],D_D[MT],1,D_D[CAT],D$1,D_D[EP],-1, D_D[LOC],$A33),0) -> 202.67 | E33: =IFERROR(SUMIFS(D_D[INV],D_D[MT],2,D_D[CAT],TA_21,D_D[EP],-1, D_D[LOC],$A33),0) -> 1791 | F33: =IFERROR(SUMIFS(D_D[BL],D_D[MT],2,D_D[CAT],TA_21,D_D[EP],-1, D_D[LOC],$A33),0) -> 844 | G33: 0.4712451145 | H33: =IFERROR(SUMIFS(D_D[INV],D_D[MT],2,D_D[CAT],TA_22,D_D[EP],-1, D_D[LOC],$A33),0) -> 393 | I33: =IFERROR(SUMIFS(D_D[BL],D_D[MT],2,D_D[CAT],TA_22,D_D[EP],-1, D_D[LOC],$A33),0) -> 138 | J33: 0.3511450382 | K33: =IFERROR(SUMIFS(D_D[INV],D_D[MT],2,D_D[CAT],TA_23,D_D[EP],-1, D_D[LOC],$A33),0) -> 9 | L33: =IFERROR(SUMIFS(D_D[BL],D_D[MT],2,D_D[CAT],TA_23,D_D[EP],-1, D_D[LOC],$A33),0) -> 1 | M33: 0.1111111111 | N33: =IFERROR(SUMIFS(D_D[INV],D_D[MT],2,D_D[CAT],TA_24,D_D[EP],-1, D_D[LOC],$A33),0) -> 396 | O33: =IFERROR(SUMIFS(D_D[BL],D_D[MT],2,D_D[CAT],TA_24,D_D[EP],-1, D_D[LOC],$A33),0) -> 231 | P33: 0.5833333333 | Q33: =IFERROR(SUMIFS(D_D[INV],D_D[MT],2,D_D[CAT],TA_25,D_D[EP],-1, D_D[LOC],$A33),0) -> 13 | R33: =IFERROR(SUMIFS(D_D[INV],D_D[MT],2,D_D[CAT],TA_26,D_D[EP],-1, D_D[LOC],$A33),0) -> 16 | S33: =IFERROR(SUMIFS(D_D[INV],D_D[MT],7,D_D[CAT],2,D_D[EP],TA_20, D_D[LOC],$A33),0) -> 3
A34: 323 | B34: Jackson | C34: =IFERROR(SUMIFS(D_D[INV],D_D[MT],1,D_D[CAT],TA_20,D_D[EP],-1, D_D[LOC],$A34),0) -> 142 | D34: =IFERROR(SUMIFS(D_D[ADP],D_D[MT],1,D_D[CAT],D$1,D_D[EP],-1, D_D[LOC],$A34),0) -> 123.67 | E34: =IFERROR(SUMIFS(D_D[INV],D_D[MT],2,D_D[CAT],TA_21,D_D[EP],-1, D_D[LOC],$A34),0) -> 3962 | F34: =IFERROR(SUMIFS(D_D[BL],D_D[MT],2,D_D[CAT],TA_21,D_D[EP],-1, D_D[LOC],$A34),0) -> 1828 | G34: 0.4613831398 | H34: =IFERROR(SUMIFS(D_D[INV],D_D[MT],2,D_D[CAT],TA_22,D_D[EP],-1, D_D[LOC],$A34),0) -> 627 | I34: =IFERROR(SUMIFS(D_D[BL],D_D[MT],2,D_D[CAT],TA_22,D_D[EP],-1, D_D[LOC],$A34),0) -> 168 | J34: 0.2679425837 | K34: =IFERROR(SUMIFS(D_D[INV],D_D[MT],2,D_D[CAT],TA_23,D_D[EP],-1, D_D[LOC],$A34),0) -> 10 | L34: =IFERROR(SUMIFS(D_D[BL],D_D[MT],2,D_D[CAT],TA_23,D_D[EP],-1, D_D[LOC],$A34),0) -> 0 | M34: 0 | N34: =IFERROR(SUMIFS(D_D[INV],D_D[MT],2,D_D[CAT],TA_24,D_D[EP],-1, D_D[LOC],$A34),0) -> 567 | O34: =IFERROR(SUMIFS(D_D[BL],D_D[MT],2,D_D[CAT],TA_24,D_D[EP],-1, D_D[LOC],$A34),0) -> 257 | P34: 0.4532627866 | Q34: =IFERROR(SUMIFS(D_D[INV],D_D[MT],2,D_D[CAT],TA_25,D_D[EP],-1, D_D[LOC],$A34),0) -> 16 | R34: =IFERROR(SUMIFS(D_D[INV],D_D[MT],2,D_D[CAT],TA_26,D_D[EP],-1, D_D[LOC],$A34),0) -> 1 | S34: =IFERROR(SUMIFS(D_D[INV],D_D[MT],7,D_D[CAT],2,D_D[EP],TA_20, D_D[LOC],$A34),0) -> 10
A35: 350 | B35: Little Rock | C35: =IFERROR(SUMIFS(D_D[INV],D_D[MT],1,D_D[CAT],TA_20,D_D[EP],-1, D_D[LOC],$A35),0) -> 357 | D35: =IFERROR(SUMIFS(D_D[ADP],D_D[MT],1,D_D[CAT],D$1,D_D[EP],-1, D_D[LOC],$A35),0) -> 95.85 | E35: =IFERROR(SUMIFS(D_D[INV],D_D[MT],2,D_D[CAT],TA_21,D_D[EP],-1, D_D[LOC],$A35),0) -> 3497 | F35: =IFERROR(SUMIFS(D_D[BL],D_D[MT],2,D_D[CAT],TA_21,D_D[EP],-1, D_D[LOC],$A35),0) -> 1471 | G35: 0.4206462682 | H35: =IFERROR(SUMIFS(D_D[INV],D_D[MT],2,D_D[CAT],TA_22,D_D[EP],-1, D_D[LOC],$A35),0) -> 1473 | I35: =IFERROR(SUMIFS(D_D[BL],D_D[MT],2,D_D[CAT],TA_22,D_D[EP],-1, D_D[LOC],$A35),0) -> 230 | J35: 0.156143924 | K35: =IFERROR(SUMIFS(D_D[INV],D_D[MT],2,D_D[CAT],TA_23,D_D[EP],-1, D_D[LOC],$A35),0) -> 11 | L35: =IFERROR(SUMIFS(D_D[BL],D_D[MT],2,D_D[CAT],TA_23,D_D[EP],-1, D_D[LOC],$A35),0) -> 0 | M35: 0 | N35: =IFERROR(SUMIFS(D_D[INV],D_D[MT],2,D_D[CAT],TA_24,D_D[EP],-1, D_D[LOC],$A35),0) -> 660 | O35: =IFERROR(SUMIFS(D_D[BL],D_D[MT],2,D_D[CAT],TA_24,D_D[EP],-1, D_D[LOC],$A35),0) -> 260 | P35: 0.3939393939 | Q35: =IFERROR(SUMIFS(D_D[INV],D_D[MT],2,D_D[CAT],TA_25,D_D[EP],-1, D_D[LOC],$A35),0) -> 22 | R35: =IFERROR(SUMIFS(D_D[INV],D_D[MT],2,D_D[CAT],TA_26,D_D[EP],-1, D_D[LOC],$A35),0) -> 0 | S35: =IFERROR(SUMIFS(D_D[INV],D_D[MT],7,D_D[CAT],2,D_D[EP],TA_20, D_D[LOC],$A35),0) -> 1
A36: 327 | B36: Louisville | C36: =IFERROR(SUMIFS(D_D[INV],D_D[MT],1,D_D[CAT],TA_20,D_D[EP],-1, D_D[LOC],$A36),0) -> 1932 | D36: =IFERROR(SUMIFS(D_D[ADP],D_D[MT],1,D_D[CAT],D$1,D_D[EP],-1, D_D[LOC],$A36),0) -> 68.3 | E36: =IFERROR(SUMIFS(D_D[INV],D_D[MT],2,D_D[CAT],TA_21,D_D[EP],-1, D_D[LOC],$A36),0) -> 3471 | F36: =IFERROR(SUMIFS(D_D[BL],D_D[MT],2,D_D[CAT],TA_21,D_D[EP],-1, D_D[LOC],$A36),0) -> 1446 | G36: 0.4165946413 | H36: =IFERROR(SUMIFS(D_D[INV],D_D[MT],2,D_D[CAT],TA_22,D_D[EP],-1, D_D[LOC],$A36),0) -> 2671 | I36: =IFERROR(SUMIFS(D_D[BL],D_D[MT],2,D_D[CAT],TA_22,D_D[EP],-1, D_D[LOC],$A36),0) -> 500 | J36: 0.1871958068 | K36: =IFERROR(SUMIFS(D_D[INV],D_D[MT],2,D_D[CAT],TA_23,D_D[EP],-1, D_D[LOC],$A36),0) -> 315 | L36: =IFERROR(SUMIFS(D_D[BL],D_D[MT],2,D_D[CAT],TA_23,D_D[EP],-1, D_D[LOC],$A36),0) -> 238 | M36: 0.7555555556 | N36: =IFERROR(SUMIFS(D_D[INV],D_D[MT],2,D_D[CAT],TA_24,D_D[EP],-1, D_D[LOC],$A36),0) -> 464 | O36: =IFERROR(SUMIFS(D_D[BL],D_D[MT],2,D_D[CAT],TA_24,D_D[EP],-1, D_D[LOC],$A36),0) -> 339 | P36: 0.7306034483 | Q36: =IFERROR(SUMIFS(D_D[INV],D_D[MT],2,D_D[CAT],TA_25,D_D[EP],-1, D_D[LOC],$A36),0) -> 12 | R36: =IFERROR(SUMIFS(D_D[INV],D_D[MT],2,D_D[CAT],TA_26,D_D[EP],-1, D_D[LOC],$A36),0) -> 4 | S36: =IFERROR(SUMIFS(D_D[INV],D_D[MT],7,D_D[CAT],2,D_D[EP],TA_20, D_D[LOC],$A36),0) -> 403
A37: 322 | B37: Montgomery | C37: =IFERROR(SUMIFS(D_D[INV],D_D[MT],1,D_D[CAT],TA_20,D_D[EP],-1, D_D[LOC],$A37),0) -> 248 | D37: =IFERROR(SUMIFS(D_D[ADP],D_D[MT],1,D_D[CAT],D$1,D_D[EP],-1, D_D[LOC],$A37),0) -> 72.15 | E37: =IFERROR(SUMIFS(D_D[INV],D_D[MT],2,D_D[CAT],TA_21,D_D[EP],-1, D_D[LOC],$A37),0) -> 6501 | F37: =IFERROR(SUMIFS(D_D[BL],D_D[MT],2,D_D[CAT],TA_21,D_D[EP],-1, D_D[LOC],$A37),0) -> 2924 | G37: 0.4497769574 | H37: =IFERROR(SUMIFS(D_D[INV],D_D[MT],2,D_D[CAT],TA_22,D_D[EP],-1, D_D[LOC],$A37),0) -> 908 | I37: =IFERROR(SUMIFS(D_D[BL],D_D[MT],2,D_D[CAT],TA_22,D_D[EP],-1, D_D[LOC],$A37),0) -> 209 | J37: 0.2301762115 | K37: =IFERROR(SUMIFS(D_D[INV],D_D[MT],2,D_D[CAT],TA_23,D_D[EP],-1, D_D[LOC],$A37),0) -> 14 | L37: =IFERROR(SUMIFS(D_D[BL],D_D[MT],2,D_D[CAT],TA_23,D_D[EP],-1, D_D[LOC],$A37),0) -> 0 | M37: 0 | N37: =IFERROR(SUMIFS(D_D[INV],D_D[MT],2,D_D[CAT],TA_24,D_D[EP],-1, D_D[LOC],$A37),0) -> 529 | O37: =IFERROR(SUMIFS(D_D[BL],D_D[MT],2,D_D[CAT],TA_24,D_D[EP],-1, D_D[LOC],$A37),0) -> 256 | P37: 0.4839319471 | Q37: =IFERROR(SUMIFS(D_D[INV],D_D[MT],2,D_D[CAT],TA_25,D_D[EP],-1, D_D[LOC],$A37),0) -> 48 | R37: =IFERROR(SUMIFS(D_D[INV],D_D[MT],2,D_D[CAT],TA_26,D_D[EP],-1, D_D[LOC],$A37),0) -> 5 | S37: =IFERROR(SUMIFS(D_D[INV],D_D[MT],7,D_D[CAT],2,D_D[EP],TA_20, D_D[LOC],$A37),0) -> 7
A38: 320 | B38: Nashville | C38: =IFERROR(SUMIFS(D_D[INV],D_D[MT],1,D_D[CAT],TA_20,D_D[EP],-1, D_D[LOC],$A38),0) -> 748 | D38: =IFERROR(SUMIFS(D_D[ADP],D_D[MT],1,D_D[CAT],D$1,D_D[EP],-1, D_D[LOC],$A38),0) -> 66.1 | E38: =IFERROR(SUMIFS(D_D[INV],D_D[MT],2,D_D[CAT],TA_21,D_D[EP],-1, D_D[LOC],$A38),0) -> 7609 | F38: =IFERROR(SUMIFS(D_D[BL],D_D[MT],2,D_D[CAT],TA_21,D_D[EP],-1, D_D[LOC],$A38),0) -> 3213 | G38: 0.4222631095 | H38: =IFERROR(SUMIFS(D_D[INV],D_D[MT],2,D_D[CAT],TA_22,D_D[EP],-1, D_D[LOC],$A38),0) -> 3602 | I38: =IFERROR(SUMIFS(D_D[BL],D_D[MT],2,D_D[CAT],TA_22,D_D[EP],-1, D_D[LOC],$A38),0) -> 480 | J38: 0.1332593004 | K38: =IFERROR(SUMIFS(D_D[INV],D_D[MT],2,D_D[CAT],TA_23,D_D[EP],-1, D_D[LOC],$A38),0) -> 39 | L38: =IFERROR(SUMIFS(D_D[BL],D_D[MT],2,D_D[CAT],TA_23,D_D[EP],-1, D_D[LOC],$A38),0) -> 4 | M38: 0.1025641026 | N38: =IFERROR(SUMIFS(D_D[INV],D_D[MT],2,D_D[CAT],TA_24,D_D[EP],-1, D_D[LOC],$A38),0) -> 753 | O38: =IFERROR(SUMIFS(D_D[BL],D_D[MT],2,D_D[CAT],TA_24,D_D[EP],-1, D_D[LOC],$A38),0) -> 396 | P38: 0.5258964143 | Q38: =IFERROR(SUMIFS(D_D[INV],D_D[MT],2,D_D[CAT],TA_25,D_D[EP],-1, D_D[LOC],$A38),0) -> 53 | R38: =IFERROR(SUMIFS(D_D[INV],D_D[MT],2,D_D[CAT],TA_26,D_D[EP],-1, D_D[LOC],$A38),0) -> 1 | S38: =IFERROR(SUMIFS(D_D[INV],D_D[MT],7,D_D[CAT],2,D_D[EP],TA_20, D_D[LOC],$A38),0) -> 4
A39: 321 | B39: New Orleans | C39: =IFERROR(SUMIFS(D_D[INV],D_D[MT],1,D_D[CAT],TA_20,D_D[EP],-1, D_D[LOC],$A39),0) -> 160 | D39: =IFERROR(SUMIFS(D_D[ADP],D_D[MT],1,D_D[CAT],D$1,D_D[EP],-1, D_D[LOC],$A39),0) -> 58.53 | E39: =IFERROR(SUMIFS(D_D[INV],D_D[MT],2,D_D[CAT],TA_21,D_D[EP],-1, D_D[LOC],$A39),0) -> 4366 | F39: =IFERROR(SUMIFS(D_D[BL],D_D[MT],2,D_D[CAT],TA_21,D_D[EP],-1, D_D[LOC],$A39),0) -> 1557 | G39: 0.3566193312 | H39: =IFERROR(SUMIFS(D_D[INV],D_D[MT],2,D_D[CAT],TA_22,D_D[EP],-1, D_D[LOC],$A39),0) -> 758 | I39: =IFERROR(SUMIFS(D_D[BL],D_D[MT],2,D_D[CAT],TA_22,D_D[EP],-1, D_D[LOC],$A39),0) -> 140 | J39: 0.1846965699 | K39: =IFERROR(SUMIFS(D_D[INV],D_D[MT],2,D_D[CAT],TA_23,D_D[EP],-1, D_D[LOC],$A39),0) -> 12 | L39: =IFERROR(SUMIFS(D_D[BL],D_D[MT],2,D_D[CAT],TA_23,D_D[EP],-1, D_D[LOC],$A39),0) -> 0 | M39: 0 | N39: =IFERROR(SUMIFS(D_D[INV],D_D[MT],2,D_D[CAT],TA_24,D_D[EP],-1, D_D[LOC],$A39),0) -> 340 | O39: =IFERROR(SUMIFS(D_D[BL],D_D[MT],2,D_D[CAT],TA_24,D_D[EP],-1, D_D[LOC],$A39),0) -> 132 | P39: 0.3882352941 | Q39: =IFERROR(SUMIFS(D_D[INV],D_D[MT],2,D_D[CAT],TA_25,D_D[EP],-1, D_D[LOC],$A39),0) -> 20 | R39: =IFERROR(SUMIFS(D_D[INV],D_D[MT],2,D_D[CAT],TA_26,D_D[EP],-1, D_D[LOC],$A39),0) -> 10 | S39: =IFERROR(SUMIFS(D_D[INV],D_D[MT],7,D_D[CAT],2,D_D[EP],TA_20, D_D[LOC],$A39),0) -> 1
A40: 314 | B40: Roanoke | C40: =IFERROR(SUMIFS(D_D[INV],D_D[MT],1,D_D[CAT],TA_20,D_D[EP],-1, D_D[LOC],$A40),0) -> 434 | D40: =IFERROR(SUMIFS(D_D[ADP],D_D[MT],1,D_D[CAT],D$1,D_D[EP],-1, D_D[LOC],$A40),0) -> 90.63 | E40: =IFERROR(SUMIFS(D_D[INV],D_D[MT],2,D_D[CAT],TA_21,D_D[EP],-1, D_D[LOC],$A40),0) -> 12724 | F40: =IFERROR(SUMIFS(D_D[BL],D_D[MT],2,D_D[CAT],TA_21,D_D[EP],-1, D_D[LOC],$A40),0) -> 5050 | G40: 0.3968877711 | H40: =IFERROR(SUMIFS(D_D[INV],D_D[MT],2,D_D[CAT],TA_22,D_D[EP],-1, D_D[LOC],$A40),0) -> 1739 | I40: =IFERROR(SUMIFS(D_D[BL],D_D[MT],2,D_D[CAT],TA_22,D_D[EP],-1, D_D[LOC],$A40),0) -> 448 | J40: 0.2576193214 | K40: =IFERROR(SUMIFS(D_D[INV],D_D[MT],2,D_D[CAT],TA_23,D_D[EP],-1, D_D[LOC],$A40),0) -> 16 | L40: =IFERROR(SUMIFS(D_D[BL],D_D[MT],2,D_D[CAT],TA_23,D_D[EP],-1, D_D[LOC],$A40),0) -> 0 | M40: 0 | N40: =IFERROR(SUMIFS(D_D[INV],D_D[MT],2,D_D[CAT],TA_24,D_D[EP],-1, D_D[LOC],$A40),0) -> 1320 | O40: =IFERROR(SUMIFS(D_D[BL],D_D[MT],2,D_D[CAT],TA_24,D_D[EP],-1, D_D[LOC],$A40),0) -> 759 | P40: 0.575 | Q40: =IFERROR(SUMIFS(D_D[INV],D_D[MT],2,D_D[CAT],TA_25,D_D[EP],-1, D_D[LOC],$A40),0) -> 45 | R40: =IFERROR(SUMIFS(D_D[INV],D_D[MT],2,D_D[CAT],TA_26,D_D[EP],-1, D_D[LOC],$A40),0) -> 4 | S40: =IFERROR(SUMIFS(D_D[INV],D_D[MT],7,D_D[CAT],2,D_D[EP],TA_20, D_D[LOC],$A40),0) -> 3
A41: 355 | B41: San Juan | C41: =IFERROR(SUMIFS(D_D[INV],D_D[MT],1,D_D[CAT],TA_20,D_D[EP],-1, D_D[LOC],$A41),0) -> 54 | D41: =IFERROR(SUMIFS(D_D[ADP],D_D[MT],1,D_D[CAT],D$1,D_D[EP],-1, D_D[LOC],$A41),0) -> 64.67 | E41: =IFERROR(SUMIFS(D_D[INV],D_D[MT],2,D_D[CAT],TA_21,D_D[EP],-1, D_D[LOC],$A41),0) -> 1717 | F41: =IFERROR(SUMIFS(D_D[BL],D_D[MT],2,D_D[CAT],TA_21,D_D[EP],-1, D_D[LOC],$A41),0) -> 1004 | G41: 0.584740827 | H41: =IFERROR(SUMIFS(D_D[INV],D_D[MT],2,D_D[CAT],TA_22,D_D[EP],-1, D_D[LOC],$A41),0) -> 390 | I41: =IFERROR(SUMIFS(D_D[BL],D_D[MT],2,D_D[CAT],TA_22,D_D[EP],-1, D_D[LOC],$A41),0) -> 130 | J41: 0.3333333333 | K41: =IFERROR(SUMIFS(D_D[INV],D_D[MT],2,D_D[CAT],TA_23,D_D[EP],-1, D_D[LOC],$A41),0) -> 4 | L41: =IFERROR(SUMIFS(D_D[BL],D_D[MT],2,D_D[CAT],TA_23,D_D[EP],-1, D_D[LOC],$A41),0) -> 0 | M41: 0 | N41: =IFERROR(SUMIFS(D_D[INV],D_D[MT],2,D_D[CAT],TA_24,D_D[EP],-1, D_D[LOC],$A41),0) -> 209 | O41: =IFERROR(SUMIFS(D_D[BL],D_D[MT],2,D_D[CAT],TA_24,D_D[EP],-1, D_D[LOC],$A41),0) -> 144 | P41: 0.6889952153 | Q41: =IFERROR(SUMIFS(D_D[INV],D_D[MT],2,D_D[CAT],TA_25,D_D[EP],-1, D_D[LOC],$A41),0) -> 6 | R41: =IFERROR(SUMIFS(D_D[INV],D_D[MT],2,D_D[CAT],TA_26,D_D[EP],-1, D_D[LOC],$A41),0) -> 0 | S41: =IFERROR(SUMIFS(D_D[INV],D_D[MT],7,D_D[CAT],2,D_D[EP],TA_20, D_D[LOC],$A41),0) -> 9
A42: 317 | B42: St. Petersburg | C42: =IFERROR(SUMIFS(D_D[INV],D_D[MT],1,D_D[CAT],TA_20,D_D[EP],-1, D_D[LOC],$A42),0) -> 755 | D42: =IFERROR(SUMIFS(D_D[ADP],D_D[MT],1,D_D[CAT],D$1,D_D[EP],-1, D_D[LOC],$A42),0) -> 106.81 | E42: =IFERROR(SUMIFS(D_D[INV],D_D[MT],2,D_D[CAT],TA_21,D_D[EP],-1, D_D[LOC],$A42),0) -> 25128 | F42: =IFERROR(SUMIFS(D_D[BL],D_D[MT],2,D_D[CAT],TA_21,D_D[EP],-1, D_D[LOC],$A42),0) -> 11203 | G42: 0.445837313 | H42: =IFERROR(SUMIFS(D_D[INV],D_D[MT],2,D_D[CAT],TA_22,D_D[EP],-1, D_D[LOC],$A42),0) -> 2981 | I42: =IFERROR(SUMIFS(D_D[BL],D_D[MT],2,D_D[CAT],TA_22,D_D[EP],-1, D_D[LOC],$A42),0) -> 827 | J42: 0.2774236833 | K42: =IFERROR(SUMIFS(D_D[INV],D_D[MT],2,D_D[CAT],TA_23,D_D[EP],-1, D_D[LOC],$A42),0) -> 84 | L42: =IFERROR(SUMIFS(D_D[BL],D_D[MT],2,D_D[CAT],TA_23,D_D[EP],-1, D_D[LOC],$A42),0) -> 16 | M42: 0.1904761905 | N42: =IFERROR(SUMIFS(D_D[INV],D_D[MT],2,D_D[CAT],TA_24,D_D[EP],-1, D_D[LOC],$A42),0) -> 4478 | O42: =IFERROR(SUMIFS(D_D[BL],D_D[MT],2,D_D[CAT],TA_24,D_D[EP],-1, D_D[LOC],$A42),0) -> 2207 | P42: 0.4928539527 | Q42: =IFERROR(SUMIFS(D_D[INV],D_D[MT],2,D_D[CAT],TA_25,D_D[EP],-1, D_D[LOC],$A42),0) -> 117 | R42: =IFERROR(SUMIFS(D_D[INV],D_D[MT],2,D_D[CAT],TA_26,D_D[EP],-1, D_D[LOC],$A42),0) -> 47 | S42: =IFERROR(SUMIFS(D_D[INV],D_D[MT],7,D_D[CAT],2,D_D[EP],TA_20, D_D[LOC],$A42),0) -> 33
A43: 318 | B43: Winston-Salem | C43: =IFERROR(SUMIFS(D_D[INV],D_D[MT],1,D_D[CAT],TA_20,D_D[EP],-1, D_D[LOC],$A43),0) -> 1048 | D43: =IFERROR(SUMIFS(D_D[ADP],D_D[MT],1,D_D[CAT],D$1,D_D[EP],-1, D_D[LOC],$A43),0) -> 77.29 | E43: =IFERROR(SUMIFS(D_D[INV],D_D[MT],2,D_D[CAT],TA_21,D_D[EP],-1, D_D[LOC],$A43),0) -> 14224 | F43: =IFERROR(SUMIFS(D_D[BL],D_D[MT],2,D_D[CAT],TA_21,D_D[EP],-1, D_D[LOC],$A43),0) -> 5809 | G43: 0.4083942632 | H43: =IFERROR(SUMIFS(D_D[INV],D_D[MT],2,D_D[CAT],TA_22,D_D[EP],-1, D_D[LOC],$A43),0) -> 5502 | I43: =IFERROR(SUMIFS(D_D[BL],D_D[MT],2,D_D[CAT],TA_22,D_D[EP],-1, D_D[LOC],$A43),0) -> 1028 | J43: 0.1868411487 | K43: =IFERROR(SUMIFS(D_D[INV],D_D[MT],2,D_D[CAT],TA_23,D_D[EP],-1, D_D[LOC],$A43),0) -> 35 | L43: =IFERROR(SUMIFS(D_D[BL],D_D[MT],2,D_D[CAT],TA_23,D_D[EP],-1, D_D[LOC],$A43),0) -> 1 | M43: 0.02857142857 | N43: =IFERROR(SUMIFS(D_D[INV],D_D[MT],2,D_D[CAT],TA_24,D_D[EP],-1, D_D[LOC],$A43),0) -> 1077 | O43: =IFERROR(SUMIFS(D_D[BL],D_D[MT],2,D_D[CAT],TA_24,D_D[EP],-1, D_D[LOC],$A43),0) -> 674 | P43: 0.625812442 | Q43: =IFERROR(SUMIFS(D_D[INV],D_D[MT],2,D_D[CAT],TA_25,D_D[EP],-1, D_D[LOC],$A43),0) -> 82 | R43: =IFERROR(SUMIFS(D_D[INV],D_D[MT],2,D_D[CAT],TA_26,D_D[EP],-1, D_D[LOC],$A43),0) -> 14 | S43: =IFERROR(SUMIFS(D_D[INV],D_D[MT],7,D_D[CAT],2,D_D[EP],TA_20, D_D[LOC],$A43),0) -> 11
A44: 384 | B44: Continental | C44: =IFERROR(SUMIFS(D_D[INV],D_D[MT],1,D_D[CAT],TA_20,D_D[EP],-1, D_D[LOC],$A44),0) -> 5014 | D44: =IFERROR(SUMIFS(D_D[ADP],D_D[MT],1,D_D[CAT],D$1,D_D[EP],-1, D_D[LOC],$A44),0) -> 84.55 | E44: =IFERROR(SUMIFS(D_D[INV],D_D[MT],2,D_D[CAT],TA_21,D_D[EP],-1, D_D[LOC],$A44),0) -> 60881 | F44: =IFERROR(SUMIFS(D_D[BL],D_D[MT],2,D_D[CAT],TA_21,D_D[EP],-1, D_D[LOC],$A44),0) -> 25912 | G44: 0.4256171876 | H44: =IFERROR(SUMIFS(D_D[INV],D_D[MT],2,D_D[CAT],TA_22,D_D[EP],-1, D_D[LOC],$A44),0) -> 19382 | I44: =IFERROR(SUMIFS(D_D[BL],D_D[MT],2,D_D[CAT],TA_22,D_D[EP],-1, D_D[LOC],$A44),0) -> 3880 | J44: 0.2001857393 | K44: =IFERROR(SUMIFS(D_D[INV],D_D[MT],2,D_D[CAT],TA_23,D_D[EP],-1, D_D[LOC],$A44),0) -> 166 | L44: =IFERROR(SUMIFS(D_D[BL],D_D[MT],2,D_D[CAT],TA_23,D_D[EP],-1, D_D[LOC],$A44),0) -> 8 | M44: 0.04819277108 | N44: =IFERROR(SUMIFS(D_D[INV],D_D[MT],2,D_D[CAT],TA_24,D_D[EP],-1, D_D[LOC],$A44),0) -> 9097 | O44: =IFERROR(SUMIFS(D_D[BL],D_D[MT],2,D_D[CAT],TA_24,D_D[EP],-1, D_D[LOC],$A44),0) -> 5669 | P44: 0.6231724744 | Q44: =IFERROR(SUMIFS(D_D[INV],D_D[MT],2,D_D[CAT],TA_25,D_D[EP],-1, D_D[LOC],$A44),0) -> 1012 | R44: =IFERROR(SUMIFS(D_D[INV],D_D[MT],2,D_D[CAT],TA_26,D_D[EP],-1, D_D[LOC],$A44),0) -> 286 | S44: =IFERROR(SUMIFS(D_D[INV],D_D[MT],7,D_D[CAT],2,D_D[EP],TA_20, D_D[LOC],$A44),0) -> 210
A45: 442 | B45: Cheyenne | C45: =IFERROR(SUMIFS(D_D[INV],D_D[MT],1,D_D[CAT],TA_20,D_D[EP],-1, D_D[LOC],$A45),0) -> 32 | D45: =IFERROR(SUMIFS(D_D[ADP],D_D[MT],1,D_D[CAT],D$1,D_D[EP],-1, D_D[LOC],$A45),0) -> 94.59 | E45: =IFERROR(SUMIFS(D_D[INV],D_D[MT],2,D_D[CAT],TA_21,D_D[EP],-1, D_D[LOC],$A45),0) -> 759 | F45: =IFERROR(SUMIFS(D_D[BL],D_D[MT],2,D_D[CAT],TA_21,D_D[EP],-1, D_D[LOC],$A45),0) -> 315 | G45: 0.4150197628 | H45: =IFERROR(SUMIFS(D_D[INV],D_D[MT],2,D_D[CAT],TA_22,D_D[EP],-1, D_D[LOC],$A45),0) -> 124 | I45: =IFERROR(SUMIFS(D_D[BL],D_D[MT],2,D_D[CAT],TA_22,D_D[EP],-1, D_D[LOC],$A45),0) -> 28 | J45: 0.2258064516 | K45: =IFERROR(SUMIFS(D_D[INV],D_D[MT],2,D_D[CAT],TA_23,D_D[EP],-1, D_D[LOC],$A45),0) -> 0 | L45: =IFERROR(SUMIFS(D_D[BL],D_D[MT],2,D_D[CAT],TA_23,D_D[EP],-1, D_D[LOC],$A45),0) -> 0 | M45: 0% | N45: =IFERROR(SUMIFS(D_D[INV],D_D[MT],2,D_D[CAT],TA_24,D_D[EP],-1, D_D[LOC],$A45),0) -> 94 | O45: =IFERROR(SUMIFS(D_D[BL],D_D[MT],2,D_D[CAT],TA_24,D_D[EP],-1, D_D[LOC],$A45),0) -> 67 | P45: 0.7127659574 | Q45: =IFERROR(SUMIFS(D_D[INV],D_D[MT],2,D_D[CAT],TA_25,D_D[EP],-1, D_D[LOC],$A45),0) -> 4 | R45: =IFERROR(SUMIFS(D_D[INV],D_D[MT],2,D_D[CAT],TA_26,D_D[EP],-1, D_D[LOC],$A45),0) -> 1 | S45: =IFERROR(SUMIFS(D_D[INV],D_D[MT],7,D_D[CAT],2,D_D[EP],TA_20, D_D[LOC],$A45),0) -> 2
A46: 339 | B46: Denver | C46: =IFERROR(SUMIFS(D_D[INV],D_D[MT],1,D_D[CAT],TA_20,D_D[EP],-1, D_D[LOC],$A46),0) -> 164 | D46: =IFERROR(SUMIFS(D_D[ADP],D_D[MT],1,D_D[CAT],D$1,D_D[EP],-1, D_D[LOC],$A46),0) -> 68.25 | E46: =IFERROR(SUMIFS(D_D[INV],D_D[MT],2,D_D[CAT],TA_21,D_D[EP],-1, D_D[LOC],$A46),0) -> 5236 | F46: =IFERROR(SUMIFS(D_D[BL],D_D[MT],2,D_D[CAT],TA_21,D_D[EP],-1, D_D[LOC],$A46),0) -> 1778 | G46: 0.3395721925 | H46: =IFERROR(SUMIFS(D_D[INV],D_D[MT],2,D_D[CAT],TA_22,D_D[EP],-1, D_D[LOC],$A46),0) -> 1044 | I46: =IFERROR(SUMIFS(D_D[BL],D_D[MT],2,D_D[CAT],TA_22,D_D[EP],-1, D_D[LOC],$A46),0) -> 217 | J46: 0.2078544061 | K46: =IFERROR(SUMIFS(D_D[INV],D_D[MT],2,D_D[CAT],TA_23,D_D[EP],-1, D_D[LOC],$A46),0) -> 13 | L46: =IFERROR(SUMIFS(D_D[BL],D_D[MT],2,D_D[CAT],TA_23,D_D[EP],-1, D_D[LOC],$A46),0) -> 1 | M46: 0.07692307692 | N46: =IFERROR(SUMIFS(D_D[INV],D_D[MT],2,D_D[CAT],TA_24,D_D[EP],-1, D_D[LOC],$A46),0) -> 373 | O46: =IFERROR(SUMIFS(D_D[BL],D_D[MT],2,D_D[CAT],TA_24,D_D[EP],-1, D_D[LOC],$A46),0) -> 247 | P46: 0.6621983914 | Q46: =IFERROR(SUMIFS(D_D[INV],D_D[MT],2,D_D[CAT],TA_25,D_D[EP],-1, D_D[LOC],$A46),0) -> 20 | R46: =IFERROR(SUMIFS(D_D[INV],D_D[MT],2,D_D[CAT],TA_26,D_D[EP],-1, D_D[LOC],$A46),0) -> 0 | S46: =IFERROR(SUMIFS(D_D[INV],D_D[MT],7,D_D[CAT],2,D_D[EP],TA_20, D_D[LOC],$A46),0) -> 17
A47: 333 | B47: Des Moines | C47: =IFERROR(SUMIFS(D_D[INV],D_D[MT],1,D_D[CAT],TA_20,D_D[EP],-1, D_D[LOC],$A47),0) -> 66 | D47: =IFERROR(SUMIFS(D_D[ADP],D_D[MT],1,D_D[CAT],D$1,D_D[EP],-1, D_D[LOC],$A47),0) -> 91.48 | E47: =IFERROR(SUMIFS(D_D[INV],D_D[MT],2,D_D[CAT],TA_21,D_D[EP],-1, D_D[LOC],$A47),0) -> 1837 | F47: =IFERROR(SUMIFS(D_D[BL],D_D[MT],2,D_D[CAT],TA_21,D_D[EP],-1, D_D[LOC],$A47),0) -> 707 | G47: 0.3848666304 | H47: =IFERROR(SUMIFS(D_D[INV],D_D[MT],2,D_D[CAT],TA_22,D_D[EP],-1, D_D[LOC],$A47),0) -> 404 | I47: =IFERROR(SUMIFS(D_D[BL],D_D[MT],2,D_D[CAT],TA_22,D_D[EP],-1, D_D[LOC],$A47),0) -> 127 | J47: 0.3143564356 | K47: =IFERROR(SUMIFS(D_D[INV],D_D[MT],2,D_D[CAT],TA_23,D_D[EP],-1, D_D[LOC],$A47),0) -> 10 | L47: =IFERROR(SUMIFS(D_D[BL],D_D[MT],2,D_D[CAT],TA_23,D_D[EP],-1, D_D[LOC],$A47),0) -> 0 | M47: 0 | N47: =IFERROR(SUMIFS(D_D[INV],D_D[MT],2,D_D[CAT],TA_24,D_D[EP],-1, D_D[LOC],$A47),0) -> 213 | O47: =IFERROR(SUMIFS(D_D[BL],D_D[MT],2,D_D[CAT],TA_24,D_D[EP],-1, D_D[LOC],$A47),0) -> 143 | P47: 0.6713615023 | Q47: =IFERROR(SUMIFS(D_D[INV],D_D[MT],2,D_D[CAT],TA_25,D_D[EP],-1, D_D[LOC],$A47),0) -> 25 | R47: =IFERROR(SUMIFS(D_D[INV],D_D[MT],2,D_D[CAT],TA_26,D_D[EP],-1, D_D[LOC],$A47),0) -> 1 | S47: =IFERROR(SUMIFS(D_D[INV],D_D[MT],7,D_D[CAT],2,D_D[EP],TA_20, D_D[LOC],$A47),0) -> 1
A48: 437 | B48: Fargo | C48: =IFERROR(SUMIFS(D_D[INV],D_D[MT],1,D_D[CAT],TA_20,D_D[EP],-1, D_D[LOC],$A48),0) -> 35 | D48: =IFERROR(SUMIFS(D_D[ADP],D_D[MT],1,D_D[CAT],D$1,D_D[EP],-1, D_D[LOC],$A48),0) -> 105.2 | E48: =IFERROR(SUMIFS(D_D[INV],D_D[MT],2,D_D[CAT],TA_21,D_D[EP],-1, D_D[LOC],$A48),0) -> 882 | F48: =IFERROR(SUMIFS(D_D[BL],D_D[MT],2,D_D[CAT],TA_21,D_D[EP],-1, D_D[LOC],$A48),0) -> 358 | G48: 0.4058956916 | H48: =IFERROR(SUMIFS(D_D[INV],D_D[MT],2,D_D[CAT],TA_22,D_D[EP],-1, D_D[LOC],$A48),0) -> 169 | I48: =IFERROR(SUMIFS(D_D[BL],D_D[MT],2,D_D[CAT],TA_22,D_D[EP],-1, D_D[LOC],$A48),0) -> 40 | J48: 0.2366863905 | K48: =IFERROR(SUMIFS(D_D[INV],D_D[MT],2,D_D[CAT],TA_23,D_D[EP],-1, D_D[LOC],$A48),0) -> 3 | L48: =IFERROR(SUMIFS(D_D[BL],D_D[MT],2,D_D[CAT],TA_23,D_D[EP],-1, D_D[LOC],$A48),0) -> 0 | M48: 0 | N48: =IFERROR(SUMIFS(D_D[INV],D_D[MT],2,D_D[CAT],TA_24,D_D[EP],-1, D_D[LOC],$A48),0) -> 165 | O48: =IFERROR(SUMIFS(D_D[BL],D_D[MT],2,D_D[CAT],TA_24,D_D[EP],-1, D_D[LOC],$A48),0) -> 108 | P48: 0.6545454545 | Q48: =IFERROR(SUMIFS(D_D[INV],D_D[MT],2,D_D[CAT],TA_25,D_D[EP],-1, D_D[LOC],$A48),0) -> 7 | R48: =IFERROR(SUMIFS(D_D[INV],D_D[MT],2,D_D[CAT],TA_26,D_D[EP],-1, D_D[LOC],$A48),0) -> 3 | S48: =IFERROR(SUMIFS(D_D[INV],D_D[MT],7,D_D[CAT],2,D_D[EP],TA_20, D_D[LOC],$A48),0) -> 2
A49: 436 | B49: Fort Harrison | C49: =IFERROR(SUMIFS(D_D[INV],D_D[MT],1,D_D[CAT],TA_20,D_D[EP],-1, D_D[LOC],$A49),0) -> 48 | D49: =IFERROR(SUMIFS(D_D[ADP],D_D[MT],1,D_D[CAT],D$1,D_D[EP],-1, D_D[LOC],$A49),0) -> 102.85 | E49: =IFERROR(SUMIFS(D_D[INV],D_D[MT],2,D_D[CAT],TA_21,D_D[EP],-1, D_D[LOC],$A49),0) -> 1397 | F49: =IFERROR(SUMIFS(D_D[BL],D_D[MT],2,D_D[CAT],TA_21,D_D[EP],-1, D_D[LOC],$A49),0) -> 596 | G49: 0.4266284896 | H49: =IFERROR(SUMIFS(D_D[INV],D_D[MT],2,D_D[CAT],TA_22,D_D[EP],-1, D_D[LOC],$A49),0) -> 260 | I49: =IFERROR(SUMIFS(D_D[BL],D_D[MT],2,D_D[CAT],TA_22,D_D[EP],-1, D_D[LOC],$A49),0) -> 79 | J49: 0.3038461538 | K49: =IFERROR(SUMIFS(D_D[INV],D_D[MT],2,D_D[CAT],TA_23,D_D[EP],-1, D_D[LOC],$A49),0) -> 4 | L49: =IFERROR(SUMIFS(D_D[BL],D_D[MT],2,D_D[CAT],TA_23,D_D[EP],-1, D_D[LOC],$A49),0) -> 0 | M49: 0 | N49: =IFERROR(SUMIFS(D_D[INV],D_D[MT],2,D_D[CAT],TA_24,D_D[EP],-1, D_D[LOC],$A49),0) -> 157 | O49: =IFERROR(SUMIFS(D_D[BL],D_D[MT],2,D_D[CAT],TA_24,D_D[EP],-1, D_D[LOC],$A49),0) -> 120 | P49: 0.7643312102 | Q49: =IFERROR(SUMIFS(D_D[INV],D_D[MT],2,D_D[CAT],TA_25,D_D[EP],-1, D_D[LOC],$A49),0) -> 11 | R49: =IFERROR(SUMIFS(D_D[INV],D_D[MT],2,D_D[CAT],TA_26,D_D[EP],-1, D_D[LOC],$A49),0) -> 5 | S49: =IFERROR(SUMIFS(D_D[INV],D_D[MT],7,D_D[CAT],2,D_D[EP],TA_20, D_D[LOC],$A49),0) -> 2
A50: 362 | B50: Houston | C50: =IFERROR(SUMIFS(D_D[INV],D_D[MT],1,D_D[CAT],TA_20,D_D[EP],-1, D_D[LOC],$A50),0) -> 534 | D50: =IFERROR(SUMIFS(D_D[ADP],D_D[MT],1,D_D[CAT],D$1,D_D[EP],-1, D_D[LOC],$A50),0) -> 82.88 | E50: =IFERROR(SUMIFS(D_D[INV],D_D[MT],2,D_D[CAT],TA_21,D_D[EP],-1, D_D[LOC],$A50),0) -> 16194 | F50: =IFERROR(SUMIFS(D_D[BL],D_D[MT],2,D_D[CAT],TA_21,D_D[EP],-1, D_D[LOC],$A50),0) -> 6799 | G50: 0.4198468569 | H50: =IFERROR(SUMIFS(D_D[INV],D_D[MT],2,D_D[CAT],TA_22,D_D[EP],-1, D_D[LOC],$A50),0) -> 2139 | I50: =IFERROR(SUMIFS(D_D[BL],D_D[MT],2,D_D[CAT],TA_22,D_D[EP],-1, D_D[LOC],$A50),0) -> 481 | J50: 0.2248714353 | K50: =IFERROR(SUMIFS(D_D[INV],D_D[MT],2,D_D[CAT],TA_23,D_D[EP],-1, D_D[LOC],$A50),0) -> 24 | L50: =IFERROR(SUMIFS(D_D[BL],D_D[MT],2,D_D[CAT],TA_23,D_D[EP],-1, D_D[LOC],$A50),0) -> 0 | M50: 0 | N50: =IFERROR(SUMIFS(D_D[INV],D_D[MT],2,D_D[CAT],TA_24,D_D[EP],-1, D_D[LOC],$A50),0) -> 1576 | O50: =IFERROR(SUMIFS(D_D[BL],D_D[MT],2,D_D[CAT],TA_24,D_D[EP],-1, D_D[LOC],$A50),0) -> 932 | P50: 0.5913705584 | Q50: =IFERROR(SUMIFS(D_D[INV],D_D[MT],2,D_D[CAT],TA_25,D_D[EP],-1, D_D[LOC],$A50),0) -> 62 | R50: =IFERROR(SUMIFS(D_D[INV],D_D[MT],2,D_D[CAT],TA_26,D_D[EP],-1, D_D[LOC],$A50),0) -> 3 | S50: =IFERROR(SUMIFS(D_D[INV],D_D[MT],7,D_D[CAT],2,D_D[EP],TA_20, D_D[LOC],$A50),0) -> 23
A51: 334 | B51: Lincoln | C51: =IFERROR(SUMIFS(D_D[INV],D_D[MT],1,D_D[CAT],TA_20,D_D[EP],-1, D_D[LOC],$A51),0) -> 1237 | D51: =IFERROR(SUMIFS(D_D[ADP],D_D[MT],1,D_D[CAT],D$1,D_D[EP],-1, D_D[LOC],$A51),0) -> 86.14 | E51: =IFERROR(SUMIFS(D_D[INV],D_D[MT],2,D_D[CAT],TA_21,D_D[EP],-1, D_D[LOC],$A51),0) -> 2057 | F51: =IFERROR(SUMIFS(D_D[BL],D_D[MT],2,D_D[CAT],TA_21,D_D[EP],-1, D_D[LOC],$A51),0) -> 918 | G51: 0.4462809917 | H51: =IFERROR(SUMIFS(D_D[INV],D_D[MT],2,D_D[CAT],TA_22,D_D[EP],-1, D_D[LOC],$A51),0) -> 1687 | I51: =IFERROR(SUMIFS(D_D[BL],D_D[MT],2,D_D[CAT],TA_22,D_D[EP],-1, D_D[LOC],$A51),0) -> 314 | J51: 0.1861292235 | K51: =IFERROR(SUMIFS(D_D[INV],D_D[MT],2,D_D[CAT],TA_23,D_D[EP],-1, D_D[LOC],$A51),0) -> 5 | L51: =IFERROR(SUMIFS(D_D[BL],D_D[MT],2,D_D[CAT],TA_23,D_D[EP],-1, D_D[LOC],$A51),0) -> 0 | M51: 0 | N51: =IFERROR(SUMIFS(D_D[INV],D_D[MT],2,D_D[CAT],TA_24,D_D[EP],-1, D_D[LOC],$A51),0) -> 333 | O51: =IFERROR(SUMIFS(D_D[BL],D_D[MT],2,D_D[CAT],TA_24,D_D[EP],-1, D_D[LOC],$A51),0) -> 206 | P51: 0.6186186186 | Q51: =IFERROR(SUMIFS(D_D[INV],D_D[MT],2,D_D[CAT],TA_25,D_D[EP],-1, D_D[LOC],$A51),0) -> 10 | R51: =IFERROR(SUMIFS(D_D[INV],D_D[MT],2,D_D[CAT],TA_26,D_D[EP],-1, D_D[LOC],$A51),0) -> 7 | S51: =IFERROR(SUMIFS(D_D[INV],D_D[MT],7,D_D[CAT],2,D_D[EP],TA_20, D_D[LOC],$A51),0) -> 3
A52: 351 | B52: Muskogee | C52: =IFERROR(SUMIFS(D_D[INV],D_D[MT],1,D_D[CAT],TA_20,D_D[EP],-1, D_D[LOC],$A52),0) -> 655 | D52: =IFERROR(SUMIFS(D_D[ADP],D_D[MT],1,D_D[CAT],D$1,D_D[EP],-1, D_D[LOC],$A52),0) -> 103.77 | E52: =IFERROR(SUMIFS(D_D[INV],D_D[MT],2,D_D[CAT],TA_21,D_D[EP],-1, D_D[LOC],$A52),0) -> 4756 | F52: =IFERROR(SUMIFS(D_D[BL],D_D[MT],2,D_D[CAT],TA_21,D_D[EP],-1, D_D[LOC],$A52),0) -> 2309 | G52: 0.4854920101 | H52: =IFERROR(SUMIFS(D_D[INV],D_D[MT],2,D_D[CAT],TA_22,D_D[EP],-1, D_D[LOC],$A52),0) -> 3655 | I52: =IFERROR(SUMIFS(D_D[BL],D_D[MT],2,D_D[CAT],TA_22,D_D[EP],-1, D_D[LOC],$A52),0) -> 576 | J52: 0.1575923393 | K52: =IFERROR(SUMIFS(D_D[INV],D_D[MT],2,D_D[CAT],TA_23,D_D[EP],-1, D_D[LOC],$A52),0) -> 14 | L52: =IFERROR(SUMIFS(D_D[BL],D_D[MT],2,D_D[CAT],TA_23,D_D[EP],-1, D_D[LOC],$A52),0) -> 0 | M52: 0 | N52: =IFERROR(SUMIFS(D_D[INV],D_D[MT],2,D_D[CAT],TA_24,D_D[EP],-1, D_D[LOC],$A52),0) -> 706 | O52: =IFERROR(SUMIFS(D_D[BL],D_D[MT],2,D_D[CAT],TA_24,D_D[EP],-1, D_D[LOC],$A52),0) -> 426 | P52: 0.6033994334 | Q52: =IFERROR(SUMIFS(D_D[INV],D_D[MT],2,D_D[CAT],TA_25,D_D[EP],-1, D_D[LOC],$A52),0) -> 43 | R52: =IFERROR(SUMIFS(D_D[INV],D_D[MT],2,D_D[CAT],TA_26,D_D[EP],-1, D_D[LOC],$A52),0) -> 13 | S52: =IFERROR(SUMIFS(D_D[INV],D_D[MT],7,D_D[CAT],2,D_D[EP],TA_20, D_D[LOC],$A52),0) -> 0
A53: 438 | B53: Sioux Falls | C53: =IFERROR(SUMIFS(D_D[INV],D_D[MT],1,D_D[CAT],TA_20,D_D[EP],-1, D_D[LOC],$A53),0) -> 42 | D53: =IFERROR(SUMIFS(D_D[ADP],D_D[MT],1,D_D[CAT],D$1,D_D[EP],-1, D_D[LOC],$A53),0) -> 94.1 | E53: =IFERROR(SUMIFS(D_D[INV],D_D[MT],2,D_D[CAT],TA_21,D_D[EP],-1, D_D[LOC],$A53),0) -> 1207 | F53: =IFERROR(SUMIFS(D_D[BL],D_D[MT],2,D_D[CAT],TA_21,D_D[EP],-1, D_D[LOC],$A53),0) -> 556 | G53: 0.4606462303 | H53: =IFERROR(SUMIFS(D_D[INV],D_D[MT],2,D_D[CAT],TA_22,D_D[EP],-1, D_D[LOC],$A53),0) -> 364 | I53: =IFERROR(SUMIFS(D_D[BL],D_D[MT],2,D_D[CAT],TA_22,D_D[EP],-1, D_D[LOC],$A53),0) -> 89 | J53: 0.2445054945 | K53: =IFERROR(SUMIFS(D_D[INV],D_D[MT],2,D_D[CAT],TA_23,D_D[EP],-1, D_D[LOC],$A53),0) -> 4 | L53: =IFERROR(SUMIFS(D_D[BL],D_D[MT],2,D_D[CAT],TA_23,D_D[EP],-1, D_D[LOC],$A53),0) -> 0 | M53: 0 | N53: =IFERROR(SUMIFS(D_D[INV],D_D[MT],2,D_D[CAT],TA_24,D_D[EP],-1, D_D[LOC],$A53),0) -> 120 | O53: =IFERROR(SUMIFS(D_D[BL],D_D[MT],2,D_D[CAT],TA_24,D_D[EP],-1, D_D[LOC],$A53),0) -> 97 | P53: 0.8083333333 | Q53: =IFERROR(SUMIFS(D_D[INV],D_D[MT],2,D_D[CAT],TA_25,D_D[EP],-1, D_D[LOC],$A53),0) -> 4 | R53: =IFERROR(SUMIFS(D_D[INV],D_D[MT],2,D_D[CAT],TA_26,D_D[EP],-1, D_D[LOC],$A53),0) -> 1 | S53: =IFERROR(SUMIFS(D_D[INV],D_D[MT],7,D_D[CAT],2,D_D[EP],TA_20, D_D[LOC],$A53),0) -> 1
A54: 335 | B54: St. Paul | C54: =IFERROR(SUMIFS(D_D[INV],D_D[MT],1,D_D[CAT],TA_20,D_D[EP],-1, D_D[LOC],$A54),0) -> 1004 | D54: =IFERROR(SUMIFS(D_D[ADP],D_D[MT],1,D_D[CAT],D$1,D_D[EP],-1, D_D[LOC],$A54),0) -> 80.2 | E54: =IFERROR(SUMIFS(D_D[INV],D_D[MT],2,D_D[CAT],TA_21,D_D[EP],-1, D_D[LOC],$A54),0) -> 6708 | F54: =IFERROR(SUMIFS(D_D[BL],D_D[MT],2,D_D[CAT],TA_21,D_D[EP],-1, D_D[LOC],$A54),0) -> 3446 | G54: 0.5137149672 | H54: =IFERROR(SUMIFS(D_D[INV],D_D[MT],2,D_D[CAT],TA_22,D_D[EP],-1, D_D[LOC],$A54),0) -> 5752 | I54: =IFERROR(SUMIFS(D_D[BL],D_D[MT],2,D_D[CAT],TA_22,D_D[EP],-1, D_D[LOC],$A54),0) -> 953 | J54: 0.1656815021 | K54: =IFERROR(SUMIFS(D_D[INV],D_D[MT],2,D_D[CAT],TA_23,D_D[EP],-1, D_D[LOC],$A54),0) -> 57 | L54: =IFERROR(SUMIFS(D_D[BL],D_D[MT],2,D_D[CAT],TA_23,D_D[EP],-1, D_D[LOC],$A54),0) -> 3 | M54: 0.05263157895 | N54: =IFERROR(SUMIFS(D_D[INV],D_D[MT],2,D_D[CAT],TA_24,D_D[EP],-1, D_D[LOC],$A54),0) -> 2371 | O54: =IFERROR(SUMIFS(D_D[BL],D_D[MT],2,D_D[CAT],TA_24,D_D[EP],-1, D_D[LOC],$A54),0) -> 1684 | P54: 0.7102488402 | Q54: =IFERROR(SUMIFS(D_D[INV],D_D[MT],2,D_D[CAT],TA_25,D_D[EP],-1, D_D[LOC],$A54),0) -> 761 | R54: =IFERROR(SUMIFS(D_D[INV],D_D[MT],2,D_D[CAT],TA_26,D_D[EP],-1, D_D[LOC],$A54),0) -> 0 | S54: =IFERROR(SUMIFS(D_D[INV],D_D[MT],7,D_D[CAT],2,D_D[EP],TA_20, D_D[LOC],$A54),0) -> 149
A55: 349 | B55: Waco | C55: =IFERROR(SUMIFS(D_D[INV],D_D[MT],1,D_D[CAT],TA_20,D_D[EP],-1, D_D[LOC],$A55),0) -> 1120 | D55: =IFERROR(SUMIFS(D_D[ADP],D_D[MT],1,D_D[CAT],D$1,D_D[EP],-1, D_D[LOC],$A55),0) -> 77.33 | E55: =IFERROR(SUMIFS(D_D[INV],D_D[MT],2,D_D[CAT],TA_21,D_D[EP],-1, D_D[LOC],$A55),0) -> 17446 | F55: =IFERROR(SUMIFS(D_D[BL],D_D[MT],2,D_D[CAT],TA_21,D_D[EP],-1, D_D[LOC],$A55),0) -> 7169 | G55: 0.4109251404 | H55: =IFERROR(SUMIFS(D_D[INV],D_D[MT],2,D_D[CAT],TA_22,D_D[EP],-1, D_D[LOC],$A55),0) -> 3326 | I55: =IFERROR(SUMIFS(D_D[BL],D_D[MT],2,D_D[CAT],TA_22,D_D[EP],-1, D_D[LOC],$A55),0) -> 859 | J55: 0.25826819 | K55: =IFERROR(SUMIFS(D_D[INV],D_D[MT],2,D_D[CAT],TA_23,D_D[EP],-1, D_D[LOC],$A55),0) -> 27 | L55: =IFERROR(SUMIFS(D_D[BL],D_D[MT],2,D_D[CAT],TA_23,D_D[EP],-1, D_D[LOC],$A55),0) -> 4 | M55: 0.1481481481 | N55: =IFERROR(SUMIFS(D_D[INV],D_D[MT],2,D_D[CAT],TA_24,D_D[EP],-1, D_D[LOC],$A55),0) -> 2792 | O55: =IFERROR(SUMIFS(D_D[BL],D_D[MT],2,D_D[CAT],TA_24,D_D[EP],-1, D_D[LOC],$A55),0) -> 1521 | P55: 0.5447707736 | Q55: =IFERROR(SUMIFS(D_D[INV],D_D[MT],2,D_D[CAT],TA_25,D_D[EP],-1, D_D[LOC],$A55),0) -> 56 | R55: =IFERROR(SUMIFS(D_D[INV],D_D[MT],2,D_D[CAT],TA_26,D_D[EP],-1, D_D[LOC],$A55),0) -> 250 | S55: =IFERROR(SUMIFS(D_D[INV],D_D[MT],7,D_D[CAT],2,D_D[EP],TA_20, D_D[LOC],$A55),0) -> 4
A56: 452 | B56: Wichita | C56: =IFERROR(SUMIFS(D_D[INV],D_D[MT],1,D_D[CAT],TA_20,D_D[EP],-1, D_D[LOC],$A56),0) -> 77 | D56: =IFERROR(SUMIFS(D_D[ADP],D_D[MT],1,D_D[CAT],D$1,D_D[EP],-1, D_D[LOC],$A56),0) -> 67.6 | E56: =IFERROR(SUMIFS(D_D[INV],D_D[MT],2,D_D[CAT],TA_21,D_D[EP],-1, D_D[LOC],$A56),0) -> 2402 | F56: =IFERROR(SUMIFS(D_D[BL],D_D[MT],2,D_D[CAT],TA_21,D_D[EP],-1, D_D[LOC],$A56),0) -> 961 | G56: 0.4000832639 | H56: =IFERROR(SUMIFS(D_D[INV],D_D[MT],2,D_D[CAT],TA_22,D_D[EP],-1, D_D[LOC],$A56),0) -> 458 | I56: =IFERROR(SUMIFS(D_D[BL],D_D[MT],2,D_D[CAT],TA_22,D_D[EP],-1, D_D[LOC],$A56),0) -> 117 | J56: 0.2554585153 | K56: =IFERROR(SUMIFS(D_D[INV],D_D[MT],2,D_D[CAT],TA_23,D_D[EP],-1, D_D[LOC],$A56),0) -> 5 | L56: =IFERROR(SUMIFS(D_D[BL],D_D[MT],2,D_D[CAT],TA_23,D_D[EP],-1, D_D[LOC],$A56),0) -> 0 | M56: 0 | N56: =IFERROR(SUMIFS(D_D[INV],D_D[MT],2,D_D[CAT],TA_24,D_D[EP],-1, D_D[LOC],$A56),0) -> 197 | O56: =IFERROR(SUMIFS(D_D[BL],D_D[MT],2,D_D[CAT],TA_24,D_D[EP],-1, D_D[LOC],$A56),0) -> 118 | P56: 0.5989847716 | Q56: =IFERROR(SUMIFS(D_D[INV],D_D[MT],2,D_D[CAT],TA_25,D_D[EP],-1, D_D[LOC],$A56),0) -> 9 | R56: =IFERROR(SUMIFS(D_D[INV],D_D[MT],2,D_D[CAT],TA_26,D_D[EP],-1, D_D[LOC],$A56),0) -> 2 | S56: =IFERROR(SUMIFS(D_D[INV],D_D[MT],7,D_D[CAT],2,D_D[EP],TA_20, D_D[LOC],$A56),0) -> 6
A57: 395 | B57: Pacific | C57: =IFERROR(SUMIFS(D_D[INV],D_D[MT],1,D_D[CAT],TA_20,D_D[EP],-1, D_D[LOC],$A57),0) -> 5087 | D57: =IFERROR(SUMIFS(D_D[ADP],D_D[MT],1,D_D[CAT],D$1,D_D[EP],-1, D_D[LOC],$A57),0) -> 68.79 | E57: =IFERROR(SUMIFS(D_D[INV],D_D[MT],2,D_D[CAT],TA_21,D_D[EP],-1, D_D[LOC],$A57),0) -> 58242 | F57: =IFERROR(SUMIFS(D_D[BL],D_D[MT],2,D_D[CAT],TA_21,D_D[EP],-1, D_D[LOC],$A57),0) -> 25313 | G57: 0.4346176299 | H57: =IFERROR(SUMIFS(D_D[INV],D_D[MT],2,D_D[CAT],TA_22,D_D[EP],-1, D_D[LOC],$A57),0) -> 16689 | I57: =IFERROR(SUMIFS(D_D[BL],D_D[MT],2,D_D[CAT],TA_22,D_D[EP],-1, D_D[LOC],$A57),0) -> 3131 | J57: 0.1876086045 | K57: =IFERROR(SUMIFS(D_D[INV],D_D[MT],2,D_D[CAT],TA_23,D_D[EP],-1, D_D[LOC],$A57),0) -> 290 | L57: =IFERROR(SUMIFS(D_D[BL],D_D[MT],2,D_D[CAT],TA_23,D_D[EP],-1, D_D[LOC],$A57),0) -> 30 | M57: 0.1034482759 | N57: =IFERROR(SUMIFS(D_D[INV],D_D[MT],2,D_D[CAT],TA_24,D_D[EP],-1, D_D[LOC],$A57),0) -> 9667 | O57: =IFERROR(SUMIFS(D_D[BL],D_D[MT],2,D_D[CAT],TA_24,D_D[EP],-1, D_D[LOC],$A57),0) -> 4904 | P57: 0.507292852 | Q57: =IFERROR(SUMIFS(D_D[INV],D_D[MT],2,D_D[CAT],TA_25,D_D[EP],-1, D_D[LOC],$A57),0) -> 215 | R57: =IFERROR(SUMIFS(D_D[INV],D_D[MT],2,D_D[CAT],TA_26,D_D[EP],-1, D_D[LOC],$A57),0) -> 1255 | S57: =IFERROR(SUMIFS(D_D[INV],D_D[MT],7,D_D[CAT],2,D_D[EP],TA_20, D_D[LOC],$A57),0) -> 127
A58: 340 | B58: Albuquerque | C58: =IFERROR(SUMIFS(D_D[INV],D_D[MT],1,D_D[CAT],TA_20,D_D[EP],-1, D_D[LOC],$A58),0) -> 67 | D58: =IFERROR(SUMIFS(D_D[ADP],D_D[MT],1,D_D[CAT],D$1,D_D[EP],-1, D_D[LOC],$A58),0) -> 105.52 | E58: =IFERROR(SUMIFS(D_D[INV],D_D[MT],2,D_D[CAT],TA_21,D_D[EP],-1, D_D[LOC],$A58),0) -> 2048 | F58: =IFERROR(SUMIFS(D_D[BL],D_D[MT],2,D_D[CAT],TA_21,D_D[EP],-1, D_D[LOC],$A58),0) -> 1043 | G58: 0.5092773438 | H58: =IFERROR(SUMIFS(D_D[INV],D_D[MT],2,D_D[CAT],TA_22,D_D[EP],-1, D_D[LOC],$A58),0) -> 295 | I58: =IFERROR(SUMIFS(D_D[BL],D_D[MT],2,D_D[CAT],TA_22,D_D[EP],-1, D_D[LOC],$A58),0) -> 80 | J58: 0.2711864407 | K58: =IFERROR(SUMIFS(D_D[INV],D_D[MT],2,D_D[CAT],TA_23,D_D[EP],-1, D_D[LOC],$A58),0) -> 4 | L58: =IFERROR(SUMIFS(D_D[BL],D_D[MT],2,D_D[CAT],TA_23,D_D[EP],-1, D_D[LOC],$A58),0) -> 0 | M58: 0 | N58: =IFERROR(SUMIFS(D_D[INV],D_D[MT],2,D_D[CAT],TA_24,D_D[EP],-1, D_D[LOC],$A58),0) -> 296 | O58: =IFERROR(SUMIFS(D_D[BL],D_D[MT],2,D_D[CAT],TA_24,D_D[EP],-1, D_D[LOC],$A58),0) -> 187 | P58: 0.6317567568 | Q58: =IFERROR(SUMIFS(D_D[INV],D_D[MT],2,D_D[CAT],TA_25,D_D[EP],-1, D_D[LOC],$A58),0) -> 7 | R58: =IFERROR(SUMIFS(D_D[INV],D_D[MT],2,D_D[CAT],TA_26,D_D[EP],-1, D_D[LOC],$A58),0) -> 3 | S58: =IFERROR(SUMIFS(D_D[INV],D_D[MT],7,D_D[CAT],2,D_D[EP],TA_20, D_D[LOC],$A58),0) -> 4
A59: 463 | B59: Anchorage | C59: =IFERROR(SUMIFS(D_D[INV],D_D[MT],1,D_D[CAT],TA_20,D_D[EP],-1, D_D[LOC],$A59),0) -> 37 | D59: =IFERROR(SUMIFS(D_D[ADP],D_D[MT],1,D_D[CAT],D$1,D_D[EP],-1, D_D[LOC],$A59),0) -> 37.86 | E59: =IFERROR(SUMIFS(D_D[INV],D_D[MT],2,D_D[CAT],TA_21,D_D[EP],-1, D_D[LOC],$A59),0) -> 1086 | F59: =IFERROR(SUMIFS(D_D[BL],D_D[MT],2,D_D[CAT],TA_21,D_D[EP],-1, D_D[LOC],$A59),0) -> 535 | G59: 0.4926335175 | H59: =IFERROR(SUMIFS(D_D[INV],D_D[MT],2,D_D[CAT],TA_22,D_D[EP],-1, D_D[LOC],$A59),0) -> 268 | I59: =IFERROR(SUMIFS(D_D[BL],D_D[MT],2,D_D[CAT],TA_22,D_D[EP],-1, D_D[LOC],$A59),0) -> 45 | J59: 0.1679104478 | K59: =IFERROR(SUMIFS(D_D[INV],D_D[MT],2,D_D[CAT],TA_23,D_D[EP],-1, D_D[LOC],$A59),0) -> 0 | L59: =IFERROR(SUMIFS(D_D[BL],D_D[MT],2,D_D[CAT],TA_23,D_D[EP],-1, D_D[LOC],$A59),0) -> 0 | M59: 0% | N59: =IFERROR(SUMIFS(D_D[INV],D_D[MT],2,D_D[CAT],TA_24,D_D[EP],-1, D_D[LOC],$A59),0) -> 82 | O59: =IFERROR(SUMIFS(D_D[BL],D_D[MT],2,D_D[CAT],TA_24,D_D[EP],-1, D_D[LOC],$A59),0) -> 66 | P59: 0.8048780488 | Q59: =IFERROR(SUMIFS(D_D[INV],D_D[MT],2,D_D[CAT],TA_25,D_D[EP],-1, D_D[LOC],$A59),0) -> 4 | R59: =IFERROR(SUMIFS(D_D[INV],D_D[MT],2,D_D[CAT],TA_26,D_D[EP],-1, D_D[LOC],$A59),0) -> 4 | S59: =IFERROR(SUMIFS(D_D[INV],D_D[MT],7,D_D[CAT],2,D_D[EP],TA_20, D_D[LOC],$A59),0) -> 0
A60: 347 | B60: Boise | C60: =IFERROR(SUMIFS(D_D[INV],D_D[MT],1,D_D[CAT],TA_20,D_D[EP],-1, D_D[LOC],$A60),0) -> 72 | D60: =IFERROR(SUMIFS(D_D[ADP],D_D[MT],1,D_D[CAT],D$1,D_D[EP],-1, D_D[LOC],$A60),0) -> 117.38 | E60: =IFERROR(SUMIFS(D_D[INV],D_D[MT],2,D_D[CAT],TA_21,D_D[EP],-1, D_D[LOC],$A60),0) -> 1818 | F60: =IFERROR(SUMIFS(D_D[BL],D_D[MT],2,D_D[CAT],TA_21,D_D[EP],-1, D_D[LOC],$A60),0) -> 709 | G60: 0.3899889989 | H60: =IFERROR(SUMIFS(D_D[INV],D_D[MT],2,D_D[CAT],TA_22,D_D[EP],-1, D_D[LOC],$A60),0) -> 363 | I60: =IFERROR(SUMIFS(D_D[BL],D_D[MT],2,D_D[CAT],TA_22,D_D[EP],-1, D_D[LOC],$A60),0) -> 100 | J60: 0.2754820937 | K60: =IFERROR(SUMIFS(D_D[INV],D_D[MT],2,D_D[CAT],TA_23,D_D[EP],-1, D_D[LOC],$A60),0) -> 4 | L60: =IFERROR(SUMIFS(D_D[BL],D_D[MT],2,D_D[CAT],TA_23,D_D[EP],-1, D_D[LOC],$A60),0) -> 0 | M60: 0 | N60: =IFERROR(SUMIFS(D_D[INV],D_D[MT],2,D_D[CAT],TA_24,D_D[EP],-1, D_D[LOC],$A60),0) -> 185 | O60: =IFERROR(SUMIFS(D_D[BL],D_D[MT],2,D_D[CAT],TA_24,D_D[EP],-1, D_D[LOC],$A60),0) -> 146 | P60: 0.7891891892 | Q60: =IFERROR(SUMIFS(D_D[INV],D_D[MT],2,D_D[CAT],TA_25,D_D[EP],-1, D_D[LOC],$A60),0) -> 8 | R60: =IFERROR(SUMIFS(D_D[INV],D_D[MT],2,D_D[CAT],TA_26,D_D[EP],-1, D_D[LOC],$A60),0) -> 11 | S60: =IFERROR(SUMIFS(D_D[INV],D_D[MT],7,D_D[CAT],2,D_D[EP],TA_20, D_D[LOC],$A60),0) -> 1
A61: 459 | B61: Honolulu | C61: =IFERROR(SUMIFS(D_D[INV],D_D[MT],1,D_D[CAT],TA_20,D_D[EP],-1, D_D[LOC],$A61),0) -> 92 | D61: =IFERROR(SUMIFS(D_D[ADP],D_D[MT],1,D_D[CAT],D$1,D_D[EP],-1, D_D[LOC],$A61),0) -> 67.87 | E61: =IFERROR(SUMIFS(D_D[INV],D_D[MT],2,D_D[CAT],TA_21,D_D[EP],-1, D_D[LOC],$A61),0) -> 2319 | F61: =IFERROR(SUMIFS(D_D[BL],D_D[MT],2,D_D[CAT],TA_21,D_D[EP],-1, D_D[LOC],$A61),0) -> 839 | G61: 0.3617938767 | H61: =IFERROR(SUMIFS(D_D[INV],D_D[MT],2,D_D[CAT],TA_22,D_D[EP],-1, D_D[LOC],$A61),0) -> 449 | I61: =IFERROR(SUMIFS(D_D[BL],D_D[MT],2,D_D[CAT],TA_22,D_D[EP],-1, D_D[LOC],$A61),0) -> 78 | J61: 0.1737193764 | K61: =IFERROR(SUMIFS(D_D[INV],D_D[MT],2,D_D[CAT],TA_23,D_D[EP],-1, D_D[LOC],$A61),0) -> 2 | L61: =IFERROR(SUMIFS(D_D[BL],D_D[MT],2,D_D[CAT],TA_23,D_D[EP],-1, D_D[LOC],$A61),0) -> 1 | M61: 0.5 | N61: =IFERROR(SUMIFS(D_D[INV],D_D[MT],2,D_D[CAT],TA_24,D_D[EP],-1, D_D[LOC],$A61),0) -> 155 | O61: =IFERROR(SUMIFS(D_D[BL],D_D[MT],2,D_D[CAT],TA_24,D_D[EP],-1, D_D[LOC],$A61),0) -> 86 | P61: 0.5548387097 | Q61: =IFERROR(SUMIFS(D_D[INV],D_D[MT],2,D_D[CAT],TA_25,D_D[EP],-1, D_D[LOC],$A61),0) -> 11 | R61: =IFERROR(SUMIFS(D_D[INV],D_D[MT],2,D_D[CAT],TA_26,D_D[EP],-1, D_D[LOC],$A61),0) -> 1 | S61: =IFERROR(SUMIFS(D_D[INV],D_D[MT],7,D_D[CAT],2,D_D[EP],TA_20, D_D[LOC],$A61),0) -> 3
A62: 344 | B62: Los Angeles | C62: =IFERROR(SUMIFS(D_D[INV],D_D[MT],1,D_D[CAT],TA_20,D_D[EP],-1, D_D[LOC],$A62),0) -> 269 | D62: =IFERROR(SUMIFS(D_D[ADP],D_D[MT],1,D_D[CAT],D$1,D_D[EP],-1, D_D[LOC],$A62),0) -> 74.16 | E62: =IFERROR(SUMIFS(D_D[INV],D_D[MT],2,D_D[CAT],TA_21,D_D[EP],-1, D_D[LOC],$A62),0) -> 6583 | F62: =IFERROR(SUMIFS(D_D[BL],D_D[MT],2,D_D[CAT],TA_21,D_D[EP],-1, D_D[LOC],$A62),0) -> 2182 | G62: 0.3314598208 | H62: =IFERROR(SUMIFS(D_D[INV],D_D[MT],2,D_D[CAT],TA_22,D_D[EP],-1, D_D[LOC],$A62),0) -> 1052 | I62: =IFERROR(SUMIFS(D_D[BL],D_D[MT],2,D_D[CAT],TA_22,D_D[EP],-1, D_D[LOC],$A62),0) -> 221 | J62: 0.2100760456 | K62: =IFERROR(SUMIFS(D_D[INV],D_D[MT],2,D_D[CAT],TA_23,D_D[EP],-1, D_D[LOC],$A62),0) -> 26 | L62: =IFERROR(SUMIFS(D_D[BL],D_D[MT],2,D_D[CAT],TA_23,D_D[EP],-1, D_D[LOC],$A62),0) -> 0 | M62: 0 | N62: =IFERROR(SUMIFS(D_D[INV],D_D[MT],2,D_D[CAT],TA_24,D_D[EP],-1, D_D[LOC],$A62),0) -> 607 | O62: =IFERROR(SUMIFS(D_D[BL],D_D[MT],2,D_D[CAT],TA_24,D_D[EP],-1, D_D[LOC],$A62),0) -> 312 | P62: 0.5140032949 | Q62: =IFERROR(SUMIFS(D_D[INV],D_D[MT],2,D_D[CAT],TA_25,D_D[EP],-1, D_D[LOC],$A62),0) -> 28 | R62: =IFERROR(SUMIFS(D_D[INV],D_D[MT],2,D_D[CAT],TA_26,D_D[EP],-1, D_D[LOC],$A62),0) -> 5 | S62: =IFERROR(SUMIFS(D_D[INV],D_D[MT],7,D_D[CAT],2,D_D[EP],TA_20, D_D[LOC],$A62),0) -> 3
A63: 358 | B63: Manila | C63: =IFERROR(SUMIFS(D_D[INV],D_D[MT],1,D_D[CAT],TA_20,D_D[EP],-1, D_D[LOC],$A63),0) -> 89 | D63: =IFERROR(SUMIFS(D_D[ADP],D_D[MT],1,D_D[CAT],D$1,D_D[EP],-1, D_D[LOC],$A63),0) -> 55.89 | E63: =IFERROR(SUMIFS(D_D[INV],D_D[MT],2,D_D[CAT],TA_21,D_D[EP],-1, D_D[LOC],$A63),0) -> 327 | F63: =IFERROR(SUMIFS(D_D[BL],D_D[MT],2,D_D[CAT],TA_21,D_D[EP],-1, D_D[LOC],$A63),0) -> 140 | G63: 0.4281345566 | H63: =IFERROR(SUMIFS(D_D[INV],D_D[MT],2,D_D[CAT],TA_22,D_D[EP],-1, D_D[LOC],$A63),0) -> 196 | I63: =IFERROR(SUMIFS(D_D[BL],D_D[MT],2,D_D[CAT],TA_22,D_D[EP],-1, D_D[LOC],$A63),0) -> 54 | J63: 0.2755102041 | K63: =IFERROR(SUMIFS(D_D[INV],D_D[MT],2,D_D[CAT],TA_23,D_D[EP],-1, D_D[LOC],$A63),0) -> 2 | L63: =IFERROR(SUMIFS(D_D[BL],D_D[MT],2,D_D[CAT],TA_23,D_D[EP],-1, D_D[LOC],$A63),0) -> 0 | M63: 0 | N63: =IFERROR(SUMIFS(D_D[INV],D_D[MT],2,D_D[CAT],TA_24,D_D[EP],-1, D_D[LOC],$A63),0) -> 76 | O63: =IFERROR(SUMIFS(D_D[BL],D_D[MT],2,D_D[CAT],TA_24,D_D[EP],-1, D_D[LOC],$A63),0) -> 54 | P63: 0.7105263158 | Q63: =IFERROR(SUMIFS(D_D[INV],D_D[MT],2,D_D[CAT],TA_25,D_D[EP],-1, D_D[LOC],$A63),0) -> 15 | R63: =IFERROR(SUMIFS(D_D[INV],D_D[MT],2,D_D[CAT],TA_26,D_D[EP],-1, D_D[LOC],$A63),0) -> 4 | S63: =IFERROR(SUMIFS(D_D[INV],D_D[MT],7,D_D[CAT],2,D_D[EP],TA_20, D_D[LOC],$A63),0) -> 80
A64: 343 | B64: Oakland | C64: =IFERROR(SUMIFS(D_D[INV],D_D[MT],1,D_D[CAT],TA_20,D_D[EP],-1, D_D[LOC],$A64),0) -> 230 | D64: =IFERROR(SUMIFS(D_D[ADP],D_D[MT],1,D_D[CAT],D$1,D_D[EP],-1, D_D[LOC],$A64),0) -> 72.42 | E64: =IFERROR(SUMIFS(D_D[INV],D_D[MT],2,D_D[CAT],TA_21,D_D[EP],-1, D_D[LOC],$A64),0) -> 7854 | F64: =IFERROR(SUMIFS(D_D[BL],D_D[MT],2,D_D[CAT],TA_21,D_D[EP],-1, D_D[LOC],$A64),0) -> 3073 | G64: 0.3912655971 | H64: =IFERROR(SUMIFS(D_D[INV],D_D[MT],2,D_D[CAT],TA_22,D_D[EP],-1, D_D[LOC],$A64),0) -> 1304 | I64: =IFERROR(SUMIFS(D_D[BL],D_D[MT],2,D_D[CAT],TA_22,D_D[EP],-1, D_D[LOC],$A64),0) -> 259 | J64: 0.1986196319 | K64: =IFERROR(SUMIFS(D_D[INV],D_D[MT],2,D_D[CAT],TA_23,D_D[EP],-1, D_D[LOC],$A64),0) -> 87 | L64: =IFERROR(SUMIFS(D_D[BL],D_D[MT],2,D_D[CAT],TA_23,D_D[EP],-1, D_D[LOC],$A64),0) -> 10 | M64: 0.1149425287 | N64: =IFERROR(SUMIFS(D_D[INV],D_D[MT],2,D_D[CAT],TA_24,D_D[EP],-1, D_D[LOC],$A64),0) -> 727 | O64: =IFERROR(SUMIFS(D_D[BL],D_D[MT],2,D_D[CAT],TA_24,D_D[EP],-1, D_D[LOC],$A64),0) -> 441 | P64: 0.6066024759 | Q64: =IFERROR(SUMIFS(D_D[INV],D_D[MT],2,D_D[CAT],TA_25,D_D[EP],-1, D_D[LOC],$A64),0) -> 31 | R64: =IFERROR(SUMIFS(D_D[INV],D_D[MT],2,D_D[CAT],TA_26,D_D[EP],-1, D_D[LOC],$A64),0) -> 2 | S64: =IFERROR(SUMIFS(D_D[INV],D_D[MT],7,D_D[CAT],2,D_D[EP],TA_20, D_D[LOC],$A64),0) -> 8
A65: 345 | B65: Phoenix | C65: =IFERROR(SUMIFS(D_D[INV],D_D[MT],1,D_D[CAT],TA_20,D_D[EP],-1, D_D[LOC],$A65),0) -> 215 | D65: =IFERROR(SUMIFS(D_D[ADP],D_D[MT],1,D_D[CAT],D$1,D_D[EP],-1, D_D[LOC],$A65),0) -> 62.51 | E65: =IFERROR(SUMIFS(D_D[INV],D_D[MT],2,D_D[CAT],TA_21,D_D[EP],-1, D_D[LOC],$A65),0) -> 5305 | F65: =IFERROR(SUMIFS(D_D[BL],D_D[MT],2,D_D[CAT],TA_21,D_D[EP],-1, D_D[LOC],$A65),0) -> 2128 | G65: 0.4011310085 | H65: =IFERROR(SUMIFS(D_D[INV],D_D[MT],2,D_D[CAT],TA_22,D_D[EP],-1, D_D[LOC],$A65),0) -> 1109 | I65: =IFERROR(SUMIFS(D_D[BL],D_D[MT],2,D_D[CAT],TA_22,D_D[EP],-1, D_D[LOC],$A65),0) -> 280 | J65: 0.2524797115 | K65: =IFERROR(SUMIFS(D_D[INV],D_D[MT],2,D_D[CAT],TA_23,D_D[EP],-1, D_D[LOC],$A65),0) -> 13 | L65: =IFERROR(SUMIFS(D_D[BL],D_D[MT],2,D_D[CAT],TA_23,D_D[EP],-1, D_D[LOC],$A65),0) -> 0 | M65: 0 | N65: =IFERROR(SUMIFS(D_D[INV],D_D[MT],2,D_D[CAT],TA_24,D_D[EP],-1, D_D[LOC],$A65),0) -> 1002 | O65: =IFERROR(SUMIFS(D_D[BL],D_D[MT],2,D_D[CAT],TA_24,D_D[EP],-1, D_D[LOC],$A65),0) -> 634 | P65: 0.6327345309 | Q65: =IFERROR(SUMIFS(D_D[INV],D_D[MT],2,D_D[CAT],TA_25,D_D[EP],-1, D_D[LOC],$A65),0) -> 20 | R65: =IFERROR(SUMIFS(D_D[INV],D_D[MT],2,D_D[CAT],TA_26,D_D[EP],-1, D_D[LOC],$A65),0) -> 157 | S65: =IFERROR(SUMIFS(D_D[INV],D_D[MT],7,D_D[CAT],2,D_D[EP],TA_20, D_D[LOC],$A65),0) -> 7
A66: 348 | B66: Portland | C66: =IFERROR(SUMIFS(D_D[INV],D_D[MT],1,D_D[CAT],TA_20,D_D[EP],-1, D_D[LOC],$A66),0) -> 120 | D66: =IFERROR(SUMIFS(D_D[ADP],D_D[MT],1,D_D[CAT],D$1,D_D[EP],-1, D_D[LOC],$A66),0) -> 147.18 | E66: =IFERROR(SUMIFS(D_D[INV],D_D[MT],2,D_D[CAT],TA_21,D_D[EP],-1, D_D[LOC],$A66),0) -> 3410 | F66: =IFERROR(SUMIFS(D_D[BL],D_D[MT],2,D_D[CAT],TA_21,D_D[EP],-1, D_D[LOC],$A66),0) -> 1498 | G66: 0.4392961877 | H66: =IFERROR(SUMIFS(D_D[INV],D_D[MT],2,D_D[CAT],TA_22,D_D[EP],-1, D_D[LOC],$A66),0) -> 592 | I66: =IFERROR(SUMIFS(D_D[BL],D_D[MT],2,D_D[CAT],TA_22,D_D[EP],-1, D_D[LOC],$A66),0) -> 170 | J66: 0.2871621622 | K66: =IFERROR(SUMIFS(D_D[INV],D_D[MT],2,D_D[CAT],TA_23,D_D[EP],-1, D_D[LOC],$A66),0) -> 10 | L66: =IFERROR(SUMIFS(D_D[BL],D_D[MT],2,D_D[CAT],TA_23,D_D[EP],-1, D_D[LOC],$A66),0) -> 0 | M66: 0 | N66: =IFERROR(SUMIFS(D_D[INV],D_D[MT],2,D_D[CAT],TA_24,D_D[EP],-1, D_D[LOC],$A66),0) -> 468 | O66: =IFERROR(SUMIFS(D_D[BL],D_D[MT],2,D_D[CAT],TA_24,D_D[EP],-1, D_D[LOC],$A66),0) -> 372 | P66: 0.7948717949 | Q66: =IFERROR(SUMIFS(D_D[INV],D_D[MT],2,D_D[CAT],TA_25,D_D[EP],-1, D_D[LOC],$A66),0) -> 16 | R66: =IFERROR(SUMIFS(D_D[INV],D_D[MT],2,D_D[CAT],TA_26,D_D[EP],-1, D_D[LOC],$A66),0) -> 2 | S66: =IFERROR(SUMIFS(D_D[INV],D_D[MT],7,D_D[CAT],2,D_D[EP],TA_20, D_D[LOC],$A66),0) -> 3
A67: 354 | B67: Reno | C67: =IFERROR(SUMIFS(D_D[INV],D_D[MT],1,D_D[CAT],TA_20,D_D[EP],-1, D_D[LOC],$A67),0) -> 93 | D67: =IFERROR(SUMIFS(D_D[ADP],D_D[MT],1,D_D[CAT],D$1,D_D[EP],-1, D_D[LOC],$A67),0) -> 94.67 | E67: =IFERROR(SUMIFS(D_D[INV],D_D[MT],2,D_D[CAT],TA_21,D_D[EP],-1, D_D[LOC],$A67),0) -> 3296 | F67: =IFERROR(SUMIFS(D_D[BL],D_D[MT],2,D_D[CAT],TA_21,D_D[EP],-1, D_D[LOC],$A67),0) -> 1255 | G67: 0.3807645631 | H67: =IFERROR(SUMIFS(D_D[INV],D_D[MT],2,D_D[CAT],TA_22,D_D[EP],-1, D_D[LOC],$A67),0) -> 496 | I67: =IFERROR(SUMIFS(D_D[BL],D_D[MT],2,D_D[CAT],TA_22,D_D[EP],-1, D_D[LOC],$A67),0) -> 128 | J67: 0.2580645161 | K67: =IFERROR(SUMIFS(D_D[INV],D_D[MT],2,D_D[CAT],TA_23,D_D[EP],-1, D_D[LOC],$A67),0) -> 6 | L67: =IFERROR(SUMIFS(D_D[BL],D_D[MT],2,D_D[CAT],TA_23,D_D[EP],-1, D_D[LOC],$A67),0) -> 0 | M67: 0 | N67: =IFERROR(SUMIFS(D_D[INV],D_D[MT],2,D_D[CAT],TA_24,D_D[EP],-1, D_D[LOC],$A67),0) -> 324 | O67: =IFERROR(SUMIFS(D_D[BL],D_D[MT],2,D_D[CAT],TA_24,D_D[EP],-1, D_D[LOC],$A67),0) -> 198 | P67: 0.6111111111 | Q67: =IFERROR(SUMIFS(D_D[INV],D_D[MT],2,D_D[CAT],TA_25,D_D[EP],-1, D_D[LOC],$A67),0) -> 7 | R67: =IFERROR(SUMIFS(D_D[INV],D_D[MT],2,D_D[CAT],TA_26,D_D[EP],-1, D_D[LOC],$A67),0) -> 2 | S67: =IFERROR(SUMIFS(D_D[INV],D_D[MT],7,D_D[CAT],2,D_D[EP],TA_20, D_D[LOC],$A67),0) -> 4
A68: 341 | B68: Salt Lake City | C68: =IFERROR(SUMIFS(D_D[INV],D_D[MT],1,D_D[CAT],TA_20,D_D[EP],-1, D_D[LOC],$A68),0) -> 2156 | D68: =IFERROR(SUMIFS(D_D[ADP],D_D[MT],1,D_D[CAT],D$1,D_D[EP],-1, D_D[LOC],$A68),0) -> 51.14 | E68: =IFERROR(SUMIFS(D_D[INV],D_D[MT],2,D_D[CAT],TA_21,D_D[EP],-1, D_D[LOC],$A68),0) -> 2167 | F68: =IFERROR(SUMIFS(D_D[BL],D_D[MT],2,D_D[CAT],TA_21,D_D[EP],-1, D_D[LOC],$A68),0) -> 898 | G68: 0.414397785 | H68: =IFERROR(SUMIFS(D_D[INV],D_D[MT],2,D_D[CAT],TA_22,D_D[EP],-1, D_D[LOC],$A68),0) -> 2871 | I68: =IFERROR(SUMIFS(D_D[BL],D_D[MT],2,D_D[CAT],TA_22,D_D[EP],-1, D_D[LOC],$A68),0) -> 373 | J68: 0.1299198885 | K68: =IFERROR(SUMIFS(D_D[INV],D_D[MT],2,D_D[CAT],TA_23,D_D[EP],-1, D_D[LOC],$A68),0) -> 3 | L68: =IFERROR(SUMIFS(D_D[BL],D_D[MT],2,D_D[CAT],TA_23,D_D[EP],-1, D_D[LOC],$A68),0) -> 0 | M68: 0 | N68: =IFERROR(SUMIFS(D_D[INV],D_D[MT],2,D_D[CAT],TA_24,D_D[EP],-1, D_D[LOC],$A68),0) -> 1631 | O68: =IFERROR(SUMIFS(D_D[BL],D_D[MT],2,D_D[CAT],TA_24,D_D[EP],-1, D_D[LOC],$A68),0) -> 634 | P68: 0.3887185776 | Q68: =IFERROR(SUMIFS(D_D[INV],D_D[MT],2,D_D[CAT],TA_25,D_D[EP],-1, D_D[LOC],$A68),0) -> 25 | R68: =IFERROR(SUMIFS(D_D[INV],D_D[MT],2,D_D[CAT],TA_26,D_D[EP],-1, D_D[LOC],$A68),0) -> 1042 | S68: =IFERROR(SUMIFS(D_D[INV],D_D[MT],7,D_D[CAT],2,D_D[EP],TA_20, D_D[LOC],$A68),0) -> 0
A69: 377 | B69: San Diego | C69: =IFERROR(SUMIFS(D_D[INV],D_D[MT],1,D_D[CAT],TA_20,D_D[EP],-1, D_D[LOC],$A69),0) -> 1155 | D69: =IFERROR(SUMIFS(D_D[ADP],D_D[MT],1,D_D[CAT],D$1,D_D[EP],-1, D_D[LOC],$A69),0) -> 69.1 | E69: =IFERROR(SUMIFS(D_D[INV],D_D[MT],2,D_D[CAT],TA_21,D_D[EP],-1, D_D[LOC],$A69),0) -> 10045 | F69: =IFERROR(SUMIFS(D_D[BL],D_D[MT],2,D_D[CAT],TA_21,D_D[EP],-1, D_D[LOC],$A69),0) -> 4529 | G69: =IFERROR(F69/E69,"0%") -> 0.4508710801 | H69: =IFERROR(SUMIFS(D_D[INV],D_D[MT],2,D_D[CAT],TA_22,D_D[EP],-1, D_D[LOC],$A69),0) -> 5729 | I69: =IFERROR(SUMIFS(D_D[BL],D_D[MT],2,D_D[CAT],TA_22,D_D[EP],-1, D_D[LOC],$A69),0) -> 852 | J69: =IFERROR(I69/H69,"0%") -> 0.1487170536 | K69: =IFERROR(SUMIFS(D_D[INV],D_D[MT],2,D_D[CAT],TA_23,D_D[EP],-1, D_D[LOC],$A69),0) -> 114 | L69: =IFERROR(SUMIFS(D_D[BL],D_D[MT],2,D_D[CAT],TA_23,D_D[EP],-1, D_D[LOC],$A69),0) -> 11 | M69: =IFERROR(L69/K69,"0%") -> 0.09649122807 | N69: =IFERROR(SUMIFS(D_D[INV],D_D[MT],2,D_D[CAT],TA_24,D_D[EP],-1, D_D[LOC],$A69),0) -> 940 | O69: =IFERROR(SUMIFS(D_D[BL],D_D[MT],2,D_D[CAT],TA_24,D_D[EP],-1, D_D[LOC],$A69),0) -> 612 | P69: =IFERROR(O69/N69,"0%") -> 0.6510638298 | Q69: =IFERROR(SUMIFS(D_D[INV],D_D[MT],2,D_D[CAT],TA_25,D_D[EP],-1, D_D[LOC],$A69),0) -> 13 | R69: =IFERROR(SUMIFS(D_D[INV],D_D[MT],2,D_D[CAT],TA_26,D_D[EP],-1, D_D[LOC],$A69),0) -> 4 | S69: =IFERROR(SUMIFS(D_D[INV],D_D[MT],7,D_D[CAT],2,D_D[EP],TA_20, D_D[LOC],$A69),0) -> 3
A70: 346 | B70: Seattle | C70: =IFERROR(SUMIFS(D_D[INV],D_D[MT],1,D_D[CAT],TA_20,D_D[EP],-1, D_D[LOC],$A70),0) -> 492 | D70: =IFERROR(SUMIFS(D_D[ADP],D_D[MT],1,D_D[CAT],D$1,D_D[EP],-1, D_D[LOC],$A70),0) -> 112.28 | E70: =IFERROR(SUMIFS(D_D[INV],D_D[MT],2,D_D[CAT],TA_21,D_D[EP],-1, D_D[LOC],$A70),0) -> 11984 | F70: =IFERROR(SUMIFS(D_D[BL],D_D[MT],2,D_D[CAT],TA_21,D_D[EP],-1, D_D[LOC],$A70),0) -> 6484 | G70: 0.5410547397 | H70: =IFERROR(SUMIFS(D_D[INV],D_D[MT],2,D_D[CAT],TA_22,D_D[EP],-1, D_D[LOC],$A70),0) -> 1965 | I70: =IFERROR(SUMIFS(D_D[BL],D_D[MT],2,D_D[CAT],TA_22,D_D[EP],-1, D_D[LOC],$A70),0) -> 491 | J70: 0.2498727735 | K70: =IFERROR(SUMIFS(D_D[INV],D_D[MT],2,D_D[CAT],TA_23,D_D[EP],-1, D_D[LOC],$A70),0) -> 19 | L70: =IFERROR(SUMIFS(D_D[BL],D_D[MT],2,D_D[CAT],TA_23,D_D[EP],-1, D_D[LOC],$A70),0) -> 8 | M70: 0.4210526316 | N70: =IFERROR(SUMIFS(D_D[INV],D_D[MT],2,D_D[CAT],TA_24,D_D[EP],-1, D_D[LOC],$A70),0) -> 3174 | O70: =IFERROR(SUMIFS(D_D[BL],D_D[MT],2,D_D[CAT],TA_24,D_D[EP],-1, D_D[LOC],$A70),0) -> 1162 | P70: 0.3660995589 | Q70: =IFERROR(SUMIFS(D_D[INV],D_D[MT],2,D_D[CAT],TA_25,D_D[EP],-1, D_D[LOC],$A70),0) -> 30 | R70: =IFERROR(SUMIFS(D_D[INV],D_D[MT],2,D_D[CAT],TA_26,D_D[EP],-1, D_D[LOC],$A70),0) -> 18 | S70: =IFERROR(SUMIFS(D_D[INV],D_D[MT],7,D_D[CAT],2,D_D[EP],TA_20, D_D[LOC],$A70),0) -> 11
